{"text_format":"1","workbook":"xlsx","n_sheets":2,"sheets":["ف.1.سد","khairi"],"not_rendered":{"charts":0,"images":0,"macros":0,"external_links":3,"defined_names":14,"comments":0,"pivot_tables":0},"unopened":[],"bounds":{"document_bytes":16777216,"sheet_cells":100000,"rows_first":2000,"rows_last":500,"rows_between":2000,"halvings":0,"cell_chars":16384,"cell_head_chars":4096},"cells_cut":0,"cells_raw":0,"read":"whole","date_system":"1900"}

{"sheet":"ف.1.سد","index":0,"n_rows":500,"n_cols":89,"rows_kept":500,"cut":false,"hidden":false,"merged":[[6,70,7,70],[7,56,7,58],[7,59,7,61],[7,62,7,64],[5,58,6,58],[5,59,6,59],[5,60,6,60],[5,61,6,61],[5,62,6,62],[5,63,6,63],[4,56,4,57],[4,59,4,60],[4,62,4,63],[5,64,6,64],[6,69,7,69],[5,7,5,9],[5,10,5,12],[5,14,5,16],[5,17,5,19],[5,21,5,23],[4,48,6,48],[5,35,5,37],[5,38,5,40],[5,42,5,44],[5,45,5,47],[4,35,4,37],[4,38,4,40],[4,41,6,41],[4,42,4,44],[4,45,4,47],[4,21,4,23],[4,24,4,26],[4,27,6,27],[4,28,4,30],[4,31,4,33],[5,28,5,30],[5,31,5,33],[5,24,5,26],[3,75,3,76],[3,77,7,77],[4,68,7,68],[4,69,5,70],[3,49,3,55],[5,49,5,51],[5,52,5,54],[5,56,6,56],[5,57,6,57],[4,71,5,72],[4,73,5,74],[4,75,7,75],[4,76,7,76],[4,49,4,51],[4,52,4,54],[4,55,6,55],[3,85,7,85],[4,7,4,9],[4,10,4,12],[4,13,6,13],[4,14,4,16],[4,17,4,19],[4,20,6,20],[3,56,3,58],[3,59,3,61],[3,62,3,64],[3,65,7,65],[3,66,3,68],[3,69,3,74],[4,66,7,66],[4,67,7,67],[4,34,6,34],[0,3,0,23],[0,83,0,84],[1,3,1,23],[3,1,7,1],[3,2,7,2],[3,3,7,3],[3,4,7,4],[3,5,7,5],[3,6,7,6],[3,7,3,13],[3,14,3,20],[3,21,3,27],[3,28,3,34],[3,35,3,41],[3,42,3,48],[3,78,7,84]]}
[null,null,null,"كشف رصد الدرجات للصف الســـــــــادس",null,null,null,null,null,null,null,null,null,null,null,null,null,null,null,null,null,null,null,null,null,null,null,null,null,null,null,null,null,null,null,null,null,null,null,null,null,null,null,null,null,null,null,null,null,null,null,null,null,null,null,null,null,null,null,null,null,null,null,null,null,null,null,null,null,null,null,null,null,null,null,"الأول","الثاني",null,null,null,null,null,null,"عدد الترتيب",null,15,null,null,"الأول"]
[null,null,null,"للعام الدراسي : 1440 - 1441 هجرية     الموافق : 2019 - 2020 ميلادي",null,null,null,null,null,null,null,null,null,null,null,null,null,null,null,null,null,null,null,null,null,null,null,null,null,null,null,null,null,null,null,null,null,null,null,null,null,null,null,null,null,null,null,null,null,null,null,null,null,null,null,null,null,null,null,null,null,null,null,null,null,null,null,null,null,null,null,null,null,null,null,null,null,null,null,null,null,null,null,null,null,null,null,null,"الثاني"]
[]
[null,"رقــم مسلســـــــل","اسم الطالب بالكامل","الجنـــــــــــــــــــــــــس","الفصـــــــــــــــــــــــــــل","رقــم الجلــــــــــــــوس","الرقـــــم الســــــــــري","التربية الإسلامية",null,null,null,null,null,null,"النحو والنصوص والقراءة ",null,null,null,null,null,null,"الكتابة ( التعبير والأملاء والخط )",null,null,null,null,null,null,"اللغة الإنجليزية",null,null,null,null,null,null,"الرياضيات",null,null,null,null,null,null,"العلوم",null,null,null,null,null,null,"الاجتماعيات",null,null,null,null,null,null,"التربية الفنية",null,null,"التربية الموسيقية",null,null,"التربية البدنية",null,null,"مجموع الفصـــلين","السلوك",null,null,"الغياب",null,null,null,null,null,"الثاني",null,"نتيجة الطالب","مـــــواد الرســـــــــــــــــــوب",null,null,null,null,null,null,"الترتيـــــــــــــــــــــــــــــــب"]
[null,null,null,null,null,null,null,"عدد الحصص",null,null,3,null,null,"المجمــــــوع الكلـــــــي","عدد الحصص",null,null,4,null,null,"المجمــــــوع الكلـــــــي","عدد الحصص",null,null,3,null,null,"المجمــــــوع الكلـــــــي","عدد الحصص",null,null,4,null,null,"المجمــــــوع الكلـــــــي",2,null,null,5,null,null,"المجمــــــوع الكلـــــــي","عدد الحصص",null,null,3,null,null,"المجمــــــوع الكلـــــــي","عدد الحصص",null,null,3,null,null,"المجمــــــوع الكلـــــــي","عدد الحصص",null,5,"عدد الحصص",null,5,"عدد الحصص",null,5,null,"الفترة الأولى","الفترة الثانية","الفترة الثالثة","الفترة الأولى",null,"الفترة الثانية",null,"الفترة الثالثة",null,"النسبــــــــــــــــــــــــة","التقــــــــــــــــــــــــــدير"]
[null,null,null,null,null,null,null,"الفصل الأول",null,null,"الفصل الثاني",null,null,null,"الفصل الأول",null,null,"الفصل الثاني",null,null,null,"الفصل الأول",null,null,"الفصل الثاني",null,null,null,"الفصل الأول",null,null,"الفصل الثاني",null,null,null,"الفصل الأول",null,null,"الفصل الثاني",null,null,null,"الفصل الأول",null,null,"الفصل الثاني",null,null,null,"الفصل الأول",null,null,"الفصل الثاني",null,null,null,"الفترة الأولى","الفترة الثانية","الفترة الثالثة","الفترة الأولى","الفترة الثانية","الفترة الثالثة","الفترة الأولى","الفترة الثانية","الفترة الثالثة"]
[null,null,null,null,null,null,null,"اعمـــــال السنة ","درجة الأمتحان","المجمــــــــــوع","اعمـــــال السنة ","درجة الأمتحان","المجمــــــــــوع",null,"اعمـــــال السنة ","درجة الأمتحان","المجمــــــــــوع","اعمـــــال السنة ","درجة الأمتحان","المجمــــــــــوع",null,"اعمـــــال السنة ","درجة الأمتحان","المجمــــــــــوع","اعمـــــال السنة ","درجة الأمتحان","المجمــــــــــوع",null,"اعمـــــال السنة ","درجة الأمتحان","المجمــــــــــوع","اعمـــــال السنة ","درجة الأمتحان","المجمــــــــــوع",null,"اعمـــــال السنة ","درجة الأمتحان","المجمــــــــــوع","اعمـــــال السنة ","درجة الأمتحان","المجمــــــــــوع",null,"اعمـــــال السنة ","درجة الأمتحان","المجمــــــــــوع","اعمـــــال السنة ","درجة الأمتحان","المجمــــــــــوع",null,"اعمـــــال السنة ","درجة الأمتحان","المجمــــــــــوع","اعمـــــال السنة ","درجة الأمتحان","المجمــــــــــوع",null,null,null,null,null,null,null,null,null,null,null,null,null,null,"مشـــــــروع","غير مشروع","مشـــــــروع","غير مشروع","مشـــــــروع","غير مشروع"]
[null,null,null,null,null,null,null,36,24,60,36,24,60,120,48,32,80,48,32,80,160,36,24,60,36,24,60,120,48,32,80,48,32,80,160,60,40,100,60,40,100,200,36,24,60,36,24,60,120,36,24,60,36,24,60,120,"تقديرات",null,null,"تقديرات",null,null,"تقديرات"]
[null,2,3,4,5,6,7,8,9,10,11,12,13,14,15,16,17,18,19,20,21,22,23,24,25,26,27,28,29,30,31,32,33,34,35,36,37,38,39,40,41,42,43,44,45,46,47,48,49,50,51,52,53,54,55,56,57,58,59,60,61,62,63,64,65,66,67,68,69,70,71,72,73,74,75,76,77,78,79,80,81,82,83,84,85,86]
[null,1,"طالب 1","انثى",null,null,null,24,18,42,null,60,60,102,37,17,54,null,80,80,134,29,13,42,null,50,50,92,31,21,52,null,78,78,130,35,26,61,null,57,57,118,18,16,34,null,52,52,86,22,16,38,null,60,60,98,null,null,null,null,null,null,null,null,null,760,null,null,null,null,null,null,null,null,null,76,{"$f":"IF(BX10=\"\",\"\",evaltion(BX10))","v":"جيد جدا"},{"$f":"IF($BX$4=\"الأول\",IF(BY10<>\"\", \"ناجح بتقدير\"&\" \"&BY10&\" \"&CH10,IF(COUNTBLANK($CA10:$CG10)=11,a,\"يحتاج إلى عناية في  :  \"&textjoin(\" و \",$CA10:$CG10))),IF($BX$4=\"الثاني\",IF(BY10<>\"\", \"ناجح بتقدير\"&\" \"&BY10&\" \"&CH10,IF(COUNTBLANK($CA10:$CG10)=11,a,\"له دور ثان في  :  \"&textjoin(\" و \",$CA10:$CG10)))))","v":"ناجح بتقدير جيد جدا "},null,null,null,null,null,null,null,{"$f":"IF(BN10=\"\",\"\",IF(RANK(BN10,$BN$10:$BN$1000)>$CH$1,\"\",IF(COUNTIF($BN$10:BN10,BN10)=1,Kh_RANK(BN10,$BN$10:$BN$1000),Kh_RANK(BN10,$BN$10:$BN$1000)&\" \"&\"مكرر\")))","v":""}]
[null,2,"طالب 2","انثى",null,null,null,29,21,50,null,60,60,110,39,17,56,null,80,80,136,32,21,53,null,56,56,109,48,30,78,null,80,80,158,28,22,50,null,94,94,144,30,14,44,null,53,53,97,25,17,42,null,58,58,100,null,null,null,null,null,null,null,null,null,854,null,null,null,null,null,null,null,null,null,85.399999999999991,{"$f":"IF(BX11=\"\",\"\",evaltion(BX11))","v":"ممتاز"},"ناجح بتقدير ممتاز ",null,null,null,null,null,null,null,{"$f":"IF(BN11=\"\",\"\",IF(RANK(BN11,$BN$10:$BN$1000)>$CH$1,\"\",IF(COUNTIF($BN$10:BN11,BN11)=1,Kh_RANK(BN11,$BN$10:$BN$1000),Kh_RANK(BN11,$BN$10:$BN$1000)&\" \"&\"مكرر\")))","v":""}]
[null,3,"طالب 3","انثى",null,null,null,22,17,39,null,49,49,88,40,16,56,null,80,80,136,25,18,43,null,49,49,92,37,14,51,null,71,71,122,20,15,35,null,85,85,120,19,13,32,null,37,37,69,17,7,24,null,54,54,78,null,null,null,null,null,null,null,null,null,705,null,null,null,null,null,null,null,null,null,70.5,{"$f":"IF(BX12=\"\",\"\",evaltion(BX12))","v":"جيد فقط"},"ناجح بتقدير جيد فقط ",null,null,null,null,null,null,null,{"$f":"IF(BN12=\"\",\"\",IF(RANK(BN12,$BN$10:$BN$1000)>$CH$1,\"\",IF(COUNTIF($BN$10:BN12,BN12)=1,Kh_RANK(BN12,$BN$10:$BN$1000),Kh_RANK(BN12,$BN$10:$BN$1000)&\" \"&\"مكرر\")))","v":""}]
[null,4,"طالب 4","انثى",null,null,null,24,23,47,null,54,54,101,36,22,58,null,75,75,133,30,18,48,null,53,53,101,22,6,28,null,52,52,80,24,17,41,null,12,12,53,21,7,28,null,32,32,60,26,15,41,null,22,22,63,null,null,null,null,null,null,null,null,null,null,null,null,null,null,null,null,null,null,null,null,null,"له دور ثان في  :  الرياضيات",null,null,null,null,"الرياضيات",null,null,{"$f":"IF(BN13=\"\",\"\",IF(RANK(BN13,$BN$10:$BN$1000)>$CH$1,\"\",IF(COUNTIF($BN$10:BN13,BN13)=1,Kh_RANK(BN13,$BN$10:$BN$1000),Kh_RANK(BN13,$BN$10:$BN$1000)&\" \"&\"مكرر\")))","v":""}]
[null,5,"طالب 5","انثى",null,null,null,19,18,37,null,27,27,64,23,17,40,null,70,70,110,26,16,42,null,55,55,97,25,17,42,null,62,62,104,33,17,50,null,50,50,100,16,13,29,null,31,31,60,26,14,40,null,30,30,70,null,null,null,null,null,null,null,null,null,605,null,null,null,null,null,null,null,null,null,60.5,{"$f":"IF(BX14=\"\",\"\",evaltion(BX14))","v":"مقبول"},"ناجح بتقدير مقبول ",null,null,null,null,null,null,null,{"$f":"IF(BN14=\"\",\"\",IF(RANK(BN14,$BN$10:$BN$1000)>$CH$1,\"\",IF(COUNTIF($BN$10:BN14,BN14)=1,Kh_RANK(BN14,$BN$10:$BN$1000),Kh_RANK(BN14,$BN$10:$BN$1000)&\" \"&\"مكرر\")))","v":""}]
[null,6,"طالب 6","انثى",null,null,null,36,24,60,null,60,60,120,48,31,79,null,80,80,159,32,21,53,null,57,57,110,44,29,73,null,80,80,153,55,34,89,null,90,90,179,35,24,59,null,57,57,116,34,21,55,null,59,59,114,null,null,null,null,null,null,null,null,null,951,null,null,null,null,null,null,null,null,null,95.1,"ممتاز","ناجح بتقدير ممتاز ",null,null,null,null,null,null,null,{"$f":"IF(BN15=\"\",\"\",IF(RANK(BN15,$BN$10:$BN$1000)>$CH$1,\"\",IF(COUNTIF($BN$10:BN15,BN15)=1,Kh_RANK(BN15,$BN$10:$BN$1000),Kh_RANK(BN15,$BN$10:$BN$1000)&\" \"&\"مكرر\")))","v":""}]
[null,7,"طالب 7","انثى",null,null,null,32,23,55,null,60,60,115,44,30,74,null,80,80,154,34,20,54,null,50,50,104,45,32,77,null,79,79,156,45,32,77,null,95,95,172,35,20,55,null,60,60,115,36,18,54,null,60,60,114,null,null,null,null,null,null,null,null,null,930,null,null,null,null,null,null,null,null,null,93,"ممتاز","ناجح بتقدير ممتاز ",null,null,null,null,null,null,null,{"$f":"IF(BN16=\"\",\"\",IF(RANK(BN16,$BN$10:$BN$1000)>$CH$1,\"\",IF(COUNTIF($BN$10:BN16,BN16)=1,Kh_RANK(BN16,$BN$10:$BN$1000),Kh_RANK(BN16,$BN$10:$BN$1000)&\" \"&\"مكرر\")))","v":""}]
[null,8,"طالب 8","انثى",null,null,null,33,24,57,null,60,60,117,47,28,75,null,80,80,155,35,23,58,null,56,56,114,31,24,55,null,80,80,135,42,28,70,null,93,93,163,34,16,50,null,60,60,110,32,19,51,null,60,60,111,null,null,null,null,null,null,null,null,null,905,null,null,null,null,null,null,null,null,null,90.5,"ممتاز","ناجح بتقدير ممتاز ",null,null,null,null,null,null,null,{"$f":"IF(BN17=\"\",\"\",IF(RANK(BN17,$BN$10:$BN$1000)>$CH$1,\"\",IF(COUNTIF($BN$10:BN17,BN17)=1,Kh_RANK(BN17,$BN$10:$BN$1000),Kh_RANK(BN17,$BN$10:$BN$1000)&\" \"&\"مكرر\")))","v":""}]
[null,9,"طالب 9","انثى",null,null,null,36,24,60,null,60,60,120,44,32,76,null,80,80,156,35,19,54,null,50,50,104,48,32,80,null,80,80,160,59,40,99,null,100,100,199,36,24,60,null,60,60,120,35,24,59,null,59,59,118,null,null,null,null,null,null,null,null,null,977,null,null,null,null,null,null,null,null,null,97.7,"ممتاز","ناجح بتقدير ممتاز الترتيب السابع",null,null,null,null,null,null,null,{"$f":"IF(BN18=\"\",\"\",IF(RANK(BN18,$BN$10:$BN$1000)>$CH$1,\"\",IF(COUNTIF($BN$10:BN18,BN18)=1,Kh_RANK(BN18,$BN$10:$BN$1000),Kh_RANK(BN18,$BN$10:$BN$1000)&\" \"&\"مكرر\")))","v":"الترتيب السابع"}]
[null,10,"طالب 10","انثى",null,null,null,32,24,56,null,60,60,116,44,31,75,null,80,80,155,29,21,50,null,49,49,99,44,20,64,null,80,80,144,45,27,72,null,100,100,172,36,24,60,null,60,60,120,35,17,52,null,60,60,112,null,null,null,null,null,null,null,null,null,918,null,null,null,null,null,null,null,null,null,91.8,"ممتاز","ناجح بتقدير ممتاز ",null,null,null,null,null,null,null,{"$f":"IF(BN19=\"\",\"\",IF(RANK(BN19,$BN$10:$BN$1000)>$CH$1,\"\",IF(COUNTIF($BN$10:BN19,BN19)=1,Kh_RANK(BN19,$BN$10:$BN$1000),Kh_RANK(BN19,$BN$10:$BN$1000)&\" \"&\"مكرر\")))","v":""}]
[null,11,"طالب 11","انثى",null,null,null,28,21,49,null,60,60,109,43,30,73,null,80,80,153,29,19,48,null,54,54,102,35,29,64,null,80,80,144,42,22,64,null,100,100,164,24,14,38,null,60,60,98,31,16,47,null,60,60,107,null,null,null,null,null,null,null,null,null,877,null,null,null,null,null,null,null,null,null,87.7,"ممتاز","ناجح بتقدير ممتاز ",null,null,null,null,null,null,null,{"$f":"IF(BN20=\"\",\"\",IF(RANK(BN20,$BN$10:$BN$1000)>$CH$1,\"\",IF(COUNTIF($BN$10:BN20,BN20)=1,Kh_RANK(BN20,$BN$10:$BN$1000),Kh_RANK(BN20,$BN$10:$BN$1000)&\" \"&\"مكرر\")))","v":""}]
[null,12,"طالب 12","انثى",null,null,null,35,24,59,null,60,60,119,47,32,79,null,80,80,159,34,21,55,null,57,57,112,47,30,77,null,79,79,156,52,32,84,null,99,99,183,34,24,58,null,60,60,118,35,19,54,null,57,57,111,null,null,null,null,null,null,null,null,null,958,null,null,null,null,null,null,null,null,null,95.8,"ممتاز","ناجح بتقدير ممتاز ",null,null,null,null,null,null,null,{"$f":"IF(BN21=\"\",\"\",IF(RANK(BN21,$BN$10:$BN$1000)>$CH$1,\"\",IF(COUNTIF($BN$10:BN21,BN21)=1,Kh_RANK(BN21,$BN$10:$BN$1000),Kh_RANK(BN21,$BN$10:$BN$1000)&\" \"&\"مكرر\")))","v":""}]
[null,13,"طالب 13","انثى",null,null,null,29,23,52,null,60,60,112,39,22,61,null,75,75,136,29,19,48,null,52,52,100,40,25,65,null,72,72,137,39,30,69,null,80,80,149,27,18,45,null,60,60,105,32,19,51,null,60,60,111,null,null,null,null,null,null,null,null,null,850,null,null,null,null,null,null,null,null,null,85,"ممتاز","ناجح بتقدير ممتاز ",null,null,null,null,null,null,null,{"$f":"IF(BN22=\"\",\"\",IF(RANK(BN22,$BN$10:$BN$1000)>$CH$1,\"\",IF(COUNTIF($BN$10:BN22,BN22)=1,Kh_RANK(BN22,$BN$10:$BN$1000),Kh_RANK(BN22,$BN$10:$BN$1000)&\" \"&\"مكرر\")))","v":""}]
[null,14,"طالب 14","انثى",null,null,null,15,11,26,null,46,46,72,25,11,36,null,74,74,110,19,11,30,null,45,45,75,20,13,33,null,66,66,99,20,19,39,null,84,84,123,18,10,28,null,32,32,60,22,11,33,null,38,38,71,null,null,null,null,null,null,null,null,null,610,null,null,null,null,null,null,null,null,null,61,"مقبول","ناجح بتقدير مقبول ",null,null,null,null,null,null,null,{"$f":"IF(BN23=\"\",\"\",IF(RANK(BN23,$BN$10:$BN$1000)>$CH$1,\"\",IF(COUNTIF($BN$10:BN23,BN23)=1,Kh_RANK(BN23,$BN$10:$BN$1000),Kh_RANK(BN23,$BN$10:$BN$1000)&\" \"&\"مكرر\")))","v":""}]
[null,15,"طالب 15","انثى",null,null,null,34,22,56,null,60,60,116,46,32,78,null,80,80,158,33,23,56,null,58,58,114,42,32,74,null,80,80,154,50,37,87,null,100,100,187,35,22,57,null,60,60,117,34,24,58,null,48,48,106,null,null,null,null,null,null,null,null,null,952,null,null,null,null,null,null,null,null,null,95.199999999999989,"ممتاز","ناجح بتقدير ممتاز ",null,null,null,null,null,null,null,{"$f":"IF(BN24=\"\",\"\",IF(RANK(BN24,$BN$10:$BN$1000)>$CH$1,\"\",IF(COUNTIF($BN$10:BN24,BN24)=1,Kh_RANK(BN24,$BN$10:$BN$1000),Kh_RANK(BN24,$BN$10:$BN$1000)&\" \"&\"مكرر\")))","v":""}]
[null,16,"طالب 16","انثى",null,null,null,9,10,19,null,19,19,38,34,27,61,null,18,18,79,29,13,42,null,21,21,63,14,14,28,null,29,29,57,27,10,37,null,6,6,43,15,11,26,null,7,7,33,27,11,38,null,22,22,60,null,null,null,null,null,null,null,null,null,null,null,null,null,null,null,null,null,null,null,null,null,"له دور ثان في  :  التربية الإسلامية و النحو والنصوص والقراءة  و اللغة الإنجليزية و الرياضيات و العلوم","التربية الإسلامية","النحو والنصوص والقراءة ",null,"اللغة الإنجليزية","الرياضيات","العلوم",null,{"$f":"IF(BN25=\"\",\"\",IF(RANK(BN25,$BN$10:$BN$1000)>$CH$1,\"\",IF(COUNTIF($BN$10:BN25,BN25)=1,Kh_RANK(BN25,$BN$10:$BN$1000),Kh_RANK(BN25,$BN$10:$BN$1000)&\" \"&\"مكرر\")))","v":""}]
[null,17,"طالب 17","انثى",null,null,null,34,20,54,null,60,60,114,39,28,67,null,80,80,147,28,19,47,null,48,48,95,37,22,59,null,80,80,139,44,28,72,null,85,85,157,32,22,54,null,60,60,114,32,21,53,null,48,48,101,null,null,null,null,null,null,null,null,null,867,null,null,null,null,null,null,null,null,null,86.7,{"$f":"IF(BX26=\"\",\"\",evaltion(BX26))","v":"ممتاز"},"ناجح بتقدير ممتاز ",null,null,null,null,null,null,null,{"$f":"IF(BN26=\"\",\"\",IF(RANK(BN26,$BN$10:$BN$1000)>$CH$1,\"\",IF(COUNTIF($BN$10:BN26,BN26)=1,Kh_RANK(BN26,$BN$10:$BN$1000),Kh_RANK(BN26,$BN$10:$BN$1000)&\" \"&\"مكرر\")))","v":""}]
[null,18,"طالب 18","انثى",null,null,null,33,22,55,null,57,57,112,41,27,68,null,80,80,148,33,22,55,null,57,57,112,42,29,71,null,79,79,150,46,36,82,null,100,100,182,28,12,40,null,60,60,100,35,21,56,null,60,60,116,null,null,null,null,null,null,null,null,null,920,null,null,null,null,null,null,null,null,null,92,"ممتاز","ناجح بتقدير ممتاز ",null,null,null,null,null,null,null,{"$f":"IF(BN27=\"\",\"\",IF(RANK(BN27,$BN$10:$BN$1000)>$CH$1,\"\",IF(COUNTIF($BN$10:BN27,BN27)=1,Kh_RANK(BN27,$BN$10:$BN$1000),Kh_RANK(BN27,$BN$10:$BN$1000)&\" \"&\"مكرر\")))","v":""}]
[null,19,"طالب 19","انثى",null,null,null,35,24,59,null,60,60,119,48,32,80,null,80,80,160,35,23,58,null,59,59,117,46,32,78,null,80,80,158,54,36,90,null,100,100,190,34,23,57,null,60,60,117,31,23,54,null,60,60,114,null,null,null,null,null,null,null,null,null,975,null,null,null,null,null,null,null,null,null,97.5,"ممتاز","ناجح بتقدير ممتاز الترتيب التاسع",null,null,null,null,null,null,null,{"$f":"IF(BN28=\"\",\"\",IF(RANK(BN28,$BN$10:$BN$1000)>$CH$1,\"\",IF(COUNTIF($BN$10:BN28,BN28)=1,Kh_RANK(BN28,$BN$10:$BN$1000),Kh_RANK(BN28,$BN$10:$BN$1000)&\" \"&\"مكرر\")))","v":"الترتيب التاسع"}]
[null,20,"طالب 20","انثى",null,null,null,32,23,55,null,60,60,115,43,23,66,null,79,79,145,33,23,56,null,59,59,115,34,27,61,null,80,80,141,46,21,67,null,100,100,167,25,16,41,null,46,46,87,30,22,52,null,57,57,109,null,null,null,null,null,null,null,null,null,879,null,null,null,null,null,null,null,null,null,87.9,"ممتاز","ناجح بتقدير ممتاز ",null,null,null,null,null,null,null,{"$f":"IF(BN29=\"\",\"\",IF(RANK(BN29,$BN$10:$BN$1000)>$CH$1,\"\",IF(COUNTIF($BN$10:BN29,BN29)=1,Kh_RANK(BN29,$BN$10:$BN$1000),Kh_RANK(BN29,$BN$10:$BN$1000)&\" \"&\"مكرر\")))","v":""}]
[null,21,"طالب 21","انثى",null,null,null,29,19,48,null,60,60,108,35,16,51,null,40,40,91,19,13,32,null,39,39,71,25,23,48,null,76,76,124,38,14,52,null,48,48,100,30,13,43,null,58,58,101,32,13,45,null,48,48,93,null,null,null,null,null,null,null,null,null,688,null,null,null,null,null,null,null,null,null,68.8,"جيد فقط","ناجح بتقدير جيد فقط ",null,null,null,null,null,null,null,{"$f":"IF(BN30=\"\",\"\",IF(RANK(BN30,$BN$10:$BN$1000)>$CH$1,\"\",IF(COUNTIF($BN$10:BN30,BN30)=1,Kh_RANK(BN30,$BN$10:$BN$1000),Kh_RANK(BN30,$BN$10:$BN$1000)&\" \"&\"مكرر\")))","v":""}]
[null,22,"طالب 22","انثى",null,null,null,35,24,59,null,60,60,119,45,32,77,null,80,80,157,31,19,50,null,38,38,88,46,32,78,null,80,80,158,52,35,87,null,98,98,185,36,24,60,null,60,60,120,35,22,57,null,46,46,103,null,null,null,null,null,null,null,null,null,930,null,null,null,null,null,null,null,null,null,93,"ممتاز","ناجح بتقدير ممتاز ",null,null,null,null,null,null,null,{"$f":"IF(BN31=\"\",\"\",IF(RANK(BN31,$BN$10:$BN$1000)>$CH$1,\"\",IF(COUNTIF($BN$10:BN31,BN31)=1,Kh_RANK(BN31,$BN$10:$BN$1000),Kh_RANK(BN31,$BN$10:$BN$1000)&\" \"&\"مكرر\")))","v":""}]
[null,23,"طالب 23","انثى",null,null,null,35,24,59,null,60,60,119,48,31,79,null,80,80,159,32,21,53,null,57,57,110,47,32,79,null,80,80,159,59,39,98,null,100,100,198,35,24,59,null,60,60,119,35,21,56,null,55,55,111,null,null,null,null,null,null,null,null,null,975,null,null,null,null,null,null,null,null,null,97.5,"ممتاز","ناجح بتقدير ممتاز الترتيب التاسع مكرر",null,null,null,null,null,null,null,{"$f":"IF(BN32=\"\",\"\",IF(RANK(BN32,$BN$10:$BN$1000)>$CH$1,\"\",IF(COUNTIF($BN$10:BN32,BN32)=1,Kh_RANK(BN32,$BN$10:$BN$1000),Kh_RANK(BN32,$BN$10:$BN$1000)&\" \"&\"مكرر\")))","v":"الترتيب التاسع مكرر"}]
[null,24,"طالب 24","انثى",null,null,null,34,24,58,null,60,60,118,48,32,80,null,80,80,160,35,23,58,null,60,60,118,48,31,79,null,79,79,158,57,40,97,null,100,100,197,34,24,58,null,60,60,118,32,21,53,null,46,46,99,null,null,null,null,null,null,null,null,null,968,null,null,null,null,null,null,null,null,null,96.8,"ممتاز","ناجح بتقدير ممتاز ",null,null,null,null,null,null,null,{"$f":"IF(BN33=\"\",\"\",IF(RANK(BN33,$BN$10:$BN$1000)>$CH$1,\"\",IF(COUNTIF($BN$10:BN33,BN33)=1,Kh_RANK(BN33,$BN$10:$BN$1000),Kh_RANK(BN33,$BN$10:$BN$1000)&\" \"&\"مكرر\")))","v":""}]
[null,25,"طالب 25","انثى",null,null,null,28,23,51,null,60,60,111,37,20,57,null,80,80,137,34,21,55,null,44,44,99,45,27,72,null,80,80,152,47,26,73,null,90,90,163,33,22,55,null,58,58,113,35,21,56,null,56,56,112,null,null,null,null,null,null,null,null,null,887,null,null,null,null,null,null,null,null,null,88.7,"ممتاز","ناجح بتقدير ممتاز ",null,null,null,null,null,null,null,{"$f":"IF(BN34=\"\",\"\",IF(RANK(BN34,$BN$10:$BN$1000)>$CH$1,\"\",IF(COUNTIF($BN$10:BN34,BN34)=1,Kh_RANK(BN34,$BN$10:$BN$1000),Kh_RANK(BN34,$BN$10:$BN$1000)&\" \"&\"مكرر\")))","v":""}]
[null,26,"طالب 26","انثى",null,null,null,36,24,60,null,60,60,120,48,32,80,null,80,80,160,34,23,57,null,58,58,115,48,32,80,null,80,80,160,60,39,99,null,100,100,199,35,24,59,null,60,60,119,32,24,56,null,60,60,116,null,null,null,null,null,null,null,null,null,989,null,null,null,null,null,null,null,null,null,98.9,"ممتاز","ناجح بتقدير ممتاز الترتيب الثالث",null,null,null,null,null,null,null,{"$f":"IF(BN35=\"\",\"\",IF(RANK(BN35,$BN$10:$BN$1000)>$CH$1,\"\",IF(COUNTIF($BN$10:BN35,BN35)=1,Kh_RANK(BN35,$BN$10:$BN$1000),Kh_RANK(BN35,$BN$10:$BN$1000)&\" \"&\"مكرر\")))","v":"الترتيب الثالث"}]
[null,27,"طالب 27","انثى",null,null,null,29,24,53,null,60,60,113,34,22,56,null,80,80,136,21,13,34,null,31,31,65,40,24,64,null,78,78,142,33,23,56,null,44,44,100,28,11,39,null,33,33,72,30,19,49,null,51,51,100,null,null,null,null,null,null,null,null,null,728,null,null,null,null,null,null,null,null,null,72.8,"جيد فقط","ناجح بتقدير جيد فقط ",null,null,null,null,null,null,null,{"$f":"IF(BN36=\"\",\"\",IF(RANK(BN36,$BN$10:$BN$1000)>$CH$1,\"\",IF(COUNTIF($BN$10:BN36,BN36)=1,Kh_RANK(BN36,$BN$10:$BN$1000),Kh_RANK(BN36,$BN$10:$BN$1000)&\" \"&\"مكرر\")))","v":""}]
[null,28,"طالب 28","انثى",null,null,null,27,21,48,null,54,54,102,28,14,42,null,80,80,122,22,18,40,null,39,39,79,33,18,51,null,70,70,121,21,12,33,null,100,100,133,19,11,30,null,48,48,78,20,15,35,null,30,30,65,null,null,null,null,null,null,null,null,null,700,null,null,null,null,null,null,null,null,null,70,"جيد فقط","ناجح بتقدير جيد فقط ",null,null,null,null,null,null,null,{"$f":"IF(BN37=\"\",\"\",IF(RANK(BN37,$BN$10:$BN$1000)>$CH$1,\"\",IF(COUNTIF($BN$10:BN37,BN37)=1,Kh_RANK(BN37,$BN$10:$BN$1000),Kh_RANK(BN37,$BN$10:$BN$1000)&\" \"&\"مكرر\")))","v":""}]
[null,29,"طالب 29","انثى",null,null,null,21,18,39,null,48,48,87,29,23,52,null,79,79,131,29,17,46,null,49,49,95,29,21,50,null,74,74,124,37,18,55,null,45,45,100,28,12,40,null,22,22,62,32,13,45,null,35,35,80,null,null,null,null,null,null,null,null,null,679,null,null,null,null,null,null,null,null,null,67.900000000000006,"جيد فقط","ناجح بتقدير جيد فقط ",null,null,null,null,null,null,null,{"$f":"IF(BN38=\"\",\"\",IF(RANK(BN38,$BN$10:$BN$1000)>$CH$1,\"\",IF(COUNTIF($BN$10:BN38,BN38)=1,Kh_RANK(BN38,$BN$10:$BN$1000),Kh_RANK(BN38,$BN$10:$BN$1000)&\" \"&\"مكرر\")))","v":""}]
[null,30,"طالب 30","انثى",null,null,null,26,24,50,null,60,60,110,41,29,70,null,80,80,150,27,19,46,null,56,56,102,48,32,80,null,80,80,160,55,38,93,null,100,100,193,28,20,48,null,60,60,108,35,18,53,null,60,60,113,null,null,null,null,null,null,null,null,null,936,null,null,null,null,null,null,null,null,null,93.600000000000009,"ممتاز","ناجح بتقدير ممتاز ",null,null,null,null,null,null,null,{"$f":"IF(BN39=\"\",\"\",IF(RANK(BN39,$BN$10:$BN$1000)>$CH$1,\"\",IF(COUNTIF($BN$10:BN39,BN39)=1,Kh_RANK(BN39,$BN$10:$BN$1000),Kh_RANK(BN39,$BN$10:$BN$1000)&\" \"&\"مكرر\")))","v":""}]
[null,31,"طالب 31","انثى",null,null,null,30,19,49,null,52,52,101,43,21,64,null,75,75,139,35,21,56,null,43,43,99,36,22,58,null,69,69,127,43,22,65,null,35,35,100,31,18,49,null,45,45,94,35,13,48,null,36,36,84,null,null,null,null,null,null,null,null,null,744,null,null,null,null,null,null,null,null,null,74.400000000000006,"جيد فقط","ناجح بتقدير جيد فقط ",null,null,null,null,null,null,null,{"$f":"IF(BN40=\"\",\"\",IF(RANK(BN40,$BN$10:$BN$1000)>$CH$1,\"\",IF(COUNTIF($BN$10:BN40,BN40)=1,Kh_RANK(BN40,$BN$10:$BN$1000),Kh_RANK(BN40,$BN$10:$BN$1000)&\" \"&\"مكرر\")))","v":""}]
[null,32,"طالب 32","انثى",null,null,null,33,23,56,null,60,60,116,43,29,72,null,80,80,152,27,20,47,null,58,58,105,42,21,63,null,80,80,143,48,33,81,null,100,100,181,32,23,55,null,60,60,115,36,19,55,null,60,60,115,null,null,null,null,null,null,null,null,null,927,null,null,null,null,null,null,null,null,null,92.7,"ممتاز","ناجح بتقدير ممتاز ",null,null,null,null,null,null,null,{"$f":"IF(BN41=\"\",\"\",IF(RANK(BN41,$BN$10:$BN$1000)>$CH$1,\"\",IF(COUNTIF($BN$10:BN41,BN41)=1,Kh_RANK(BN41,$BN$10:$BN$1000),Kh_RANK(BN41,$BN$10:$BN$1000)&\" \"&\"مكرر\")))","v":""}]
[null,33,"طالب 33","انثى",null,null,null,32,24,56,null,60,60,116,40,23,63,null,80,80,143,30,22,52,null,55,55,107,39,32,71,null,80,80,151,46,32,78,null,73,73,151,36,24,60,null,60,60,120,34,20,54,null,55,55,109,null,null,null,null,null,null,null,null,null,897,null,null,null,null,null,null,null,null,null,89.7,"ممتاز","ناجح بتقدير ممتاز ",null,null,null,null,null,null,null,{"$f":"IF(BN42=\"\",\"\",IF(RANK(BN42,$BN$10:$BN$1000)>$CH$1,\"\",IF(COUNTIF($BN$10:BN42,BN42)=1,Kh_RANK(BN42,$BN$10:$BN$1000),Kh_RANK(BN42,$BN$10:$BN$1000)&\" \"&\"مكرر\")))","v":""}]
[null,34,"طالب 34","انثى",null,null,null,33,24,57,null,60,60,117,43,30,73,null,70,70,143,35,20,55,null,56,56,111,46,30,76,null,78,78,154,52,34,86,null,99,99,185,31,24,55,null,60,60,115,32,18,50,null,55,55,105,null,null,null,null,null,null,null,null,null,930,null,null,null,null,null,null,null,null,null,93,"ممتاز","ناجح بتقدير ممتاز ",null,null,null,null,null,null,null,{"$f":"IF(BN43=\"\",\"\",IF(RANK(BN43,$BN$10:$BN$1000)>$CH$1,\"\",IF(COUNTIF($BN$10:BN43,BN43)=1,Kh_RANK(BN43,$BN$10:$BN$1000),Kh_RANK(BN43,$BN$10:$BN$1000)&\" \"&\"مكرر\")))","v":""}]
[null,35,"طالب 35","انثى",null,null,null,15,17,32,null,34,34,66,36,15,51,null,62,62,113,33,20,53,null,51,51,104,28,15,43,null,72,72,115,48,21,69,null,36,36,105,30,13,43,null,60,60,103,32,9,41,null,33,33,74,null,null,null,null,null,null,null,null,null,680,null,null,null,null,null,null,null,null,null,68,"جيد فقط","ناجح بتقدير جيد فقط ",null,null,null,null,null,null,null,{"$f":"IF(BN44=\"\",\"\",IF(RANK(BN44,$BN$10:$BN$1000)>$CH$1,\"\",IF(COUNTIF($BN$10:BN44,BN44)=1,Kh_RANK(BN44,$BN$10:$BN$1000),Kh_RANK(BN44,$BN$10:$BN$1000)&\" \"&\"مكرر\")))","v":""}]
[null,36,"طالب 36","انثى",null,null,null,29,20,49,null,55,55,104,38,29,67,null,80,80,147,31,18,49,null,56,56,105,43,31,74,null,80,80,154,37,26,63,null,78,78,141,29,14,43,null,50,50,93,30,16,46,null,47,47,93,null,null,null,null,null,null,null,null,null,837,null,null,null,null,null,null,null,null,null,83.7,"جيد جدا","ناجح بتقدير جيد جدا ",null,null,null,null,null,null,null,{"$f":"IF(BN45=\"\",\"\",IF(RANK(BN45,$BN$10:$BN$1000)>$CH$1,\"\",IF(COUNTIF($BN$10:BN45,BN45)=1,Kh_RANK(BN45,$BN$10:$BN$1000),Kh_RANK(BN45,$BN$10:$BN$1000)&\" \"&\"مكرر\")))","v":""}]
[null,37,"طالب 37","انثى",null,null,null,31,22,53,null,60,60,113,36,24,60,null,77,77,137,34,21,55,null,49,49,104,35,19,54,null,73,73,127,32,24,56,null,98,98,154,25,15,40,null,47,47,87,29,9,38,null,55,55,93,null,null,null,null,null,null,null,null,null,815,null,null,null,null,null,null,null,null,null,81.5,"جيد جدا","ناجح بتقدير جيد جدا ",null,null,null,null,null,null,null,{"$f":"IF(BN46=\"\",\"\",IF(RANK(BN46,$BN$10:$BN$1000)>$CH$1,\"\",IF(COUNTIF($BN$10:BN46,BN46)=1,Kh_RANK(BN46,$BN$10:$BN$1000),Kh_RANK(BN46,$BN$10:$BN$1000)&\" \"&\"مكرر\")))","v":""}]
[null,38,"طالب 38","انثى",null,null,null,27,23,50,null,55,55,105,33,20,53,null,80,80,133,27,19,46,null,47,47,93,24,19,43,null,80,80,123,46,27,73,null,58,58,131,31,16,47,null,42,42,89,25,21,46,null,42,42,88,null,null,null,null,null,null,null,null,null,762,null,null,null,null,null,null,null,null,null,76.2,"جيد جدا","ناجح بتقدير جيد جدا ",null,null,null,null,null,null,null,{"$f":"IF(BN47=\"\",\"\",IF(RANK(BN47,$BN$10:$BN$1000)>$CH$1,\"\",IF(COUNTIF($BN$10:BN47,BN47)=1,Kh_RANK(BN47,$BN$10:$BN$1000),Kh_RANK(BN47,$BN$10:$BN$1000)&\" \"&\"مكرر\")))","v":""}]
[null,39,"طالب 39","انثى",null,null,null,34,24,58,null,60,60,118,34,32,66,null,80,80,146,30,20,50,null,58,58,108,45,28,73,null,79,79,152,48,26,74,null,100,100,174,34,18,52,null,60,60,112,31,21,52,null,57,57,109,null,null,null,null,null,null,null,null,null,919,null,null,null,null,null,null,null,null,null,91.9,"ممتاز","ناجح بتقدير ممتاز ",null,null,null,null,null,null,null,{"$f":"IF(BN48=\"\",\"\",IF(RANK(BN48,$BN$10:$BN$1000)>$CH$1,\"\",IF(COUNTIF($BN$10:BN48,BN48)=1,Kh_RANK(BN48,$BN$10:$BN$1000),Kh_RANK(BN48,$BN$10:$BN$1000)&\" \"&\"مكرر\")))","v":""}]
[null,40,"طالب 40","انثى",null,null,null,32,22,54,null,56,56,110,36,23,59,null,80,80,139,32,17,49,null,40,40,89,34,25,59,null,65,65,124,38,21,59,null,45,45,104,26,14,40,null,45,45,85,31,23,54,null,35,35,89,null,null,null,null,null,null,null,null,null,740,null,null,null,null,null,null,null,null,null,74,"جيد فقط","ناجح بتقدير جيد فقط ",null,null,null,null,null,null,null,{"$f":"IF(BN49=\"\",\"\",IF(RANK(BN49,$BN$10:$BN$1000)>$CH$1,\"\",IF(COUNTIF($BN$10:BN49,BN49)=1,Kh_RANK(BN49,$BN$10:$BN$1000),Kh_RANK(BN49,$BN$10:$BN$1000)&\" \"&\"مكرر\")))","v":""}]
[null,41,"طالب 41","انثى",null,null,null,36,24,60,null,60,60,120,48,31,79,null,80,80,159,35,23,58,null,60,60,118,48,32,80,null,80,80,160,60,40,100,null,95,95,195,35,24,59,null,60,60,119,35,23,58,null,60,60,118,null,null,null,null,null,null,null,null,null,989,null,null,null,null,null,null,null,null,null,98.9,"ممتاز","ناجح بتقدير ممتاز الترتيب الثالث مكرر",null,null,null,null,null,null,null,{"$f":"IF(BN50=\"\",\"\",IF(RANK(BN50,$BN$10:$BN$1000)>$CH$1,\"\",IF(COUNTIF($BN$10:BN50,BN50)=1,Kh_RANK(BN50,$BN$10:$BN$1000),Kh_RANK(BN50,$BN$10:$BN$1000)&\" \"&\"مكرر\")))","v":"الترتيب الثالث مكرر"}]
[null,42,"طالب 42","انثى",null,null,null,34,24,58,null,60,60,118,38,25,63,null,72,72,135,35,22,57,null,58,58,115,47,30,77,null,80,80,157,57,36,93,null,100,100,193,34,22,56,null,60,60,116,35,17,52,null,54,54,106,null,null,null,null,null,null,null,null,null,940,null,null,null,null,null,null,null,null,null,94,"ممتاز","ناجح بتقدير ممتاز ",null,null,null,null,null,null,null,{"$f":"IF(BN51=\"\",\"\",IF(RANK(BN51,$BN$10:$BN$1000)>$CH$1,\"\",IF(COUNTIF($BN$10:BN51,BN51)=1,Kh_RANK(BN51,$BN$10:$BN$1000),Kh_RANK(BN51,$BN$10:$BN$1000)&\" \"&\"مكرر\")))","v":""}]
[null,43,"طالب 43","انثى",null,null,null,36,24,60,null,60,60,120,38,32,70,null,80,80,150,33,23,56,null,45,45,101,46,29,75,null,80,80,155,56,37,93,null,100,100,193,34,24,58,null,60,60,118,34,22,56,null,60,60,116,null,null,null,null,null,null,null,null,null,953,null,null,null,null,null,null,null,null,null,95.3,"ممتاز","ناجح بتقدير ممتاز ",null,null,null,null,null,null,null,{"$f":"IF(BN52=\"\",\"\",IF(RANK(BN52,$BN$10:$BN$1000)>$CH$1,\"\",IF(COUNTIF($BN$10:BN52,BN52)=1,Kh_RANK(BN52,$BN$10:$BN$1000),Kh_RANK(BN52,$BN$10:$BN$1000)&\" \"&\"مكرر\")))","v":""}]
[null,44,"طالب 44","انثى",null,null,null,34,22,56,null,60,60,116,43,31,74,null,80,80,154,32,22,54,null,56,56,110,46,32,78,null,80,80,158,49,33,82,null,75,75,157,35,24,59,null,60,60,119,35,20,55,null,52,52,107,null,null,null,null,null,null,null,null,null,921,null,null,null,null,null,null,null,null,null,92.100000000000009,"ممتاز","ناجح بتقدير ممتاز ",null,null,null,null,null,null,null,{"$f":"IF(BN53=\"\",\"\",IF(RANK(BN53,$BN$10:$BN$1000)>$CH$1,\"\",IF(COUNTIF($BN$10:BN53,BN53)=1,Kh_RANK(BN53,$BN$10:$BN$1000),Kh_RANK(BN53,$BN$10:$BN$1000)&\" \"&\"مكرر\")))","v":""}]
[null,45,"طالب 45","انثى",null,null,null,36,23,59,null,60,60,119,45,31,76,null,80,80,156,29,22,51,null,48,48,99,48,32,80,null,80,80,160,48,30,78,null,85,85,163,35,22,57,null,55,55,112,33,18,51,null,59,59,110,null,null,null,null,null,null,null,null,null,919,null,null,null,null,null,null,null,null,null,91.9,"ممتاز","ناجح بتقدير ممتاز ",null,null,null,null,null,null,null,{"$f":"IF(BN54=\"\",\"\",IF(RANK(BN54,$BN$10:$BN$1000)>$CH$1,\"\",IF(COUNTIF($BN$10:BN54,BN54)=1,Kh_RANK(BN54,$BN$10:$BN$1000),Kh_RANK(BN54,$BN$10:$BN$1000)&\" \"&\"مكرر\")))","v":""}]
[null,46,"طالب 46","انثى",null,null,null,36,24,60,null,60,60,120,48,32,80,null,80,80,160,34,23,57,null,60,60,117,47,32,79,null,80,80,159,60,40,100,null,100,100,200,36,24,60,null,60,60,120,36,24,60,null,60,60,120,null,null,null,null,null,null,null,null,null,996,null,null,null,null,null,null,null,null,null,99.6,"ممتاز","ناجح بتقدير ممتاز الترتيب الأول",null,null,null,null,null,null,null,{"$f":"IF(BN55=\"\",\"\",IF(RANK(BN55,$BN$10:$BN$1000)>$CH$1,\"\",IF(COUNTIF($BN$10:BN55,BN55)=1,Kh_RANK(BN55,$BN$10:$BN$1000),Kh_RANK(BN55,$BN$10:$BN$1000)&\" \"&\"مكرر\")))","v":"الترتيب الأول"}]
[null,47,"طالب 47","انثى",null,null,null,34,24,58,null,60,60,118,47,32,79,null,80,80,159,31,20,51,null,60,60,111,48,32,80,null,80,80,160,53,37,90,null,100,100,190,36,24,60,null,60,60,120,35,22,57,null,60,60,117,null,null,null,null,null,null,null,null,null,975,null,null,null,null,null,null,null,null,null,97.5,"ممتاز","ناجح بتقدير ممتاز الترتيب التاسع مكرر",null,null,null,null,null,null,null,{"$f":"IF(BN56=\"\",\"\",IF(RANK(BN56,$BN$10:$BN$1000)>$CH$1,\"\",IF(COUNTIF($BN$10:BN56,BN56)=1,Kh_RANK(BN56,$BN$10:$BN$1000),Kh_RANK(BN56,$BN$10:$BN$1000)&\" \"&\"مكرر\")))","v":"الترتيب التاسع مكرر"}]
[null,48,"طالب 48","انثى",null,null,null,36,24,60,null,60,60,120,47,31,78,null,80,80,158,35,24,59,null,60,60,119,47,30,77,null,79,79,156,49,37,86,null,95,95,181,34,22,56,null,60,60,116,35,15,50,null,57,57,107,null,null,null,null,null,null,null,null,null,957,null,null,null,null,null,null,null,null,null,95.7,"ممتاز","ناجح بتقدير ممتاز ",null,null,null,null,null,null,null,{"$f":"IF(BN57=\"\",\"\",IF(RANK(BN57,$BN$10:$BN$1000)>$CH$1,\"\",IF(COUNTIF($BN$10:BN57,BN57)=1,Kh_RANK(BN57,$BN$10:$BN$1000),Kh_RANK(BN57,$BN$10:$BN$1000)&\" \"&\"مكرر\")))","v":""}]
[null,49,"طالب 49","انثى",null,null,null,36,34,70,null,60,60,130,42,32,74,null,80,80,154,34,23,57,null,60,60,117,44,28,72,null,80,80,152,55,36,91,null,100,100,191,35,24,59,null,60,60,119,33,20,53,null,60,60,113,null,null,null,null,null,null,null,null,null,976,null,null,null,null,null,null,null,null,null,97.6,"ممتاز","ناجح بتقدير ممتاز الترتيب الثامن",null,null,null,null,null,null,null,{"$f":"IF(BN58=\"\",\"\",IF(RANK(BN58,$BN$10:$BN$1000)>$CH$1,\"\",IF(COUNTIF($BN$10:BN58,BN58)=1,Kh_RANK(BN58,$BN$10:$BN$1000),Kh_RANK(BN58,$BN$10:$BN$1000)&\" \"&\"مكرر\")))","v":"الترتيب الثامن"}]
[null,50,"طالب 50","انثى",null,null,null,29,21,50,null,60,60,110,36,20,56,null,80,80,136,30,16,46,null,50,50,96,36,23,59,null,77,77,136,40,20,60,null,83,83,143,21,14,35,null,57,57,92,21,15,36,null,36,36,72,null,null,null,null,null,null,null,null,null,785,null,null,null,null,null,null,null,null,null,78.5,"جيد جدا","ناجح بتقدير جيد جدا ",null,null,null,null,null,null,null,{"$f":"IF(BN59=\"\",\"\",IF(RANK(BN59,$BN$10:$BN$1000)>$CH$1,\"\",IF(COUNTIF($BN$10:BN59,BN59)=1,Kh_RANK(BN59,$BN$10:$BN$1000),Kh_RANK(BN59,$BN$10:$BN$1000)&\" \"&\"مكرر\")))","v":""}]
[null,51,"طالب 51","انثى",null,null,null,15,13,28,null,43,43,71,38,8,46,null,10,10,56,30,16,46,null,48,48,94,25,"غــ",25,null,64,64,89,18,16,34,null,6,6,40,19,10,29,null,33,33,62,19,10,29,null,31,31,60,null,null,null,null,null,null,null,null,null,null,null,null,null,null,null,null,null,null,null,null,null,"له دور ثان في  :  النحو والنصوص والقراءة  و الرياضيات",null,"النحو والنصوص والقراءة ",null,null,"الرياضيات",null,null,{"$f":"IF(BN60=\"\",\"\",IF(RANK(BN60,$BN$10:$BN$1000)>$CH$1,\"\",IF(COUNTIF($BN$10:BN60,BN60)=1,Kh_RANK(BN60,$BN$10:$BN$1000),Kh_RANK(BN60,$BN$10:$BN$1000)&\" \"&\"مكرر\")))","v":""}]
[null,52,"طالب 52","انثى",null,null,null,27,23,50,null,60,60,110,39,25,64,null,80,80,144,30,19,49,null,54,54,103,42,23,65,null,80,80,145,46,27,73,null,94,94,167,24,13,37,null,60,60,97,29,15,44,null,57,57,101,null,null,null,null,null,null,null,null,null,867,null,null,null,null,null,null,null,null,null,86.7,{"$f":"IF(BX61=\"\",\"\",evaltion(BX61))","v":"ممتاز"},"ناجح بتقدير ممتاز ",null,null,null,null,null,null,null,{"$f":"IF(BN61=\"\",\"\",IF(RANK(BN61,$BN$10:$BN$1000)>$CH$1,\"\",IF(COUNTIF($BN$10:BN61,BN61)=1,Kh_RANK(BN61,$BN$10:$BN$1000),Kh_RANK(BN61,$BN$10:$BN$1000)&\" \"&\"مكرر\")))","v":""}]
[null,53,"طالب 53","انثى",null,null,null,32,12,44,null,60,60,104,39,24,63,null,78,78,141,30,19,49,null,58,58,107,36,31,67,null,80,80,147,37,25,62,null,70,70,132,27,18,45,null,53,53,98,29,15,44,null,50,50,94,null,null,null,null,null,null,null,null,null,823,null,null,null,null,null,null,null,null,null,82.3,"جيد جدا","ناجح بتقدير جيد جدا ",null,null,null,null,null,null,null,{"$f":"IF(BN62=\"\",\"\",IF(RANK(BN62,$BN$10:$BN$1000)>$CH$1,\"\",IF(COUNTIF($BN$10:BN62,BN62)=1,Kh_RANK(BN62,$BN$10:$BN$1000),Kh_RANK(BN62,$BN$10:$BN$1000)&\" \"&\"مكرر\")))","v":""}]
[null,54,"طالب 54","انثى",null,null,null,29,18,47,null,54,54,101,39,16,55,null,75,75,130,29,16,45,null,40,40,85,30,19,49,null,33,33,82,41,24,65,null,85,85,150,22,13,35,null,51,51,86,29,10,39,null,28,28,67,null,null,null,null,null,null,null,null,null,701,null,null,null,null,null,null,null,null,null,70.099999999999994,"جيد فقط","ناجح بتقدير جيد فقط ",null,null,null,null,null,null,null,{"$f":"IF(BN63=\"\",\"\",IF(RANK(BN63,$BN$10:$BN$1000)>$CH$1,\"\",IF(COUNTIF($BN$10:BN63,BN63)=1,Kh_RANK(BN63,$BN$10:$BN$1000),Kh_RANK(BN63,$BN$10:$BN$1000)&\" \"&\"مكرر\")))","v":""}]
[null,55,"طالب 55","انثى",null,null,null,24,16,40,null,39,39,79,36,13,49,null,39,39,88,24,18,42,null,42,42,84,37,23,60,null,42,42,102,34,28,62,null,95,95,157,13,17,30,null,30,30,60,26,13,39,null,37,37,76,null,null,null,null,null,null,null,null,null,646,null,null,null,null,null,null,null,null,null,64.600000000000009,"مقبول","ناجح بتقدير مقبول ",null,null,null,null,null,null,null,{"$f":"IF(BN64=\"\",\"\",IF(RANK(BN64,$BN$10:$BN$1000)>$CH$1,\"\",IF(COUNTIF($BN$10:BN64,BN64)=1,Kh_RANK(BN64,$BN$10:$BN$1000),Kh_RANK(BN64,$BN$10:$BN$1000)&\" \"&\"مكرر\")))","v":""}]
[null,56,"طالب 56","انثى",null,null,null,35,23,58,null,60,60,118,47,22,69,null,75,75,144,35,22,57,null,51,51,108,40,27,67,null,76,76,143,48,28,76,null,95,95,171,32,14,46,null,52,52,98,35,14,49,null,42,42,91,null,null,null,null,null,null,null,null,null,873,null,null,null,null,null,null,null,null,null,87.3,"ممتاز","ناجح بتقدير ممتاز ",null,null,null,null,null,null,null,{"$f":"IF(BN65=\"\",\"\",IF(RANK(BN65,$BN$10:$BN$1000)>$CH$1,\"\",IF(COUNTIF($BN$10:BN65,BN65)=1,Kh_RANK(BN65,$BN$10:$BN$1000),Kh_RANK(BN65,$BN$10:$BN$1000)&\" \"&\"مكرر\")))","v":""}]
[null,57,"طالب 57","انثى",null,null,null,31,24,55,null,58,58,113,43,24,67,null,80,80,147,35,19,54,null,45,45,99,47,30,77,null,77,77,154,48,31,79,null,100,100,179,32,19,51,null,58,58,109,34,14,48,null,39,39,87,null,null,null,null,null,null,null,null,null,888,null,null,null,null,null,null,null,null,null,88.8,"ممتاز","ناجح بتقدير ممتاز ",null,null,null,null,null,null,null,{"$f":"IF(BN66=\"\",\"\",IF(RANK(BN66,$BN$10:$BN$1000)>$CH$1,\"\",IF(COUNTIF($BN$10:BN66,BN66)=1,Kh_RANK(BN66,$BN$10:$BN$1000),Kh_RANK(BN66,$BN$10:$BN$1000)&\" \"&\"مكرر\")))","v":""}]
[null,58,"طالب 58","انثى",null,null,null,35,24,59,null,60,60,119,43,30,73,null,80,80,153,31,21,52,null,55,55,107,48,31,79,null,80,80,159,48,34,82,null,100,100,182,36,24,60,null,60,60,120,33,22,55,null,59,59,114,null,null,null,null,null,null,null,null,null,954,null,null,null,null,null,null,null,null,null,95.399999999999991,"ممتاز","ناجح بتقدير ممتاز ",null,null,null,null,null,null,null,{"$f":"IF(BN67=\"\",\"\",IF(RANK(BN67,$BN$10:$BN$1000)>$CH$1,\"\",IF(COUNTIF($BN$10:BN67,BN67)=1,Kh_RANK(BN67,$BN$10:$BN$1000),Kh_RANK(BN67,$BN$10:$BN$1000)&\" \"&\"مكرر\")))","v":""}]
[null,59,"طالب 59","انثى",null,null,null,33,23,56,null,60,60,116,48,29,77,null,75,75,152,35,23,58,null,57,57,115,44,28,72,null,80,80,152,50,31,81,null,100,100,181,22,12,34,null,57,57,91,34,19,53,null,59,59,112,null,null,null,null,null,null,null,null,null,919,null,null,null,null,null,null,null,null,null,91.9,"ممتاز","ناجح بتقدير ممتاز ",null,null,null,null,null,null,null,{"$f":"IF(BN68=\"\",\"\",IF(RANK(BN68,$BN$10:$BN$1000)>$CH$1,\"\",IF(COUNTIF($BN$10:BN68,BN68)=1,Kh_RANK(BN68,$BN$10:$BN$1000),Kh_RANK(BN68,$BN$10:$BN$1000)&\" \"&\"مكرر\")))","v":""}]
[null,60,"طالب 60","انثى",null,null,null,34,24,58,null,60,60,118,42,31,73,null,80,80,153,30,21,51,null,60,60,111,45,32,77,null,80,80,157,48,27,75,null,65,65,140,32,18,50,null,58,58,108,33,14,47,null,41,41,88,null,null,null,null,null,null,null,null,null,875,null,null,null,null,null,null,null,null,null,87.5,"ممتاز","ناجح بتقدير ممتاز ",null,null,null,null,null,null,null,{"$f":"IF(BN69=\"\",\"\",IF(RANK(BN69,$BN$10:$BN$1000)>$CH$1,\"\",IF(COUNTIF($BN$10:BN69,BN69)=1,Kh_RANK(BN69,$BN$10:$BN$1000),Kh_RANK(BN69,$BN$10:$BN$1000)&\" \"&\"مكرر\")))","v":""}]
[null,61,"طالب 61","انثى",null,null,null,34,24,58,null,60,60,118,44,32,76,null,80,80,156,31,21,52,null,58,58,110,45,32,77,null,79,79,156,52,29,81,null,100,100,181,36,24,60,null,58,58,118,30,22,52,null,60,60,112,null,null,null,null,null,null,null,null,null,951,null,null,null,null,null,null,null,null,null,95.1,"ممتاز","ناجح بتقدير ممتاز ",null,null,null,null,null,null,null,{"$f":"IF(BN70=\"\",\"\",IF(RANK(BN70,$BN$10:$BN$1000)>$CH$1,\"\",IF(COUNTIF($BN$10:BN70,BN70)=1,Kh_RANK(BN70,$BN$10:$BN$1000),Kh_RANK(BN70,$BN$10:$BN$1000)&\" \"&\"مكرر\")))","v":""}]
[null,62,"طالب 62","انثى",null,null,null,26,23,49,null,60,60,109,37,24,61,null,80,80,141,26,18,44,null,48,48,92,36,30,66,null,77,77,143,41,20,61,null,89,89,150,23,16,39,null,58,58,97,33,16,49,null,32,32,81,null,null,null,null,null,null,null,null,null,813,null,null,null,null,null,null,null,null,null,81.3,"جيد جدا","ناجح بتقدير جيد جدا ",null,null,null,null,null,null,null,{"$f":"IF(BN71=\"\",\"\",IF(RANK(BN71,$BN$10:$BN$1000)>$CH$1,\"\",IF(COUNTIF($BN$10:BN71,BN71)=1,Kh_RANK(BN71,$BN$10:$BN$1000),Kh_RANK(BN71,$BN$10:$BN$1000)&\" \"&\"مكرر\")))","v":""}]
[null,63,"طالب 63","انثى",null,null,null,36,24,60,null,60,60,120,47,31,78,null,80,80,158,33,22,55,null,56,56,111,46,32,78,null,80,80,158,58,39,97,null,100,100,197,35,24,59,null,60,60,119,34,21,55,null,56,56,111,null,null,null,null,null,null,null,null,null,974,null,null,null,null,null,null,null,null,null,97.399999999999991,"ممتاز","ناجح بتقدير ممتاز الترتيب العاشر",null,null,null,null,null,null,null,{"$f":"IF(BN72=\"\",\"\",IF(RANK(BN72,$BN$10:$BN$1000)>$CH$1,\"\",IF(COUNTIF($BN$10:BN72,BN72)=1,Kh_RANK(BN72,$BN$10:$BN$1000),Kh_RANK(BN72,$BN$10:$BN$1000)&\" \"&\"مكرر\")))","v":"الترتيب العاشر"}]
[null,64,"طالب 64","انثى",null,null,null,34,23,57,null,60,60,117,40,29,69,null,80,80,149,25,18,43,null,53,53,96,44,27,71,null,80,80,151,53,37,90,null,95,95,185,28,21,49,null,58,58,107,30,22,52,null,44,44,96,null,null,null,null,null,null,null,null,null,901,null,null,null,null,null,null,null,null,null,90.100000000000009,"ممتاز","ناجح بتقدير ممتاز ",null,null,null,null,null,null,null,{"$f":"IF(BN73=\"\",\"\",IF(RANK(BN73,$BN$10:$BN$1000)>$CH$1,\"\",IF(COUNTIF($BN$10:BN73,BN73)=1,Kh_RANK(BN73,$BN$10:$BN$1000),Kh_RANK(BN73,$BN$10:$BN$1000)&\" \"&\"مكرر\")))","v":""}]
[null,65,"طالب 65","انثى",null,null,null,35,23,58,null,60,60,118,48,32,80,null,80,80,160,36,23,59,null,58,58,117,47,32,79,null,80,80,159,60,38,98,null,100,100,198,36,24,60,null,60,60,120,35,22,57,null,58,58,115,null,null,null,null,null,null,null,null,null,987,null,null,null,null,null,null,null,null,null,98.7,"ممتاز",{"$f":"IF($BX$4=\"الأول\",IF(BY74<>\"\", \"ناجح بتقدير\"&\" \"&BY74&\" \"&CH74,IF(COUNTBLANK($CA74:$CG74)=11,a,\"يحتاج إلى عناية في  :  \"&textjoin(\" و \",$CA74:$CG74))),IF($BX$4=\"الثاني\",IF(BY74<>\"\", \"ناجح بتقدير\"&\" \"&BY74&\" \"&CH74,IF(COUNTBLANK($CA74:$CG74)=11,a,\"له دور ثان في  :  \"&textjoin(\" و \",$CA74:$CG74)))))","v":"ناجح بتقدير ممتاز الترتيب الرابع"},null,null,null,null,null,null,null,{"$f":"IF(BN74=\"\",\"\",IF(RANK(BN74,$BN$10:$BN$1000)>$CH$1,\"\",IF(COUNTIF($BN$10:BN74,BN74)=1,Kh_RANK(BN74,$BN$10:$BN$1000),Kh_RANK(BN74,$BN$10:$BN$1000)&\" \"&\"مكرر\")))","v":"الترتيب الرابع"}]
[null,66,"طالب 66","انثى",null,null,null,35,24,59,null,60,60,119,38,28,66,null,80,80,146,34,21,55,null,55,55,110,48,32,80,null,79,79,159,51,27,78,null,95,95,173,31,19,50,null,60,60,110,32,13,45,null,47,47,92,null,null,null,null,null,null,null,null,null,909,null,null,null,null,null,null,null,null,null,90.9,"ممتاز","ناجح بتقدير ممتاز ",null,null,null,null,null,null,null,{"$f":"IF(BN75=\"\",\"\",IF(RANK(BN75,$BN$10:$BN$1000)>$CH$1,\"\",IF(COUNTIF($BN$10:BN75,BN75)=1,Kh_RANK(BN75,$BN$10:$BN$1000),Kh_RANK(BN75,$BN$10:$BN$1000)&\" \"&\"مكرر\")))","v":""}]
[null,67,"طالب 67","انثى",null,null,null,32,23,55,null,56,56,111,40,27,67,null,80,80,147,29,19,48,null,57,57,105,44,28,72,null,78,78,150,58,35,93,null,100,100,193,32,24,56,null,60,60,116,28,18,46,null,50,50,96,null,null,null,null,null,null,null,null,null,918,null,null,null,null,null,null,null,null,null,91.8,"ممتاز","ناجح بتقدير ممتاز ",null,null,null,null,null,null,null,{"$f":"IF(BN76=\"\",\"\",IF(RANK(BN76,$BN$10:$BN$1000)>$CH$1,\"\",IF(COUNTIF($BN$10:BN76,BN76)=1,Kh_RANK(BN76,$BN$10:$BN$1000),Kh_RANK(BN76,$BN$10:$BN$1000)&\" \"&\"مكرر\")))","v":""}]
[null,68,"طالب 68","انثى",null,null,null,32,24,56,null,60,60,116,38,22,60,null,80,80,140,35,21,56,null,55,55,111,34,27,61,null,80,80,141,42,27,69,null,100,100,169,33,16,49,null,54,54,103,30,17,47,null,59,59,106,null,null,null,null,null,null,null,null,null,886,null,null,null,null,null,null,null,null,null,88.6,"ممتاز","ناجح بتقدير ممتاز ",null,null,null,null,null,null,null,{"$f":"IF(BN77=\"\",\"\",IF(RANK(BN77,$BN$10:$BN$1000)>$CH$1,\"\",IF(COUNTIF($BN$10:BN77,BN77)=1,Kh_RANK(BN77,$BN$10:$BN$1000),Kh_RANK(BN77,$BN$10:$BN$1000)&\" \"&\"مكرر\")))","v":""}]
[null,69,"طالب 69","انثى",null,null,null,32,23,55,null,60,60,115,40,22,62,null,80,80,142,22,17,39,null,53,53,92,31,23,54,null,80,80,134,40,29,69,null,94,94,163,31,16,47,null,60,60,107,30,17,47,null,51,51,98,null,null,null,null,null,null,null,null,null,851,null,null,null,null,null,null,null,null,null,85.1,"ممتاز","ناجح بتقدير ممتاز ",null,null,null,null,null,null,null,{"$f":"IF(BN78=\"\",\"\",IF(RANK(BN78,$BN$10:$BN$1000)>$CH$1,\"\",IF(COUNTIF($BN$10:BN78,BN78)=1,Kh_RANK(BN78,$BN$10:$BN$1000),Kh_RANK(BN78,$BN$10:$BN$1000)&\" \"&\"مكرر\")))","v":""}]
[null,70,"طالب 70","انثى",null,null,null,33,23,56,null,60,60,116,48,31,79,null,80,80,159,34,23,57,null,57,57,114,47,30,77,null,80,80,157,59,37,96,null,100,100,196,34,24,58,null,58,58,116,35,22,57,null,57,57,114,null,null,null,null,null,null,null,null,null,972,null,null,null,null,null,null,null,null,null,97.2,"ممتاز","ناجح بتقدير ممتاز الحادي عشر",null,null,null,null,null,null,null,{"$f":"IF(BN79=\"\",\"\",IF(RANK(BN79,$BN$10:$BN$1000)>$CH$1,\"\",IF(COUNTIF($BN$10:BN79,BN79)=1,Kh_RANK(BN79,$BN$10:$BN$1000),Kh_RANK(BN79,$BN$10:$BN$1000)&\" \"&\"مكرر\")))","v":"الحادي عشر"}]
[null,71,"طالب 71","انثى",null,null,null,17,12,29,null,45,45,74,21,11,32,null,68,68,100,17,10,27,null,40,40,67,24,12,36,null,68,68,104,33,12,45,null,75,75,120,20,10,30,null,30,30,60,28,14,42,null,38,38,80,null,null,null,null,null,null,null,null,null,605,null,null,null,null,null,null,null,null,null,60.5,"مقبول","ناجح بتقدير مقبول ",null,null,null,null,null,null,null,{"$f":"IF(BN80=\"\",\"\",IF(RANK(BN80,$BN$10:$BN$1000)>$CH$1,\"\",IF(COUNTIF($BN$10:BN80,BN80)=1,Kh_RANK(BN80,$BN$10:$BN$1000),Kh_RANK(BN80,$BN$10:$BN$1000)&\" \"&\"مكرر\")))","v":""}]
[null,72,"طالب 72","انثى",null,null,null,34,22,56,null,60,60,116,41,28,69,null,80,80,149,34,22,56,null,53,53,109,45,30,75,null,80,80,155,48,33,81,null,100,100,181,24,13,37,null,60,60,97,31,13,44,null,53,53,97,null,null,null,null,null,null,null,null,null,904,null,null,null,null,null,null,null,null,null,90.4,"ممتاز","ناجح بتقدير ممتاز ",null,null,null,null,null,null,null,{"$f":"IF(BN81=\"\",\"\",IF(RANK(BN81,$BN$10:$BN$1000)>$CH$1,\"\",IF(COUNTIF($BN$10:BN81,BN81)=1,Kh_RANK(BN81,$BN$10:$BN$1000),Kh_RANK(BN81,$BN$10:$BN$1000)&\" \"&\"مكرر\")))","v":""}]
[null,73,"طالب 73","انثى",null,null,null,35,24,59,null,58,58,117,44,31,75,null,80,80,155,30,21,51,null,58,58,109,45,23,68,null,78,78,146,47,30,77,null,100,100,177,31,16,47,null,57,57,104,32,17,49,null,59,59,108,null,null,null,null,null,null,null,null,null,916,null,null,null,null,null,null,null,null,null,91.600000000000009,"ممتاز","ناجح بتقدير ممتاز ",null,null,null,null,null,null,null,{"$f":"IF(BN82=\"\",\"\",IF(RANK(BN82,$BN$10:$BN$1000)>$CH$1,\"\",IF(COUNTIF($BN$10:BN82,BN82)=1,Kh_RANK(BN82,$BN$10:$BN$1000),Kh_RANK(BN82,$BN$10:$BN$1000)&\" \"&\"مكرر\")))","v":""}]
[null,74,"طالب 74","انثى",null,null,null,29,22,51,null,54,54,105,38,17,55,null,80,80,135,35,20,55,null,54,54,109,32,22,54,null,73,73,127,40,23,63,null,100,100,163,23,15,38,null,60,60,98,27,18,45,null,60,60,105,null,null,null,null,null,null,null,null,null,842,null,null,null,null,null,null,null,null,null,84.2,"جيد جدا","ناجح بتقدير جيد جدا ",null,null,null,null,null,null,null,{"$f":"IF(BN83=\"\",\"\",IF(RANK(BN83,$BN$10:$BN$1000)>$CH$1,\"\",IF(COUNTIF($BN$10:BN83,BN83)=1,Kh_RANK(BN83,$BN$10:$BN$1000),Kh_RANK(BN83,$BN$10:$BN$1000)&\" \"&\"مكرر\")))","v":""}]
[null,75,"طالب 75","انثى",null,null,null,36,24,60,null,60,60,120,42,31,73,null,80,80,153,33,20,53,null,46,46,99,48,31,79,null,80,80,159,57,37,94,null,100,100,194,33,24,57,null,60,60,117,35,24,59,null,59,59,118,null,null,null,null,null,null,null,null,null,960,null,null,null,null,null,null,null,null,null,96,"ممتاز","ناجح بتقدير ممتاز ",null,null,null,null,null,null,null,{"$f":"IF(BN84=\"\",\"\",IF(RANK(BN84,$BN$10:$BN$1000)>$CH$1,\"\",IF(COUNTIF($BN$10:BN84,BN84)=1,Kh_RANK(BN84,$BN$10:$BN$1000),Kh_RANK(BN84,$BN$10:$BN$1000)&\" \"&\"مكرر\")))","v":""}]
[null,76,"طالب 76","انثى",null,null,null,23,15,38,null,43,43,81,23,17,40,null,65,65,105,20,14,34,null,42,42,76,33,22,55,null,78,78,133,31,20,51,null,49,49,100,21,10,31,null,30,30,61,27,15,42,null,22,22,64,null,null,null,null,null,null,null,null,null,620,null,null,null,null,null,null,null,null,null,62,"مقبول","ناجح بتقدير مقبول ",null,null,null,null,null,null,null,{"$f":"IF(BN85=\"\",\"\",IF(RANK(BN85,$BN$10:$BN$1000)>$CH$1,\"\",IF(COUNTIF($BN$10:BN85,BN85)=1,Kh_RANK(BN85,$BN$10:$BN$1000),Kh_RANK(BN85,$BN$10:$BN$1000)&\" \"&\"مكرر\")))","v":""}]
[null,77,"طالب 77","انثى",null,null,null,14,11,25,null,48,48,73,16,10,26,null,80,80,106,20,12,32,null,46,46,78,14,10,24,null,63,63,87,21,12,33,null,67,67,100,21,12,33,null,49,49,82,25,8,33,null,28,28,61,null,null,null,null,null,null,null,null,null,587,null,null,null,null,null,null,null,null,null,58.699999999999996,"مقبول","ناجح بتقدير مقبول ",null,null,null,null,null,null,null,{"$f":"IF(BN86=\"\",\"\",IF(RANK(BN86,$BN$10:$BN$1000)>$CH$1,\"\",IF(COUNTIF($BN$10:BN86,BN86)=1,Kh_RANK(BN86,$BN$10:$BN$1000),Kh_RANK(BN86,$BN$10:$BN$1000)&\" \"&\"مكرر\")))","v":""}]
[null,78,"طالب 78","انثى",null,null,null,13,14,27,null,33,33,60,11,10,21,null,66,66,87,16,8,24,null,37,37,61,12,13,25,null,58,58,83,16,13,29,null,18,18,47,16,8,24,null,36,36,60,19,11,30,null,10,10,40,null,null,null,null,null,null,null,null,null,null,null,null,null,null,null,null,null,null,null,null,null,"له دور ثان في  :  الرياضيات و الاجتماعيات",null,null,null,null,"الرياضيات",null,"الاجتماعيات",{"$f":"IF(BN87=\"\",\"\",IF(RANK(BN87,$BN$10:$BN$1000)>$CH$1,\"\",IF(COUNTIF($BN$10:BN87,BN87)=1,Kh_RANK(BN87,$BN$10:$BN$1000),Kh_RANK(BN87,$BN$10:$BN$1000)&\" \"&\"مكرر\")))","v":""}]
[null,79,"طالب 79","انثى",null,null,null,31,16,47,null,51,51,98,38,13,51,null,63,63,114,35,21,56,null,38,38,94,36,20,56,null,75,75,131,32,32,64,null,64,64,128,29,15,44,null,35,35,79,35,16,51,null,42,42,93,null,null,null,null,null,null,null,null,null,737,null,null,null,null,null,null,null,null,null,73.7,{"$f":"IF(BX88=\"\",\"\",evaltion(BX88))","v":"جيد فقط"},"ناجح بتقدير جيد فقط ",null,null,null,null,null,null,null,{"$f":"IF(BN88=\"\",\"\",IF(RANK(BN88,$BN$10:$BN$1000)>$CH$1,\"\",IF(COUNTIF($BN$10:BN88,BN88)=1,Kh_RANK(BN88,$BN$10:$BN$1000),Kh_RANK(BN88,$BN$10:$BN$1000)&\" \"&\"مكرر\")))","v":""}]
[null,80,"طالب 80","انثى",null,null,null,25,23,48,null,43,43,91,37,24,61,null,80,80,141,32,19,51,null,52,52,103,35,29,64,null,78,78,142,32,21,53,null,54,54,107,22,12,34,null,43,43,77,24,12,36,null,36,36,72,null,null,null,null,null,null,null,null,null,733,null,null,null,null,null,null,null,null,null,73.3,"جيد فقط","ناجح بتقدير جيد فقط ",null,null,null,null,null,null,null,{"$f":"IF(BN89=\"\",\"\",IF(RANK(BN89,$BN$10:$BN$1000)>$CH$1,\"\",IF(COUNTIF($BN$10:BN89,BN89)=1,Kh_RANK(BN89,$BN$10:$BN$1000),Kh_RANK(BN89,$BN$10:$BN$1000)&\" \"&\"مكرر\")))","v":""}]
[null,81,"طالب 81","انثى",null,null,null,17,17,34,null,39,39,73,22,17,39,null,80,80,119,21,13,34,null,51,51,85,33,23,56,null,78,78,134,30,16,46,null,54,54,100,24,13,37,null,36,36,73,29,19,48,null,36,36,84,null,null,null,null,null,null,null,null,null,668,null,null,null,null,null,null,null,null,null,66.8,"جيد فقط","ناجح بتقدير جيد فقط ",null,null,null,null,null,null,null,{"$f":"IF(BN90=\"\",\"\",IF(RANK(BN90,$BN$10:$BN$1000)>$CH$1,\"\",IF(COUNTIF($BN$10:BN90,BN90)=1,Kh_RANK(BN90,$BN$10:$BN$1000),Kh_RANK(BN90,$BN$10:$BN$1000)&\" \"&\"مكرر\")))","v":""}]
[null,82,"طالب 82","انثى",null,null,null,18,15,33,null,53,53,86,23,18,41,null,80,80,121,26,19,45,null,48,48,93,24,15,39,null,74,74,113,33,20,53,null,70,70,123,17,10,27,null,37,37,64,29,11,40,null,46,46,86,null,null,null,null,null,null,null,null,null,686,null,null,null,null,null,null,null,null,null,68.600000000000009,"جيد فقط","ناجح بتقدير جيد فقط ",null,null,null,null,null,null,null,{"$f":"IF(BN91=\"\",\"\",IF(RANK(BN91,$BN$10:$BN$1000)>$CH$1,\"\",IF(COUNTIF($BN$10:BN91,BN91)=1,Kh_RANK(BN91,$BN$10:$BN$1000),Kh_RANK(BN91,$BN$10:$BN$1000)&\" \"&\"مكرر\")))","v":""}]
[null,83,"طالب 83","انثى",null,null,null,29,23,52,null,60,60,112,40,25,65,null,80,80,145,33,20,53,null,41,41,94,31,17,48,null,75,75,123,34,29,63,null,93,93,156,23,11,34,null,60,60,94,29,18,47,null,52,52,99,null,null,null,null,null,null,null,null,null,823,null,null,null,null,null,null,null,null,null,82.3,"جيد جدا","ناجح بتقدير جيد جدا ",null,null,null,null,null,null,null,{"$f":"IF(BN92=\"\",\"\",IF(RANK(BN92,$BN$10:$BN$1000)>$CH$1,\"\",IF(COUNTIF($BN$10:BN92,BN92)=1,Kh_RANK(BN92,$BN$10:$BN$1000),Kh_RANK(BN92,$BN$10:$BN$1000)&\" \"&\"مكرر\")))","v":""}]
[null,84,"طالب 84","انثى",null,null,null,36,21,57,null,60,60,117,48,30,78,null,80,80,158,35,23,58,null,60,60,118,48,29,77,null,80,80,157,54,26,80,null,69,69,149,31,13,44,null,47,47,91,34,16,50,null,45,45,95,null,null,null,null,null,null,null,null,null,885,null,null,null,null,null,null,null,null,null,88.5,"ممتاز","ناجح بتقدير ممتاز ",null,null,null,null,null,null,null,{"$f":"IF(BN93=\"\",\"\",IF(RANK(BN93,$BN$10:$BN$1000)>$CH$1,\"\",IF(COUNTIF($BN$10:BN93,BN93)=1,Kh_RANK(BN93,$BN$10:$BN$1000),Kh_RANK(BN93,$BN$10:$BN$1000)&\" \"&\"مكرر\")))","v":""}]
[null,85,"طالب 85","انثى",null,null,null,35,24,59,null,60,60,119,41,30,71,null,73,73,144,31,23,54,null,48,48,102,42,27,69,null,80,80,149,54,34,88,null,95,95,183,29,15,44,null,58,58,102,32,16,48,null,46,46,94,null,null,null,null,null,null,null,null,null,893,null,null,null,null,null,null,null,null,null,89.3,"ممتاز","ناجح بتقدير ممتاز ",null,null,null,null,null,null,null,{"$f":"IF(BN94=\"\",\"\",IF(RANK(BN94,$BN$10:$BN$1000)>$CH$1,\"\",IF(COUNTIF($BN$10:BN94,BN94)=1,Kh_RANK(BN94,$BN$10:$BN$1000),Kh_RANK(BN94,$BN$10:$BN$1000)&\" \"&\"مكرر\")))","v":""}]
[null,86,"طالب 86","انثى",null,null,null,35,24,59,null,60,60,119,40,31,71,null,80,80,151,33,20,53,null,57,57,110,41,32,73,null,80,80,153,50,34,84,null,100,100,184,31,18,49,null,60,60,109,30,22,52,null,57,57,109,null,null,null,null,null,null,null,null,null,935,null,null,null,null,null,null,null,null,null,93.5,"ممتاز","ناجح بتقدير ممتاز ",null,null,null,null,null,null,null,{"$f":"IF(BN95=\"\",\"\",IF(RANK(BN95,$BN$10:$BN$1000)>$CH$1,\"\",IF(COUNTIF($BN$10:BN95,BN95)=1,Kh_RANK(BN95,$BN$10:$BN$1000),Kh_RANK(BN95,$BN$10:$BN$1000)&\" \"&\"مكرر\")))","v":""}]
[null,87,"طالب 87","انثى",null,null,null,36,24,60,null,60,60,120,47,32,79,null,80,80,159,33,20,53,null,60,60,113,47,32,79,null,80,80,159,59,40,99,null,100,100,199,36,24,60,null,60,60,120,30,20,50,null,58,58,108,null,null,null,null,null,null,null,null,null,978,null,null,null,null,null,null,null,null,null,97.8,"ممتاز","ناجح بتقدير ممتاز الترتيب السادس",null,null,null,null,null,null,null,{"$f":"IF(BN96=\"\",\"\",IF(RANK(BN96,$BN$10:$BN$1000)>$CH$1,\"\",IF(COUNTIF($BN$10:BN96,BN96)=1,Kh_RANK(BN96,$BN$10:$BN$1000),Kh_RANK(BN96,$BN$10:$BN$1000)&\" \"&\"مكرر\")))","v":"الترتيب السادس"}]
[null,88,"طالب 88","انثى",null,null,null,16,15,31,null,39,39,70,39,6,45,null,41,41,86,25,15,40,null,34,34,74,17,15,32,null,67,67,99,24,14,38,null,35,35,73,14,9,23,null,37,37,60,16,11,27,null,17,17,44,null,null,null,null,null,null,null,null,null,null,null,null,null,null,null,null,null,null,null,null,null,"له دور ثان في  :  الرياضيات و الاجتماعيات",null,null,null,null,"الرياضيات",null,"الاجتماعيات",{"$f":"IF(BN97=\"\",\"\",IF(RANK(BN97,$BN$10:$BN$1000)>$CH$1,\"\",IF(COUNTIF($BN$10:BN97,BN97)=1,Kh_RANK(BN97,$BN$10:$BN$1000),Kh_RANK(BN97,$BN$10:$BN$1000)&\" \"&\"مكرر\")))","v":""}]
[null,89,"طالب 89","انثى",null,null,null,19,4,23,null,37,37,60,30,24,54,null,70,70,124,19,16,35,null,47,47,82,31,32,63,null,70,70,133,39,28,67,null,93,93,160,23,13,36,null,24,24,60,32,20,52,null,30,30,82,null,null,null,null,null,null,null,null,null,701,null,null,null,null,null,null,null,null,null,70.099999999999994,{"$f":"IF(BX98=\"\",\"\",evaltion(BX98))","v":"جيد فقط"},"ناجح بتقدير جيد فقط ",null,null,null,null,null,null,null,{"$f":"IF(BN98=\"\",\"\",IF(RANK(BN98,$BN$10:$BN$1000)>$CH$1,\"\",IF(COUNTIF($BN$10:BN98,BN98)=1,Kh_RANK(BN98,$BN$10:$BN$1000),Kh_RANK(BN98,$BN$10:$BN$1000)&\" \"&\"مكرر\")))","v":""}]
[null,90,"طالب 90","انثى",null,null,null,35,24,59,null,60,60,119,46,32,78,null,80,80,158,35,22,57,null,55,55,112,46,30,76,null,80,80,156,58,38,96,null,95,95,191,35,24,59,null,60,60,119,32,21,53,null,58,58,111,null,null,null,null,null,null,null,null,null,966,null,null,null,null,null,null,null,null,null,96.6,{"$f":"IF(BX99=\"\",\"\",evaltion(BX99))","v":"ممتاز"},"ناجح بتقدير ممتاز ",null,null,null,null,null,null,null,{"$f":"IF(BN99=\"\",\"\",IF(RANK(BN99,$BN$10:$BN$1000)>$CH$1,\"\",IF(COUNTIF($BN$10:BN99,BN99)=1,Kh_RANK(BN99,$BN$10:$BN$1000),Kh_RANK(BN99,$BN$10:$BN$1000)&\" \"&\"مكرر\")))","v":""}]
[null,91,"طالب 91","انثى",null,null,null,36,23,59,null,60,60,119,48,32,80,null,73,73,153,35,23,58,null,60,60,118,47,32,79,null,78,78,157,57,35,92,null,83,83,175,34,20,54,null,54,54,108,34,17,51,null,55,55,106,null,null,null,null,null,null,null,null,null,936,null,null,null,null,null,null,null,null,null,93.600000000000009,{"$f":"IF(BX100=\"\",\"\",evaltion(BX100))","v":"ممتاز"},"ناجح بتقدير ممتاز ",null,null,null,null,null,null,null,{"$f":"IF(BN100=\"\",\"\",IF(RANK(BN100,$BN$10:$BN$1000)>$CH$1,\"\",IF(COUNTIF($BN$10:BN100,BN100)=1,Kh_RANK(BN100,$BN$10:$BN$1000),Kh_RANK(BN100,$BN$10:$BN$1000)&\" \"&\"مكرر\")))","v":""}]
[null,92,"طالب 92","انثى",null,null,null,16,12,28,null,32,32,60,26,15,41,null,39,39,80,25,16,41,null,41,41,82,39,25,64,null,78,78,142,32,24,56,null,61,61,117,19,12,31,null,41,41,72,26,15,41,null,20,20,61,null,null,null,null,null,null,null,null,null,614,null,null,null,null,null,null,null,null,null,61.4,{"$f":"IF(BX101=\"\",\"\",evaltion(BX101))","v":"مقبول"},"ناجح بتقدير مقبول ",null,null,null,null,null,null,null,{"$f":"IF(BN101=\"\",\"\",IF(RANK(BN101,$BN$10:$BN$1000)>$CH$1,\"\",IF(COUNTIF($BN$10:BN101,BN101)=1,Kh_RANK(BN101,$BN$10:$BN$1000),Kh_RANK(BN101,$BN$10:$BN$1000)&\" \"&\"مكرر\")))","v":""}]
[null,93,"طالب 93","انثى",null,null,null,24,22,46,null,60,60,106,25,22,47,null,80,80,127,22,14,36,null,52,52,88,46,32,78,null,80,80,158,33,27,60,null,95,95,155,31,17,48,null,52,52,100,28,12,40,null,56,56,96,null,null,null,null,null,null,null,null,null,830,null,null,null,null,null,null,null,null,null,83,{"$f":"IF(BX102=\"\",\"\",evaltion(BX102))","v":"جيد جدا"},"ناجح بتقدير جيد جدا ",null,null,null,null,null,null,null,{"$f":"IF(BN102=\"\",\"\",IF(RANK(BN102,$BN$10:$BN$1000)>$CH$1,\"\",IF(COUNTIF($BN$10:BN102,BN102)=1,Kh_RANK(BN102,$BN$10:$BN$1000),Kh_RANK(BN102,$BN$10:$BN$1000)&\" \"&\"مكرر\")))","v":""}]
[null,94,"طالب 94","انثى",null,null,null,19,15,34,null,43,43,77,38,10,48,null,48,48,96,31,16,47,null,38,38,85,21,21,42,null,59,59,101,18,14,32,null,46,46,78,18,7,25,null,18,18,43,20,10,30,null,30,30,60,null,null,null,null,null,null,null,null,null,null,null,null,null,null,null,null,null,null,null,null,null,"له دور ثان في  :  الرياضيات و العلوم",null,null,null,null,"الرياضيات","العلوم",null,{"$f":"IF(BN103=\"\",\"\",IF(RANK(BN103,$BN$10:$BN$1000)>$CH$1,\"\",IF(COUNTIF($BN$10:BN103,BN103)=1,Kh_RANK(BN103,$BN$10:$BN$1000),Kh_RANK(BN103,$BN$10:$BN$1000)&\" \"&\"مكرر\")))","v":""}]
[null,95,"طالب 95","انثى",null,null,null,26,20,46,null,46,46,92,37,28,65,null,80,80,145,32,21,53,null,60,60,113,45,28,73,null,76,76,149,57,34,91,null,83,83,174,26,20,46,null,53,53,99,30,18,48,null,47,47,95,null,null,null,null,null,null,null,null,null,867,null,null,null,null,null,null,null,null,null,86.7,{"$f":"IF(BX104=\"\",\"\",evaltion(BX104))","v":"ممتاز"},"ناجح بتقدير ممتاز ",null,null,null,null,null,null,null,{"$f":"IF(BN104=\"\",\"\",IF(RANK(BN104,$BN$10:$BN$1000)>$CH$1,\"\",IF(COUNTIF($BN$10:BN104,BN104)=1,Kh_RANK(BN104,$BN$10:$BN$1000),Kh_RANK(BN104,$BN$10:$BN$1000)&\" \"&\"مكرر\")))","v":""}]
[null,96,"طالب 96","انثى",null,null,null,35,24,59,null,60,60,119,41,31,72,null,80,80,152,32,21,53,null,58,58,111,34,31,65,null,80,80,145,43,29,72,null,94,94,166,29,20,49,null,60,60,109,30,17,47,null,58,58,105,null,null,null,null,null,null,null,null,null,907,null,null,null,null,null,null,null,null,null,90.7,"ممتاز","ناجح بتقدير ممتاز ",null,null,null,null,null,null,null,{"$f":"IF(BN105=\"\",\"\",IF(RANK(BN105,$BN$10:$BN$1000)>$CH$1,\"\",IF(COUNTIF($BN$10:BN105,BN105)=1,Kh_RANK(BN105,$BN$10:$BN$1000),Kh_RANK(BN105,$BN$10:$BN$1000)&\" \"&\"مكرر\")))","v":""}]
[null,97,"طالب 97","انثى",null,null,null,21,15,36,null,47,47,83,26,23,49,null,70,70,119,20,15,35,null,43,43,78,25,26,51,null,40,40,91,36,18,54,null,79,79,133,22,12,34,null,30,30,64,27,12,39,null,44,44,83,null,null,null,null,null,null,null,null,null,651,null,null,null,null,null,null,null,null,null,65.100000000000009,"جيد فقط","ناجح بتقدير جيد فقط ",null,null,null,null,null,null,null,{"$f":"IF(BN106=\"\",\"\",IF(RANK(BN106,$BN$10:$BN$1000)>$CH$1,\"\",IF(COUNTIF($BN$10:BN106,BN106)=1,Kh_RANK(BN106,$BN$10:$BN$1000),Kh_RANK(BN106,$BN$10:$BN$1000)&\" \"&\"مكرر\")))","v":""}]
[null,98,"طالب 98","انثى",null,null,null,32,23,55,null,52,52,107,42,24,66,null,80,80,146,35,20,55,null,52,52,107,38,30,68,null,79,79,147,45,31,76,null,89,89,165,33,20,53,null,57,57,110,28,20,48,null,52,52,100,null,null,null,null,null,null,null,null,null,882,null,null,null,null,null,null,null,null,null,88.2,"ممتاز","ناجح بتقدير ممتاز ",null,null,null,null,null,null,null,{"$f":"IF(BN107=\"\",\"\",IF(RANK(BN107,$BN$10:$BN$1000)>$CH$1,\"\",IF(COUNTIF($BN$10:BN107,BN107)=1,Kh_RANK(BN107,$BN$10:$BN$1000),Kh_RANK(BN107,$BN$10:$BN$1000)&\" \"&\"مكرر\")))","v":""}]
[null,99,"طالب 99","انثى",null,null,null,33,24,57,null,54,54,111,41,30,71,null,80,80,151,24,17,41,null,50,50,91,45,31,76,null,80,80,156,45,29,74,null,94,94,168,34,16,50,null,41,41,91,28,21,49,null,38,38,87,null,null,null,null,null,null,null,null,null,855,null,null,null,null,null,null,null,null,null,85.5,"ممتاز","ناجح بتقدير ممتاز ",null,null,null,null,null,null,null,{"$f":"IF(BN108=\"\",\"\",IF(RANK(BN108,$BN$10:$BN$1000)>$CH$1,\"\",IF(COUNTIF($BN$10:BN108,BN108)=1,Kh_RANK(BN108,$BN$10:$BN$1000),Kh_RANK(BN108,$BN$10:$BN$1000)&\" \"&\"مكرر\")))","v":""}]
[null,100,"طالب 100","انثى",null,null,null,35,23,58,null,60,60,118,46,31,77,null,80,80,157,32,22,54,null,60,60,114,43,31,74,null,80,80,154,53,29,82,null,100,100,182,35,24,59,null,60,60,119,36,20,56,null,60,60,116,null,null,null,null,null,null,null,null,null,960,null,null,null,null,null,null,null,null,null,96,"ممتاز","ناجح بتقدير ممتاز ",null,null,null,null,null,null,null,{"$f":"IF(BN109=\"\",\"\",IF(RANK(BN109,$BN$10:$BN$1000)>$CH$1,\"\",IF(COUNTIF($BN$10:BN109,BN109)=1,Kh_RANK(BN109,$BN$10:$BN$1000),Kh_RANK(BN109,$BN$10:$BN$1000)&\" \"&\"مكرر\")))","v":""}]
[null,101,"طالب 101","انثى",null,null,null,36,24,60,null,60,60,120,41,28,69,null,80,80,149,34,22,56,null,60,60,116,48,30,78,null,80,80,158,58,39,97,null,100,100,197,35,17,52,null,60,60,112,34,23,57,null,60,60,117,null,null,null,null,null,null,null,null,null,969,null,null,null,null,null,null,null,null,null,96.899999999999991,"ممتاز","ناجح بتقدير ممتاز ",null,null,null,null,null,null,null,{"$f":"IF(BN110=\"\",\"\",IF(RANK(BN110,$BN$10:$BN$1000)>$CH$1,\"\",IF(COUNTIF($BN$10:BN110,BN110)=1,Kh_RANK(BN110,$BN$10:$BN$1000),Kh_RANK(BN110,$BN$10:$BN$1000)&\" \"&\"مكرر\")))","v":""}]
[null,102,"طالب 102","انثى",null,null,null,36,24,60,null,31,31,91,38,26,64,null,80,80,144,35,21,56,null,54,54,110,45,17,62,null,77,77,139,47,31,78,null,100,100,178,31,17,48,null,43,43,91,34,23,57,null,42,42,99,null,null,null,null,null,null,null,null,null,852,null,null,null,null,null,null,null,null,null,85.2,"ممتاز","ناجح بتقدير ممتاز ",null,null,null,null,null,null,null,{"$f":"IF(BN111=\"\",\"\",IF(RANK(BN111,$BN$10:$BN$1000)>$CH$1,\"\",IF(COUNTIF($BN$10:BN111,BN111)=1,Kh_RANK(BN111,$BN$10:$BN$1000),Kh_RANK(BN111,$BN$10:$BN$1000)&\" \"&\"مكرر\")))","v":""}]
[null,103,"طالب 103","انثى",null,null,null,33,24,57,null,55,55,112,43,28,71,null,80,80,151,27,19,46,null,50,50,96,46,27,73,null,80,80,153,49,27,76,null,95,95,171,34,23,57,null,60,60,117,31,18,49,null,46,46,95,null,null,null,null,null,null,null,null,null,895,null,null,null,null,null,null,null,null,null,89.5,"ممتاز","ناجح بتقدير ممتاز ",null,null,null,null,null,null,null,{"$f":"IF(BN112=\"\",\"\",IF(RANK(BN112,$BN$10:$BN$1000)>$CH$1,\"\",IF(COUNTIF($BN$10:BN112,BN112)=1,Kh_RANK(BN112,$BN$10:$BN$1000),Kh_RANK(BN112,$BN$10:$BN$1000)&\" \"&\"مكرر\")))","v":""}]
[null,104,"طالب 104","انثى",null,null,null,14,10,24,null,54,54,78,36,18,54,null,75,75,129,29,16,45,null,44,44,89,28,16,44,null,47,47,91,24,18,42,null,70,70,112,17,11,28,null,46,46,74,19,10,29,null,47,47,76,null,null,null,null,null,null,null,null,null,649,null,null,null,null,null,null,null,null,null,64.900000000000006,"مقبول","ناجح بتقدير مقبول ",null,null,null,null,null,null,null,{"$f":"IF(BN113=\"\",\"\",IF(RANK(BN113,$BN$10:$BN$1000)>$CH$1,\"\",IF(COUNTIF($BN$10:BN113,BN113)=1,Kh_RANK(BN113,$BN$10:$BN$1000),Kh_RANK(BN113,$BN$10:$BN$1000)&\" \"&\"مكرر\")))","v":""}]
[null,105,"طالب 105","انثى",null,null,null,30,24,54,null,60,60,114,38,29,67,null,80,80,147,28,19,47,null,53,53,100,37,22,59,null,80,80,139,46,28,74,null,82,82,156,28,15,43,null,55,55,98,30,20,50,null,54,54,104,null,null,null,null,null,null,null,null,null,858,null,null,null,null,null,null,null,null,null,85.8,"ممتاز","ناجح بتقدير ممتاز ",null,null,null,null,null,null,null,{"$f":"IF(BN114=\"\",\"\",IF(RANK(BN114,$BN$10:$BN$1000)>$CH$1,\"\",IF(COUNTIF($BN$10:BN114,BN114)=1,Kh_RANK(BN114,$BN$10:$BN$1000),Kh_RANK(BN114,$BN$10:$BN$1000)&\" \"&\"مكرر\")))","v":""}]
[null,106,"طالب 106","انثى",null,null,null,33,24,57,null,60,60,117,42,32,74,null,80,80,154,33,22,55,null,60,60,115,46,30,76,null,80,80,156,54,38,92,null,94,94,186,35,24,59,null,60,60,119,31,20,51,null,59,59,110,null,null,null,null,null,null,null,null,null,957,null,null,null,null,null,null,null,null,null,95.7,"ممتاز","ناجح بتقدير ممتاز ",null,null,null,null,null,null,null,{"$f":"IF(BN115=\"\",\"\",IF(RANK(BN115,$BN$10:$BN$1000)>$CH$1,\"\",IF(COUNTIF($BN$10:BN115,BN115)=1,Kh_RANK(BN115,$BN$10:$BN$1000),Kh_RANK(BN115,$BN$10:$BN$1000)&\" \"&\"مكرر\")))","v":""}]
[null,107,"طالب 107","انثى",null,null,null,10,7,17,null,43,43,60,10,12,22,null,58,58,80,15,12,27,null,38,38,65,14,9,23,null,37,37,60,19,9,28,null,72,72,100,22,13,35,null,47,47,82,29,9,38,null,27,27,65,null,null,null,null,null,null,null,null,null,null,null,null,null,null,null,null,null,null,null,null,null,"له دور ثان في  :  اللغة الإنجليزية",null,null,null,"اللغة الإنجليزية",null,null,null,{"$f":"IF(BN116=\"\",\"\",IF(RANK(BN116,$BN$10:$BN$1000)>$CH$1,\"\",IF(COUNTIF($BN$10:BN116,BN116)=1,Kh_RANK(BN116,$BN$10:$BN$1000),Kh_RANK(BN116,$BN$10:$BN$1000)&\" \"&\"مكرر\")))","v":""}]
[null,108,"طالب 108","انثى",null,null,null,31,23,54,null,57,57,111,40,26,66,null,80,80,146,33,12,45,null,55,55,100,46,26,72,null,80,80,152,52,34,86,null,100,100,186,25,17,42,null,47,47,89,28,17,45,null,58,58,103,null,null,null,null,null,null,null,null,null,887,null,null,null,null,null,null,null,null,null,88.7,{"$f":"IF(BX117=\"\",\"\",evaltion(BX117))","v":"ممتاز"},"ناجح بتقدير ممتاز ",null,null,null,null,null,null,null,{"$f":"IF(BN117=\"\",\"\",IF(RANK(BN117,$BN$10:$BN$1000)>$CH$1,\"\",IF(COUNTIF($BN$10:BN117,BN117)=1,Kh_RANK(BN117,$BN$10:$BN$1000),Kh_RANK(BN117,$BN$10:$BN$1000)&\" \"&\"مكرر\")))","v":""}]
[null,109,"طالب 109","انثى",null,null,null,30,24,54,null,60,60,114,38,30,68,null,80,80,148,34,21,55,null,56,56,111,44,25,69,null,80,80,149,38,22,60,null,94,94,154,34,21,55,null,60,60,115,33,15,48,null,60,60,108,null,null,null,null,null,null,null,null,null,899,null,null,null,null,null,null,null,null,null,89.9,"ممتاز","ناجح بتقدير ممتاز ",null,null,null,null,null,null,null,{"$f":"IF(BN118=\"\",\"\",IF(RANK(BN118,$BN$10:$BN$1000)>$CH$1,\"\",IF(COUNTIF($BN$10:BN118,BN118)=1,Kh_RANK(BN118,$BN$10:$BN$1000),Kh_RANK(BN118,$BN$10:$BN$1000)&\" \"&\"مكرر\")))","v":""}]
[null,110,"طالب 110","انثى",null,null,null,28,22,50,null,56,56,106,31,18,49,null,70,70,119,26,16,42,null,38,38,80,21,11,32,null,72,72,104,28,20,48,null,75,75,123,23,13,36,null,35,35,71,29,15,44,null,42,42,86,null,null,null,null,null,null,null,null,null,689,null,null,null,null,null,null,null,null,null,68.899999999999991,"جيد فقط","ناجح بتقدير جيد فقط ",null,null,null,null,null,null,null,{"$f":"IF(BN119=\"\",\"\",IF(RANK(BN119,$BN$10:$BN$1000)>$CH$1,\"\",IF(COUNTIF($BN$10:BN119,BN119)=1,Kh_RANK(BN119,$BN$10:$BN$1000),Kh_RANK(BN119,$BN$10:$BN$1000)&\" \"&\"مكرر\")))","v":""}]
[null,111,"طالب 111","انثى",null,null,null,29,22,51,null,50,50,101,40,21,61,null,75,75,136,30,18,48,null,50,50,98,27,11,38,null,71,71,109,41,21,62,null,70,70,132,20,23,43,null,30,30,73,32,16,48,null,38,38,86,null,null,null,null,null,null,null,null,null,735,null,null,null,null,null,null,null,null,null,73.5,"جيد فقط","ناجح بتقدير جيد فقط ",null,null,null,null,null,null,null,{"$f":"IF(BN120=\"\",\"\",IF(RANK(BN120,$BN$10:$BN$1000)>$CH$1,\"\",IF(COUNTIF($BN$10:BN120,BN120)=1,Kh_RANK(BN120,$BN$10:$BN$1000),Kh_RANK(BN120,$BN$10:$BN$1000)&\" \"&\"مكرر\")))","v":""}]
[null,112,"طالب 112","انثى",null,null,null,36,24,60,null,60,60,120,46,31,77,null,80,80,157,26,17,43,null,46,46,89,45,32,77,null,80,80,157,53,31,84,null,100,100,184,34,23,57,null,60,60,117,33,19,52,null,58,58,110,null,null,null,null,null,null,null,null,null,934,null,null,null,null,null,null,null,null,null,93.4,"ممتاز","ناجح بتقدير ممتاز ",null,null,null,null,null,null,null,{"$f":"IF(BN121=\"\",\"\",IF(RANK(BN121,$BN$10:$BN$1000)>$CH$1,\"\",IF(COUNTIF($BN$10:BN121,BN121)=1,Kh_RANK(BN121,$BN$10:$BN$1000),Kh_RANK(BN121,$BN$10:$BN$1000)&\" \"&\"مكرر\")))","v":""}]
[null,113,"طالب 113","انثى",null,null,null,34,24,58,null,60,60,118,46,32,78,null,80,80,158,31,22,53,null,58,58,111,42,32,74,null,80,80,154,50,37,87,null,100,100,187,33,24,57,null,60,60,117,32,21,53,null,60,60,113,null,null,null,null,null,null,null,null,null,958,null,null,null,null,null,null,null,null,null,95.8,"ممتاز","ناجح بتقدير ممتاز ",null,null,null,null,null,null,null,{"$f":"IF(BN122=\"\",\"\",IF(RANK(BN122,$BN$10:$BN$1000)>$CH$1,\"\",IF(COUNTIF($BN$10:BN122,BN122)=1,Kh_RANK(BN122,$BN$10:$BN$1000),Kh_RANK(BN122,$BN$10:$BN$1000)&\" \"&\"مكرر\")))","v":""}]
[null,114,"طالب 114","انثى",null,null,null,23,21,44,null,55,55,99,27,23,50,null,75,75,125,29,17,46,null,46,46,92,24,30,54,null,77,77,131,37,25,62,null,100,100,162,27,15,42,null,58,58,100,35,21,56,null,48,48,104,null,null,null,null,null,null,null,null,null,813,null,null,null,null,null,null,null,null,null,81.3,"جيد جدا","ناجح بتقدير جيد جدا ",null,null,null,null,null,null,null,{"$f":"IF(BN123=\"\",\"\",IF(RANK(BN123,$BN$10:$BN$1000)>$CH$1,\"\",IF(COUNTIF($BN$10:BN123,BN123)=1,Kh_RANK(BN123,$BN$10:$BN$1000),Kh_RANK(BN123,$BN$10:$BN$1000)&\" \"&\"مكرر\")))","v":""}]
[null,115,"طالب 115","انثى",null,null,null,23,22,45,null,57,57,102,27,21,48,null,75,75,123,18,15,33,null,46,46,79,22,31,53,null,78,78,131,33,25,58,null,75,75,133,23,7,30,null,46,46,76,29,16,45,null,48,48,93,null,null,null,null,null,null,null,null,null,737,null,null,null,null,null,null,null,null,null,73.7,"جيد فقط","ناجح بتقدير جيد فقط ",null,null,null,null,null,null,null,{"$f":"IF(BN124=\"\",\"\",IF(RANK(BN124,$BN$10:$BN$1000)>$CH$1,\"\",IF(COUNTIF($BN$10:BN124,BN124)=1,Kh_RANK(BN124,$BN$10:$BN$1000),Kh_RANK(BN124,$BN$10:$BN$1000)&\" \"&\"مكرر\")))","v":""}]
[null,116,"طالب 116","انثى",null,null,null,16,11,27,null,36,36,63,20,17,37,null,77,77,114,15,7,22,null,43,43,65,14,15,29,null,80,80,109,22,20,42,null,95,95,137,19,11,30,null,58,58,88,23,12,35,null,46,46,81,null,null,null,null,null,null,null,null,null,657,null,null,null,null,null,null,null,null,null,65.7,"جيد فقط","ناجح بتقدير جيد فقط ",null,null,null,null,null,null,null,{"$f":"IF(BN125=\"\",\"\",IF(RANK(BN125,$BN$10:$BN$1000)>$CH$1,\"\",IF(COUNTIF($BN$10:BN125,BN125)=1,Kh_RANK(BN125,$BN$10:$BN$1000),Kh_RANK(BN125,$BN$10:$BN$1000)&\" \"&\"مكرر\")))","v":""}]
[null,117,"طالب 117","انثى",null,null,null,31,23,54,null,60,60,114,38,30,68,null,80,80,148,34,22,56,null,49,49,105,44,28,72,null,80,80,152,51,38,89,null,100,100,189,28,16,44,null,60,60,104,35,20,55,null,60,60,115,null,null,null,null,null,null,null,null,null,927,null,null,null,null,null,null,null,null,null,92.7,"ممتاز","ناجح بتقدير ممتاز ",null,null,null,null,null,null,null,{"$f":"IF(BN126=\"\",\"\",IF(RANK(BN126,$BN$10:$BN$1000)>$CH$1,\"\",IF(COUNTIF($BN$10:BN126,BN126)=1,Kh_RANK(BN126,$BN$10:$BN$1000),Kh_RANK(BN126,$BN$10:$BN$1000)&\" \"&\"مكرر\")))","v":""}]
[null,118,"طالب 118","انثى",null,null,null,20,16,36,null,43,43,79,31,19,50,null,79,79,129,27,24,51,null,53,53,104,30,27,57,null,78,78,135,36,26,62,null,100,100,162,26,15,41,null,55,55,96,28,15,43,null,36,36,79,null,null,null,null,null,null,null,null,null,784,null,null,null,null,null,null,null,null,null,78.400000000000006,"جيد جدا","ناجح بتقدير جيد جدا ",null,null,null,null,null,null,null,{"$f":"IF(BN127=\"\",\"\",IF(RANK(BN127,$BN$10:$BN$1000)>$CH$1,\"\",IF(COUNTIF($BN$10:BN127,BN127)=1,Kh_RANK(BN127,$BN$10:$BN$1000),Kh_RANK(BN127,$BN$10:$BN$1000)&\" \"&\"مكرر\")))","v":""}]
[null,119,"طالب 119","انثى",null,null,null,31,20,51,null,31,31,82,46,20,66,null,71,71,137,29,16,45,null,34,34,79,34,26,60,null,80,80,140,37,22,59,null,100,100,159,22,8,30,null,36,36,66,34,11,45,null,36,36,81,null,null,null,null,null,null,null,null,null,744,null,null,null,null,null,null,null,null,null,74.400000000000006,"جيد فقط","ناجح بتقدير جيد فقط ",null,null,null,null,null,null,null,{"$f":"IF(BN128=\"\",\"\",IF(RANK(BN128,$BN$10:$BN$1000)>$CH$1,\"\",IF(COUNTIF($BN$10:BN128,BN128)=1,Kh_RANK(BN128,$BN$10:$BN$1000),Kh_RANK(BN128,$BN$10:$BN$1000)&\" \"&\"مكرر\")))","v":""}]
[null,120,"طالب 120","انثى",null,null,null,34,24,58,null,60,60,118,44,32,76,null,80,80,156,23,21,44,null,57,57,101,45,32,77,null,80,80,157,58,39,97,null,100,100,197,34,24,58,null,60,60,118,35,20,55,null,60,60,115,null,null,null,null,null,null,null,null,null,962,null,null,null,null,null,null,null,null,null,96.2,"ممتاز","ناجح بتقدير ممتاز ",null,null,null,null,null,null,null,{"$f":"IF(BN129=\"\",\"\",IF(RANK(BN129,$BN$10:$BN$1000)>$CH$1,\"\",IF(COUNTIF($BN$10:BN129,BN129)=1,Kh_RANK(BN129,$BN$10:$BN$1000),Kh_RANK(BN129,$BN$10:$BN$1000)&\" \"&\"مكرر\")))","v":""}]
[null,121,"طالب 121","انثى",null,null,null,35,24,59,null,60,60,119,45,30,75,null,80,80,155,33,22,55,null,50,50,105,44,27,71,null,80,80,151,53,30,83,null,100,100,183,33,22,55,null,60,60,115,25,20,45,null,49,49,94,null,null,null,null,null,null,null,null,null,922,null,null,null,null,null,null,null,null,null,92.2,"ممتاز","ناجح بتقدير ممتاز ",null,null,null,null,null,null,null,{"$f":"IF(BN130=\"\",\"\",IF(RANK(BN130,$BN$10:$BN$1000)>$CH$1,\"\",IF(COUNTIF($BN$10:BN130,BN130)=1,Kh_RANK(BN130,$BN$10:$BN$1000),Kh_RANK(BN130,$BN$10:$BN$1000)&\" \"&\"مكرر\")))","v":""}]
[null,122,"طالب 122","انثى",null,null,null,33,24,57,null,60,60,117,41,27,68,null,80,80,148,34,21,55,null,39,39,94,44,30,74,null,80,80,154,52,32,84,null,80,80,164,34,19,53,null,50,50,103,31,21,52,null,42,42,94,null,null,null,null,null,null,null,null,null,874,null,null,null,null,null,null,null,null,null,87.4,"ممتاز","ناجح بتقدير ممتاز ",null,null,null,null,null,null,null,{"$f":"IF(BN131=\"\",\"\",IF(RANK(BN131,$BN$10:$BN$1000)>$CH$1,\"\",IF(COUNTIF($BN$10:BN131,BN131)=1,Kh_RANK(BN131,$BN$10:$BN$1000),Kh_RANK(BN131,$BN$10:$BN$1000)&\" \"&\"مكرر\")))","v":""}]
[null,123,"طالب 123","انثى",null,null,null,35,23,58,null,60,60,118,43,26,69,null,78,78,147,34,20,54,null,48,48,102,43,26,69,null,80,80,149,55,35,90,null,100,100,190,30,15,45,null,48,48,93,35,12,47,null,38,38,85,null,null,null,null,null,null,null,null,null,884,null,null,null,null,null,null,null,null,null,88.4,"ممتاز","ناجح بتقدير ممتاز ",null,null,null,null,null,null,null,{"$f":"IF(BN132=\"\",\"\",IF(RANK(BN132,$BN$10:$BN$1000)>$CH$1,\"\",IF(COUNTIF($BN$10:BN132,BN132)=1,Kh_RANK(BN132,$BN$10:$BN$1000),Kh_RANK(BN132,$BN$10:$BN$1000)&\" \"&\"مكرر\")))","v":""}]
[null,124,"طالب 124","انثى",null,null,null,14,11,25,null,46,46,71,27,7,34,null,71,71,105,22,15,37,null,45,45,82,26,7,33,null,65,65,98,22,16,38,null,69,69,107,18,11,29,null,60,60,89,27,13,40,null,44,44,84,null,null,null,null,null,null,null,null,null,636,null,null,null,null,null,null,null,null,null,63.6,"مقبول","ناجح بتقدير مقبول ",null,null,null,null,null,null,null,{"$f":"IF(BN133=\"\",\"\",IF(RANK(BN133,$BN$10:$BN$1000)>$CH$1,\"\",IF(COUNTIF($BN$10:BN133,BN133)=1,Kh_RANK(BN133,$BN$10:$BN$1000),Kh_RANK(BN133,$BN$10:$BN$1000)&\" \"&\"مكرر\")))","v":""}]
[null,125,"طالب 125","انثى",null,null,null,34,22,56,null,60,60,116,48,27,75,null,78,78,153,35,21,56,null,53,53,109,48,28,76,null,75,75,151,53,36,89,null,75,75,164,30,16,46,null,56,56,102,30,21,51,null,37,37,88,null,null,null,null,null,null,null,null,null,883,null,null,null,null,null,null,null,null,null,88.3,"ممتاز","ناجح بتقدير ممتاز ",null,null,null,null,null,null,null,{"$f":"IF(BN134=\"\",\"\",IF(RANK(BN134,$BN$10:$BN$1000)>$CH$1,\"\",IF(COUNTIF($BN$10:BN134,BN134)=1,Kh_RANK(BN134,$BN$10:$BN$1000),Kh_RANK(BN134,$BN$10:$BN$1000)&\" \"&\"مكرر\")))","v":""}]
[null,126,"طالب 126","انثى",null,null,null,30,14,44,null,60,60,104,41,26,67,null,80,80,147,25,14,39,null,52,52,91,32,21,53,null,76,76,129,41,24,65,null,100,100,165,33,13,46,null,57,57,103,31,18,49,null,47,47,96,null,null,null,null,null,null,null,null,null,835,null,null,null,null,null,null,null,null,null,83.5,"جيد جدا","ناجح بتقدير جيد جدا ",null,null,null,null,null,null,null,{"$f":"IF(BN135=\"\",\"\",IF(RANK(BN135,$BN$10:$BN$1000)>$CH$1,\"\",IF(COUNTIF($BN$10:BN135,BN135)=1,Kh_RANK(BN135,$BN$10:$BN$1000),Kh_RANK(BN135,$BN$10:$BN$1000)&\" \"&\"مكرر\")))","v":""}]
[null,127,"طالب 127","انثى",null,null,null,25,23,48,null,60,60,108,37,25,62,null,80,80,142,29,20,49,null,47,47,96,33,30,63,null,79,79,142,44,28,72,null,100,100,172,31,16,47,null,57,57,104,33,16,49,null,44,44,93,null,null,null,null,null,null,null,null,null,857,null,null,null,null,null,null,null,null,null,85.7,"ممتاز","ناجح بتقدير ممتاز ",null,null,null,null,null,null,null,{"$f":"IF(BN136=\"\",\"\",IF(RANK(BN136,$BN$10:$BN$1000)>$CH$1,\"\",IF(COUNTIF($BN$10:BN136,BN136)=1,Kh_RANK(BN136,$BN$10:$BN$1000),Kh_RANK(BN136,$BN$10:$BN$1000)&\" \"&\"مكرر\")))","v":""}]
[null,128,"طالب 128","انثى",null,null,null,32,19,51,null,60,60,111,40,29,69,null,70,70,139,28,21,49,null,52,52,101,44,30,74,null,78,78,152,52,33,85,null,100,100,185,35,18,53,null,60,60,113,31,16,47,null,40,40,87,null,null,null,null,null,null,null,null,null,888,null,null,null,null,null,null,null,null,null,88.8,"ممتاز","ناجح بتقدير ممتاز ",null,null,null,null,null,null,null,{"$f":"IF(BN137=\"\",\"\",IF(RANK(BN137,$BN$10:$BN$1000)>$CH$1,\"\",IF(COUNTIF($BN$10:BN137,BN137)=1,Kh_RANK(BN137,$BN$10:$BN$1000),Kh_RANK(BN137,$BN$10:$BN$1000)&\" \"&\"مكرر\")))","v":""}]
[null,129,"طالب 129","انثى",null,null,null,31,23,54,null,60,60,114,40,24,64,null,80,80,144,30,19,49,null,57,57,106,44,26,70,null,77,77,147,44,25,69,null,100,100,169,34,21,55,null,60,60,115,35,18,53,null,49,49,102,null,null,null,null,null,null,null,null,null,897,null,null,null,null,null,null,null,null,null,89.7,"ممتاز",{"$f":"IF($BX$4=\"الأول\",IF(BY138<>\"\", \"ناجح بتقدير\"&\" \"&BY138&\" \"&CH138,IF(COUNTBLANK($CA138:$CG138)=11,a,\"يحتاج إلى عناية في  :  \"&textjoin(\" و \",$CA138:$CG138))),IF($BX$4=\"الثاني\",IF(BY138<>\"\", \"ناجح بتقدير\"&\" \"&BY138&\" \"&CH138,IF(COUNTBLANK($CA138:$CG138)=11,a,\"له دور ثان في  :  \"&textjoin(\" و \",$CA138:$CG138)))))","v":"ناجح بتقدير ممتاز "},null,null,null,null,null,null,null,{"$f":"IF(BN138=\"\",\"\",IF(RANK(BN138,$BN$10:$BN$1000)>$CH$1,\"\",IF(COUNTIF($BN$10:BN138,BN138)=1,Kh_RANK(BN138,$BN$10:$BN$1000),Kh_RANK(BN138,$BN$10:$BN$1000)&\" \"&\"مكرر\")))","v":""}]
[null,130,"طالب 130","انثى",null,null,null,19,17,36,null,60,60,96,36,19,55,null,79,79,134,27,15,42,null,51,51,93,20,16,36,null,66,66,102,26,10,36,null,75,75,111,18,9,27,null,41,41,68,20,13,33,null,37,37,70,null,null,null,null,null,null,null,null,null,674,null,null,null,null,null,null,null,null,null,67.400000000000006,"جيد فقط","ناجح بتقدير جيد فقط ",null,null,null,null,null,null,null,{"$f":"IF(BN139=\"\",\"\",IF(RANK(BN139,$BN$10:$BN$1000)>$CH$1,\"\",IF(COUNTIF($BN$10:BN139,BN139)=1,Kh_RANK(BN139,$BN$10:$BN$1000),Kh_RANK(BN139,$BN$10:$BN$1000)&\" \"&\"مكرر\")))","v":""}]
[null,131,"طالب 131","انثى",null,null,null,36,24,60,null,60,60,120,37,23,60,null,80,80,140,34,20,54,null,58,58,112,47,29,76,null,75,75,151,56,32,88,null,100,100,188,27,20,47,null,60,60,107,34,23,57,null,50,50,107,null,null,null,null,null,null,null,null,null,925,null,null,null,null,null,null,null,null,null,92.5,"ممتاز","ناجح بتقدير ممتاز ",null,null,null,null,null,null,null,{"$f":"IF(BN140=\"\",\"\",IF(RANK(BN140,$BN$10:$BN$1000)>$CH$1,\"\",IF(COUNTIF($BN$10:BN140,BN140)=1,Kh_RANK(BN140,$BN$10:$BN$1000),Kh_RANK(BN140,$BN$10:$BN$1000)&\" \"&\"مكرر\")))","v":""}]
[null,132,"طالب 132","انثى",null,null,null,26,20,46,null,51,51,97,36,23,59,null,73,73,132,28,17,45,null,52,52,97,38,24,62,null,80,80,142,44,28,72,null,59,59,131,26,12,38,null,45,45,83,26,13,39,null,41,41,80,null,null,null,null,null,null,null,null,null,762,null,null,null,null,null,null,null,null,null,76.2,"جيد جدا","ناجح بتقدير جيد جدا ",null,null,null,null,null,null,null,{"$f":"IF(BN141=\"\",\"\",IF(RANK(BN141,$BN$10:$BN$1000)>$CH$1,\"\",IF(COUNTIF($BN$10:BN141,BN141)=1,Kh_RANK(BN141,$BN$10:$BN$1000),Kh_RANK(BN141,$BN$10:$BN$1000)&\" \"&\"مكرر\")))","v":""}]
[null,133,"طالب 133","انثى",null,null,null,35,22,57,null,60,60,117,38,28,66,null,80,80,146,23,17,40,null,46,46,86,45,27,72,null,80,80,152,45,32,77,null,83,83,160,26,13,39,null,60,60,99,27,11,38,null,56,56,94,null,null,null,null,null,null,null,null,null,854,null,null,null,null,null,null,null,null,null,85.399999999999991,"ممتاز","ناجح بتقدير ممتاز ",null,null,null,null,null,null,null,{"$f":"IF(BN142=\"\",\"\",IF(RANK(BN142,$BN$10:$BN$1000)>$CH$1,\"\",IF(COUNTIF($BN$10:BN142,BN142)=1,Kh_RANK(BN142,$BN$10:$BN$1000),Kh_RANK(BN142,$BN$10:$BN$1000)&\" \"&\"مكرر\")))","v":""}]
[null,134,"طالب 134","انثى",null,null,null,25,22,47,null,60,60,107,41,23,64,null,75,75,139,32,20,52,null,58,58,110,36,25,61,null,77,77,138,25,23,48,null,100,100,148,26,14,40,null,57,57,97,34,14,48,null,48,48,96,null,null,null,null,null,null,null,null,null,835,null,null,null,null,null,null,null,null,null,83.5,"جيد جدا","ناجح بتقدير جيد جدا ",null,null,null,null,null,null,null,{"$f":"IF(BN143=\"\",\"\",IF(RANK(BN143,$BN$10:$BN$1000)>$CH$1,\"\",IF(COUNTIF($BN$10:BN143,BN143)=1,Kh_RANK(BN143,$BN$10:$BN$1000),Kh_RANK(BN143,$BN$10:$BN$1000)&\" \"&\"مكرر\")))","v":""}]
[null,135,"طالب 135","انثى",null,null,null,30,21,51,null,60,60,111,41,22,63,null,78,78,141,35,20,55,null,53,53,108,44,31,75,null,80,80,155,31,32,63,null,100,100,163,26,17,43,null,49,49,92,34,19,53,null,54,54,107,null,null,null,null,null,null,null,null,null,877,null,null,null,null,null,null,null,null,null,87.7,"ممتاز","ناجح بتقدير ممتاز ",null,null,null,null,null,null,null,{"$f":"IF(BN144=\"\",\"\",IF(RANK(BN144,$BN$10:$BN$1000)>$CH$1,\"\",IF(COUNTIF($BN$10:BN144,BN144)=1,Kh_RANK(BN144,$BN$10:$BN$1000),Kh_RANK(BN144,$BN$10:$BN$1000)&\" \"&\"مكرر\")))","v":""}]
[null,136,"طالب 136","انثى",null,null,null,29,23,52,null,49,49,101,48,32,80,null,70,70,150,35,23,58,null,58,58,116,37,23,60,null,70,70,130,46,28,74,null,82,82,156,27,12,39,null,52,52,91,33,20,53,null,39,39,92,null,null,null,null,null,null,null,null,null,836,null,null,null,null,null,null,null,null,null,83.6,"جيد جدا","ناجح بتقدير جيد جدا ",null,null,null,null,null,null,null,{"$f":"IF(BN145=\"\",\"\",IF(RANK(BN145,$BN$10:$BN$1000)>$CH$1,\"\",IF(COUNTIF($BN$10:BN145,BN145)=1,Kh_RANK(BN145,$BN$10:$BN$1000),Kh_RANK(BN145,$BN$10:$BN$1000)&\" \"&\"مكرر\")))","v":""}]
[null,137,"طالب 137","انثى",null,null,null,36,24,60,null,60,60,120,40,30,70,null,80,80,150,26,15,41,null,57,57,98,41,23,64,null,79,79,143,53,36,89,null,97,97,186,34,22,56,null,60,60,116,35,20,55,null,56,56,111,null,null,null,null,null,null,null,null,null,924,null,null,null,null,null,null,null,null,null,92.4,"ممتاز","ناجح بتقدير ممتاز ",null,null,null,null,null,null,null,{"$f":"IF(BN146=\"\",\"\",IF(RANK(BN146,$BN$10:$BN$1000)>$CH$1,\"\",IF(COUNTIF($BN$10:BN146,BN146)=1,Kh_RANK(BN146,$BN$10:$BN$1000),Kh_RANK(BN146,$BN$10:$BN$1000)&\" \"&\"مكرر\")))","v":""}]
[null,138,"طالب 138","انثى",null,null,null,36,23,59,null,60,60,119,40,32,72,null,80,80,152,34,21,55,null,54,54,109,48,32,80,null,80,80,160,55,35,90,null,100,100,190,36,24,60,null,60,60,120,36,22,58,null,60,60,118,null,null,null,null,null,null,null,null,null,968,null,null,null,null,null,null,null,null,null,96.8,"ممتاز","ناجح بتقدير ممتاز ",null,null,null,null,null,null,null,{"$f":"IF(BN147=\"\",\"\",IF(RANK(BN147,$BN$10:$BN$1000)>$CH$1,\"\",IF(COUNTIF($BN$10:BN147,BN147)=1,Kh_RANK(BN147,$BN$10:$BN$1000),Kh_RANK(BN147,$BN$10:$BN$1000)&\" \"&\"مكرر\")))","v":""}]
[null,139,"طالب 139","انثى",null,null,null,32,23,55,null,60,60,115,46,31,77,null,78,78,155,30,22,52,null,57,57,109,43,28,71,null,80,80,151,55,38,93,null,94,94,187,35,19,54,null,56,56,110,34,20,54,null,44,44,98,null,null,null,null,null,null,null,null,null,925,null,null,null,null,null,null,null,null,null,92.5,"ممتاز","ناجح بتقدير ممتاز ",null,null,null,null,null,null,null,{"$f":"IF(BN148=\"\",\"\",IF(RANK(BN148,$BN$10:$BN$1000)>$CH$1,\"\",IF(COUNTIF($BN$10:BN148,BN148)=1,Kh_RANK(BN148,$BN$10:$BN$1000),Kh_RANK(BN148,$BN$10:$BN$1000)&\" \"&\"مكرر\")))","v":""}]
[null,140,"طالب 140","انثى",null,null,null,22,21,43,null,47,47,90,36,21,57,null,55,55,112,29,16,45,null,43,43,88,32,20,52,null,76,76,128,40,18,58,null,60,60,118,23,13,36,null,55,55,91,31,15,46,null,37,37,83,null,null,null,null,null,null,null,null,null,710,null,null,null,null,null,null,null,null,null,71,"جيد فقط","ناجح بتقدير جيد فقط ",null,null,null,null,null,null,null,{"$f":"IF(BN149=\"\",\"\",IF(RANK(BN149,$BN$10:$BN$1000)>$CH$1,\"\",IF(COUNTIF($BN$10:BN149,BN149)=1,Kh_RANK(BN149,$BN$10:$BN$1000),Kh_RANK(BN149,$BN$10:$BN$1000)&\" \"&\"مكرر\")))","v":""}]
[null,141,"طالب 141","انثى",null,null,null,34,24,58,null,60,60,118,47,32,79,null,75,75,154,33,21,54,null,57,57,111,44,32,76,null,80,80,156,54,32,86,null,90,90,176,35,24,59,null,60,60,119,32,24,56,null,60,60,116,null,null,null,null,null,null,null,null,null,950,null,null,null,null,null,null,null,null,null,95,"ممتاز","ناجح بتقدير ممتاز ",null,null,null,null,null,null,null,{"$f":"IF(BN150=\"\",\"\",IF(RANK(BN150,$BN$10:$BN$1000)>$CH$1,\"\",IF(COUNTIF($BN$10:BN150,BN150)=1,Kh_RANK(BN150,$BN$10:$BN$1000),Kh_RANK(BN150,$BN$10:$BN$1000)&\" \"&\"مكرر\")))","v":""}]
[null,142,"طالب 142","انثى",null,null,null,31,23,54,null,60,60,114,45,29,74,null,80,80,154,26,16,42,null,53,53,95,45,30,75,null,80,80,155,55,37,92,null,98,98,190,36,24,60,null,60,60,120,29,18,47,null,56,56,103,null,null,null,null,null,null,null,null,null,931,null,null,null,null,null,null,null,null,null,93.100000000000009,"ممتاز","ناجح بتقدير ممتاز ",null,null,null,null,null,null,null,{"$f":"IF(BN151=\"\",\"\",IF(RANK(BN151,$BN$10:$BN$1000)>$CH$1,\"\",IF(COUNTIF($BN$10:BN151,BN151)=1,Kh_RANK(BN151,$BN$10:$BN$1000),Kh_RANK(BN151,$BN$10:$BN$1000)&\" \"&\"مكرر\")))","v":""}]
[null,143,"طالب 143","انثى",null,null,null,31,23,54,null,56,56,110,36,23,59,null,74,74,133,31,19,50,null,42,42,92,28,28,56,null,72,72,128,39,31,70,null,62,62,132,24,15,39,null,52,52,91,31,16,47,null,36,36,83,null,null,null,null,null,null,null,null,null,769,null,null,null,null,null,null,null,null,null,76.900000000000006,"جيد جدا","ناجح بتقدير جيد جدا ",null,null,null,null,null,null,null,{"$f":"IF(BN152=\"\",\"\",IF(RANK(BN152,$BN$10:$BN$1000)>$CH$1,\"\",IF(COUNTIF($BN$10:BN152,BN152)=1,Kh_RANK(BN152,$BN$10:$BN$1000),Kh_RANK(BN152,$BN$10:$BN$1000)&\" \"&\"مكرر\")))","v":""}]
[null,144,"طالب 144","انثى",null,null,null,36,24,60,null,60,60,120,38,32,70,null,80,80,150,33,22,55,null,60,60,115,48,32,80,null,80,80,160,57,40,97,null,100,100,197,36,19,55,null,60,60,115,34,22,56,null,57,57,113,null,null,null,null,null,null,null,null,null,970,null,null,null,null,null,null,null,null,null,97,"ممتاز","ناجح بتقدير ممتاز الترتيب الثاني عشر",null,null,null,null,null,null,null,{"$f":"IF(BN153=\"\",\"\",IF(RANK(BN153,$BN$10:$BN$1000)>$CH$1,\"\",IF(COUNTIF($BN$10:BN153,BN153)=1,Kh_RANK(BN153,$BN$10:$BN$1000),Kh_RANK(BN153,$BN$10:$BN$1000)&\" \"&\"مكرر\")))","v":"الترتيب الثاني عشر"}]
[null,145,"طالب 145","انثى",null,null,null,35,24,59,null,60,60,119,43,26,69,null,75,75,144,33,21,54,null,60,60,114,46,32,78,null,80,80,158,46,28,74,null,75,75,149,30,20,50,null,57,57,107,31,19,50,null,41,41,91,null,null,null,null,null,null,null,null,null,882,null,null,null,null,null,null,null,null,null,88.2,"ممتاز","ناجح بتقدير ممتاز ",null,null,null,null,null,null,null,{"$f":"IF(BN154=\"\",\"\",IF(RANK(BN154,$BN$10:$BN$1000)>$CH$1,\"\",IF(COUNTIF($BN$10:BN154,BN154)=1,Kh_RANK(BN154,$BN$10:$BN$1000),Kh_RANK(BN154,$BN$10:$BN$1000)&\" \"&\"مكرر\")))","v":""}]
[null,146,"طالب 146","انثى",null,null,null,27,15,42,null,59,59,101,40,21,61,null,78,78,139,25,14,39,null,54,54,93,31,24,55,null,78,78,133,41,25,66,null,44,44,110,28,22,50,null,56,56,106,33,19,52,null,42,42,94,null,null,null,null,null,null,null,null,null,776,null,null,null,null,null,null,null,null,null,77.600000000000009,"جيد جدا","ناجح بتقدير جيد جدا ",null,null,null,null,null,null,null,{"$f":"IF(BN155=\"\",\"\",IF(RANK(BN155,$BN$10:$BN$1000)>$CH$1,\"\",IF(COUNTIF($BN$10:BN155,BN155)=1,Kh_RANK(BN155,$BN$10:$BN$1000),Kh_RANK(BN155,$BN$10:$BN$1000)&\" \"&\"مكرر\")))","v":""}]
[null,147,"طالب 147","انثى",null,null,null,18,19,37,null,60,60,97,24,22,46,null,80,80,126,22,15,37,null,35,35,72,22,21,43,null,79,79,122,34,24,58,null,100,100,158,18,8,26,null,60,60,86,21,10,31,null,58,58,89,null,null,null,null,null,null,null,null,null,750,null,null,null,null,null,null,null,null,null,75,"جيد جدا","ناجح بتقدير جيد جدا ",null,null,null,null,null,null,null,{"$f":"IF(BN156=\"\",\"\",IF(RANK(BN156,$BN$10:$BN$1000)>$CH$1,\"\",IF(COUNTIF($BN$10:BN156,BN156)=1,Kh_RANK(BN156,$BN$10:$BN$1000),Kh_RANK(BN156,$BN$10:$BN$1000)&\" \"&\"مكرر\")))","v":""}]
[null,148,"طالب 148","انثى",null,null,null,33,24,57,null,58,58,115,41,30,71,null,80,80,151,34,22,56,null,51,51,107,48,30,78,null,78,78,156,44,26,70,null,65,65,135,31,19,50,null,52,52,102,33,16,49,null,50,50,99,null,null,null,null,null,null,null,null,null,865,null,null,null,null,null,null,null,null,null,86.5,"ممتاز","ناجح بتقدير ممتاز ",null,null,null,null,null,null,null,{"$f":"IF(BN157=\"\",\"\",IF(RANK(BN157,$BN$10:$BN$1000)>$CH$1,\"\",IF(COUNTIF($BN$10:BN157,BN157)=1,Kh_RANK(BN157,$BN$10:$BN$1000),Kh_RANK(BN157,$BN$10:$BN$1000)&\" \"&\"مكرر\")))","v":""}]
[null,149,"طالب 149","انثى",null,null,null,31,24,55,null,60,60,115,44,30,74,null,80,80,154,30,20,50,null,30,30,80,31,28,59,null,80,80,139,52,34,86,null,100,100,186,22,17,39,null,60,60,99,31,16,47,null,60,60,107,null,null,null,null,null,null,null,null,null,880,null,null,null,null,null,null,null,null,null,88,"ممتاز","ناجح بتقدير ممتاز ",null,null,null,null,null,null,null,{"$f":"IF(BN158=\"\",\"\",IF(RANK(BN158,$BN$10:$BN$1000)>$CH$1,\"\",IF(COUNTIF($BN$10:BN158,BN158)=1,Kh_RANK(BN158,$BN$10:$BN$1000),Kh_RANK(BN158,$BN$10:$BN$1000)&\" \"&\"مكرر\")))","v":""}]
[null,150,"طالب 150","انثى",null,null,null,5,11,16,null,44,44,60,9,12,21,null,39,39,60,17,9,26,null,16,16,42,15,9,24,null,56,56,80,19,10,29,null,16,16,45,13,10,23,null,8,8,31,17,10,27,null,34,34,61,null,null,null,null,null,null,null,null,null,null,null,null,null,null,null,null,null,null,null,null,null,"له دور ثان في  :  النحو والنصوص والقراءة  و الكتابة ( التعبير والأملاء والخط ) و الرياضيات و العلوم",null,"النحو والنصوص والقراءة ","الكتابة ( التعبير والأملاء والخط )",null,"الرياضيات","العلوم",null,{"$f":"IF(BN159=\"\",\"\",IF(RANK(BN159,$BN$10:$BN$1000)>$CH$1,\"\",IF(COUNTIF($BN$10:BN159,BN159)=1,Kh_RANK(BN159,$BN$10:$BN$1000),Kh_RANK(BN159,$BN$10:$BN$1000)&\" \"&\"مكرر\")))","v":""}]
[null,151,"طالب 151","انثى",null,null,null,29,23,52,null,60,60,112,44,22,66,null,80,80,146,29,18,47,null,31,31,78,39,27,66,null,77,77,143,53,31,84,null,100,100,184,32,19,51,null,47,47,98,34,19,53,null,51,51,104,null,null,null,null,null,null,null,null,null,865,null,null,null,null,null,null,null,null,null,86.5,{"$f":"IF(BX160=\"\",\"\",evaltion(BX160))","v":"ممتاز"},"ناجح بتقدير ممتاز ",null,null,null,null,null,null,null,{"$f":"IF(BN160=\"\",\"\",IF(RANK(BN160,$BN$10:$BN$1000)>$CH$1,\"\",IF(COUNTIF($BN$10:BN160,BN160)=1,Kh_RANK(BN160,$BN$10:$BN$1000),Kh_RANK(BN160,$BN$10:$BN$1000)&\" \"&\"مكرر\")))","v":""}]
[null,152,"طالب 152","انثى",null,null,null,28,22,50,null,56,56,106,38,15,53,null,60,60,113,30,16,46,null,26,26,72,35,19,54,null,70,70,124,37,25,62,null,38,38,100,20,12,32,null,38,38,70,28,16,44,null,40,40,84,null,null,null,null,null,null,null,null,null,669,null,null,null,null,null,null,null,null,null,66.900000000000006,"جيد فقط","ناجح بتقدير جيد فقط ",null,null,null,null,null,null,null,{"$f":"IF(BN161=\"\",\"\",IF(RANK(BN161,$BN$10:$BN$1000)>$CH$1,\"\",IF(COUNTIF($BN$10:BN161,BN161)=1,Kh_RANK(BN161,$BN$10:$BN$1000),Kh_RANK(BN161,$BN$10:$BN$1000)&\" \"&\"مكرر\")))","v":""}]
[null,153,"طالب 153","انثى",null,null,null,35,24,59,null,60,60,119,38,28,66,null,75,75,141,32,19,51,null,44,44,95,43,25,68,null,79,79,147,52,37,89,null,100,100,189,31,20,51,null,60,60,111,34,19,53,null,60,60,113,null,null,null,null,null,null,null,null,null,915,null,null,null,null,null,null,null,null,null,91.5,"ممتاز","ناجح بتقدير ممتاز ",null,null,null,null,null,null,null,{"$f":"IF(BN162=\"\",\"\",IF(RANK(BN162,$BN$10:$BN$1000)>$CH$1,\"\",IF(COUNTIF($BN$10:BN162,BN162)=1,Kh_RANK(BN162,$BN$10:$BN$1000),Kh_RANK(BN162,$BN$10:$BN$1000)&\" \"&\"مكرر\")))","v":""}]
[null,154,"طالب 154","انثى",null,null,null,20,15,35,null,51,51,86,29,16,45,null,68,68,113,18,6,24,null,36,36,60,19,20,39,null,73,73,112,34,21,55,null,53,53,108,18,13,31,null,40,40,71,21,20,41,null,35,35,76,null,null,null,null,null,null,null,null,null,626,null,null,null,null,null,null,null,null,null,62.6,"مقبول","ناجح بتقدير مقبول ",null,null,null,null,null,null,null,{"$f":"IF(BN163=\"\",\"\",IF(RANK(BN163,$BN$10:$BN$1000)>$CH$1,\"\",IF(COUNTIF($BN$10:BN163,BN163)=1,Kh_RANK(BN163,$BN$10:$BN$1000),Kh_RANK(BN163,$BN$10:$BN$1000)&\" \"&\"مكرر\")))","v":""}]
[null,155,"طالب 155","انثى",null,null,null,36,24,60,null,60,60,120,47,30,77,null,80,80,157,35,23,58,null,50,50,108,47,32,79,null,80,80,159,49,28,77,null,100,100,177,35,23,58,null,60,60,118,34,24,58,null,53,53,111,null,null,null,null,null,null,null,null,null,950,null,null,null,null,null,null,null,null,null,95,"ممتاز","ناجح بتقدير ممتاز ",null,null,null,null,null,null,null,{"$f":"IF(BN164=\"\",\"\",IF(RANK(BN164,$BN$10:$BN$1000)>$CH$1,\"\",IF(COUNTIF($BN$10:BN164,BN164)=1,Kh_RANK(BN164,$BN$10:$BN$1000),Kh_RANK(BN164,$BN$10:$BN$1000)&\" \"&\"مكرر\")))","v":""}]
[null,156,"طالب 156","انثى",null,null,null,36,24,60,null,60,60,120,48,32,80,null,80,80,160,35,22,57,null,51,51,108,47,27,74,null,80,80,154,56,39,95,null,75,75,170,36,24,60,null,60,60,120,34,21,55,null,52,52,107,null,null,null,null,null,null,null,null,null,939,null,null,null,null,null,null,null,null,null,93.899999999999991,"ممتاز","ناجح بتقدير ممتاز ",null,null,null,null,null,null,null,{"$f":"IF(BN165=\"\",\"\",IF(RANK(BN165,$BN$10:$BN$1000)>$CH$1,\"\",IF(COUNTIF($BN$10:BN165,BN165)=1,Kh_RANK(BN165,$BN$10:$BN$1000),Kh_RANK(BN165,$BN$10:$BN$1000)&\" \"&\"مكرر\")))","v":""}]
[null,157,"طالب 157","انثى",null,null,null,25,24,49,null,60,60,109,38,23,61,null,80,80,141,34,20,54,null,51,51,105,34,23,57,null,80,80,137,30,21,51,null,95,95,146,22,10,32,null,53,53,85,32,12,44,null,51,51,95,null,null,null,null,null,null,null,null,null,818,null,null,null,null,null,null,null,null,null,81.8,"جيد جدا","ناجح بتقدير جيد جدا ",null,null,null,null,null,null,null,{"$f":"IF(BN166=\"\",\"\",IF(RANK(BN166,$BN$10:$BN$1000)>$CH$1,\"\",IF(COUNTIF($BN$10:BN166,BN166)=1,Kh_RANK(BN166,$BN$10:$BN$1000),Kh_RANK(BN166,$BN$10:$BN$1000)&\" \"&\"مكرر\")))","v":""}]
[null,158,"طالب 158","انثى",null,null,null,36,24,60,null,60,60,120,38,31,69,null,70,70,139,33,22,55,null,44,44,99,46,31,77,null,80,80,157,57,32,89,null,100,100,189,31,22,53,null,60,60,113,36,23,59,null,50,50,109,null,null,null,null,null,null,null,null,null,926,null,null,null,null,null,null,null,null,null,92.600000000000009,"ممتاز","ناجح بتقدير ممتاز ",null,null,null,null,null,null,null,{"$f":"IF(BN167=\"\",\"\",IF(RANK(BN167,$BN$10:$BN$1000)>$CH$1,\"\",IF(COUNTIF($BN$10:BN167,BN167)=1,Kh_RANK(BN167,$BN$10:$BN$1000),Kh_RANK(BN167,$BN$10:$BN$1000)&\" \"&\"مكرر\")))","v":""}]
[null,159,"طالب 159","انثى",null,null,null,15,21,36,null,53,53,89,48,27,75,null,80,80,155,32,19,51,null,54,54,105,43,26,69,null,75,75,144,50,32,82,null,100,100,182,30,16,46,null,56,56,102,30,21,51,null,44,44,95,null,null,null,null,null,null,null,null,null,872,null,null,null,null,null,null,null,null,null,87.2,"ممتاز","ناجح بتقدير ممتاز ",null,null,null,null,null,null,null,{"$f":"IF(BN168=\"\",\"\",IF(RANK(BN168,$BN$10:$BN$1000)>$CH$1,\"\",IF(COUNTIF($BN$10:BN168,BN168)=1,Kh_RANK(BN168,$BN$10:$BN$1000),Kh_RANK(BN168,$BN$10:$BN$1000)&\" \"&\"مكرر\")))","v":""}]
[null,160,"طالب 160","انثى",null,null,null,20,13,33,null,40,40,73,34,19,53,null,50,50,103,29,19,48,null,44,44,92,43,25,68,null,75,75,143,43,20,63,null,37,37,100,20,9,29,null,31,31,60,35,17,52,null,31,31,83,null,null,null,null,null,null,null,null,null,654,null,null,null,null,null,null,null,null,null,65.400000000000006,"جيد فقط","ناجح بتقدير جيد فقط ",null,null,null,null,null,null,null,{"$f":"IF(BN169=\"\",\"\",IF(RANK(BN169,$BN$10:$BN$1000)>$CH$1,\"\",IF(COUNTIF($BN$10:BN169,BN169)=1,Kh_RANK(BN169,$BN$10:$BN$1000),Kh_RANK(BN169,$BN$10:$BN$1000)&\" \"&\"مكرر\")))","v":""}]
[null,161,"طالب 161","انثى",null,null,null,35,24,59,null,60,60,119,47,32,79,null,80,80,159,34,23,57,null,58,58,115,48,32,80,null,80,80,160,58,40,98,null,100,100,198,36,24,60,null,60,60,120,36,24,60,null,59,59,119,null,null,null,null,null,null,null,null,null,990,null,null,null,null,null,null,null,null,null,99,"ممتاز","ناجح بتقدير ممتاز الترتيب الثاني",null,null,null,null,null,null,null,{"$f":"IF(BN170=\"\",\"\",IF(RANK(BN170,$BN$10:$BN$1000)>$CH$1,\"\",IF(COUNTIF($BN$10:BN170,BN170)=1,Kh_RANK(BN170,$BN$10:$BN$1000),Kh_RANK(BN170,$BN$10:$BN$1000)&\" \"&\"مكرر\")))","v":"الترتيب الثاني"}]
[null,162,"طالب 162","انثى",null,null,null,36,24,60,null,60,60,120,48,32,80,null,80,80,160,35,24,59,null,56,56,115,48,32,80,null,80,80,160,51,40,91,null,100,100,191,36,24,60,null,60,60,120,36,23,59,null,60,60,119,null,null,null,null,null,null,null,null,null,985,null,null,null,null,null,null,null,null,null,98.5,"ممتاز","ناجح بتقدير ممتاز الترتيب الخامس",null,null,null,null,null,null,null,{"$f":"IF(BN171=\"\",\"\",IF(RANK(BN171,$BN$10:$BN$1000)>$CH$1,\"\",IF(COUNTIF($BN$10:BN171,BN171)=1,Kh_RANK(BN171,$BN$10:$BN$1000),Kh_RANK(BN171,$BN$10:$BN$1000)&\" \"&\"مكرر\")))","v":"الترتيب الخامس"}]
[null,163,"طالب 163","انثى",null,null,null,27,21,48,null,56,56,104,33,24,57,null,80,80,137,22,12,34,null,36,36,70,28,19,47,null,79,79,126,22,19,41,null,75,75,116,29,14,43,null,54,54,97,28,16,44,null,37,37,81,null,null,null,null,null,null,null,null,null,731,null,null,null,null,null,null,null,null,null,73.099999999999994,"جيد فقط","ناجح بتقدير جيد فقط ",null,null,null,null,null,null,null,{"$f":"IF(BN172=\"\",\"\",IF(RANK(BN172,$BN$10:$BN$1000)>$CH$1,\"\",IF(COUNTIF($BN$10:BN172,BN172)=1,Kh_RANK(BN172,$BN$10:$BN$1000),Kh_RANK(BN172,$BN$10:$BN$1000)&\" \"&\"مكرر\")))","v":""}]
[null,164,"طالب 164","انثى",null,null,null,20,11,31,null,45,45,76,14,12,26,null,80,80,106,21,12,33,null,40,40,73,30,16,46,null,76,76,122,29,18,47,null,100,100,147,26,8,34,null,60,60,94,28,11,39,null,45,45,84,null,null,null,null,null,null,null,null,null,702,null,null,null,null,null,null,null,null,null,70.199999999999989,"جيد فقط","ناجح بتقدير جيد فقط ",null,null,null,null,null,null,null,{"$f":"IF(BN173=\"\",\"\",IF(RANK(BN173,$BN$10:$BN$1000)>$CH$1,\"\",IF(COUNTIF($BN$10:BN173,BN173)=1,Kh_RANK(BN173,$BN$10:$BN$1000),Kh_RANK(BN173,$BN$10:$BN$1000)&\" \"&\"مكرر\")))","v":""}]
[null,null,"طالب 165",null,null,null,null,null,null,null,null,null,null,null,null,null,null,null,null,null,null,null,null,null,null,null,null,null,null,null,null,null,null,null,null,null,null,null,null,null,null,null,null,null,null,null,null,null,null,null,null,null,null,null,null,null,null,null,null,null,null,null,null,null,null,null,null,null,null,null,null,null,null,null,null,null,"","له دور ثان في  :  ",null,null,null,null,null,null,null,{"$f":"IF(BN174=\"\",\"\",IF(RANK(BN174,$BN$10:$BN$1000)>$CH$1,\"\",IF(COUNTIF($BN$10:BN174,BN174)=1,Kh_RANK(BN174,$BN$10:$BN$1000),Kh_RANK(BN174,$BN$10:$BN$1000)&\" \"&\"مكرر\")))","v":""}]
[null,null,"طالب 166",null,null,null,null,null,null,null,null,null,null,null,null,null,null,null,null,null,null,null,null,null,null,null,null,null,null,null,null,null,null,null,null,null,null,null,null,null,null,null,null,null,null,null,null,null,null,null,null,null,null,null,null,null,null,null,null,null,null,null,null,null,null,null,null,null,null,null,null,null,null,null,null,null,"","له دور ثان في  :  ",null,null,null,null,null,null,null,{"$f":"IF(BN175=\"\",\"\",IF(RANK(BN175,$BN$10:$BN$1000)>$CH$1,\"\",IF(COUNTIF($BN$10:BN175,BN175)=1,Kh_RANK(BN175,$BN$10:$BN$1000),Kh_RANK(BN175,$BN$10:$BN$1000)&\" \"&\"مكرر\")))","v":""}]
[null,null,"طالب 167",null,null,null,null,null,null,null,null,null,null,null,null,null,null,null,null,null,null,null,null,null,null,null,null,null,null,null,null,null,null,null,null,null,null,null,null,null,null,null,null,null,null,null,null,null,null,null,null,null,null,null,null,null,null,null,null,null,null,null,null,null,null,null,null,null,null,null,null,null,null,null,null,null,"","له دور ثان في  :  ",null,null,null,null,null,null,null,{"$f":"IF(BN176=\"\",\"\",IF(RANK(BN176,$BN$10:$BN$1000)>$CH$1,\"\",IF(COUNTIF($BN$10:BN176,BN176)=1,Kh_RANK(BN176,$BN$10:$BN$1000),Kh_RANK(BN176,$BN$10:$BN$1000)&\" \"&\"مكرر\")))","v":""}]
[null,null,"طالب 168",null,null,null,null,null,null,null,null,null,null,null,null,null,null,null,null,null,null,null,null,null,null,null,null,null,null,null,null,null,null,null,null,null,null,null,null,null,null,null,null,null,null,null,null,null,null,null,null,null,null,null,null,null,null,null,null,null,null,null,null,null,null,null,null,null,null,null,null,null,null,null,null,null,"","له دور ثان في  :  ",null,null,null,null,null,null,null,{"$f":"IF(BN177=\"\",\"\",IF(RANK(BN177,$BN$10:$BN$1000)>$CH$1,\"\",IF(COUNTIF($BN$10:BN177,BN177)=1,Kh_RANK(BN177,$BN$10:$BN$1000),Kh_RANK(BN177,$BN$10:$BN$1000)&\" \"&\"مكرر\")))","v":""}]
[null,null,"طالب 169",null,null,null,null,null,null,null,null,null,null,null,null,null,null,null,null,null,null,null,null,null,null,null,null,null,null,null,null,null,null,null,null,null,null,null,null,null,null,null,null,null,null,null,null,null,null,null,null,null,null,null,null,null,null,null,null,null,null,null,null,null,null,null,null,null,null,null,null,null,null,null,null,null,"","له دور ثان في  :  ",null,null,null,null,null,null,null,{"$f":"IF(BN178=\"\",\"\",IF(RANK(BN178,$BN$10:$BN$1000)>$CH$1,\"\",IF(COUNTIF($BN$10:BN178,BN178)=1,Kh_RANK(BN178,$BN$10:$BN$1000),Kh_RANK(BN178,$BN$10:$BN$1000)&\" \"&\"مكرر\")))","v":""}]
[null,null,"طالب 170",null,null,null,null,null,null,null,null,null,null,null,null,null,null,null,null,null,null,null,null,null,null,null,null,null,null,null,null,null,null,null,null,null,null,null,null,null,null,null,null,null,null,null,null,null,null,null,null,null,null,null,null,null,null,null,null,null,null,null,null,null,null,null,null,null,null,null,null,null,null,null,null,null,"","له دور ثان في  :  ",null,null,null,null,null,null,null,{"$f":"IF(BN179=\"\",\"\",IF(RANK(BN179,$BN$10:$BN$1000)>$CH$1,\"\",IF(COUNTIF($BN$10:BN179,BN179)=1,Kh_RANK(BN179,$BN$10:$BN$1000),Kh_RANK(BN179,$BN$10:$BN$1000)&\" \"&\"مكرر\")))","v":""}]
[null,null,"طالب 171",null,null,null,null,null,null,null,null,null,null,null,null,null,null,null,null,null,null,null,null,null,null,null,null,null,null,null,null,null,null,null,null,null,null,null,null,null,null,null,null,null,null,null,null,null,null,null,null,null,null,null,null,null,null,null,null,null,null,null,null,null,null,null,null,null,null,null,null,null,null,null,null,null,"","له دور ثان في  :  ",null,null,null,null,null,null,null,{"$f":"IF(BN180=\"\",\"\",IF(RANK(BN180,$BN$10:$BN$1000)>$CH$1,\"\",IF(COUNTIF($BN$10:BN180,BN180)=1,Kh_RANK(BN180,$BN$10:$BN$1000),Kh_RANK(BN180,$BN$10:$BN$1000)&\" \"&\"مكرر\")))","v":""}]
[null,null,"طالب 172",null,null,null,null,null,null,null,null,null,null,null,null,null,null,null,null,null,null,null,null,null,null,null,null,null,null,null,null,null,null,null,null,null,null,null,null,null,null,null,null,null,null,null,null,null,null,null,null,null,null,null,null,null,null,null,null,null,null,null,null,null,null,null,null,null,null,null,null,null,null,null,null,null,"","له دور ثان في  :  ",null,null,null,null,null,null,null,{"$f":"IF(BN181=\"\",\"\",IF(RANK(BN181,$BN$10:$BN$1000)>$CH$1,\"\",IF(COUNTIF($BN$10:BN181,BN181)=1,Kh_RANK(BN181,$BN$10:$BN$1000),Kh_RANK(BN181,$BN$10:$BN$1000)&\" \"&\"مكرر\")))","v":""}]
[null,null,"طالب 173",null,null,null,null,null,null,null,null,null,null,null,null,null,null,null,null,null,null,null,null,null,null,null,null,null,null,null,null,null,null,null,null,null,null,null,null,null,null,null,null,null,null,null,null,null,null,null,null,null,null,null,null,null,null,null,null,null,null,null,null,null,null,null,null,null,null,null,null,null,null,null,null,null,"","له دور ثان في  :  ",null,null,null,null,null,null,null,{"$f":"IF(BN182=\"\",\"\",IF(RANK(BN182,$BN$10:$BN$1000)>$CH$1,\"\",IF(COUNTIF($BN$10:BN182,BN182)=1,Kh_RANK(BN182,$BN$10:$BN$1000),Kh_RANK(BN182,$BN$10:$BN$1000)&\" \"&\"مكرر\")))","v":""}]
[null,null,"طالب 174",null,null,null,null,null,null,null,null,null,null,null,null,null,null,null,null,null,null,null,null,null,null,null,null,null,null,null,null,null,null,null,null,null,null,null,null,null,null,null,null,null,null,null,null,null,null,null,null,null,null,null,null,null,null,null,null,null,null,null,null,null,null,null,null,null,null,null,null,null,null,null,null,null,"","له دور ثان في  :  ",null,null,null,null,null,null,null,{"$f":"IF(BN183=\"\",\"\",IF(RANK(BN183,$BN$10:$BN$1000)>$CH$1,\"\",IF(COUNTIF($BN$10:BN183,BN183)=1,Kh_RANK(BN183,$BN$10:$BN$1000),Kh_RANK(BN183,$BN$10:$BN$1000)&\" \"&\"مكرر\")))","v":""}]
[null,null,"طالب 175",null,null,null,null,null,null,null,null,null,null,null,null,null,null,null,null,null,null,null,null,null,null,null,null,null,null,null,null,null,null,null,null,null,null,null,null,null,null,null,null,null,null,null,null,null,null,null,null,null,null,null,null,null,null,null,null,null,null,null,null,null,null,null,null,null,null,null,null,null,null,null,null,null,"","له دور ثان في  :  ",null,null,null,null,null,null,null,{"$f":"IF(BN184=\"\",\"\",IF(RANK(BN184,$BN$10:$BN$1000)>$CH$1,\"\",IF(COUNTIF($BN$10:BN184,BN184)=1,Kh_RANK(BN184,$BN$10:$BN$1000),Kh_RANK(BN184,$BN$10:$BN$1000)&\" \"&\"مكرر\")))","v":""}]
[null,null,"طالب 176",null,null,null,null,null,null,null,null,null,null,null,null,null,null,null,null,null,null,null,null,null,null,null,null,null,null,null,null,null,null,null,null,null,null,null,null,null,null,null,null,null,null,null,null,null,null,null,null,null,null,null,null,null,null,null,null,null,null,null,null,null,null,null,null,null,null,null,null,null,null,null,null,null,"","له دور ثان في  :  ",null,null,null,null,null,null,null,{"$f":"IF(BN185=\"\",\"\",IF(RANK(BN185,$BN$10:$BN$1000)>$CH$1,\"\",IF(COUNTIF($BN$10:BN185,BN185)=1,Kh_RANK(BN185,$BN$10:$BN$1000),Kh_RANK(BN185,$BN$10:$BN$1000)&\" \"&\"مكرر\")))","v":""}]
[null,null,"طالب 177",null,null,null,null,null,null,null,null,null,null,null,null,null,null,null,null,null,null,null,null,null,null,null,null,null,null,null,null,null,null,null,null,null,null,null,null,null,null,null,null,null,null,null,null,null,null,null,null,null,null,null,null,null,null,null,null,null,null,null,null,null,null,null,null,null,null,null,null,null,null,null,null,null,"","له دور ثان في  :  ",null,null,null,null,null,null,null,{"$f":"IF(BN186=\"\",\"\",IF(RANK(BN186,$BN$10:$BN$1000)>$CH$1,\"\",IF(COUNTIF($BN$10:BN186,BN186)=1,Kh_RANK(BN186,$BN$10:$BN$1000),Kh_RANK(BN186,$BN$10:$BN$1000)&\" \"&\"مكرر\")))","v":""}]
[null,null,"طالب 178",null,null,null,null,null,null,null,null,null,null,null,null,null,null,null,null,null,null,null,null,null,null,null,null,null,null,null,null,null,null,null,null,null,null,null,null,null,null,null,null,null,null,null,null,null,null,null,null,null,null,null,null,null,null,null,null,null,null,null,null,null,null,null,null,null,null,null,null,null,null,null,null,null,"","له دور ثان في  :  ",null,null,null,null,null,null,null,{"$f":"IF(BN187=\"\",\"\",IF(RANK(BN187,$BN$10:$BN$1000)>$CH$1,\"\",IF(COUNTIF($BN$10:BN187,BN187)=1,Kh_RANK(BN187,$BN$10:$BN$1000),Kh_RANK(BN187,$BN$10:$BN$1000)&\" \"&\"مكرر\")))","v":""}]
[null,null,"طالب 179",null,null,null,null,null,null,null,null,null,null,null,null,null,null,null,null,null,null,null,null,null,null,null,null,null,null,null,null,null,null,null,null,null,null,null,null,null,null,null,null,null,null,null,null,null,null,null,null,null,null,null,null,null,null,null,null,null,null,null,null,null,null,null,null,null,null,null,null,null,null,null,null,null,"","له دور ثان في  :  ",null,null,null,null,null,null,null,{"$f":"IF(BN188=\"\",\"\",IF(RANK(BN188,$BN$10:$BN$1000)>$CH$1,\"\",IF(COUNTIF($BN$10:BN188,BN188)=1,Kh_RANK(BN188,$BN$10:$BN$1000),Kh_RANK(BN188,$BN$10:$BN$1000)&\" \"&\"مكرر\")))","v":""}]
[null,null,"طالب 180",null,null,null,null,null,null,null,null,null,null,null,null,null,null,null,null,null,null,null,null,null,null,null,null,null,null,null,null,null,null,null,null,null,null,null,null,null,null,null,null,null,null,null,null,null,null,null,null,null,null,null,null,null,null,null,null,null,null,null,null,null,null,null,null,null,null,null,null,null,null,null,null,null,"","له دور ثان في  :  ",null,null,null,null,null,null,null,{"$f":"IF(BN189=\"\",\"\",IF(RANK(BN189,$BN$10:$BN$1000)>$CH$1,\"\",IF(COUNTIF($BN$10:BN189,BN189)=1,Kh_RANK(BN189,$BN$10:$BN$1000),Kh_RANK(BN189,$BN$10:$BN$1000)&\" \"&\"مكرر\")))","v":""}]
[null,null,"طالب 181",null,null,null,null,null,null,null,null,null,null,null,null,null,null,null,null,null,null,null,null,null,null,null,null,null,null,null,null,null,null,null,null,null,null,null,null,null,null,null,null,null,null,null,null,null,null,null,null,null,null,null,null,null,null,null,null,null,null,null,null,null,null,null,null,null,null,null,null,null,null,null,null,null,"","له دور ثان في  :  ",null,null,null,null,null,null,null,{"$f":"IF(BN190=\"\",\"\",IF(RANK(BN190,$BN$10:$BN$1000)>$CH$1,\"\",IF(COUNTIF($BN$10:BN190,BN190)=1,Kh_RANK(BN190,$BN$10:$BN$1000),Kh_RANK(BN190,$BN$10:$BN$1000)&\" \"&\"مكرر\")))","v":""}]
[null,null,"طالب 182",null,null,null,null,null,null,null,null,null,null,null,null,null,null,null,null,null,null,null,null,null,null,null,null,null,null,null,null,null,null,null,null,null,null,null,null,null,null,null,null,null,null,null,null,null,null,null,null,null,null,null,null,null,null,null,null,null,null,null,null,null,null,null,null,null,null,null,null,null,null,null,null,null,"","له دور ثان في  :  ",null,null,null,null,null,null,null,{"$f":"IF(BN191=\"\",\"\",IF(RANK(BN191,$BN$10:$BN$1000)>$CH$1,\"\",IF(COUNTIF($BN$10:BN191,BN191)=1,Kh_RANK(BN191,$BN$10:$BN$1000),Kh_RANK(BN191,$BN$10:$BN$1000)&\" \"&\"مكرر\")))","v":""}]
[null,null,"طالب 183",null,null,null,null,null,null,null,null,null,null,null,null,null,null,null,null,null,null,null,null,null,null,null,null,null,null,null,null,null,null,null,null,null,null,null,null,null,null,null,null,null,null,null,null,null,null,null,null,null,null,null,null,null,null,null,null,null,null,null,null,null,null,null,null,null,null,null,null,null,null,null,null,null,"","له دور ثان في  :  ",null,null,null,null,null,null,null,{"$f":"IF(BN192=\"\",\"\",IF(RANK(BN192,$BN$10:$BN$1000)>$CH$1,\"\",IF(COUNTIF($BN$10:BN192,BN192)=1,Kh_RANK(BN192,$BN$10:$BN$1000),Kh_RANK(BN192,$BN$10:$BN$1000)&\" \"&\"مكرر\")))","v":""}]
[null,null,"طالب 184",null,null,null,null,null,null,null,null,null,null,null,null,null,null,null,null,null,null,null,null,null,null,null,null,null,null,null,null,null,null,null,null,null,null,null,null,null,null,null,null,null,null,null,null,null,null,null,null,null,null,null,null,null,null,null,null,null,null,null,null,null,null,null,null,null,null,null,null,null,null,null,null,null,"","له دور ثان في  :  ",null,null,null,null,null,null,null,{"$f":"IF(BN193=\"\",\"\",IF(RANK(BN193,$BN$10:$BN$1000)>$CH$1,\"\",IF(COUNTIF($BN$10:BN193,BN193)=1,Kh_RANK(BN193,$BN$10:$BN$1000),Kh_RANK(BN193,$BN$10:$BN$1000)&\" \"&\"مكرر\")))","v":""}]
[null,null,"طالب 185",null,null,null,null,null,null,null,null,null,null,null,null,null,null,null,null,null,null,null,null,null,null,null,null,null,null,null,null,null,null,null,null,null,null,null,null,null,null,null,null,null,null,null,null,null,null,null,null,null,null,null,null,null,null,null,null,null,null,null,null,null,null,null,null,null,null,null,null,null,null,null,null,null,"","له دور ثان في  :  ",null,null,null,null,null,null,null,{"$f":"IF(BN194=\"\",\"\",IF(RANK(BN194,$BN$10:$BN$1000)>$CH$1,\"\",IF(COUNTIF($BN$10:BN194,BN194)=1,Kh_RANK(BN194,$BN$10:$BN$1000),Kh_RANK(BN194,$BN$10:$BN$1000)&\" \"&\"مكرر\")))","v":""}]
[null,null,"طالب 186",null,null,null,null,null,null,null,null,null,null,null,null,null,null,null,null,null,null,null,null,null,null,null,null,null,null,null,null,null,null,null,null,null,null,null,null,null,null,null,null,null,null,null,null,null,null,null,null,null,null,null,null,null,null,null,null,null,null,null,null,null,null,null,null,null,null,null,null,null,null,null,null,null,"","له دور ثان في  :  ",null,null,null,null,null,null,null,{"$f":"IF(BN195=\"\",\"\",IF(RANK(BN195,$BN$10:$BN$1000)>$CH$1,\"\",IF(COUNTIF($BN$10:BN195,BN195)=1,Kh_RANK(BN195,$BN$10:$BN$1000),Kh_RANK(BN195,$BN$10:$BN$1000)&\" \"&\"مكرر\")))","v":""}]
[null,null,"طالب 187",null,null,null,null,null,null,null,null,null,null,null,null,null,null,null,null,null,null,null,null,null,null,null,null,null,null,null,null,null,null,null,null,null,null,null,null,null,null,null,null,null,null,null,null,null,null,null,null,null,null,null,null,null,null,null,null,null,null,null,null,null,null,null,null,null,null,null,null,null,null,null,null,null,"","له دور ثان في  :  ",null,null,null,null,null,null,null,{"$f":"IF(BN196=\"\",\"\",IF(RANK(BN196,$BN$10:$BN$1000)>$CH$1,\"\",IF(COUNTIF($BN$10:BN196,BN196)=1,Kh_RANK(BN196,$BN$10:$BN$1000),Kh_RANK(BN196,$BN$10:$BN$1000)&\" \"&\"مكرر\")))","v":""}]
[null,null,"طالب 188",null,null,null,null,null,null,null,null,null,null,null,null,null,null,null,null,null,null,null,null,null,null,null,null,null,null,null,null,null,null,null,null,null,null,null,null,null,null,null,null,null,null,null,null,null,null,null,null,null,null,null,null,null,null,null,null,null,null,null,null,null,null,null,null,null,null,null,null,null,null,null,null,null,"","له دور ثان في  :  ",null,null,null,null,null,null,null,{"$f":"IF(BN197=\"\",\"\",IF(RANK(BN197,$BN$10:$BN$1000)>$CH$1,\"\",IF(COUNTIF($BN$10:BN197,BN197)=1,Kh_RANK(BN197,$BN$10:$BN$1000),Kh_RANK(BN197,$BN$10:$BN$1000)&\" \"&\"مكرر\")))","v":""}]
[null,null,"طالب 189",null,null,null,null,null,null,null,null,null,null,null,null,null,null,null,null,null,null,null,null,null,null,null,null,null,null,null,null,null,null,null,null,null,null,null,null,null,null,null,null,null,null,null,null,null,null,null,null,null,null,null,null,null,null,null,null,null,null,null,null,null,null,null,null,null,null,null,null,null,null,null,null,null,"","له دور ثان في  :  ",null,null,null,null,null,null,null,{"$f":"IF(BN198=\"\",\"\",IF(RANK(BN198,$BN$10:$BN$1000)>$CH$1,\"\",IF(COUNTIF($BN$10:BN198,BN198)=1,Kh_RANK(BN198,$BN$10:$BN$1000),Kh_RANK(BN198,$BN$10:$BN$1000)&\" \"&\"مكرر\")))","v":""}]
[null,null,"طالب 190",null,null,null,null,null,null,null,null,null,null,null,null,null,null,null,null,null,null,null,null,null,null,null,null,null,null,null,null,null,null,null,null,null,null,null,null,null,null,null,null,null,null,null,null,null,null,null,null,null,null,null,null,null,null,null,null,null,null,null,null,null,null,null,null,null,null,null,null,null,null,null,null,null,"","له دور ثان في  :  ",null,null,null,null,null,null,null,{"$f":"IF(BN199=\"\",\"\",IF(RANK(BN199,$BN$10:$BN$1000)>$CH$1,\"\",IF(COUNTIF($BN$10:BN199,BN199)=1,Kh_RANK(BN199,$BN$10:$BN$1000),Kh_RANK(BN199,$BN$10:$BN$1000)&\" \"&\"مكرر\")))","v":""}]
[null,null,"طالب 191",null,null,null,null,null,null,null,null,null,null,null,null,null,null,null,null,null,null,null,null,null,null,null,null,null,null,null,null,null,null,null,null,null,null,null,null,null,null,null,null,null,null,null,null,null,null,null,null,null,null,null,null,null,null,null,null,null,null,null,null,null,null,null,null,null,null,null,null,null,null,null,null,null,"","له دور ثان في  :  ",null,null,null,null,null,null,null,{"$f":"IF(BN200=\"\",\"\",IF(RANK(BN200,$BN$10:$BN$1000)>$CH$1,\"\",IF(COUNTIF($BN$10:BN200,BN200)=1,Kh_RANK(BN200,$BN$10:$BN$1000),Kh_RANK(BN200,$BN$10:$BN$1000)&\" \"&\"مكرر\")))","v":""}]
[null,null,"طالب 192",null,null,null,null,null,null,null,null,null,null,null,null,null,null,null,null,null,null,null,null,null,null,null,null,null,null,null,null,null,null,null,null,null,null,null,null,null,null,null,null,null,null,null,null,null,null,null,null,null,null,null,null,null,null,null,null,null,null,null,null,null,null,null,null,null,null,null,null,null,null,null,null,null,"","له دور ثان في  :  ",null,null,null,null,null,null,null,{"$f":"IF(BN201=\"\",\"\",IF(RANK(BN201,$BN$10:$BN$1000)>$CH$1,\"\",IF(COUNTIF($BN$10:BN201,BN201)=1,Kh_RANK(BN201,$BN$10:$BN$1000),Kh_RANK(BN201,$BN$10:$BN$1000)&\" \"&\"مكرر\")))","v":""}]
[null,null,"طالب 193",null,null,null,null,null,null,null,null,null,null,null,null,null,null,null,null,null,null,null,null,null,null,null,null,null,null,null,null,null,null,null,null,null,null,null,null,null,null,null,null,null,null,null,null,null,null,null,null,null,null,null,null,null,null,null,null,null,null,null,null,null,null,null,null,null,null,null,null,null,null,null,null,null,"",{"$f":"IF($BX$4=\"الأول\",IF(BY202<>\"\", \"ناجح بتقدير\"&\" \"&BY202&\" \"&CH202,IF(COUNTBLANK($CA202:$CG202)=11,a,\"يحتاج إلى عناية في  :  \"&textjoin(\" و \",$CA202:$CG202))),IF($BX$4=\"الثاني\",IF(BY202<>\"\", \"ناجح بتقدير\"&\" \"&BY202&\" \"&CH202,IF(COUNTBLANK($CA202:$CG202)=11,a,\"له دور ثان في  :  \"&textjoin(\" و \",$CA202:$CG202)))))","v":"له دور ثان في  :  "},null,null,null,null,null,null,null,{"$f":"IF(BN202=\"\",\"\",IF(RANK(BN202,$BN$10:$BN$1000)>$CH$1,\"\",IF(COUNTIF($BN$10:BN202,BN202)=1,Kh_RANK(BN202,$BN$10:$BN$1000),Kh_RANK(BN202,$BN$10:$BN$1000)&\" \"&\"مكرر\")))","v":""}]
[null,null,"طالب 194",null,null,null,null,null,null,null,null,null,null,null,null,null,null,null,null,null,null,null,null,null,null,null,null,null,null,null,null,null,null,null,null,null,null,null,null,null,null,null,null,null,null,null,null,null,null,null,null,null,null,null,null,null,null,null,null,null,null,null,null,null,null,null,null,null,null,null,null,null,null,null,null,null,"","له دور ثان في  :  ",null,null,null,null,null,null,null,{"$f":"IF(BN203=\"\",\"\",IF(RANK(BN203,$BN$10:$BN$1000)>$CH$1,\"\",IF(COUNTIF($BN$10:BN203,BN203)=1,Kh_RANK(BN203,$BN$10:$BN$1000),Kh_RANK(BN203,$BN$10:$BN$1000)&\" \"&\"مكرر\")))","v":""}]
[null,null,"طالب 195",null,null,null,null,null,null,null,null,null,null,null,null,null,null,null,null,null,null,null,null,null,null,null,null,null,null,null,null,null,null,null,null,null,null,null,null,null,null,null,null,null,null,null,null,null,null,null,null,null,null,null,null,null,null,null,null,null,null,null,null,null,null,null,null,null,null,null,null,null,null,null,null,null,"","له دور ثان في  :  ",null,null,null,null,null,null,null,{"$f":"IF(BN204=\"\",\"\",IF(RANK(BN204,$BN$10:$BN$1000)>$CH$1,\"\",IF(COUNTIF($BN$10:BN204,BN204)=1,Kh_RANK(BN204,$BN$10:$BN$1000),Kh_RANK(BN204,$BN$10:$BN$1000)&\" \"&\"مكرر\")))","v":""}]
[null,null,"طالب 196",null,null,null,null,null,null,null,null,null,null,null,null,null,null,null,null,null,null,null,null,null,null,null,null,null,null,null,null,null,null,null,null,null,null,null,null,null,null,null,null,null,null,null,null,null,null,null,null,null,null,null,null,null,null,null,null,null,null,null,null,null,null,null,null,null,null,null,null,null,null,null,null,null,"","له دور ثان في  :  ",null,null,null,null,null,null,null,{"$f":"IF(BN205=\"\",\"\",IF(RANK(BN205,$BN$10:$BN$1000)>$CH$1,\"\",IF(COUNTIF($BN$10:BN205,BN205)=1,Kh_RANK(BN205,$BN$10:$BN$1000),Kh_RANK(BN205,$BN$10:$BN$1000)&\" \"&\"مكرر\")))","v":""}]
[null,null,"طالب 197",null,null,null,null,null,null,null,null,null,null,null,null,null,null,null,null,null,null,null,null,null,null,null,null,null,null,null,null,null,null,null,null,null,null,null,null,null,null,null,null,null,null,null,null,null,null,null,null,null,null,null,null,null,null,null,null,null,null,null,null,null,null,null,null,null,null,null,null,null,null,null,null,null,"","له دور ثان في  :  ",null,null,null,null,null,null,null,{"$f":"IF(BN206=\"\",\"\",IF(RANK(BN206,$BN$10:$BN$1000)>$CH$1,\"\",IF(COUNTIF($BN$10:BN206,BN206)=1,Kh_RANK(BN206,$BN$10:$BN$1000),Kh_RANK(BN206,$BN$10:$BN$1000)&\" \"&\"مكرر\")))","v":""}]
[null,null,"طالب 198",null,null,null,null,null,null,null,null,null,null,null,null,null,null,null,null,null,null,null,null,null,null,null,null,null,null,null,null,null,null,null,null,null,null,null,null,null,null,null,null,null,null,null,null,null,null,null,null,null,null,null,null,null,null,null,null,null,null,null,null,null,null,null,null,null,null,null,null,null,null,null,null,null,"","له دور ثان في  :  ",null,null,null,null,null,null,null,{"$f":"IF(BN207=\"\",\"\",IF(RANK(BN207,$BN$10:$BN$1000)>$CH$1,\"\",IF(COUNTIF($BN$10:BN207,BN207)=1,Kh_RANK(BN207,$BN$10:$BN$1000),Kh_RANK(BN207,$BN$10:$BN$1000)&\" \"&\"مكرر\")))","v":""}]
[null,null,"طالب 199",null,null,null,null,null,null,null,null,null,null,null,null,null,null,null,null,null,null,null,null,null,null,null,null,null,null,null,null,null,null,null,null,null,null,null,null,null,null,null,null,null,null,null,null,null,null,null,null,null,null,null,null,null,null,null,null,null,null,null,null,null,null,null,null,null,null,null,null,null,null,null,null,null,"","له دور ثان في  :  ",null,null,null,null,null,null,null,{"$f":"IF(BN208=\"\",\"\",IF(RANK(BN208,$BN$10:$BN$1000)>$CH$1,\"\",IF(COUNTIF($BN$10:BN208,BN208)=1,Kh_RANK(BN208,$BN$10:$BN$1000),Kh_RANK(BN208,$BN$10:$BN$1000)&\" \"&\"مكرر\")))","v":""}]
[null,null,"طالب 200",null,null,null,null,null,null,null,null,null,null,null,null,null,null,null,null,null,null,null,null,null,null,null,null,null,null,null,null,null,null,null,null,null,null,null,null,null,null,null,null,null,null,null,null,null,null,null,null,null,null,null,null,null,null,null,null,null,null,null,null,null,null,null,null,null,null,null,null,null,null,null,null,null,"","له دور ثان في  :  ",null,null,null,null,null,null,null,{"$f":"IF(BN209=\"\",\"\",IF(RANK(BN209,$BN$10:$BN$1000)>$CH$1,\"\",IF(COUNTIF($BN$10:BN209,BN209)=1,Kh_RANK(BN209,$BN$10:$BN$1000),Kh_RANK(BN209,$BN$10:$BN$1000)&\" \"&\"مكرر\")))","v":""}]
[null,null,"طالب 201",null,null,null,null,null,null,null,null,null,null,null,null,null,null,null,null,null,null,null,null,null,null,null,null,null,null,null,null,null,null,null,null,null,null,null,null,null,null,null,null,null,null,null,null,null,null,null,null,null,null,null,null,null,null,null,null,null,null,null,null,null,null,null,null,null,null,null,null,null,null,null,null,null,"","له دور ثان في  :  ",null,null,null,null,null,null,null,{"$f":"IF(BN210=\"\",\"\",IF(RANK(BN210,$BN$10:$BN$1000)>$CH$1,\"\",IF(COUNTIF($BN$10:BN210,BN210)=1,Kh_RANK(BN210,$BN$10:$BN$1000),Kh_RANK(BN210,$BN$10:$BN$1000)&\" \"&\"مكرر\")))","v":""}]
[null,null,"طالب 202",null,null,null,null,null,null,null,null,null,null,null,null,null,null,null,null,null,null,null,null,null,null,null,null,null,null,null,null,null,null,null,null,null,null,null,null,null,null,null,null,null,null,null,null,null,null,null,null,null,null,null,null,null,null,null,null,null,null,null,null,null,null,null,null,null,null,null,null,null,null,null,null,null,"","له دور ثان في  :  ",null,null,null,null,null,null,null,{"$f":"IF(BN211=\"\",\"\",IF(RANK(BN211,$BN$10:$BN$1000)>$CH$1,\"\",IF(COUNTIF($BN$10:BN211,BN211)=1,Kh_RANK(BN211,$BN$10:$BN$1000),Kh_RANK(BN211,$BN$10:$BN$1000)&\" \"&\"مكرر\")))","v":""}]
[null,null,"طالب 203",null,null,null,null,null,null,null,null,null,null,null,null,null,null,null,null,null,null,null,null,null,null,null,null,null,null,null,null,null,null,null,null,null,null,null,null,null,null,null,null,null,null,null,null,null,null,null,null,null,null,null,null,null,null,null,null,null,null,null,null,null,null,null,null,null,null,null,null,null,null,null,null,null,"","له دور ثان في  :  ",null,null,null,null,null,null,null,{"$f":"IF(BN212=\"\",\"\",IF(RANK(BN212,$BN$10:$BN$1000)>$CH$1,\"\",IF(COUNTIF($BN$10:BN212,BN212)=1,Kh_RANK(BN212,$BN$10:$BN$1000),Kh_RANK(BN212,$BN$10:$BN$1000)&\" \"&\"مكرر\")))","v":""}]
[null,null,"طالب 204",null,null,null,null,null,null,null,null,null,null,null,null,null,null,null,null,null,null,null,null,null,null,null,null,null,null,null,null,null,null,null,null,null,null,null,null,null,null,null,null,null,null,null,null,null,null,null,null,null,null,null,null,null,null,null,null,null,null,null,null,null,null,null,null,null,null,null,null,null,null,null,null,null,"","له دور ثان في  :  ",null,null,null,null,null,null,null,{"$f":"IF(BN213=\"\",\"\",IF(RANK(BN213,$BN$10:$BN$1000)>$CH$1,\"\",IF(COUNTIF($BN$10:BN213,BN213)=1,Kh_RANK(BN213,$BN$10:$BN$1000),Kh_RANK(BN213,$BN$10:$BN$1000)&\" \"&\"مكرر\")))","v":""}]
[null,null,"طالب 205",null,null,null,null,null,null,null,null,null,null,null,null,null,null,null,null,null,null,null,null,null,null,null,null,null,null,null,null,null,null,null,null,null,null,null,null,null,null,null,null,null,null,null,null,null,null,null,null,null,null,null,null,null,null,null,null,null,null,null,null,null,null,null,null,null,null,null,null,null,null,null,null,null,"","له دور ثان في  :  ",null,null,null,null,null,null,null,{"$f":"IF(BN214=\"\",\"\",IF(RANK(BN214,$BN$10:$BN$1000)>$CH$1,\"\",IF(COUNTIF($BN$10:BN214,BN214)=1,Kh_RANK(BN214,$BN$10:$BN$1000),Kh_RANK(BN214,$BN$10:$BN$1000)&\" \"&\"مكرر\")))","v":""}]
[null,null,"طالب 206",null,null,null,null,null,null,null,null,null,null,null,null,null,null,null,null,null,null,null,null,null,null,null,null,null,null,null,null,null,null,null,null,null,null,null,null,null,null,null,null,null,null,null,null,null,null,null,null,null,null,null,null,null,null,null,null,null,null,null,null,null,null,null,null,null,null,null,null,null,null,null,null,null,"","له دور ثان في  :  ",null,null,null,null,null,null,null,{"$f":"IF(BN215=\"\",\"\",IF(RANK(BN215,$BN$10:$BN$1000)>$CH$1,\"\",IF(COUNTIF($BN$10:BN215,BN215)=1,Kh_RANK(BN215,$BN$10:$BN$1000),Kh_RANK(BN215,$BN$10:$BN$1000)&\" \"&\"مكرر\")))","v":""}]
[null,null,"طالب 207",null,null,null,null,null,null,null,null,null,null,null,null,null,null,null,null,null,null,null,null,null,null,null,null,null,null,null,null,null,null,null,null,null,null,null,null,null,null,null,null,null,null,null,null,null,null,null,null,null,null,null,null,null,null,null,null,null,null,null,null,null,null,null,null,null,null,null,null,null,null,null,null,null,"","له دور ثان في  :  ",null,null,null,null,null,null,null,{"$f":"IF(BN216=\"\",\"\",IF(RANK(BN216,$BN$10:$BN$1000)>$CH$1,\"\",IF(COUNTIF($BN$10:BN216,BN216)=1,Kh_RANK(BN216,$BN$10:$BN$1000),Kh_RANK(BN216,$BN$10:$BN$1000)&\" \"&\"مكرر\")))","v":""}]
[null,null,"طالب 208",null,null,null,null,null,null,null,null,null,null,null,null,null,null,null,null,null,null,null,null,null,null,null,null,null,null,null,null,null,null,null,null,null,null,null,null,null,null,null,null,null,null,null,null,null,null,null,null,null,null,null,null,null,null,null,null,null,null,null,null,null,null,null,null,null,null,null,null,null,null,null,null,null,"","له دور ثان في  :  ",null,null,null,null,null,null,null,{"$f":"IF(BN217=\"\",\"\",IF(RANK(BN217,$BN$10:$BN$1000)>$CH$1,\"\",IF(COUNTIF($BN$10:BN217,BN217)=1,Kh_RANK(BN217,$BN$10:$BN$1000),Kh_RANK(BN217,$BN$10:$BN$1000)&\" \"&\"مكرر\")))","v":""}]
[null,null,"طالب 209",null,null,null,null,null,null,null,null,null,null,null,null,null,null,null,null,null,null,null,null,null,null,null,null,null,null,null,null,null,null,null,null,null,null,null,null,null,null,null,null,null,null,null,null,null,null,null,null,null,null,null,null,null,null,null,null,null,null,null,null,null,null,null,null,null,null,null,null,null,null,null,null,null,"","له دور ثان في  :  ",null,null,null,null,null,null,null,{"$f":"IF(BN218=\"\",\"\",IF(RANK(BN218,$BN$10:$BN$1000)>$CH$1,\"\",IF(COUNTIF($BN$10:BN218,BN218)=1,Kh_RANK(BN218,$BN$10:$BN$1000),Kh_RANK(BN218,$BN$10:$BN$1000)&\" \"&\"مكرر\")))","v":""}]
[null,null,"طالب 210",null,null,null,null,null,null,null,null,null,null,null,null,null,null,null,null,null,null,null,null,null,null,null,null,null,null,null,null,null,null,null,null,null,null,null,null,null,null,null,null,null,null,null,null,null,null,null,null,null,null,null,null,null,null,null,null,null,null,null,null,null,null,null,null,null,null,null,null,null,null,null,null,null,"","له دور ثان في  :  ",null,null,null,null,null,null,null,{"$f":"IF(BN219=\"\",\"\",IF(RANK(BN219,$BN$10:$BN$1000)>$CH$1,\"\",IF(COUNTIF($BN$10:BN219,BN219)=1,Kh_RANK(BN219,$BN$10:$BN$1000),Kh_RANK(BN219,$BN$10:$BN$1000)&\" \"&\"مكرر\")))","v":""}]
[null,null,"طالب 211",null,null,null,null,null,null,null,null,null,null,null,null,null,null,null,null,null,null,null,null,null,null,null,null,null,null,null,null,null,null,null,null,null,null,null,null,null,null,null,null,null,null,null,null,null,null,null,null,null,null,null,null,null,null,null,null,null,null,null,null,null,null,null,null,null,null,null,null,null,null,null,null,null,"","له دور ثان في  :  ",null,null,null,null,null,null,null,{"$f":"IF(BN220=\"\",\"\",IF(RANK(BN220,$BN$10:$BN$1000)>$CH$1,\"\",IF(COUNTIF($BN$10:BN220,BN220)=1,Kh_RANK(BN220,$BN$10:$BN$1000),Kh_RANK(BN220,$BN$10:$BN$1000)&\" \"&\"مكرر\")))","v":""}]
[null,null,"طالب 212",null,null,null,null,null,null,null,null,null,null,null,null,null,null,null,null,null,null,null,null,null,null,null,null,null,null,null,null,null,null,null,null,null,null,null,null,null,null,null,null,null,null,null,null,null,null,null,null,null,null,null,null,null,null,null,null,null,null,null,null,null,null,null,null,null,null,null,null,null,null,null,null,null,"","له دور ثان في  :  ",null,null,null,null,null,null,null,{"$f":"IF(BN221=\"\",\"\",IF(RANK(BN221,$BN$10:$BN$1000)>$CH$1,\"\",IF(COUNTIF($BN$10:BN221,BN221)=1,Kh_RANK(BN221,$BN$10:$BN$1000),Kh_RANK(BN221,$BN$10:$BN$1000)&\" \"&\"مكرر\")))","v":""}]
[null,null,"طالب 213",null,null,null,null,null,null,null,null,null,null,null,null,null,null,null,null,null,null,null,null,null,null,null,null,null,null,null,null,null,null,null,null,null,null,null,null,null,null,null,null,null,null,null,null,null,null,null,null,null,null,null,null,null,null,null,null,null,null,null,null,null,null,null,null,null,null,null,null,null,null,null,null,null,"","له دور ثان في  :  ",null,null,null,null,null,null,null,{"$f":"IF(BN222=\"\",\"\",IF(RANK(BN222,$BN$10:$BN$1000)>$CH$1,\"\",IF(COUNTIF($BN$10:BN222,BN222)=1,Kh_RANK(BN222,$BN$10:$BN$1000),Kh_RANK(BN222,$BN$10:$BN$1000)&\" \"&\"مكرر\")))","v":""}]
[null,null,"طالب 214",null,null,null,null,null,null,null,null,null,null,null,null,null,null,null,null,null,null,null,null,null,null,null,null,null,null,null,null,null,null,null,null,null,null,null,null,null,null,null,null,null,null,null,null,null,null,null,null,null,null,null,null,null,null,null,null,null,null,null,null,null,null,null,null,null,null,null,null,null,null,null,null,null,"","له دور ثان في  :  ",null,null,null,null,null,null,null,{"$f":"IF(BN223=\"\",\"\",IF(RANK(BN223,$BN$10:$BN$1000)>$CH$1,\"\",IF(COUNTIF($BN$10:BN223,BN223)=1,Kh_RANK(BN223,$BN$10:$BN$1000),Kh_RANK(BN223,$BN$10:$BN$1000)&\" \"&\"مكرر\")))","v":""}]
[null,null,"طالب 215",null,null,null,null,null,null,null,null,null,null,null,null,null,null,null,null,null,null,null,null,null,null,null,null,null,null,null,null,null,null,null,null,null,null,null,null,null,null,null,null,null,null,null,null,null,null,null,null,null,null,null,null,null,null,null,null,null,null,null,null,null,null,null,null,null,null,null,null,null,null,null,null,null,{"$f":"IF(BX224=\"\",\"\",evaltion(BX224))","v":""},"له دور ثان في  :  ",null,null,null,null,null,null,null,{"$f":"IF(BN224=\"\",\"\",IF(RANK(BN224,$BN$10:$BN$1000)>$CH$1,\"\",IF(COUNTIF($BN$10:BN224,BN224)=1,Kh_RANK(BN224,$BN$10:$BN$1000),Kh_RANK(BN224,$BN$10:$BN$1000)&\" \"&\"مكرر\")))","v":""}]
[null,null,"طالب 216",null,null,null,null,null,null,null,null,null,null,null,null,null,null,null,null,null,null,null,null,null,null,null,null,null,null,null,null,null,null,null,null,null,null,null,null,null,null,null,null,null,null,null,null,null,null,null,null,null,null,null,null,null,null,null,null,null,null,null,null,null,null,null,null,null,null,null,null,null,null,null,null,null,"","له دور ثان في  :  ",null,null,null,null,null,null,null,{"$f":"IF(BN225=\"\",\"\",IF(RANK(BN225,$BN$10:$BN$1000)>$CH$1,\"\",IF(COUNTIF($BN$10:BN225,BN225)=1,Kh_RANK(BN225,$BN$10:$BN$1000),Kh_RANK(BN225,$BN$10:$BN$1000)&\" \"&\"مكرر\")))","v":""}]
[null,null,"طالب 217",null,null,null,null,null,null,null,null,null,null,null,null,null,null,null,null,null,null,null,null,null,null,null,null,null,null,null,null,null,null,null,null,null,null,null,null,null,null,null,null,null,null,null,null,null,null,null,null,null,null,null,null,null,null,null,null,null,null,null,null,null,null,null,null,null,null,null,null,null,null,null,null,null,"","له دور ثان في  :  ",null,null,null,null,null,null,null,{"$f":"IF(BN226=\"\",\"\",IF(RANK(BN226,$BN$10:$BN$1000)>$CH$1,\"\",IF(COUNTIF($BN$10:BN226,BN226)=1,Kh_RANK(BN226,$BN$10:$BN$1000),Kh_RANK(BN226,$BN$10:$BN$1000)&\" \"&\"مكرر\")))","v":""}]
[null,null,"طالب 218",null,null,null,null,null,null,null,null,null,null,null,null,null,null,null,null,null,null,null,null,null,null,null,null,null,null,null,null,null,null,null,null,null,null,null,null,null,null,null,null,null,null,null,null,null,null,null,null,null,null,null,null,null,null,null,null,null,null,null,null,null,null,null,null,null,null,null,null,null,null,null,null,null,"","له دور ثان في  :  ",null,null,null,null,null,null,null,{"$f":"IF(BN227=\"\",\"\",IF(RANK(BN227,$BN$10:$BN$1000)>$CH$1,\"\",IF(COUNTIF($BN$10:BN227,BN227)=1,Kh_RANK(BN227,$BN$10:$BN$1000),Kh_RANK(BN227,$BN$10:$BN$1000)&\" \"&\"مكرر\")))","v":""}]
[null,null,"طالب 219",null,null,null,null,null,null,null,null,null,null,null,null,null,null,null,null,null,null,null,null,null,null,null,null,null,null,null,null,null,null,null,null,null,null,null,null,null,null,null,null,null,null,null,null,null,null,null,null,null,null,null,null,null,null,null,null,null,null,null,null,null,null,null,null,null,null,null,null,null,null,null,null,null,"","له دور ثان في  :  ",null,null,null,null,null,null,null,{"$f":"IF(BN228=\"\",\"\",IF(RANK(BN228,$BN$10:$BN$1000)>$CH$1,\"\",IF(COUNTIF($BN$10:BN228,BN228)=1,Kh_RANK(BN228,$BN$10:$BN$1000),Kh_RANK(BN228,$BN$10:$BN$1000)&\" \"&\"مكرر\")))","v":""}]
[null,null,"طالب 220",null,null,null,null,null,null,null,null,null,null,null,null,null,null,null,null,null,null,null,null,null,null,null,null,null,null,null,null,null,null,null,null,null,null,null,null,null,null,null,null,null,null,null,null,null,null,null,null,null,null,null,null,null,null,null,null,null,null,null,null,null,null,null,null,null,null,null,null,null,null,null,null,null,"","له دور ثان في  :  ",null,null,null,null,null,null,null,{"$f":"IF(BN229=\"\",\"\",IF(RANK(BN229,$BN$10:$BN$1000)>$CH$1,\"\",IF(COUNTIF($BN$10:BN229,BN229)=1,Kh_RANK(BN229,$BN$10:$BN$1000),Kh_RANK(BN229,$BN$10:$BN$1000)&\" \"&\"مكرر\")))","v":""}]
[null,null,"طالب 221",null,null,null,null,null,null,null,null,null,null,null,null,null,null,null,null,null,null,null,null,null,null,null,null,null,null,null,null,null,null,null,null,null,null,null,null,null,null,null,null,null,null,null,null,null,null,null,null,null,null,null,null,null,null,null,null,null,null,null,null,null,null,null,null,null,null,null,null,null,null,null,null,null,"","له دور ثان في  :  ",null,null,null,null,null,null,null,{"$f":"IF(BN230=\"\",\"\",IF(RANK(BN230,$BN$10:$BN$1000)>$CH$1,\"\",IF(COUNTIF($BN$10:BN230,BN230)=1,Kh_RANK(BN230,$BN$10:$BN$1000),Kh_RANK(BN230,$BN$10:$BN$1000)&\" \"&\"مكرر\")))","v":""}]
[null,null,"طالب 222",null,null,null,null,null,null,null,null,null,null,null,null,null,null,null,null,null,null,null,null,null,null,null,null,null,null,null,null,null,null,null,null,null,null,null,null,null,null,null,null,null,null,null,null,null,null,null,null,null,null,null,null,null,null,null,null,null,null,null,null,null,null,null,null,null,null,null,null,null,null,null,null,null,"","له دور ثان في  :  ",null,null,null,null,null,null,null,{"$f":"IF(BN231=\"\",\"\",IF(RANK(BN231,$BN$10:$BN$1000)>$CH$1,\"\",IF(COUNTIF($BN$10:BN231,BN231)=1,Kh_RANK(BN231,$BN$10:$BN$1000),Kh_RANK(BN231,$BN$10:$BN$1000)&\" \"&\"مكرر\")))","v":""}]
[null,null,"طالب 223",null,null,null,null,null,null,null,null,null,null,null,null,null,null,null,null,null,null,null,null,null,null,null,null,null,null,null,null,null,null,null,null,null,null,null,null,null,null,null,null,null,null,null,null,null,null,null,null,null,null,null,null,null,null,null,null,null,null,null,null,null,null,null,null,null,null,null,null,null,null,null,null,null,"","له دور ثان في  :  ",null,null,null,null,null,null,null,{"$f":"IF(BN232=\"\",\"\",IF(RANK(BN232,$BN$10:$BN$1000)>$CH$1,\"\",IF(COUNTIF($BN$10:BN232,BN232)=1,Kh_RANK(BN232,$BN$10:$BN$1000),Kh_RANK(BN232,$BN$10:$BN$1000)&\" \"&\"مكرر\")))","v":""}]
[null,null,"طالب 224",null,null,null,null,null,null,null,null,null,null,null,null,null,null,null,null,null,null,null,null,null,null,null,null,null,null,null,null,null,null,null,null,null,null,null,null,null,null,null,null,null,null,null,null,null,null,null,null,null,null,null,null,null,null,null,null,null,null,null,null,null,null,null,null,null,null,null,null,null,null,null,null,null,"","له دور ثان في  :  ",null,null,null,null,null,null,null,{"$f":"IF(BN233=\"\",\"\",IF(RANK(BN233,$BN$10:$BN$1000)>$CH$1,\"\",IF(COUNTIF($BN$10:BN233,BN233)=1,Kh_RANK(BN233,$BN$10:$BN$1000),Kh_RANK(BN233,$BN$10:$BN$1000)&\" \"&\"مكرر\")))","v":""}]
[null,null,"طالب 225",null,null,null,null,null,null,null,null,null,null,null,null,null,null,null,null,null,null,null,null,null,null,null,null,null,null,null,null,null,null,null,null,null,null,null,null,null,null,null,null,null,null,null,null,null,null,null,null,null,null,null,null,null,null,null,null,null,null,null,null,null,null,null,null,null,null,null,null,null,null,null,null,null,"","له دور ثان في  :  ",null,null,null,null,null,null,null,{"$f":"IF(BN234=\"\",\"\",IF(RANK(BN234,$BN$10:$BN$1000)>$CH$1,\"\",IF(COUNTIF($BN$10:BN234,BN234)=1,Kh_RANK(BN234,$BN$10:$BN$1000),Kh_RANK(BN234,$BN$10:$BN$1000)&\" \"&\"مكرر\")))","v":""}]
[null,null,"طالب 226",null,null,null,null,null,null,null,null,null,null,null,null,null,null,null,null,null,null,null,null,null,null,null,null,null,null,null,null,null,null,null,null,null,null,null,null,null,null,null,null,null,null,null,null,null,null,null,null,null,null,null,null,null,null,null,null,null,null,null,null,null,null,null,null,null,null,null,null,null,null,null,null,null,"","له دور ثان في  :  ",null,null,null,null,null,null,null,{"$f":"IF(BN235=\"\",\"\",IF(RANK(BN235,$BN$10:$BN$1000)>$CH$1,\"\",IF(COUNTIF($BN$10:BN235,BN235)=1,Kh_RANK(BN235,$BN$10:$BN$1000),Kh_RANK(BN235,$BN$10:$BN$1000)&\" \"&\"مكرر\")))","v":""}]
[null,null,"طالب 227",null,null,null,null,null,null,null,null,null,null,null,null,null,null,null,null,null,null,null,null,null,null,null,null,null,null,null,null,null,null,null,null,null,null,null,null,null,null,null,null,null,null,null,null,null,null,null,null,null,null,null,null,null,null,null,null,null,null,null,null,null,null,null,null,null,null,null,null,null,null,null,null,null,"","له دور ثان في  :  ",null,null,null,null,null,null,null,{"$f":"IF(BN236=\"\",\"\",IF(RANK(BN236,$BN$10:$BN$1000)>$CH$1,\"\",IF(COUNTIF($BN$10:BN236,BN236)=1,Kh_RANK(BN236,$BN$10:$BN$1000),Kh_RANK(BN236,$BN$10:$BN$1000)&\" \"&\"مكرر\")))","v":""}]
[null,null,"طالب 228",null,null,null,null,null,null,null,null,null,null,null,null,null,null,null,null,null,null,null,null,null,null,null,null,null,null,null,null,null,null,null,null,null,null,null,null,null,null,null,null,null,null,null,null,null,null,null,null,null,null,null,null,null,null,null,null,null,null,null,null,null,null,null,null,null,null,null,null,null,null,null,null,null,"","له دور ثان في  :  ",null,null,null,null,null,null,null,{"$f":"IF(BN237=\"\",\"\",IF(RANK(BN237,$BN$10:$BN$1000)>$CH$1,\"\",IF(COUNTIF($BN$10:BN237,BN237)=1,Kh_RANK(BN237,$BN$10:$BN$1000),Kh_RANK(BN237,$BN$10:$BN$1000)&\" \"&\"مكرر\")))","v":""}]
[null,null,"طالب 229",null,null,null,null,null,null,null,null,null,null,null,null,null,null,null,null,null,null,null,null,null,null,null,null,null,null,null,null,null,null,null,null,null,null,null,null,null,null,null,null,null,null,null,null,null,null,null,null,null,null,null,null,null,null,null,null,null,null,null,null,null,null,null,null,null,null,null,null,null,null,null,null,null,"","له دور ثان في  :  ",null,null,null,null,null,null,null,{"$f":"IF(BN238=\"\",\"\",IF(RANK(BN238,$BN$10:$BN$1000)>$CH$1,\"\",IF(COUNTIF($BN$10:BN238,BN238)=1,Kh_RANK(BN238,$BN$10:$BN$1000),Kh_RANK(BN238,$BN$10:$BN$1000)&\" \"&\"مكرر\")))","v":""}]
[null,null,"طالب 230",null,null,null,null,null,null,null,null,null,null,null,null,null,null,null,null,null,null,null,null,null,null,null,null,null,null,null,null,null,null,null,null,null,null,null,null,null,null,null,null,null,null,null,null,null,null,null,null,null,null,null,null,null,null,null,null,null,null,null,null,null,null,null,null,null,null,null,null,null,null,null,null,null,"","له دور ثان في  :  ",null,null,null,null,null,null,null,{"$f":"IF(BN239=\"\",\"\",IF(RANK(BN239,$BN$10:$BN$1000)>$CH$1,\"\",IF(COUNTIF($BN$10:BN239,BN239)=1,Kh_RANK(BN239,$BN$10:$BN$1000),Kh_RANK(BN239,$BN$10:$BN$1000)&\" \"&\"مكرر\")))","v":""}]
[null,null,"طالب 231",null,null,null,null,null,null,null,null,null,null,null,null,null,null,null,null,null,null,null,null,null,null,null,null,null,null,null,null,null,null,null,null,null,null,null,null,null,null,null,null,null,null,null,null,null,null,null,null,null,null,null,null,null,null,null,null,null,null,null,null,null,null,null,null,null,null,null,null,null,null,null,null,null,"","له دور ثان في  :  ",null,null,null,null,null,null,null,{"$f":"IF(BN240=\"\",\"\",IF(RANK(BN240,$BN$10:$BN$1000)>$CH$1,\"\",IF(COUNTIF($BN$10:BN240,BN240)=1,Kh_RANK(BN240,$BN$10:$BN$1000),Kh_RANK(BN240,$BN$10:$BN$1000)&\" \"&\"مكرر\")))","v":""}]
[null,null,"طالب 232",null,null,null,null,null,null,null,null,null,null,null,null,null,null,null,null,null,null,null,null,null,null,null,null,null,null,null,null,null,null,null,null,null,null,null,null,null,null,null,null,null,null,null,null,null,null,null,null,null,null,null,null,null,null,null,null,null,null,null,null,null,null,null,null,null,null,null,null,null,null,null,null,null,"","له دور ثان في  :  ",null,null,null,null,null,null,null,{"$f":"IF(BN241=\"\",\"\",IF(RANK(BN241,$BN$10:$BN$1000)>$CH$1,\"\",IF(COUNTIF($BN$10:BN241,BN241)=1,Kh_RANK(BN241,$BN$10:$BN$1000),Kh_RANK(BN241,$BN$10:$BN$1000)&\" \"&\"مكرر\")))","v":""}]
[null,null,"طالب 233",null,null,null,null,null,null,null,null,null,null,null,null,null,null,null,null,null,null,null,null,null,null,null,null,null,null,null,null,null,null,null,null,null,null,null,null,null,null,null,null,null,null,null,null,null,null,null,null,null,null,null,null,null,null,null,null,null,null,null,null,null,null,null,null,null,null,null,null,null,null,null,null,null,"","له دور ثان في  :  ",null,null,null,null,null,null,null,{"$f":"IF(BN242=\"\",\"\",IF(RANK(BN242,$BN$10:$BN$1000)>$CH$1,\"\",IF(COUNTIF($BN$10:BN242,BN242)=1,Kh_RANK(BN242,$BN$10:$BN$1000),Kh_RANK(BN242,$BN$10:$BN$1000)&\" \"&\"مكرر\")))","v":""}]
[null,null,"طالب 234",null,null,null,null,null,null,null,null,null,null,null,null,null,null,null,null,null,null,null,null,null,null,null,null,null,null,null,null,null,null,null,null,null,null,null,null,null,null,null,null,null,null,null,null,null,null,null,null,null,null,null,null,null,null,null,null,null,null,null,null,null,null,null,null,null,null,null,null,null,null,null,null,null,"","له دور ثان في  :  ",null,null,null,null,null,null,null,{"$f":"IF(BN243=\"\",\"\",IF(RANK(BN243,$BN$10:$BN$1000)>$CH$1,\"\",IF(COUNTIF($BN$10:BN243,BN243)=1,Kh_RANK(BN243,$BN$10:$BN$1000),Kh_RANK(BN243,$BN$10:$BN$1000)&\" \"&\"مكرر\")))","v":""}]
[null,null,"طالب 235",null,null,null,null,null,null,null,null,null,null,null,null,null,null,null,null,null,null,null,null,null,null,null,null,null,null,null,null,null,null,null,null,null,null,null,null,null,null,null,null,null,null,null,null,null,null,null,null,null,null,null,null,null,null,null,null,null,null,null,null,null,null,null,null,null,null,null,null,null,null,null,null,null,"","له دور ثان في  :  ",null,null,null,null,null,null,null,{"$f":"IF(BN244=\"\",\"\",IF(RANK(BN244,$BN$10:$BN$1000)>$CH$1,\"\",IF(COUNTIF($BN$10:BN244,BN244)=1,Kh_RANK(BN244,$BN$10:$BN$1000),Kh_RANK(BN244,$BN$10:$BN$1000)&\" \"&\"مكرر\")))","v":""}]
[null,null,"طالب 236",null,null,null,null,null,null,null,null,null,null,null,null,null,null,null,null,null,null,null,null,null,null,null,null,null,null,null,null,null,null,null,null,null,null,null,null,null,null,null,null,null,null,null,null,null,null,null,null,null,null,null,null,null,null,null,null,null,null,null,null,null,null,null,null,null,null,null,null,null,null,null,null,null,"","له دور ثان في  :  ",null,null,null,null,null,null,null,{"$f":"IF(BN245=\"\",\"\",IF(RANK(BN245,$BN$10:$BN$1000)>$CH$1,\"\",IF(COUNTIF($BN$10:BN245,BN245)=1,Kh_RANK(BN245,$BN$10:$BN$1000),Kh_RANK(BN245,$BN$10:$BN$1000)&\" \"&\"مكرر\")))","v":""}]
[null,null,"طالب 237",null,null,null,null,null,null,null,null,null,null,null,null,null,null,null,null,null,null,null,null,null,null,null,null,null,null,null,null,null,null,null,null,null,null,null,null,null,null,null,null,null,null,null,null,null,null,null,null,null,null,null,null,null,null,null,null,null,null,null,null,null,null,null,null,null,null,null,null,null,null,null,null,null,"","له دور ثان في  :  ",null,null,null,null,null,null,null,{"$f":"IF(BN246=\"\",\"\",IF(RANK(BN246,$BN$10:$BN$1000)>$CH$1,\"\",IF(COUNTIF($BN$10:BN246,BN246)=1,Kh_RANK(BN246,$BN$10:$BN$1000),Kh_RANK(BN246,$BN$10:$BN$1000)&\" \"&\"مكرر\")))","v":""}]
[null,null,"طالب 238",null,null,null,null,null,null,null,null,null,null,null,null,null,null,null,null,null,null,null,null,null,null,null,null,null,null,null,null,null,null,null,null,null,null,null,null,null,null,null,null,null,null,null,null,null,null,null,null,null,null,null,null,null,null,null,null,null,null,null,null,null,null,null,null,null,null,null,null,null,null,null,null,null,"","له دور ثان في  :  ",null,null,null,null,null,null,null,{"$f":"IF(BN247=\"\",\"\",IF(RANK(BN247,$BN$10:$BN$1000)>$CH$1,\"\",IF(COUNTIF($BN$10:BN247,BN247)=1,Kh_RANK(BN247,$BN$10:$BN$1000),Kh_RANK(BN247,$BN$10:$BN$1000)&\" \"&\"مكرر\")))","v":""}]
[null,null,"طالب 239",null,null,null,null,null,null,null,null,null,null,null,null,null,null,null,null,null,null,null,null,null,null,null,null,null,null,null,null,null,null,null,null,null,null,null,null,null,null,null,null,null,null,null,null,null,null,null,null,null,null,null,null,null,null,null,null,null,null,null,null,null,null,null,null,null,null,null,null,null,null,null,null,null,"","له دور ثان في  :  ",null,null,null,null,null,null,null,{"$f":"IF(BN248=\"\",\"\",IF(RANK(BN248,$BN$10:$BN$1000)>$CH$1,\"\",IF(COUNTIF($BN$10:BN248,BN248)=1,Kh_RANK(BN248,$BN$10:$BN$1000),Kh_RANK(BN248,$BN$10:$BN$1000)&\" \"&\"مكرر\")))","v":""}]
[null,null,"طالب 240",null,null,null,null,null,null,null,null,null,null,null,null,null,null,null,null,null,null,null,null,null,null,null,null,null,null,null,null,null,null,null,null,null,null,null,null,null,null,null,null,null,null,null,null,null,null,null,null,null,null,null,null,null,null,null,null,null,null,null,null,null,null,null,null,null,null,null,null,null,null,null,null,null,"","له دور ثان في  :  ",null,null,null,null,null,null,null,{"$f":"IF(BN249=\"\",\"\",IF(RANK(BN249,$BN$10:$BN$1000)>$CH$1,\"\",IF(COUNTIF($BN$10:BN249,BN249)=1,Kh_RANK(BN249,$BN$10:$BN$1000),Kh_RANK(BN249,$BN$10:$BN$1000)&\" \"&\"مكرر\")))","v":""}]
[null,null,"طالب 241",null,null,null,null,null,null,null,null,null,null,null,null,null,null,null,null,null,null,null,null,null,null,null,null,null,null,null,null,null,null,null,null,null,null,null,null,null,null,null,null,null,null,null,null,null,null,null,null,null,null,null,null,null,null,null,null,null,null,null,null,null,null,null,null,null,null,null,null,null,null,null,null,null,"","له دور ثان في  :  ",null,null,null,null,null,null,null,{"$f":"IF(BN250=\"\",\"\",IF(RANK(BN250,$BN$10:$BN$1000)>$CH$1,\"\",IF(COUNTIF($BN$10:BN250,BN250)=1,Kh_RANK(BN250,$BN$10:$BN$1000),Kh_RANK(BN250,$BN$10:$BN$1000)&\" \"&\"مكرر\")))","v":""}]
[null,null,"طالب 242",null,null,null,null,null,null,null,null,null,null,null,null,null,null,null,null,null,null,null,null,null,null,null,null,null,null,null,null,null,null,null,null,null,null,null,null,null,null,null,null,null,null,null,null,null,null,null,null,null,null,null,null,null,null,null,null,null,null,null,null,null,null,null,null,null,null,null,null,null,null,null,null,null,"","له دور ثان في  :  ",null,null,null,null,null,null,null,{"$f":"IF(BN251=\"\",\"\",IF(RANK(BN251,$BN$10:$BN$1000)>$CH$1,\"\",IF(COUNTIF($BN$10:BN251,BN251)=1,Kh_RANK(BN251,$BN$10:$BN$1000),Kh_RANK(BN251,$BN$10:$BN$1000)&\" \"&\"مكرر\")))","v":""}]
[null,null,"طالب 243",null,null,null,null,null,null,null,null,null,null,null,null,null,null,null,null,null,null,null,null,null,null,null,null,null,null,null,null,null,null,null,null,null,null,null,null,null,null,null,null,null,null,null,null,null,null,null,null,null,null,null,null,null,null,null,null,null,null,null,null,null,null,null,null,null,null,null,null,null,null,null,null,null,"","له دور ثان في  :  ",null,null,null,null,null,null,null,{"$f":"IF(BN252=\"\",\"\",IF(RANK(BN252,$BN$10:$BN$1000)>$CH$1,\"\",IF(COUNTIF($BN$10:BN252,BN252)=1,Kh_RANK(BN252,$BN$10:$BN$1000),Kh_RANK(BN252,$BN$10:$BN$1000)&\" \"&\"مكرر\")))","v":""}]
[null,null,"طالب 244",null,null,null,null,null,null,null,null,null,null,null,null,null,null,null,null,null,null,null,null,null,null,null,null,null,null,null,null,null,null,null,null,null,null,null,null,null,null,null,null,null,null,null,null,null,null,null,null,null,null,null,null,null,null,null,null,null,null,null,null,null,null,null,null,null,null,null,null,null,null,null,null,null,"","له دور ثان في  :  ",null,null,null,null,null,null,null,{"$f":"IF(BN253=\"\",\"\",IF(RANK(BN253,$BN$10:$BN$1000)>$CH$1,\"\",IF(COUNTIF($BN$10:BN253,BN253)=1,Kh_RANK(BN253,$BN$10:$BN$1000),Kh_RANK(BN253,$BN$10:$BN$1000)&\" \"&\"مكرر\")))","v":""}]
[null,null,"طالب 245",null,null,null,null,null,null,null,null,null,null,null,null,null,null,null,null,null,null,null,null,null,null,null,null,null,null,null,null,null,null,null,null,null,null,null,null,null,null,null,null,null,null,null,null,null,null,null,null,null,null,null,null,null,null,null,null,null,null,null,null,null,null,null,null,null,null,null,null,null,null,null,null,null,"","له دور ثان في  :  ",null,null,null,null,null,null,null,{"$f":"IF(BN254=\"\",\"\",IF(RANK(BN254,$BN$10:$BN$1000)>$CH$1,\"\",IF(COUNTIF($BN$10:BN254,BN254)=1,Kh_RANK(BN254,$BN$10:$BN$1000),Kh_RANK(BN254,$BN$10:$BN$1000)&\" \"&\"مكرر\")))","v":""}]
[null,null,"طالب 246",null,null,null,null,null,null,null,null,null,null,null,null,null,null,null,null,null,null,null,null,null,null,null,null,null,null,null,null,null,null,null,null,null,null,null,null,null,null,null,null,null,null,null,null,null,null,null,null,null,null,null,null,null,null,null,null,null,null,null,null,null,null,null,null,null,null,null,null,null,null,null,null,null,"","له دور ثان في  :  ",null,null,null,null,null,null,null,{"$f":"IF(BN255=\"\",\"\",IF(RANK(BN255,$BN$10:$BN$1000)>$CH$1,\"\",IF(COUNTIF($BN$10:BN255,BN255)=1,Kh_RANK(BN255,$BN$10:$BN$1000),Kh_RANK(BN255,$BN$10:$BN$1000)&\" \"&\"مكرر\")))","v":""}]
[null,null,"طالب 247",null,null,null,null,null,null,null,null,null,null,null,null,null,null,null,null,null,null,null,null,null,null,null,null,null,null,null,null,null,null,null,null,null,null,null,null,null,null,null,null,null,null,null,null,null,null,null,null,null,null,null,null,null,null,null,null,null,null,null,null,null,null,null,null,null,null,null,null,null,null,null,null,null,"","له دور ثان في  :  ",null,null,null,null,null,null,null,{"$f":"IF(BN256=\"\",\"\",IF(RANK(BN256,$BN$10:$BN$1000)>$CH$1,\"\",IF(COUNTIF($BN$10:BN256,BN256)=1,Kh_RANK(BN256,$BN$10:$BN$1000),Kh_RANK(BN256,$BN$10:$BN$1000)&\" \"&\"مكرر\")))","v":""}]
[null,null,"طالب 248",null,null,null,null,null,null,null,null,null,null,null,null,null,null,null,null,null,null,null,null,null,null,null,null,null,null,null,null,null,null,null,null,null,null,null,null,null,null,null,null,null,null,null,null,null,null,null,null,null,null,null,null,null,null,null,null,null,null,null,null,null,null,null,null,null,null,null,null,null,null,null,null,null,"","له دور ثان في  :  ",null,null,null,null,null,null,null,{"$f":"IF(BN257=\"\",\"\",IF(RANK(BN257,$BN$10:$BN$1000)>$CH$1,\"\",IF(COUNTIF($BN$10:BN257,BN257)=1,Kh_RANK(BN257,$BN$10:$BN$1000),Kh_RANK(BN257,$BN$10:$BN$1000)&\" \"&\"مكرر\")))","v":""}]
[null,null,"طالب 249",null,null,null,null,null,null,null,null,null,null,null,null,null,null,null,null,null,null,null,null,null,null,null,null,null,null,null,null,null,null,null,null,null,null,null,null,null,null,null,null,null,null,null,null,null,null,null,null,null,null,null,null,null,null,null,null,null,null,null,null,null,null,null,null,null,null,null,null,null,null,null,null,null,"","له دور ثان في  :  ",null,null,null,null,null,null,null,{"$f":"IF(BN258=\"\",\"\",IF(RANK(BN258,$BN$10:$BN$1000)>$CH$1,\"\",IF(COUNTIF($BN$10:BN258,BN258)=1,Kh_RANK(BN258,$BN$10:$BN$1000),Kh_RANK(BN258,$BN$10:$BN$1000)&\" \"&\"مكرر\")))","v":""}]
[null,null,"طالب 250",null,null,null,null,null,null,null,null,null,null,null,null,null,null,null,null,null,null,null,null,null,null,null,null,null,null,null,null,null,null,null,null,null,null,null,null,null,null,null,null,null,null,null,null,null,null,null,null,null,null,null,null,null,null,null,null,null,null,null,null,null,null,null,null,null,null,null,null,null,null,null,null,null,"","له دور ثان في  :  ",null,null,null,null,null,null,null,{"$f":"IF(BN259=\"\",\"\",IF(RANK(BN259,$BN$10:$BN$1000)>$CH$1,\"\",IF(COUNTIF($BN$10:BN259,BN259)=1,Kh_RANK(BN259,$BN$10:$BN$1000),Kh_RANK(BN259,$BN$10:$BN$1000)&\" \"&\"مكرر\")))","v":""}]
[null,null,"طالب 251",null,null,null,null,null,null,null,null,null,null,null,null,null,null,null,null,null,null,null,null,null,null,null,null,null,null,null,null,null,null,null,null,null,null,null,null,null,null,null,null,null,null,null,null,null,null,null,null,null,null,null,null,null,null,null,null,null,null,null,null,null,null,null,null,null,null,null,null,null,null,null,null,null,"","له دور ثان في  :  ",null,null,null,null,null,null,null,{"$f":"IF(BN260=\"\",\"\",IF(RANK(BN260,$BN$10:$BN$1000)>$CH$1,\"\",IF(COUNTIF($BN$10:BN260,BN260)=1,Kh_RANK(BN260,$BN$10:$BN$1000),Kh_RANK(BN260,$BN$10:$BN$1000)&\" \"&\"مكرر\")))","v":""}]
[null,null,"طالب 252",null,null,null,null,null,null,null,null,null,null,null,null,null,null,null,null,null,null,null,null,null,null,null,null,null,null,null,null,null,null,null,null,null,null,null,null,null,null,null,null,null,null,null,null,null,null,null,null,null,null,null,null,null,null,null,null,null,null,null,null,null,null,null,null,null,null,null,null,null,null,null,null,null,"","له دور ثان في  :  ",null,null,null,null,null,null,null,{"$f":"IF(BN261=\"\",\"\",IF(RANK(BN261,$BN$10:$BN$1000)>$CH$1,\"\",IF(COUNTIF($BN$10:BN261,BN261)=1,Kh_RANK(BN261,$BN$10:$BN$1000),Kh_RANK(BN261,$BN$10:$BN$1000)&\" \"&\"مكرر\")))","v":""}]
[null,null,"طالب 253",null,null,null,null,null,null,null,null,null,null,null,null,null,null,null,null,null,null,null,null,null,null,null,null,null,null,null,null,null,null,null,null,null,null,null,null,null,null,null,null,null,null,null,null,null,null,null,null,null,null,null,null,null,null,null,null,null,null,null,null,null,null,null,null,null,null,null,null,null,null,null,null,null,"","له دور ثان في  :  ",null,null,null,null,null,null,null,{"$f":"IF(BN262=\"\",\"\",IF(RANK(BN262,$BN$10:$BN$1000)>$CH$1,\"\",IF(COUNTIF($BN$10:BN262,BN262)=1,Kh_RANK(BN262,$BN$10:$BN$1000),Kh_RANK(BN262,$BN$10:$BN$1000)&\" \"&\"مكرر\")))","v":""}]
[null,null,"طالب 254",null,null,null,null,null,null,null,null,null,null,null,null,null,null,null,null,null,null,null,null,null,null,null,null,null,null,null,null,null,null,null,null,null,null,null,null,null,null,null,null,null,null,null,null,null,null,null,null,null,null,null,null,null,null,null,null,null,null,null,null,null,null,null,null,null,null,null,null,null,null,null,null,null,"","له دور ثان في  :  ",null,null,null,null,null,null,null,{"$f":"IF(BN263=\"\",\"\",IF(RANK(BN263,$BN$10:$BN$1000)>$CH$1,\"\",IF(COUNTIF($BN$10:BN263,BN263)=1,Kh_RANK(BN263,$BN$10:$BN$1000),Kh_RANK(BN263,$BN$10:$BN$1000)&\" \"&\"مكرر\")))","v":""}]
[null,null,"طالب 255",null,null,null,null,null,null,null,null,null,null,null,null,null,null,null,null,null,null,null,null,null,null,null,null,null,null,null,null,null,null,null,null,null,null,null,null,null,null,null,null,null,null,null,null,null,null,null,null,null,null,null,null,null,null,null,null,null,null,null,null,null,null,null,null,null,null,null,null,null,null,null,null,null,"","له دور ثان في  :  ",null,null,null,null,null,null,null,{"$f":"IF(BN264=\"\",\"\",IF(RANK(BN264,$BN$10:$BN$1000)>$CH$1,\"\",IF(COUNTIF($BN$10:BN264,BN264)=1,Kh_RANK(BN264,$BN$10:$BN$1000),Kh_RANK(BN264,$BN$10:$BN$1000)&\" \"&\"مكرر\")))","v":""}]
[null,null,"طالب 256",null,null,null,null,null,null,null,null,null,null,null,null,null,null,null,null,null,null,null,null,null,null,null,null,null,null,null,null,null,null,null,null,null,null,null,null,null,null,null,null,null,null,null,null,null,null,null,null,null,null,null,null,null,null,null,null,null,null,null,null,null,null,null,null,null,null,null,null,null,null,null,null,null,"","له دور ثان في  :  ",null,null,null,null,null,null,null,{"$f":"IF(BN265=\"\",\"\",IF(RANK(BN265,$BN$10:$BN$1000)>$CH$1,\"\",IF(COUNTIF($BN$10:BN265,BN265)=1,Kh_RANK(BN265,$BN$10:$BN$1000),Kh_RANK(BN265,$BN$10:$BN$1000)&\" \"&\"مكرر\")))","v":""}]
[null,null,"طالب 257",null,null,null,null,null,null,null,null,null,null,null,null,null,null,null,null,null,null,null,null,null,null,null,null,null,null,null,null,null,null,null,null,null,null,null,null,null,null,null,null,null,null,null,null,null,null,null,null,null,null,null,null,null,null,null,null,null,null,null,null,null,null,null,null,null,null,null,null,null,null,null,null,null,"",{"$f":"IF($BX$4=\"الأول\",IF(BY266<>\"\", \"ناجح بتقدير\"&\" \"&BY266&\" \"&CH266,IF(COUNTBLANK($CA266:$CG266)=11,a,\"يحتاج إلى عناية في  :  \"&textjoin(\" و \",$CA266:$CG266))),IF($BX$4=\"الثاني\",IF(BY266<>\"\", \"ناجح بتقدير\"&\" \"&BY266&\" \"&CH266,IF(COUNTBLANK($CA266:$CG266)=11,a,\"له دور ثان في  :  \"&textjoin(\" و \",$CA266:$CG266)))))","v":"له دور ثان في  :  "},null,null,null,null,null,null,null,{"$f":"IF(BN266=\"\",\"\",IF(RANK(BN266,$BN$10:$BN$1000)>$CH$1,\"\",IF(COUNTIF($BN$10:BN266,BN266)=1,Kh_RANK(BN266,$BN$10:$BN$1000),Kh_RANK(BN266,$BN$10:$BN$1000)&\" \"&\"مكرر\")))","v":""}]
[null,null,"طالب 258",null,null,null,null,null,null,null,null,null,null,null,null,null,null,null,null,null,null,null,null,null,null,null,null,null,null,null,null,null,null,null,null,null,null,null,null,null,null,null,null,null,null,null,null,null,null,null,null,null,null,null,null,null,null,null,null,null,null,null,null,null,null,null,null,null,null,null,null,null,null,null,null,null,"","له دور ثان في  :  ",null,null,null,null,null,null,null,{"$f":"IF(BN267=\"\",\"\",IF(RANK(BN267,$BN$10:$BN$1000)>$CH$1,\"\",IF(COUNTIF($BN$10:BN267,BN267)=1,Kh_RANK(BN267,$BN$10:$BN$1000),Kh_RANK(BN267,$BN$10:$BN$1000)&\" \"&\"مكرر\")))","v":""}]
[null,null,"طالب 259",null,null,null,null,null,null,null,null,null,null,null,null,null,null,null,null,null,null,null,null,null,null,null,null,null,null,null,null,null,null,null,null,null,null,null,null,null,null,null,null,null,null,null,null,null,null,null,null,null,null,null,null,null,null,null,null,null,null,null,null,null,null,null,null,null,null,null,null,null,null,null,null,null,"","له دور ثان في  :  ",null,null,null,null,null,null,null,{"$f":"IF(BN268=\"\",\"\",IF(RANK(BN268,$BN$10:$BN$1000)>$CH$1,\"\",IF(COUNTIF($BN$10:BN268,BN268)=1,Kh_RANK(BN268,$BN$10:$BN$1000),Kh_RANK(BN268,$BN$10:$BN$1000)&\" \"&\"مكرر\")))","v":""}]
[null,null,"طالب 260",null,null,null,null,null,null,null,null,null,null,null,null,null,null,null,null,null,null,null,null,null,null,null,null,null,null,null,null,null,null,null,null,null,null,null,null,null,null,null,null,null,null,null,null,null,null,null,null,null,null,null,null,null,null,null,null,null,null,null,null,null,null,null,null,null,null,null,null,null,null,null,null,null,"","له دور ثان في  :  ",null,null,null,null,null,null,null,{"$f":"IF(BN269=\"\",\"\",IF(RANK(BN269,$BN$10:$BN$1000)>$CH$1,\"\",IF(COUNTIF($BN$10:BN269,BN269)=1,Kh_RANK(BN269,$BN$10:$BN$1000),Kh_RANK(BN269,$BN$10:$BN$1000)&\" \"&\"مكرر\")))","v":""}]
[null,null,"طالب 261",null,null,null,null,null,null,null,null,null,null,null,null,null,null,null,null,null,null,null,null,null,null,null,null,null,null,null,null,null,null,null,null,null,null,null,null,null,null,null,null,null,null,null,null,null,null,null,null,null,null,null,null,null,null,null,null,null,null,null,null,null,null,null,null,null,null,null,null,null,null,null,null,null,"","له دور ثان في  :  ",null,null,null,null,null,null,null,{"$f":"IF(BN270=\"\",\"\",IF(RANK(BN270,$BN$10:$BN$1000)>$CH$1,\"\",IF(COUNTIF($BN$10:BN270,BN270)=1,Kh_RANK(BN270,$BN$10:$BN$1000),Kh_RANK(BN270,$BN$10:$BN$1000)&\" \"&\"مكرر\")))","v":""}]
[null,null,"طالب 262",null,null,null,null,null,null,null,null,null,null,null,null,null,null,null,null,null,null,null,null,null,null,null,null,null,null,null,null,null,null,null,null,null,null,null,null,null,null,null,null,null,null,null,null,null,null,null,null,null,null,null,null,null,null,null,null,null,null,null,null,null,null,null,null,null,null,null,null,null,null,null,null,null,"","له دور ثان في  :  ",null,null,null,null,null,null,null,{"$f":"IF(BN271=\"\",\"\",IF(RANK(BN271,$BN$10:$BN$1000)>$CH$1,\"\",IF(COUNTIF($BN$10:BN271,BN271)=1,Kh_RANK(BN271,$BN$10:$BN$1000),Kh_RANK(BN271,$BN$10:$BN$1000)&\" \"&\"مكرر\")))","v":""}]
[null,null,"طالب 263",null,null,null,null,null,null,null,null,null,null,null,null,null,null,null,null,null,null,null,null,null,null,null,null,null,null,null,null,null,null,null,null,null,null,null,null,null,null,null,null,null,null,null,null,null,null,null,null,null,null,null,null,null,null,null,null,null,null,null,null,null,null,null,null,null,null,null,null,null,null,null,null,null,"","له دور ثان في  :  ",null,null,null,null,null,null,null,{"$f":"IF(BN272=\"\",\"\",IF(RANK(BN272,$BN$10:$BN$1000)>$CH$1,\"\",IF(COUNTIF($BN$10:BN272,BN272)=1,Kh_RANK(BN272,$BN$10:$BN$1000),Kh_RANK(BN272,$BN$10:$BN$1000)&\" \"&\"مكرر\")))","v":""}]
[null,null,"طالب 264",null,null,null,null,null,null,null,null,null,null,null,null,null,null,null,null,null,null,null,null,null,null,null,null,null,null,null,null,null,null,null,null,null,null,null,null,null,null,null,null,null,null,null,null,null,null,null,null,null,null,null,null,null,null,null,null,null,null,null,null,null,null,null,null,null,null,null,null,null,null,null,null,null,"","له دور ثان في  :  ",null,null,null,null,null,null,null,{"$f":"IF(BN273=\"\",\"\",IF(RANK(BN273,$BN$10:$BN$1000)>$CH$1,\"\",IF(COUNTIF($BN$10:BN273,BN273)=1,Kh_RANK(BN273,$BN$10:$BN$1000),Kh_RANK(BN273,$BN$10:$BN$1000)&\" \"&\"مكرر\")))","v":""}]
[null,null,"طالب 265",null,null,null,null,null,null,null,null,null,null,null,null,null,null,null,null,null,null,null,null,null,null,null,null,null,null,null,null,null,null,null,null,null,null,null,null,null,null,null,null,null,null,null,null,null,null,null,null,null,null,null,null,null,null,null,null,null,null,null,null,null,null,null,null,null,null,null,null,null,null,null,null,null,"","له دور ثان في  :  ",null,null,null,null,null,null,null,{"$f":"IF(BN274=\"\",\"\",IF(RANK(BN274,$BN$10:$BN$1000)>$CH$1,\"\",IF(COUNTIF($BN$10:BN274,BN274)=1,Kh_RANK(BN274,$BN$10:$BN$1000),Kh_RANK(BN274,$BN$10:$BN$1000)&\" \"&\"مكرر\")))","v":""}]
[null,null,"طالب 266",null,null,null,null,null,null,null,null,null,null,null,null,null,null,null,null,null,null,null,null,null,null,null,null,null,null,null,null,null,null,null,null,null,null,null,null,null,null,null,null,null,null,null,null,null,null,null,null,null,null,null,null,null,null,null,null,null,null,null,null,null,null,null,null,null,null,null,null,null,null,null,null,null,"","له دور ثان في  :  ",null,null,null,null,null,null,null,{"$f":"IF(BN275=\"\",\"\",IF(RANK(BN275,$BN$10:$BN$1000)>$CH$1,\"\",IF(COUNTIF($BN$10:BN275,BN275)=1,Kh_RANK(BN275,$BN$10:$BN$1000),Kh_RANK(BN275,$BN$10:$BN$1000)&\" \"&\"مكرر\")))","v":""}]
[null,null,"طالب 267",null,null,null,null,null,null,null,null,null,null,null,null,null,null,null,null,null,null,null,null,null,null,null,null,null,null,null,null,null,null,null,null,null,null,null,null,null,null,null,null,null,null,null,null,null,null,null,null,null,null,null,null,null,null,null,null,null,null,null,null,null,null,null,null,null,null,null,null,null,null,null,null,null,"","له دور ثان في  :  ",null,null,null,null,null,null,null,{"$f":"IF(BN276=\"\",\"\",IF(RANK(BN276,$BN$10:$BN$1000)>$CH$1,\"\",IF(COUNTIF($BN$10:BN276,BN276)=1,Kh_RANK(BN276,$BN$10:$BN$1000),Kh_RANK(BN276,$BN$10:$BN$1000)&\" \"&\"مكرر\")))","v":""}]
[null,null,"طالب 268",null,null,null,null,null,null,null,null,null,null,null,null,null,null,null,null,null,null,null,null,null,null,null,null,null,null,null,null,null,null,null,null,null,null,null,null,null,null,null,null,null,null,null,null,null,null,null,null,null,null,null,null,null,null,null,null,null,null,null,null,null,null,null,null,null,null,null,null,null,null,null,null,null,"","له دور ثان في  :  ",null,null,null,null,null,null,null,{"$f":"IF(BN277=\"\",\"\",IF(RANK(BN277,$BN$10:$BN$1000)>$CH$1,\"\",IF(COUNTIF($BN$10:BN277,BN277)=1,Kh_RANK(BN277,$BN$10:$BN$1000),Kh_RANK(BN277,$BN$10:$BN$1000)&\" \"&\"مكرر\")))","v":""}]
[null,null,"طالب 269",null,null,null,null,null,null,null,null,null,null,null,null,null,null,null,null,null,null,null,null,null,null,null,null,null,null,null,null,null,null,null,null,null,null,null,null,null,null,null,null,null,null,null,null,null,null,null,null,null,null,null,null,null,null,null,null,null,null,null,null,null,null,null,null,null,null,null,null,null,null,null,null,null,"","له دور ثان في  :  ",null,null,null,null,null,null,null,{"$f":"IF(BN278=\"\",\"\",IF(RANK(BN278,$BN$10:$BN$1000)>$CH$1,\"\",IF(COUNTIF($BN$10:BN278,BN278)=1,Kh_RANK(BN278,$BN$10:$BN$1000),Kh_RANK(BN278,$BN$10:$BN$1000)&\" \"&\"مكرر\")))","v":""}]
[null,null,"طالب 270",null,null,null,null,null,null,null,null,null,null,null,null,null,null,null,null,null,null,null,null,null,null,null,null,null,null,null,null,null,null,null,null,null,null,null,null,null,null,null,null,null,null,null,null,null,null,null,null,null,null,null,null,null,null,null,null,null,null,null,null,null,null,null,null,null,null,null,null,null,null,null,null,null,"","له دور ثان في  :  ",null,null,null,null,null,null,null,{"$f":"IF(BN279=\"\",\"\",IF(RANK(BN279,$BN$10:$BN$1000)>$CH$1,\"\",IF(COUNTIF($BN$10:BN279,BN279)=1,Kh_RANK(BN279,$BN$10:$BN$1000),Kh_RANK(BN279,$BN$10:$BN$1000)&\" \"&\"مكرر\")))","v":""}]
[null,null,"طالب 271",null,null,null,null,null,null,null,null,null,null,null,null,null,null,null,null,null,null,null,null,null,null,null,null,null,null,null,null,null,null,null,null,null,null,null,null,null,null,null,null,null,null,null,null,null,null,null,null,null,null,null,null,null,null,null,null,null,null,null,null,null,null,null,null,null,null,null,null,null,null,null,null,null,"","له دور ثان في  :  ",null,null,null,null,null,null,null,{"$f":"IF(BN280=\"\",\"\",IF(RANK(BN280,$BN$10:$BN$1000)>$CH$1,\"\",IF(COUNTIF($BN$10:BN280,BN280)=1,Kh_RANK(BN280,$BN$10:$BN$1000),Kh_RANK(BN280,$BN$10:$BN$1000)&\" \"&\"مكرر\")))","v":""}]
[null,null,"طالب 272",null,null,null,null,null,null,null,null,null,null,null,null,null,null,null,null,null,null,null,null,null,null,null,null,null,null,null,null,null,null,null,null,null,null,null,null,null,null,null,null,null,null,null,null,null,null,null,null,null,null,null,null,null,null,null,null,null,null,null,null,null,null,null,null,null,null,null,null,null,null,null,null,null,"","له دور ثان في  :  ",null,null,null,null,null,null,null,{"$f":"IF(BN281=\"\",\"\",IF(RANK(BN281,$BN$10:$BN$1000)>$CH$1,\"\",IF(COUNTIF($BN$10:BN281,BN281)=1,Kh_RANK(BN281,$BN$10:$BN$1000),Kh_RANK(BN281,$BN$10:$BN$1000)&\" \"&\"مكرر\")))","v":""}]
[null,null,"طالب 273",null,null,null,null,null,null,null,null,null,null,null,null,null,null,null,null,null,null,null,null,null,null,null,null,null,null,null,null,null,null,null,null,null,null,null,null,null,null,null,null,null,null,null,null,null,null,null,null,null,null,null,null,null,null,null,null,null,null,null,null,null,null,null,null,null,null,null,null,null,null,null,null,null,"","له دور ثان في  :  ",null,null,null,null,null,null,null,{"$f":"IF(BN282=\"\",\"\",IF(RANK(BN282,$BN$10:$BN$1000)>$CH$1,\"\",IF(COUNTIF($BN$10:BN282,BN282)=1,Kh_RANK(BN282,$BN$10:$BN$1000),Kh_RANK(BN282,$BN$10:$BN$1000)&\" \"&\"مكرر\")))","v":""}]
[null,null,"طالب 274",null,null,null,null,null,null,null,null,null,null,null,null,null,null,null,null,null,null,null,null,null,null,null,null,null,null,null,null,null,null,null,null,null,null,null,null,null,null,null,null,null,null,null,null,null,null,null,null,null,null,null,null,null,null,null,null,null,null,null,null,null,null,null,null,null,null,null,null,null,null,null,null,null,"","له دور ثان في  :  ",null,null,null,null,null,null,null,{"$f":"IF(BN283=\"\",\"\",IF(RANK(BN283,$BN$10:$BN$1000)>$CH$1,\"\",IF(COUNTIF($BN$10:BN283,BN283)=1,Kh_RANK(BN283,$BN$10:$BN$1000),Kh_RANK(BN283,$BN$10:$BN$1000)&\" \"&\"مكرر\")))","v":""}]
[null,null,"طالب 275",null,null,null,null,null,null,null,null,null,null,null,null,null,null,null,null,null,null,null,null,null,null,null,null,null,null,null,null,null,null,null,null,null,null,null,null,null,null,null,null,null,null,null,null,null,null,null,null,null,null,null,null,null,null,null,null,null,null,null,null,null,null,null,null,null,null,null,null,null,null,null,null,null,"","له دور ثان في  :  ",null,null,null,null,null,null,null,{"$f":"IF(BN284=\"\",\"\",IF(RANK(BN284,$BN$10:$BN$1000)>$CH$1,\"\",IF(COUNTIF($BN$10:BN284,BN284)=1,Kh_RANK(BN284,$BN$10:$BN$1000),Kh_RANK(BN284,$BN$10:$BN$1000)&\" \"&\"مكرر\")))","v":""}]
[null,null,"طالب 276",null,null,null,null,null,null,null,null,null,null,null,null,null,null,null,null,null,null,null,null,null,null,null,null,null,null,null,null,null,null,null,null,null,null,null,null,null,null,null,null,null,null,null,null,null,null,null,null,null,null,null,null,null,null,null,null,null,null,null,null,null,null,null,null,null,null,null,null,null,null,null,null,null,"","له دور ثان في  :  ",null,null,null,null,null,null,null,{"$f":"IF(BN285=\"\",\"\",IF(RANK(BN285,$BN$10:$BN$1000)>$CH$1,\"\",IF(COUNTIF($BN$10:BN285,BN285)=1,Kh_RANK(BN285,$BN$10:$BN$1000),Kh_RANK(BN285,$BN$10:$BN$1000)&\" \"&\"مكرر\")))","v":""}]
[null,null,"طالب 277",null,null,null,null,null,null,null,null,null,null,null,null,null,null,null,null,null,null,null,null,null,null,null,null,null,null,null,null,null,null,null,null,null,null,null,null,null,null,null,null,null,null,null,null,null,null,null,null,null,null,null,null,null,null,null,null,null,null,null,null,null,null,null,null,null,null,null,null,null,null,null,null,null,"","له دور ثان في  :  ",null,null,null,null,null,null,null,{"$f":"IF(BN286=\"\",\"\",IF(RANK(BN286,$BN$10:$BN$1000)>$CH$1,\"\",IF(COUNTIF($BN$10:BN286,BN286)=1,Kh_RANK(BN286,$BN$10:$BN$1000),Kh_RANK(BN286,$BN$10:$BN$1000)&\" \"&\"مكرر\")))","v":""}]
[null,null,"طالب 278",null,null,null,null,null,null,null,null,null,null,null,null,null,null,null,null,null,null,null,null,null,null,null,null,null,null,null,null,null,null,null,null,null,null,null,null,null,null,null,null,null,null,null,null,null,null,null,null,null,null,null,null,null,null,null,null,null,null,null,null,null,null,null,null,null,null,null,null,null,null,null,null,null,"","له دور ثان في  :  ",null,null,null,null,null,null,null,{"$f":"IF(BN287=\"\",\"\",IF(RANK(BN287,$BN$10:$BN$1000)>$CH$1,\"\",IF(COUNTIF($BN$10:BN287,BN287)=1,Kh_RANK(BN287,$BN$10:$BN$1000),Kh_RANK(BN287,$BN$10:$BN$1000)&\" \"&\"مكرر\")))","v":""}]
[null,null,"طالب 279",null,null,null,null,null,null,null,null,null,null,null,null,null,null,null,null,null,null,null,null,null,null,null,null,null,null,null,null,null,null,null,null,null,null,null,null,null,null,null,null,null,null,null,null,null,null,null,null,null,null,null,null,null,null,null,null,null,null,null,null,null,null,null,null,null,null,null,null,null,null,null,null,null,{"$f":"IF(BX288=\"\",\"\",evaltion(BX288))","v":""},"له دور ثان في  :  ",null,null,null,null,null,null,null,{"$f":"IF(BN288=\"\",\"\",IF(RANK(BN288,$BN$10:$BN$1000)>$CH$1,\"\",IF(COUNTIF($BN$10:BN288,BN288)=1,Kh_RANK(BN288,$BN$10:$BN$1000),Kh_RANK(BN288,$BN$10:$BN$1000)&\" \"&\"مكرر\")))","v":""}]
[null,null,"طالب 280",null,null,null,null,null,null,null,null,null,null,null,null,null,null,null,null,null,null,null,null,null,null,null,null,null,null,null,null,null,null,null,null,null,null,null,null,null,null,null,null,null,null,null,null,null,null,null,null,null,null,null,null,null,null,null,null,null,null,null,null,null,null,null,null,null,null,null,null,null,null,null,null,null,"","له دور ثان في  :  ",null,null,null,null,null,null,null,{"$f":"IF(BN289=\"\",\"\",IF(RANK(BN289,$BN$10:$BN$1000)>$CH$1,\"\",IF(COUNTIF($BN$10:BN289,BN289)=1,Kh_RANK(BN289,$BN$10:$BN$1000),Kh_RANK(BN289,$BN$10:$BN$1000)&\" \"&\"مكرر\")))","v":""}]
[null,null,"طالب 281",null,null,null,null,null,null,null,null,null,null,null,null,null,null,null,null,null,null,null,null,null,null,null,null,null,null,null,null,null,null,null,null,null,null,null,null,null,null,null,null,null,null,null,null,null,null,null,null,null,null,null,null,null,null,null,null,null,null,null,null,null,null,null,null,null,null,null,null,null,null,null,null,null,"","له دور ثان في  :  ",null,null,null,null,null,null,null,{"$f":"IF(BN290=\"\",\"\",IF(RANK(BN290,$BN$10:$BN$1000)>$CH$1,\"\",IF(COUNTIF($BN$10:BN290,BN290)=1,Kh_RANK(BN290,$BN$10:$BN$1000),Kh_RANK(BN290,$BN$10:$BN$1000)&\" \"&\"مكرر\")))","v":""}]
[null,null,"طالب 282",null,null,null,null,null,null,null,null,null,null,null,null,null,null,null,null,null,null,null,null,null,null,null,null,null,null,null,null,null,null,null,null,null,null,null,null,null,null,null,null,null,null,null,null,null,null,null,null,null,null,null,null,null,null,null,null,null,null,null,null,null,null,null,null,null,null,null,null,null,null,null,null,null,"","له دور ثان في  :  ",null,null,null,null,null,null,null,{"$f":"IF(BN291=\"\",\"\",IF(RANK(BN291,$BN$10:$BN$1000)>$CH$1,\"\",IF(COUNTIF($BN$10:BN291,BN291)=1,Kh_RANK(BN291,$BN$10:$BN$1000),Kh_RANK(BN291,$BN$10:$BN$1000)&\" \"&\"مكرر\")))","v":""}]
[null,null,"طالب 283",null,null,null,null,null,null,null,null,null,null,null,null,null,null,null,null,null,null,null,null,null,null,null,null,null,null,null,null,null,null,null,null,null,null,null,null,null,null,null,null,null,null,null,null,null,null,null,null,null,null,null,null,null,null,null,null,null,null,null,null,null,null,null,null,null,null,null,null,null,null,null,null,null,"","له دور ثان في  :  ",null,null,null,null,null,null,null,{"$f":"IF(BN292=\"\",\"\",IF(RANK(BN292,$BN$10:$BN$1000)>$CH$1,\"\",IF(COUNTIF($BN$10:BN292,BN292)=1,Kh_RANK(BN292,$BN$10:$BN$1000),Kh_RANK(BN292,$BN$10:$BN$1000)&\" \"&\"مكرر\")))","v":""}]
[null,null,"طالب 284",null,null,null,null,null,null,null,null,null,null,null,null,null,null,null,null,null,null,null,null,null,null,null,null,null,null,null,null,null,null,null,null,null,null,null,null,null,null,null,null,null,null,null,null,null,null,null,null,null,null,null,null,null,null,null,null,null,null,null,null,null,null,null,null,null,null,null,null,null,null,null,null,null,"","له دور ثان في  :  ",null,null,null,null,null,null,null,{"$f":"IF(BN293=\"\",\"\",IF(RANK(BN293,$BN$10:$BN$1000)>$CH$1,\"\",IF(COUNTIF($BN$10:BN293,BN293)=1,Kh_RANK(BN293,$BN$10:$BN$1000),Kh_RANK(BN293,$BN$10:$BN$1000)&\" \"&\"مكرر\")))","v":""}]
[null,null,"طالب 285",null,null,null,null,null,null,null,null,null,null,null,null,null,null,null,null,null,null,null,null,null,null,null,null,null,null,null,null,null,null,null,null,null,null,null,null,null,null,null,null,null,null,null,null,null,null,null,null,null,null,null,null,null,null,null,null,null,null,null,null,null,null,null,null,null,null,null,null,null,null,null,null,null,"","له دور ثان في  :  ",null,null,null,null,null,null,null,{"$f":"IF(BN294=\"\",\"\",IF(RANK(BN294,$BN$10:$BN$1000)>$CH$1,\"\",IF(COUNTIF($BN$10:BN294,BN294)=1,Kh_RANK(BN294,$BN$10:$BN$1000),Kh_RANK(BN294,$BN$10:$BN$1000)&\" \"&\"مكرر\")))","v":""}]
[null,null,"طالب 286",null,null,null,null,null,null,null,null,null,null,null,null,null,null,null,null,null,null,null,null,null,null,null,null,null,null,null,null,null,null,null,null,null,null,null,null,null,null,null,null,null,null,null,null,null,null,null,null,null,null,null,null,null,null,null,null,null,null,null,null,null,null,null,null,null,null,null,null,null,null,null,null,null,"","له دور ثان في  :  ",null,null,null,null,null,null,null,{"$f":"IF(BN295=\"\",\"\",IF(RANK(BN295,$BN$10:$BN$1000)>$CH$1,\"\",IF(COUNTIF($BN$10:BN295,BN295)=1,Kh_RANK(BN295,$BN$10:$BN$1000),Kh_RANK(BN295,$BN$10:$BN$1000)&\" \"&\"مكرر\")))","v":""}]
[null,null,"طالب 287",null,null,null,null,null,null,null,null,null,null,null,null,null,null,null,null,null,null,null,null,null,null,null,null,null,null,null,null,null,null,null,null,null,null,null,null,null,null,null,null,null,null,null,null,null,null,null,null,null,null,null,null,null,null,null,null,null,null,null,null,null,null,null,null,null,null,null,null,null,null,null,null,null,"","له دور ثان في  :  ",null,null,null,null,null,null,null,{"$f":"IF(BN296=\"\",\"\",IF(RANK(BN296,$BN$10:$BN$1000)>$CH$1,\"\",IF(COUNTIF($BN$10:BN296,BN296)=1,Kh_RANK(BN296,$BN$10:$BN$1000),Kh_RANK(BN296,$BN$10:$BN$1000)&\" \"&\"مكرر\")))","v":""}]
[null,null,"طالب 288",null,null,null,null,null,null,null,null,null,null,null,null,null,null,null,null,null,null,null,null,null,null,null,null,null,null,null,null,null,null,null,null,null,null,null,null,null,null,null,null,null,null,null,null,null,null,null,null,null,null,null,null,null,null,null,null,null,null,null,null,null,null,null,null,null,null,null,null,null,null,null,null,null,"","له دور ثان في  :  ",null,null,null,null,null,null,null,{"$f":"IF(BN297=\"\",\"\",IF(RANK(BN297,$BN$10:$BN$1000)>$CH$1,\"\",IF(COUNTIF($BN$10:BN297,BN297)=1,Kh_RANK(BN297,$BN$10:$BN$1000),Kh_RANK(BN297,$BN$10:$BN$1000)&\" \"&\"مكرر\")))","v":""}]
[null,null,"طالب 289",null,null,null,null,null,null,null,null,null,null,null,null,null,null,null,null,null,null,null,null,null,null,null,null,null,null,null,null,null,null,null,null,null,null,null,null,null,null,null,null,null,null,null,null,null,null,null,null,null,null,null,null,null,null,null,null,null,null,null,null,null,null,null,null,null,null,null,null,null,null,null,null,null,"","له دور ثان في  :  ",null,null,null,null,null,null,null,{"$f":"IF(BN298=\"\",\"\",IF(RANK(BN298,$BN$10:$BN$1000)>$CH$1,\"\",IF(COUNTIF($BN$10:BN298,BN298)=1,Kh_RANK(BN298,$BN$10:$BN$1000),Kh_RANK(BN298,$BN$10:$BN$1000)&\" \"&\"مكرر\")))","v":""}]
[null,null,"طالب 290",null,null,null,null,null,null,null,null,null,null,null,null,null,null,null,null,null,null,null,null,null,null,null,null,null,null,null,null,null,null,null,null,null,null,null,null,null,null,null,null,null,null,null,null,null,null,null,null,null,null,null,null,null,null,null,null,null,null,null,null,null,null,null,null,null,null,null,null,null,null,null,null,null,"","له دور ثان في  :  ",null,null,null,null,null,null,null,{"$f":"IF(BN299=\"\",\"\",IF(RANK(BN299,$BN$10:$BN$1000)>$CH$1,\"\",IF(COUNTIF($BN$10:BN299,BN299)=1,Kh_RANK(BN299,$BN$10:$BN$1000),Kh_RANK(BN299,$BN$10:$BN$1000)&\" \"&\"مكرر\")))","v":""}]
[null,null,"طالب 291",null,null,null,null,null,null,null,null,null,null,null,null,null,null,null,null,null,null,null,null,null,null,null,null,null,null,null,null,null,null,null,null,null,null,null,null,null,null,null,null,null,null,null,null,null,null,null,null,null,null,null,null,null,null,null,null,null,null,null,null,null,null,null,null,null,null,null,null,null,null,null,null,null,"","له دور ثان في  :  ",null,null,null,null,null,null,null,{"$f":"IF(BN300=\"\",\"\",IF(RANK(BN300,$BN$10:$BN$1000)>$CH$1,\"\",IF(COUNTIF($BN$10:BN300,BN300)=1,Kh_RANK(BN300,$BN$10:$BN$1000),Kh_RANK(BN300,$BN$10:$BN$1000)&\" \"&\"مكرر\")))","v":""}]
[null,null,"طالب 292",null,null,null,null,null,null,null,null,null,null,null,null,null,null,null,null,null,null,null,null,null,null,null,null,null,null,null,null,null,null,null,null,null,null,null,null,null,null,null,null,null,null,null,null,null,null,null,null,null,null,null,null,null,null,null,null,null,null,null,null,null,null,null,null,null,null,null,null,null,null,null,null,null,"","له دور ثان في  :  ",null,null,null,null,null,null,null,{"$f":"IF(BN301=\"\",\"\",IF(RANK(BN301,$BN$10:$BN$1000)>$CH$1,\"\",IF(COUNTIF($BN$10:BN301,BN301)=1,Kh_RANK(BN301,$BN$10:$BN$1000),Kh_RANK(BN301,$BN$10:$BN$1000)&\" \"&\"مكرر\")))","v":""}]
[null,null,"طالب 293",null,null,null,null,null,null,null,null,null,null,null,null,null,null,null,null,null,null,null,null,null,null,null,null,null,null,null,null,null,null,null,null,null,null,null,null,null,null,null,null,null,null,null,null,null,null,null,null,null,null,null,null,null,null,null,null,null,null,null,null,null,null,null,null,null,null,null,null,null,null,null,null,null,"","له دور ثان في  :  ",null,null,null,null,null,null,null,{"$f":"IF(BN302=\"\",\"\",IF(RANK(BN302,$BN$10:$BN$1000)>$CH$1,\"\",IF(COUNTIF($BN$10:BN302,BN302)=1,Kh_RANK(BN302,$BN$10:$BN$1000),Kh_RANK(BN302,$BN$10:$BN$1000)&\" \"&\"مكرر\")))","v":""}]
[null,null,"طالب 294",null,null,null,null,null,null,null,null,null,null,null,null,null,null,null,null,null,null,null,null,null,null,null,null,null,null,null,null,null,null,null,null,null,null,null,null,null,null,null,null,null,null,null,null,null,null,null,null,null,null,null,null,null,null,null,null,null,null,null,null,null,null,null,null,null,null,null,null,null,null,null,null,null,"","له دور ثان في  :  ",null,null,null,null,null,null,null,{"$f":"IF(BN303=\"\",\"\",IF(RANK(BN303,$BN$10:$BN$1000)>$CH$1,\"\",IF(COUNTIF($BN$10:BN303,BN303)=1,Kh_RANK(BN303,$BN$10:$BN$1000),Kh_RANK(BN303,$BN$10:$BN$1000)&\" \"&\"مكرر\")))","v":""}]
[null,null,"طالب 295",null,null,null,null,null,null,null,null,null,null,null,null,null,null,null,null,null,null,null,null,null,null,null,null,null,null,null,null,null,null,null,null,null,null,null,null,null,null,null,null,null,null,null,null,null,null,null,null,null,null,null,null,null,null,null,null,null,null,null,null,null,null,null,null,null,null,null,null,null,null,null,null,null,"","له دور ثان في  :  ",null,null,null,null,null,null,null,{"$f":"IF(BN304=\"\",\"\",IF(RANK(BN304,$BN$10:$BN$1000)>$CH$1,\"\",IF(COUNTIF($BN$10:BN304,BN304)=1,Kh_RANK(BN304,$BN$10:$BN$1000),Kh_RANK(BN304,$BN$10:$BN$1000)&\" \"&\"مكرر\")))","v":""}]
[null,null,"طالب 296",null,null,null,null,null,null,null,null,null,null,null,null,null,null,null,null,null,null,null,null,null,null,null,null,null,null,null,null,null,null,null,null,null,null,null,null,null,null,null,null,null,null,null,null,null,null,null,null,null,null,null,null,null,null,null,null,null,null,null,null,null,null,null,null,null,null,null,null,null,null,null,null,null,"","له دور ثان في  :  ",null,null,null,null,null,null,null,{"$f":"IF(BN305=\"\",\"\",IF(RANK(BN305,$BN$10:$BN$1000)>$CH$1,\"\",IF(COUNTIF($BN$10:BN305,BN305)=1,Kh_RANK(BN305,$BN$10:$BN$1000),Kh_RANK(BN305,$BN$10:$BN$1000)&\" \"&\"مكرر\")))","v":""}]
[null,null,"طالب 297",null,null,null,null,null,null,null,null,null,null,null,null,null,null,null,null,null,null,null,null,null,null,null,null,null,null,null,null,null,null,null,null,null,null,null,null,null,null,null,null,null,null,null,null,null,null,null,null,null,null,null,null,null,null,null,null,null,null,null,null,null,null,null,null,null,null,null,null,null,null,null,null,null,"","له دور ثان في  :  ",null,null,null,null,null,null,null,{"$f":"IF(BN306=\"\",\"\",IF(RANK(BN306,$BN$10:$BN$1000)>$CH$1,\"\",IF(COUNTIF($BN$10:BN306,BN306)=1,Kh_RANK(BN306,$BN$10:$BN$1000),Kh_RANK(BN306,$BN$10:$BN$1000)&\" \"&\"مكرر\")))","v":""}]
[null,null,"طالب 298",null,null,null,null,null,null,null,null,null,null,null,null,null,null,null,null,null,null,null,null,null,null,null,null,null,null,null,null,null,null,null,null,null,null,null,null,null,null,null,null,null,null,null,null,null,null,null,null,null,null,null,null,null,null,null,null,null,null,null,null,null,null,null,null,null,null,null,null,null,null,null,null,null,"","له دور ثان في  :  ",null,null,null,null,null,null,null,{"$f":"IF(BN307=\"\",\"\",IF(RANK(BN307,$BN$10:$BN$1000)>$CH$1,\"\",IF(COUNTIF($BN$10:BN307,BN307)=1,Kh_RANK(BN307,$BN$10:$BN$1000),Kh_RANK(BN307,$BN$10:$BN$1000)&\" \"&\"مكرر\")))","v":""}]
[null,null,"طالب 299",null,null,null,null,null,null,null,null,null,null,null,null,null,null,null,null,null,null,null,null,null,null,null,null,null,null,null,null,null,null,null,null,null,null,null,null,null,null,null,null,null,null,null,null,null,null,null,null,null,null,null,null,null,null,null,null,null,null,null,null,null,null,null,null,null,null,null,null,null,null,null,null,null,"","له دور ثان في  :  ",null,null,null,null,null,null,null,{"$f":"IF(BN308=\"\",\"\",IF(RANK(BN308,$BN$10:$BN$1000)>$CH$1,\"\",IF(COUNTIF($BN$10:BN308,BN308)=1,Kh_RANK(BN308,$BN$10:$BN$1000),Kh_RANK(BN308,$BN$10:$BN$1000)&\" \"&\"مكرر\")))","v":""}]
[null,null,"طالب 300",null,null,null,null,null,null,null,null,null,null,null,null,null,null,null,null,null,null,null,null,null,null,null,null,null,null,null,null,null,null,null,null,null,null,null,null,null,null,null,null,null,null,null,null,null,null,null,null,null,null,null,null,null,null,null,null,null,null,null,null,null,null,null,null,null,null,null,null,null,null,null,null,null,"","له دور ثان في  :  ",null,null,null,null,null,null,null,{"$f":"IF(BN309=\"\",\"\",IF(RANK(BN309,$BN$10:$BN$1000)>$CH$1,\"\",IF(COUNTIF($BN$10:BN309,BN309)=1,Kh_RANK(BN309,$BN$10:$BN$1000),Kh_RANK(BN309,$BN$10:$BN$1000)&\" \"&\"مكرر\")))","v":""}]
[null,null,"طالب 301",null,null,null,null,null,null,null,null,null,null,null,null,null,null,null,null,null,null,null,null,null,null,null,null,null,null,null,null,null,null,null,null,null,null,null,null,null,null,null,null,null,null,null,null,null,null,null,null,null,null,null,null,null,null,null,null,null,null,null,null,null,null,null,null,null,null,null,null,null,null,null,null,null,"","له دور ثان في  :  ",null,null,null,null,null,null,null,{"$f":"IF(BN310=\"\",\"\",IF(RANK(BN310,$BN$10:$BN$1000)>$CH$1,\"\",IF(COUNTIF($BN$10:BN310,BN310)=1,Kh_RANK(BN310,$BN$10:$BN$1000),Kh_RANK(BN310,$BN$10:$BN$1000)&\" \"&\"مكرر\")))","v":""}]
[null,null,"طالب 302",null,null,null,null,null,null,null,null,null,null,null,null,null,null,null,null,null,null,null,null,null,null,null,null,null,null,null,null,null,null,null,null,null,null,null,null,null,null,null,null,null,null,null,null,null,null,null,null,null,null,null,null,null,null,null,null,null,null,null,null,null,null,null,null,null,null,null,null,null,null,null,null,null,"","له دور ثان في  :  ",null,null,null,null,null,null,null,{"$f":"IF(BN311=\"\",\"\",IF(RANK(BN311,$BN$10:$BN$1000)>$CH$1,\"\",IF(COUNTIF($BN$10:BN311,BN311)=1,Kh_RANK(BN311,$BN$10:$BN$1000),Kh_RANK(BN311,$BN$10:$BN$1000)&\" \"&\"مكرر\")))","v":""}]
[null,null,"طالب 303",null,null,null,null,null,null,null,null,null,null,null,null,null,null,null,null,null,null,null,null,null,null,null,null,null,null,null,null,null,null,null,null,null,null,null,null,null,null,null,null,null,null,null,null,null,null,null,null,null,null,null,null,null,null,null,null,null,null,null,null,null,null,null,null,null,null,null,null,null,null,null,null,null,"","له دور ثان في  :  ",null,null,null,null,null,null,null,{"$f":"IF(BN312=\"\",\"\",IF(RANK(BN312,$BN$10:$BN$1000)>$CH$1,\"\",IF(COUNTIF($BN$10:BN312,BN312)=1,Kh_RANK(BN312,$BN$10:$BN$1000),Kh_RANK(BN312,$BN$10:$BN$1000)&\" \"&\"مكرر\")))","v":""}]
[null,null,"طالب 304",null,null,null,null,null,null,null,null,null,null,null,null,null,null,null,null,null,null,null,null,null,null,null,null,null,null,null,null,null,null,null,null,null,null,null,null,null,null,null,null,null,null,null,null,null,null,null,null,null,null,null,null,null,null,null,null,null,null,null,null,null,null,null,null,null,null,null,null,null,null,null,null,null,"","له دور ثان في  :  ",null,null,null,null,null,null,null,{"$f":"IF(BN313=\"\",\"\",IF(RANK(BN313,$BN$10:$BN$1000)>$CH$1,\"\",IF(COUNTIF($BN$10:BN313,BN313)=1,Kh_RANK(BN313,$BN$10:$BN$1000),Kh_RANK(BN313,$BN$10:$BN$1000)&\" \"&\"مكرر\")))","v":""}]
[null,null,"طالب 305",null,null,null,null,null,null,null,null,null,null,null,null,null,null,null,null,null,null,null,null,null,null,null,null,null,null,null,null,null,null,null,null,null,null,null,null,null,null,null,null,null,null,null,null,null,null,null,null,null,null,null,null,null,null,null,null,null,null,null,null,null,null,null,null,null,null,null,null,null,null,null,null,null,"","له دور ثان في  :  ",null,null,null,null,null,null,null,{"$f":"IF(BN314=\"\",\"\",IF(RANK(BN314,$BN$10:$BN$1000)>$CH$1,\"\",IF(COUNTIF($BN$10:BN314,BN314)=1,Kh_RANK(BN314,$BN$10:$BN$1000),Kh_RANK(BN314,$BN$10:$BN$1000)&\" \"&\"مكرر\")))","v":""}]
[null,null,"طالب 306",null,null,null,null,null,null,null,null,null,null,null,null,null,null,null,null,null,null,null,null,null,null,null,null,null,null,null,null,null,null,null,null,null,null,null,null,null,null,null,null,null,null,null,null,null,null,null,null,null,null,null,null,null,null,null,null,null,null,null,null,null,null,null,null,null,null,null,null,null,null,null,null,null,"","له دور ثان في  :  ",null,null,null,null,null,null,null,{"$f":"IF(BN315=\"\",\"\",IF(RANK(BN315,$BN$10:$BN$1000)>$CH$1,\"\",IF(COUNTIF($BN$10:BN315,BN315)=1,Kh_RANK(BN315,$BN$10:$BN$1000),Kh_RANK(BN315,$BN$10:$BN$1000)&\" \"&\"مكرر\")))","v":""}]
[null,null,"طالب 307",null,null,null,null,null,null,null,null,null,null,null,null,null,null,null,null,null,null,null,null,null,null,null,null,null,null,null,null,null,null,null,null,null,null,null,null,null,null,null,null,null,null,null,null,null,null,null,null,null,null,null,null,null,null,null,null,null,null,null,null,null,null,null,null,null,null,null,null,null,null,null,null,null,"","له دور ثان في  :  ",null,null,null,null,null,null,null,{"$f":"IF(BN316=\"\",\"\",IF(RANK(BN316,$BN$10:$BN$1000)>$CH$1,\"\",IF(COUNTIF($BN$10:BN316,BN316)=1,Kh_RANK(BN316,$BN$10:$BN$1000),Kh_RANK(BN316,$BN$10:$BN$1000)&\" \"&\"مكرر\")))","v":""}]
[null,null,"طالب 308",null,null,null,null,null,null,null,null,null,null,null,null,null,null,null,null,null,null,null,null,null,null,null,null,null,null,null,null,null,null,null,null,null,null,null,null,null,null,null,null,null,null,null,null,null,null,null,null,null,null,null,null,null,null,null,null,null,null,null,null,null,null,null,null,null,null,null,null,null,null,null,null,null,"","له دور ثان في  :  ",null,null,null,null,null,null,null,{"$f":"IF(BN317=\"\",\"\",IF(RANK(BN317,$BN$10:$BN$1000)>$CH$1,\"\",IF(COUNTIF($BN$10:BN317,BN317)=1,Kh_RANK(BN317,$BN$10:$BN$1000),Kh_RANK(BN317,$BN$10:$BN$1000)&\" \"&\"مكرر\")))","v":""}]
[null,null,"طالب 309",null,null,null,null,null,null,null,null,null,null,null,null,null,null,null,null,null,null,null,null,null,null,null,null,null,null,null,null,null,null,null,null,null,null,null,null,null,null,null,null,null,null,null,null,null,null,null,null,null,null,null,null,null,null,null,null,null,null,null,null,null,null,null,null,null,null,null,null,null,null,null,null,null,"","له دور ثان في  :  ",null,null,null,null,null,null,null,{"$f":"IF(BN318=\"\",\"\",IF(RANK(BN318,$BN$10:$BN$1000)>$CH$1,\"\",IF(COUNTIF($BN$10:BN318,BN318)=1,Kh_RANK(BN318,$BN$10:$BN$1000),Kh_RANK(BN318,$BN$10:$BN$1000)&\" \"&\"مكرر\")))","v":""}]
[null,null,"طالب 310",null,null,null,null,null,null,null,null,null,null,null,null,null,null,null,null,null,null,null,null,null,null,null,null,null,null,null,null,null,null,null,null,null,null,null,null,null,null,null,null,null,null,null,null,null,null,null,null,null,null,null,null,null,null,null,null,null,null,null,null,null,null,null,null,null,null,null,null,null,null,null,null,null,"","له دور ثان في  :  ",null,null,null,null,null,null,null,{"$f":"IF(BN319=\"\",\"\",IF(RANK(BN319,$BN$10:$BN$1000)>$CH$1,\"\",IF(COUNTIF($BN$10:BN319,BN319)=1,Kh_RANK(BN319,$BN$10:$BN$1000),Kh_RANK(BN319,$BN$10:$BN$1000)&\" \"&\"مكرر\")))","v":""}]
[null,null,"طالب 311",null,null,null,null,null,null,null,null,null,null,null,null,null,null,null,null,null,null,null,null,null,null,null,null,null,null,null,null,null,null,null,null,null,null,null,null,null,null,null,null,null,null,null,null,null,null,null,null,null,null,null,null,null,null,null,null,null,null,null,null,null,null,null,null,null,null,null,null,null,null,null,null,null,"","له دور ثان في  :  ",null,null,null,null,null,null,null,{"$f":"IF(BN320=\"\",\"\",IF(RANK(BN320,$BN$10:$BN$1000)>$CH$1,\"\",IF(COUNTIF($BN$10:BN320,BN320)=1,Kh_RANK(BN320,$BN$10:$BN$1000),Kh_RANK(BN320,$BN$10:$BN$1000)&\" \"&\"مكرر\")))","v":""}]
[null,null,"طالب 312",null,null,null,null,null,null,null,null,null,null,null,null,null,null,null,null,null,null,null,null,null,null,null,null,null,null,null,null,null,null,null,null,null,null,null,null,null,null,null,null,null,null,null,null,null,null,null,null,null,null,null,null,null,null,null,null,null,null,null,null,null,null,null,null,null,null,null,null,null,null,null,null,null,"","له دور ثان في  :  ",null,null,null,null,null,null,null,{"$f":"IF(BN321=\"\",\"\",IF(RANK(BN321,$BN$10:$BN$1000)>$CH$1,\"\",IF(COUNTIF($BN$10:BN321,BN321)=1,Kh_RANK(BN321,$BN$10:$BN$1000),Kh_RANK(BN321,$BN$10:$BN$1000)&\" \"&\"مكرر\")))","v":""}]
[null,null,"طالب 313",null,null,null,null,null,null,null,null,null,null,null,null,null,null,null,null,null,null,null,null,null,null,null,null,null,null,null,null,null,null,null,null,null,null,null,null,null,null,null,null,null,null,null,null,null,null,null,null,null,null,null,null,null,null,null,null,null,null,null,null,null,null,null,null,null,null,null,null,null,null,null,null,null,"","له دور ثان في  :  ",null,null,null,null,null,null,null,{"$f":"IF(BN322=\"\",\"\",IF(RANK(BN322,$BN$10:$BN$1000)>$CH$1,\"\",IF(COUNTIF($BN$10:BN322,BN322)=1,Kh_RANK(BN322,$BN$10:$BN$1000),Kh_RANK(BN322,$BN$10:$BN$1000)&\" \"&\"مكرر\")))","v":""}]
[null,null,"طالب 314",null,null,null,null,null,null,null,null,null,null,null,null,null,null,null,null,null,null,null,null,null,null,null,null,null,null,null,null,null,null,null,null,null,null,null,null,null,null,null,null,null,null,null,null,null,null,null,null,null,null,null,null,null,null,null,null,null,null,null,null,null,null,null,null,null,null,null,null,null,null,null,null,null,"","له دور ثان في  :  ",null,null,null,null,null,null,null,{"$f":"IF(BN323=\"\",\"\",IF(RANK(BN323,$BN$10:$BN$1000)>$CH$1,\"\",IF(COUNTIF($BN$10:BN323,BN323)=1,Kh_RANK(BN323,$BN$10:$BN$1000),Kh_RANK(BN323,$BN$10:$BN$1000)&\" \"&\"مكرر\")))","v":""}]
[null,null,"طالب 315",null,null,null,null,null,null,null,null,null,null,null,null,null,null,null,null,null,null,null,null,null,null,null,null,null,null,null,null,null,null,null,null,null,null,null,null,null,null,null,null,null,null,null,null,null,null,null,null,null,null,null,null,null,null,null,null,null,null,null,null,null,null,null,null,null,null,null,null,null,null,null,null,null,"","له دور ثان في  :  ",null,null,null,null,null,null,null,{"$f":"IF(BN324=\"\",\"\",IF(RANK(BN324,$BN$10:$BN$1000)>$CH$1,\"\",IF(COUNTIF($BN$10:BN324,BN324)=1,Kh_RANK(BN324,$BN$10:$BN$1000),Kh_RANK(BN324,$BN$10:$BN$1000)&\" \"&\"مكرر\")))","v":""}]
[null,null,"طالب 316",null,null,null,null,null,null,null,null,null,null,null,null,null,null,null,null,null,null,null,null,null,null,null,null,null,null,null,null,null,null,null,null,null,null,null,null,null,null,null,null,null,null,null,null,null,null,null,null,null,null,null,null,null,null,null,null,null,null,null,null,null,null,null,null,null,null,null,null,null,null,null,null,null,"","له دور ثان في  :  ",null,null,null,null,null,null,null,{"$f":"IF(BN325=\"\",\"\",IF(RANK(BN325,$BN$10:$BN$1000)>$CH$1,\"\",IF(COUNTIF($BN$10:BN325,BN325)=1,Kh_RANK(BN325,$BN$10:$BN$1000),Kh_RANK(BN325,$BN$10:$BN$1000)&\" \"&\"مكرر\")))","v":""}]
[null,null,"طالب 317",null,null,null,null,null,null,null,null,null,null,null,null,null,null,null,null,null,null,null,null,null,null,null,null,null,null,null,null,null,null,null,null,null,null,null,null,null,null,null,null,null,null,null,null,null,null,null,null,null,null,null,null,null,null,null,null,null,null,null,null,null,null,null,null,null,null,null,null,null,null,null,null,null,"","له دور ثان في  :  ",null,null,null,null,null,null,null,{"$f":"IF(BN326=\"\",\"\",IF(RANK(BN326,$BN$10:$BN$1000)>$CH$1,\"\",IF(COUNTIF($BN$10:BN326,BN326)=1,Kh_RANK(BN326,$BN$10:$BN$1000),Kh_RANK(BN326,$BN$10:$BN$1000)&\" \"&\"مكرر\")))","v":""}]
[null,null,"طالب 318",null,null,null,null,null,null,null,null,null,null,null,null,null,null,null,null,null,null,null,null,null,null,null,null,null,null,null,null,null,null,null,null,null,null,null,null,null,null,null,null,null,null,null,null,null,null,null,null,null,null,null,null,null,null,null,null,null,null,null,null,null,null,null,null,null,null,null,null,null,null,null,null,null,"","له دور ثان في  :  ",null,null,null,null,null,null,null,{"$f":"IF(BN327=\"\",\"\",IF(RANK(BN327,$BN$10:$BN$1000)>$CH$1,\"\",IF(COUNTIF($BN$10:BN327,BN327)=1,Kh_RANK(BN327,$BN$10:$BN$1000),Kh_RANK(BN327,$BN$10:$BN$1000)&\" \"&\"مكرر\")))","v":""}]
[null,null,"طالب 319",null,null,null,null,null,null,null,null,null,null,null,null,null,null,null,null,null,null,null,null,null,null,null,null,null,null,null,null,null,null,null,null,null,null,null,null,null,null,null,null,null,null,null,null,null,null,null,null,null,null,null,null,null,null,null,null,null,null,null,null,null,null,null,null,null,null,null,null,null,null,null,null,null,"","له دور ثان في  :  ",null,null,null,null,null,null,null,{"$f":"IF(BN328=\"\",\"\",IF(RANK(BN328,$BN$10:$BN$1000)>$CH$1,\"\",IF(COUNTIF($BN$10:BN328,BN328)=1,Kh_RANK(BN328,$BN$10:$BN$1000),Kh_RANK(BN328,$BN$10:$BN$1000)&\" \"&\"مكرر\")))","v":""}]
[null,null,"طالب 320",null,null,null,null,null,null,null,null,null,null,null,null,null,null,null,null,null,null,null,null,null,null,null,null,null,null,null,null,null,null,null,null,null,null,null,null,null,null,null,null,null,null,null,null,null,null,null,null,null,null,null,null,null,null,null,null,null,null,null,null,null,null,null,null,null,null,null,null,null,null,null,null,null,"","له دور ثان في  :  ",null,null,null,null,null,null,null,{"$f":"IF(BN329=\"\",\"\",IF(RANK(BN329,$BN$10:$BN$1000)>$CH$1,\"\",IF(COUNTIF($BN$10:BN329,BN329)=1,Kh_RANK(BN329,$BN$10:$BN$1000),Kh_RANK(BN329,$BN$10:$BN$1000)&\" \"&\"مكرر\")))","v":""}]
[null,null,"طالب 321",null,null,null,null,null,null,null,null,null,null,null,null,null,null,null,null,null,null,null,null,null,null,null,null,null,null,null,null,null,null,null,null,null,null,null,null,null,null,null,null,null,null,null,null,null,null,null,null,null,null,null,null,null,null,null,null,null,null,null,null,null,null,null,null,null,null,null,null,null,null,null,null,null,"",{"$f":"IF($BX$4=\"الأول\",IF(BY330<>\"\", \"ناجح بتقدير\"&\" \"&BY330&\" \"&CH330,IF(COUNTBLANK($CA330:$CG330)=11,a,\"يحتاج إلى عناية في  :  \"&textjoin(\" و \",$CA330:$CG330))),IF($BX$4=\"الثاني\",IF(BY330<>\"\", \"ناجح بتقدير\"&\" \"&BY330&\" \"&CH330,IF(COUNTBLANK($CA330:$CG330)=11,a,\"له دور ثان في  :  \"&textjoin(\" و \",$CA330:$CG330)))))","v":"له دور ثان في  :  "},null,null,null,null,null,null,null,{"$f":"IF(BN330=\"\",\"\",IF(RANK(BN330,$BN$10:$BN$1000)>$CH$1,\"\",IF(COUNTIF($BN$10:BN330,BN330)=1,Kh_RANK(BN330,$BN$10:$BN$1000),Kh_RANK(BN330,$BN$10:$BN$1000)&\" \"&\"مكرر\")))","v":""}]
[null,null,"طالب 322",null,null,null,null,null,null,null,null,null,null,null,null,null,null,null,null,null,null,null,null,null,null,null,null,null,null,null,null,null,null,null,null,null,null,null,null,null,null,null,null,null,null,null,null,null,null,null,null,null,null,null,null,null,null,null,null,null,null,null,null,null,null,null,null,null,null,null,null,null,null,null,null,null,"","له دور ثان في  :  ",null,null,null,null,null,null,null,{"$f":"IF(BN331=\"\",\"\",IF(RANK(BN331,$BN$10:$BN$1000)>$CH$1,\"\",IF(COUNTIF($BN$10:BN331,BN331)=1,Kh_RANK(BN331,$BN$10:$BN$1000),Kh_RANK(BN331,$BN$10:$BN$1000)&\" \"&\"مكرر\")))","v":""}]
[null,null,"طالب 323",null,null,null,null,null,null,null,null,null,null,null,null,null,null,null,null,null,null,null,null,null,null,null,null,null,null,null,null,null,null,null,null,null,null,null,null,null,null,null,null,null,null,null,null,null,null,null,null,null,null,null,null,null,null,null,null,null,null,null,null,null,null,null,null,null,null,null,null,null,null,null,null,null,"","له دور ثان في  :  ",null,null,null,null,null,null,null,{"$f":"IF(BN332=\"\",\"\",IF(RANK(BN332,$BN$10:$BN$1000)>$CH$1,\"\",IF(COUNTIF($BN$10:BN332,BN332)=1,Kh_RANK(BN332,$BN$10:$BN$1000),Kh_RANK(BN332,$BN$10:$BN$1000)&\" \"&\"مكرر\")))","v":""}]
[null,null,"طالب 324",null,null,null,null,null,null,null,null,null,null,null,null,null,null,null,null,null,null,null,null,null,null,null,null,null,null,null,null,null,null,null,null,null,null,null,null,null,null,null,null,null,null,null,null,null,null,null,null,null,null,null,null,null,null,null,null,null,null,null,null,null,null,null,null,null,null,null,null,null,null,null,null,null,"","له دور ثان في  :  ",null,null,null,null,null,null,null,{"$f":"IF(BN333=\"\",\"\",IF(RANK(BN333,$BN$10:$BN$1000)>$CH$1,\"\",IF(COUNTIF($BN$10:BN333,BN333)=1,Kh_RANK(BN333,$BN$10:$BN$1000),Kh_RANK(BN333,$BN$10:$BN$1000)&\" \"&\"مكرر\")))","v":""}]
[null,null,"طالب 325",null,null,null,null,null,null,null,null,null,null,null,null,null,null,null,null,null,null,null,null,null,null,null,null,null,null,null,null,null,null,null,null,null,null,null,null,null,null,null,null,null,null,null,null,null,null,null,null,null,null,null,null,null,null,null,null,null,null,null,null,null,null,null,null,null,null,null,null,null,null,null,null,null,"","له دور ثان في  :  ",null,null,null,null,null,null,null,{"$f":"IF(BN334=\"\",\"\",IF(RANK(BN334,$BN$10:$BN$1000)>$CH$1,\"\",IF(COUNTIF($BN$10:BN334,BN334)=1,Kh_RANK(BN334,$BN$10:$BN$1000),Kh_RANK(BN334,$BN$10:$BN$1000)&\" \"&\"مكرر\")))","v":""}]
[null,null,"طالب 326",null,null,null,null,null,null,null,null,null,null,null,null,null,null,null,null,null,null,null,null,null,null,null,null,null,null,null,null,null,null,null,null,null,null,null,null,null,null,null,null,null,null,null,null,null,null,null,null,null,null,null,null,null,null,null,null,null,null,null,null,null,null,null,null,null,null,null,null,null,null,null,null,null,"","له دور ثان في  :  ",null,null,null,null,null,null,null,{"$f":"IF(BN335=\"\",\"\",IF(RANK(BN335,$BN$10:$BN$1000)>$CH$1,\"\",IF(COUNTIF($BN$10:BN335,BN335)=1,Kh_RANK(BN335,$BN$10:$BN$1000),Kh_RANK(BN335,$BN$10:$BN$1000)&\" \"&\"مكرر\")))","v":""}]
[null,null,"طالب 327",null,null,null,null,null,null,null,null,null,null,null,null,null,null,null,null,null,null,null,null,null,null,null,null,null,null,null,null,null,null,null,null,null,null,null,null,null,null,null,null,null,null,null,null,null,null,null,null,null,null,null,null,null,null,null,null,null,null,null,null,null,null,null,null,null,null,null,null,null,null,null,null,null,"","له دور ثان في  :  ",null,null,null,null,null,null,null,{"$f":"IF(BN336=\"\",\"\",IF(RANK(BN336,$BN$10:$BN$1000)>$CH$1,\"\",IF(COUNTIF($BN$10:BN336,BN336)=1,Kh_RANK(BN336,$BN$10:$BN$1000),Kh_RANK(BN336,$BN$10:$BN$1000)&\" \"&\"مكرر\")))","v":""}]
[null,null,"طالب 328",null,null,null,null,null,null,null,null,null,null,null,null,null,null,null,null,null,null,null,null,null,null,null,null,null,null,null,null,null,null,null,null,null,null,null,null,null,null,null,null,null,null,null,null,null,null,null,null,null,null,null,null,null,null,null,null,null,null,null,null,null,null,null,null,null,null,null,null,null,null,null,null,null,"","له دور ثان في  :  ",null,null,null,null,null,null,null,{"$f":"IF(BN337=\"\",\"\",IF(RANK(BN337,$BN$10:$BN$1000)>$CH$1,\"\",IF(COUNTIF($BN$10:BN337,BN337)=1,Kh_RANK(BN337,$BN$10:$BN$1000),Kh_RANK(BN337,$BN$10:$BN$1000)&\" \"&\"مكرر\")))","v":""}]
[null,null,"طالب 329",null,null,null,null,null,null,null,null,null,null,null,null,null,null,null,null,null,null,null,null,null,null,null,null,null,null,null,null,null,null,null,null,null,null,null,null,null,null,null,null,null,null,null,null,null,null,null,null,null,null,null,null,null,null,null,null,null,null,null,null,null,null,null,null,null,null,null,null,null,null,null,null,null,"","له دور ثان في  :  ",null,null,null,null,null,null,null,{"$f":"IF(BN338=\"\",\"\",IF(RANK(BN338,$BN$10:$BN$1000)>$CH$1,\"\",IF(COUNTIF($BN$10:BN338,BN338)=1,Kh_RANK(BN338,$BN$10:$BN$1000),Kh_RANK(BN338,$BN$10:$BN$1000)&\" \"&\"مكرر\")))","v":""}]
[null,null,"طالب 330",null,null,null,null,null,null,null,null,null,null,null,null,null,null,null,null,null,null,null,null,null,null,null,null,null,null,null,null,null,null,null,null,null,null,null,null,null,null,null,null,null,null,null,null,null,null,null,null,null,null,null,null,null,null,null,null,null,null,null,null,null,null,null,null,null,null,null,null,null,null,null,null,null,"","له دور ثان في  :  ",null,null,null,null,null,null,null,{"$f":"IF(BN339=\"\",\"\",IF(RANK(BN339,$BN$10:$BN$1000)>$CH$1,\"\",IF(COUNTIF($BN$10:BN339,BN339)=1,Kh_RANK(BN339,$BN$10:$BN$1000),Kh_RANK(BN339,$BN$10:$BN$1000)&\" \"&\"مكرر\")))","v":""}]
[null,null,"طالب 331",null,null,null,null,null,null,null,null,null,null,null,null,null,null,null,null,null,null,null,null,null,null,null,null,null,null,null,null,null,null,null,null,null,null,null,null,null,null,null,null,null,null,null,null,null,null,null,null,null,null,null,null,null,null,null,null,null,null,null,null,null,null,null,null,null,null,null,null,null,null,null,null,null,"","له دور ثان في  :  ",null,null,null,null,null,null,null,{"$f":"IF(BN340=\"\",\"\",IF(RANK(BN340,$BN$10:$BN$1000)>$CH$1,\"\",IF(COUNTIF($BN$10:BN340,BN340)=1,Kh_RANK(BN340,$BN$10:$BN$1000),Kh_RANK(BN340,$BN$10:$BN$1000)&\" \"&\"مكرر\")))","v":""}]
[null,null,"طالب 332",null,null,null,null,null,null,null,null,null,null,null,null,null,null,null,null,null,null,null,null,null,null,null,null,null,null,null,null,null,null,null,null,null,null,null,null,null,null,null,null,null,null,null,null,null,null,null,null,null,null,null,null,null,null,null,null,null,null,null,null,null,null,null,null,null,null,null,null,null,null,null,null,null,"","له دور ثان في  :  ",null,null,null,null,null,null,null,{"$f":"IF(BN341=\"\",\"\",IF(RANK(BN341,$BN$10:$BN$1000)>$CH$1,\"\",IF(COUNTIF($BN$10:BN341,BN341)=1,Kh_RANK(BN341,$BN$10:$BN$1000),Kh_RANK(BN341,$BN$10:$BN$1000)&\" \"&\"مكرر\")))","v":""}]
[null,null,"طالب 333",null,null,null,null,null,null,null,null,null,null,null,null,null,null,null,null,null,null,null,null,null,null,null,null,null,null,null,null,null,null,null,null,null,null,null,null,null,null,null,null,null,null,null,null,null,null,null,null,null,null,null,null,null,null,null,null,null,null,null,null,null,null,null,null,null,null,null,null,null,null,null,null,null,"","له دور ثان في  :  ",null,null,null,null,null,null,null,{"$f":"IF(BN342=\"\",\"\",IF(RANK(BN342,$BN$10:$BN$1000)>$CH$1,\"\",IF(COUNTIF($BN$10:BN342,BN342)=1,Kh_RANK(BN342,$BN$10:$BN$1000),Kh_RANK(BN342,$BN$10:$BN$1000)&\" \"&\"مكرر\")))","v":""}]
[null,null,"طالب 334",null,null,null,null,null,null,null,null,null,null,null,null,null,null,null,null,null,null,null,null,null,null,null,null,null,null,null,null,null,null,null,null,null,null,null,null,null,null,null,null,null,null,null,null,null,null,null,null,null,null,null,null,null,null,null,null,null,null,null,null,null,null,null,null,null,null,null,null,null,null,null,null,null,"","له دور ثان في  :  ",null,null,null,null,null,null,null,{"$f":"IF(BN343=\"\",\"\",IF(RANK(BN343,$BN$10:$BN$1000)>$CH$1,\"\",IF(COUNTIF($BN$10:BN343,BN343)=1,Kh_RANK(BN343,$BN$10:$BN$1000),Kh_RANK(BN343,$BN$10:$BN$1000)&\" \"&\"مكرر\")))","v":""}]
[null,null,"طالب 335",null,null,null,null,null,null,null,null,null,null,null,null,null,null,null,null,null,null,null,null,null,null,null,null,null,null,null,null,null,null,null,null,null,null,null,null,null,null,null,null,null,null,null,null,null,null,null,null,null,null,null,null,null,null,null,null,null,null,null,null,null,null,null,null,null,null,null,null,null,null,null,null,null,"","له دور ثان في  :  ",null,null,null,null,null,null,null,{"$f":"IF(BN344=\"\",\"\",IF(RANK(BN344,$BN$10:$BN$1000)>$CH$1,\"\",IF(COUNTIF($BN$10:BN344,BN344)=1,Kh_RANK(BN344,$BN$10:$BN$1000),Kh_RANK(BN344,$BN$10:$BN$1000)&\" \"&\"مكرر\")))","v":""}]
[null,null,"طالب 336",null,null,null,null,null,null,null,null,null,null,null,null,null,null,null,null,null,null,null,null,null,null,null,null,null,null,null,null,null,null,null,null,null,null,null,null,null,null,null,null,null,null,null,null,null,null,null,null,null,null,null,null,null,null,null,null,null,null,null,null,null,null,null,null,null,null,null,null,null,null,null,null,null,"","له دور ثان في  :  ",null,null,null,null,null,null,null,{"$f":"IF(BN345=\"\",\"\",IF(RANK(BN345,$BN$10:$BN$1000)>$CH$1,\"\",IF(COUNTIF($BN$10:BN345,BN345)=1,Kh_RANK(BN345,$BN$10:$BN$1000),Kh_RANK(BN345,$BN$10:$BN$1000)&\" \"&\"مكرر\")))","v":""}]
[null,null,"طالب 337",null,null,null,null,null,null,null,null,null,null,null,null,null,null,null,null,null,null,null,null,null,null,null,null,null,null,null,null,null,null,null,null,null,null,null,null,null,null,null,null,null,null,null,null,null,null,null,null,null,null,null,null,null,null,null,null,null,null,null,null,null,null,null,null,null,null,null,null,null,null,null,null,null,"","له دور ثان في  :  ",null,null,null,null,null,null,null,{"$f":"IF(BN346=\"\",\"\",IF(RANK(BN346,$BN$10:$BN$1000)>$CH$1,\"\",IF(COUNTIF($BN$10:BN346,BN346)=1,Kh_RANK(BN346,$BN$10:$BN$1000),Kh_RANK(BN346,$BN$10:$BN$1000)&\" \"&\"مكرر\")))","v":""}]
[null,null,"طالب 338",null,null,null,null,null,null,null,null,null,null,null,null,null,null,null,null,null,null,null,null,null,null,null,null,null,null,null,null,null,null,null,null,null,null,null,null,null,null,null,null,null,null,null,null,null,null,null,null,null,null,null,null,null,null,null,null,null,null,null,null,null,null,null,null,null,null,null,null,null,null,null,null,null,"","له دور ثان في  :  ",null,null,null,null,null,null,null,{"$f":"IF(BN347=\"\",\"\",IF(RANK(BN347,$BN$10:$BN$1000)>$CH$1,\"\",IF(COUNTIF($BN$10:BN347,BN347)=1,Kh_RANK(BN347,$BN$10:$BN$1000),Kh_RANK(BN347,$BN$10:$BN$1000)&\" \"&\"مكرر\")))","v":""}]
[null,null,"طالب 339",null,null,null,null,null,null,null,null,null,null,null,null,null,null,null,null,null,null,null,null,null,null,null,null,null,null,null,null,null,null,null,null,null,null,null,null,null,null,null,null,null,null,null,null,null,null,null,null,null,null,null,null,null,null,null,null,null,null,null,null,null,null,null,null,null,null,null,null,null,null,null,null,null,"","له دور ثان في  :  ",null,null,null,null,null,null,null,{"$f":"IF(BN348=\"\",\"\",IF(RANK(BN348,$BN$10:$BN$1000)>$CH$1,\"\",IF(COUNTIF($BN$10:BN348,BN348)=1,Kh_RANK(BN348,$BN$10:$BN$1000),Kh_RANK(BN348,$BN$10:$BN$1000)&\" \"&\"مكرر\")))","v":""}]
[null,null,"طالب 340",null,null,null,null,null,null,null,null,null,null,null,null,null,null,null,null,null,null,null,null,null,null,null,null,null,null,null,null,null,null,null,null,null,null,null,null,null,null,null,null,null,null,null,null,null,null,null,null,null,null,null,null,null,null,null,null,null,null,null,null,null,null,null,null,null,null,null,null,null,null,null,null,null,"","له دور ثان في  :  ",null,null,null,null,null,null,null,{"$f":"IF(BN349=\"\",\"\",IF(RANK(BN349,$BN$10:$BN$1000)>$CH$1,\"\",IF(COUNTIF($BN$10:BN349,BN349)=1,Kh_RANK(BN349,$BN$10:$BN$1000),Kh_RANK(BN349,$BN$10:$BN$1000)&\" \"&\"مكرر\")))","v":""}]
[null,null,"طالب 341",null,null,null,null,null,null,null,null,null,null,null,null,null,null,null,null,null,null,null,null,null,null,null,null,null,null,null,null,null,null,null,null,null,null,null,null,null,null,null,null,null,null,null,null,null,null,null,null,null,null,null,null,null,null,null,null,null,null,null,null,null,null,null,null,null,null,null,null,null,null,null,null,null,"","له دور ثان في  :  ",null,null,null,null,null,null,null,{"$f":"IF(BN350=\"\",\"\",IF(RANK(BN350,$BN$10:$BN$1000)>$CH$1,\"\",IF(COUNTIF($BN$10:BN350,BN350)=1,Kh_RANK(BN350,$BN$10:$BN$1000),Kh_RANK(BN350,$BN$10:$BN$1000)&\" \"&\"مكرر\")))","v":""}]
[null,null,"طالب 342",null,null,null,null,null,null,null,null,null,null,null,null,null,null,null,null,null,null,null,null,null,null,null,null,null,null,null,null,null,null,null,null,null,null,null,null,null,null,null,null,null,null,null,null,null,null,null,null,null,null,null,null,null,null,null,null,null,null,null,null,null,null,null,null,null,null,null,null,null,null,null,null,null,"","له دور ثان في  :  ",null,null,null,null,null,null,null,{"$f":"IF(BN351=\"\",\"\",IF(RANK(BN351,$BN$10:$BN$1000)>$CH$1,\"\",IF(COUNTIF($BN$10:BN351,BN351)=1,Kh_RANK(BN351,$BN$10:$BN$1000),Kh_RANK(BN351,$BN$10:$BN$1000)&\" \"&\"مكرر\")))","v":""}]
[null,null,"طالب 343",null,null,null,null,null,null,null,null,null,null,null,null,null,null,null,null,null,null,null,null,null,null,null,null,null,null,null,null,null,null,null,null,null,null,null,null,null,null,null,null,null,null,null,null,null,null,null,null,null,null,null,null,null,null,null,null,null,null,null,null,null,null,null,null,null,null,null,null,null,null,null,null,null,{"$f":"IF(BX352=\"\",\"\",evaltion(BX352))","v":""},"له دور ثان في  :  ",null,null,null,null,null,null,null,{"$f":"IF(BN352=\"\",\"\",IF(RANK(BN352,$BN$10:$BN$1000)>$CH$1,\"\",IF(COUNTIF($BN$10:BN352,BN352)=1,Kh_RANK(BN352,$BN$10:$BN$1000),Kh_RANK(BN352,$BN$10:$BN$1000)&\" \"&\"مكرر\")))","v":""}]
[null,null,"طالب 344",null,null,null,null,null,null,null,null,null,null,null,null,null,null,null,null,null,null,null,null,null,null,null,null,null,null,null,null,null,null,null,null,null,null,null,null,null,null,null,null,null,null,null,null,null,null,null,null,null,null,null,null,null,null,null,null,null,null,null,null,null,null,null,null,null,null,null,null,null,null,null,null,null,"","له دور ثان في  :  ",null,null,null,null,null,null,null,{"$f":"IF(BN353=\"\",\"\",IF(RANK(BN353,$BN$10:$BN$1000)>$CH$1,\"\",IF(COUNTIF($BN$10:BN353,BN353)=1,Kh_RANK(BN353,$BN$10:$BN$1000),Kh_RANK(BN353,$BN$10:$BN$1000)&\" \"&\"مكرر\")))","v":""}]
[null,null,"طالب 345",null,null,null,null,null,null,null,null,null,null,null,null,null,null,null,null,null,null,null,null,null,null,null,null,null,null,null,null,null,null,null,null,null,null,null,null,null,null,null,null,null,null,null,null,null,null,null,null,null,null,null,null,null,null,null,null,null,null,null,null,null,null,null,null,null,null,null,null,null,null,null,null,null,"","له دور ثان في  :  ",null,null,null,null,null,null,null,{"$f":"IF(BN354=\"\",\"\",IF(RANK(BN354,$BN$10:$BN$1000)>$CH$1,\"\",IF(COUNTIF($BN$10:BN354,BN354)=1,Kh_RANK(BN354,$BN$10:$BN$1000),Kh_RANK(BN354,$BN$10:$BN$1000)&\" \"&\"مكرر\")))","v":""}]
[null,null,"طالب 346",null,null,null,null,null,null,null,null,null,null,null,null,null,null,null,null,null,null,null,null,null,null,null,null,null,null,null,null,null,null,null,null,null,null,null,null,null,null,null,null,null,null,null,null,null,null,null,null,null,null,null,null,null,null,null,null,null,null,null,null,null,null,null,null,null,null,null,null,null,null,null,null,null,"","له دور ثان في  :  ",null,null,null,null,null,null,null,{"$f":"IF(BN355=\"\",\"\",IF(RANK(BN355,$BN$10:$BN$1000)>$CH$1,\"\",IF(COUNTIF($BN$10:BN355,BN355)=1,Kh_RANK(BN355,$BN$10:$BN$1000),Kh_RANK(BN355,$BN$10:$BN$1000)&\" \"&\"مكرر\")))","v":""}]
[null,null,"طالب 347",null,null,null,null,null,null,null,null,null,null,null,null,null,null,null,null,null,null,null,null,null,null,null,null,null,null,null,null,null,null,null,null,null,null,null,null,null,null,null,null,null,null,null,null,null,null,null,null,null,null,null,null,null,null,null,null,null,null,null,null,null,null,null,null,null,null,null,null,null,null,null,null,null,"","له دور ثان في  :  ",null,null,null,null,null,null,null,{"$f":"IF(BN356=\"\",\"\",IF(RANK(BN356,$BN$10:$BN$1000)>$CH$1,\"\",IF(COUNTIF($BN$10:BN356,BN356)=1,Kh_RANK(BN356,$BN$10:$BN$1000),Kh_RANK(BN356,$BN$10:$BN$1000)&\" \"&\"مكرر\")))","v":""}]
[null,null,"طالب 348",null,null,null,null,null,null,null,null,null,null,null,null,null,null,null,null,null,null,null,null,null,null,null,null,null,null,null,null,null,null,null,null,null,null,null,null,null,null,null,null,null,null,null,null,null,null,null,null,null,null,null,null,null,null,null,null,null,null,null,null,null,null,null,null,null,null,null,null,null,null,null,null,null,"","له دور ثان في  :  ",null,null,null,null,null,null,null,{"$f":"IF(BN357=\"\",\"\",IF(RANK(BN357,$BN$10:$BN$1000)>$CH$1,\"\",IF(COUNTIF($BN$10:BN357,BN357)=1,Kh_RANK(BN357,$BN$10:$BN$1000),Kh_RANK(BN357,$BN$10:$BN$1000)&\" \"&\"مكرر\")))","v":""}]
[null,null,"طالب 349",null,null,null,null,null,null,null,null,null,null,null,null,null,null,null,null,null,null,null,null,null,null,null,null,null,null,null,null,null,null,null,null,null,null,null,null,null,null,null,null,null,null,null,null,null,null,null,null,null,null,null,null,null,null,null,null,null,null,null,null,null,null,null,null,null,null,null,null,null,null,null,null,null,"","له دور ثان في  :  ",null,null,null,null,null,null,null,{"$f":"IF(BN358=\"\",\"\",IF(RANK(BN358,$BN$10:$BN$1000)>$CH$1,\"\",IF(COUNTIF($BN$10:BN358,BN358)=1,Kh_RANK(BN358,$BN$10:$BN$1000),Kh_RANK(BN358,$BN$10:$BN$1000)&\" \"&\"مكرر\")))","v":""}]
[null,null,"طالب 350",null,null,null,null,null,null,null,null,null,null,null,null,null,null,null,null,null,null,null,null,null,null,null,null,null,null,null,null,null,null,null,null,null,null,null,null,null,null,null,null,null,null,null,null,null,null,null,null,null,null,null,null,null,null,null,null,null,null,null,null,null,null,null,null,null,null,null,null,null,null,null,null,null,"","له دور ثان في  :  ",null,null,null,null,null,null,null,{"$f":"IF(BN359=\"\",\"\",IF(RANK(BN359,$BN$10:$BN$1000)>$CH$1,\"\",IF(COUNTIF($BN$10:BN359,BN359)=1,Kh_RANK(BN359,$BN$10:$BN$1000),Kh_RANK(BN359,$BN$10:$BN$1000)&\" \"&\"مكرر\")))","v":""}]
[null,null,"طالب 351",null,null,null,null,null,null,null,null,null,null,null,null,null,null,null,null,null,null,null,null,null,null,null,null,null,null,null,null,null,null,null,null,null,null,null,null,null,null,null,null,null,null,null,null,null,null,null,null,null,null,null,null,null,null,null,null,null,null,null,null,null,null,null,null,null,null,null,null,null,null,null,null,null,"","له دور ثان في  :  ",null,null,null,null,null,null,null,{"$f":"IF(BN360=\"\",\"\",IF(RANK(BN360,$BN$10:$BN$1000)>$CH$1,\"\",IF(COUNTIF($BN$10:BN360,BN360)=1,Kh_RANK(BN360,$BN$10:$BN$1000),Kh_RANK(BN360,$BN$10:$BN$1000)&\" \"&\"مكرر\")))","v":""}]
[null,null,"طالب 352",null,null,null,null,null,null,null,null,null,null,null,null,null,null,null,null,null,null,null,null,null,null,null,null,null,null,null,null,null,null,null,null,null,null,null,null,null,null,null,null,null,null,null,null,null,null,null,null,null,null,null,null,null,null,null,null,null,null,null,null,null,null,null,null,null,null,null,null,null,null,null,null,null,"","له دور ثان في  :  ",null,null,null,null,null,null,null,{"$f":"IF(BN361=\"\",\"\",IF(RANK(BN361,$BN$10:$BN$1000)>$CH$1,\"\",IF(COUNTIF($BN$10:BN361,BN361)=1,Kh_RANK(BN361,$BN$10:$BN$1000),Kh_RANK(BN361,$BN$10:$BN$1000)&\" \"&\"مكرر\")))","v":""}]
[null,null,"طالب 353",null,null,null,null,null,null,null,null,null,null,null,null,null,null,null,null,null,null,null,null,null,null,null,null,null,null,null,null,null,null,null,null,null,null,null,null,null,null,null,null,null,null,null,null,null,null,null,null,null,null,null,null,null,null,null,null,null,null,null,null,null,null,null,null,null,null,null,null,null,null,null,null,null,"","له دور ثان في  :  ",null,null,null,null,null,null,null,{"$f":"IF(BN362=\"\",\"\",IF(RANK(BN362,$BN$10:$BN$1000)>$CH$1,\"\",IF(COUNTIF($BN$10:BN362,BN362)=1,Kh_RANK(BN362,$BN$10:$BN$1000),Kh_RANK(BN362,$BN$10:$BN$1000)&\" \"&\"مكرر\")))","v":""}]
[null,null,"طالب 354",null,null,null,null,null,null,null,null,null,null,null,null,null,null,null,null,null,null,null,null,null,null,null,null,null,null,null,null,null,null,null,null,null,null,null,null,null,null,null,null,null,null,null,null,null,null,null,null,null,null,null,null,null,null,null,null,null,null,null,null,null,null,null,null,null,null,null,null,null,null,null,null,null,"","له دور ثان في  :  ",null,null,null,null,null,null,null,{"$f":"IF(BN363=\"\",\"\",IF(RANK(BN363,$BN$10:$BN$1000)>$CH$1,\"\",IF(COUNTIF($BN$10:BN363,BN363)=1,Kh_RANK(BN363,$BN$10:$BN$1000),Kh_RANK(BN363,$BN$10:$BN$1000)&\" \"&\"مكرر\")))","v":""}]
[null,null,"طالب 355",null,null,null,null,null,null,null,null,null,null,null,null,null,null,null,null,null,null,null,null,null,null,null,null,null,null,null,null,null,null,null,null,null,null,null,null,null,null,null,null,null,null,null,null,null,null,null,null,null,null,null,null,null,null,null,null,null,null,null,null,null,null,null,null,null,null,null,null,null,null,null,null,null,"","له دور ثان في  :  ",null,null,null,null,null,null,null,{"$f":"IF(BN364=\"\",\"\",IF(RANK(BN364,$BN$10:$BN$1000)>$CH$1,\"\",IF(COUNTIF($BN$10:BN364,BN364)=1,Kh_RANK(BN364,$BN$10:$BN$1000),Kh_RANK(BN364,$BN$10:$BN$1000)&\" \"&\"مكرر\")))","v":""}]
[null,null,"طالب 356",null,null,null,null,null,null,null,null,null,null,null,null,null,null,null,null,null,null,null,null,null,null,null,null,null,null,null,null,null,null,null,null,null,null,null,null,null,null,null,null,null,null,null,null,null,null,null,null,null,null,null,null,null,null,null,null,null,null,null,null,null,null,null,null,null,null,null,null,null,null,null,null,null,"","له دور ثان في  :  ",null,null,null,null,null,null,null,{"$f":"IF(BN365=\"\",\"\",IF(RANK(BN365,$BN$10:$BN$1000)>$CH$1,\"\",IF(COUNTIF($BN$10:BN365,BN365)=1,Kh_RANK(BN365,$BN$10:$BN$1000),Kh_RANK(BN365,$BN$10:$BN$1000)&\" \"&\"مكرر\")))","v":""}]
[null,null,"طالب 357",null,null,null,null,null,null,null,null,null,null,null,null,null,null,null,null,null,null,null,null,null,null,null,null,null,null,null,null,null,null,null,null,null,null,null,null,null,null,null,null,null,null,null,null,null,null,null,null,null,null,null,null,null,null,null,null,null,null,null,null,null,null,null,null,null,null,null,null,null,null,null,null,null,"","له دور ثان في  :  ",null,null,null,null,null,null,null,{"$f":"IF(BN366=\"\",\"\",IF(RANK(BN366,$BN$10:$BN$1000)>$CH$1,\"\",IF(COUNTIF($BN$10:BN366,BN366)=1,Kh_RANK(BN366,$BN$10:$BN$1000),Kh_RANK(BN366,$BN$10:$BN$1000)&\" \"&\"مكرر\")))","v":""}]
[null,null,"طالب 358",null,null,null,null,null,null,null,null,null,null,null,null,null,null,null,null,null,null,null,null,null,null,null,null,null,null,null,null,null,null,null,null,null,null,null,null,null,null,null,null,null,null,null,null,null,null,null,null,null,null,null,null,null,null,null,null,null,null,null,null,null,null,null,null,null,null,null,null,null,null,null,null,null,"","له دور ثان في  :  ",null,null,null,null,null,null,null,{"$f":"IF(BN367=\"\",\"\",IF(RANK(BN367,$BN$10:$BN$1000)>$CH$1,\"\",IF(COUNTIF($BN$10:BN367,BN367)=1,Kh_RANK(BN367,$BN$10:$BN$1000),Kh_RANK(BN367,$BN$10:$BN$1000)&\" \"&\"مكرر\")))","v":""}]
[null,null,"طالب 359",null,null,null,null,null,null,null,null,null,null,null,null,null,null,null,null,null,null,null,null,null,null,null,null,null,null,null,null,null,null,null,null,null,null,null,null,null,null,null,null,null,null,null,null,null,null,null,null,null,null,null,null,null,null,null,null,null,null,null,null,null,null,null,null,null,null,null,null,null,null,null,null,null,"","له دور ثان في  :  ",null,null,null,null,null,null,null,{"$f":"IF(BN368=\"\",\"\",IF(RANK(BN368,$BN$10:$BN$1000)>$CH$1,\"\",IF(COUNTIF($BN$10:BN368,BN368)=1,Kh_RANK(BN368,$BN$10:$BN$1000),Kh_RANK(BN368,$BN$10:$BN$1000)&\" \"&\"مكرر\")))","v":""}]
[null,null,"طالب 360",null,null,null,null,null,null,null,null,null,null,null,null,null,null,null,null,null,null,null,null,null,null,null,null,null,null,null,null,null,null,null,null,null,null,null,null,null,null,null,null,null,null,null,null,null,null,null,null,null,null,null,null,null,null,null,null,null,null,null,null,null,null,null,null,null,null,null,null,null,null,null,null,null,"","له دور ثان في  :  ",null,null,null,null,null,null,null,{"$f":"IF(BN369=\"\",\"\",IF(RANK(BN369,$BN$10:$BN$1000)>$CH$1,\"\",IF(COUNTIF($BN$10:BN369,BN369)=1,Kh_RANK(BN369,$BN$10:$BN$1000),Kh_RANK(BN369,$BN$10:$BN$1000)&\" \"&\"مكرر\")))","v":""}]
[null,null,"طالب 361",null,null,null,null,null,null,null,null,null,null,null,null,null,null,null,null,null,null,null,null,null,null,null,null,null,null,null,null,null,null,null,null,null,null,null,null,null,null,null,null,null,null,null,null,null,null,null,null,null,null,null,null,null,null,null,null,null,null,null,null,null,null,null,null,null,null,null,null,null,null,null,null,null,"","له دور ثان في  :  ",null,null,null,null,null,null,null,{"$f":"IF(BN370=\"\",\"\",IF(RANK(BN370,$BN$10:$BN$1000)>$CH$1,\"\",IF(COUNTIF($BN$10:BN370,BN370)=1,Kh_RANK(BN370,$BN$10:$BN$1000),Kh_RANK(BN370,$BN$10:$BN$1000)&\" \"&\"مكرر\")))","v":""}]
[null,null,"طالب 362",null,null,null,null,null,null,null,null,null,null,null,null,null,null,null,null,null,null,null,null,null,null,null,null,null,null,null,null,null,null,null,null,null,null,null,null,null,null,null,null,null,null,null,null,null,null,null,null,null,null,null,null,null,null,null,null,null,null,null,null,null,null,null,null,null,null,null,null,null,null,null,null,null,"","له دور ثان في  :  ",null,null,null,null,null,null,null,{"$f":"IF(BN371=\"\",\"\",IF(RANK(BN371,$BN$10:$BN$1000)>$CH$1,\"\",IF(COUNTIF($BN$10:BN371,BN371)=1,Kh_RANK(BN371,$BN$10:$BN$1000),Kh_RANK(BN371,$BN$10:$BN$1000)&\" \"&\"مكرر\")))","v":""}]
[null,null,"طالب 363",null,null,null,null,null,null,null,null,null,null,null,null,null,null,null,null,null,null,null,null,null,null,null,null,null,null,null,null,null,null,null,null,null,null,null,null,null,null,null,null,null,null,null,null,null,null,null,null,null,null,null,null,null,null,null,null,null,null,null,null,null,null,null,null,null,null,null,null,null,null,null,null,null,"","له دور ثان في  :  ",null,null,null,null,null,null,null,{"$f":"IF(BN372=\"\",\"\",IF(RANK(BN372,$BN$10:$BN$1000)>$CH$1,\"\",IF(COUNTIF($BN$10:BN372,BN372)=1,Kh_RANK(BN372,$BN$10:$BN$1000),Kh_RANK(BN372,$BN$10:$BN$1000)&\" \"&\"مكرر\")))","v":""}]
[null,null,"طالب 364",null,null,null,null,null,null,null,null,null,null,null,null,null,null,null,null,null,null,null,null,null,null,null,null,null,null,null,null,null,null,null,null,null,null,null,null,null,null,null,null,null,null,null,null,null,null,null,null,null,null,null,null,null,null,null,null,null,null,null,null,null,null,null,null,null,null,null,null,null,null,null,null,null,"","له دور ثان في  :  ",null,null,null,null,null,null,null,{"$f":"IF(BN373=\"\",\"\",IF(RANK(BN373,$BN$10:$BN$1000)>$CH$1,\"\",IF(COUNTIF($BN$10:BN373,BN373)=1,Kh_RANK(BN373,$BN$10:$BN$1000),Kh_RANK(BN373,$BN$10:$BN$1000)&\" \"&\"مكرر\")))","v":""}]
[null,null,"طالب 365",null,null,null,null,null,null,null,null,null,null,null,null,null,null,null,null,null,null,null,null,null,null,null,null,null,null,null,null,null,null,null,null,null,null,null,null,null,null,null,null,null,null,null,null,null,null,null,null,null,null,null,null,null,null,null,null,null,null,null,null,null,null,null,null,null,null,null,null,null,null,null,null,null,"","له دور ثان في  :  ",null,null,null,null,null,null,null,{"$f":"IF(BN374=\"\",\"\",IF(RANK(BN374,$BN$10:$BN$1000)>$CH$1,\"\",IF(COUNTIF($BN$10:BN374,BN374)=1,Kh_RANK(BN374,$BN$10:$BN$1000),Kh_RANK(BN374,$BN$10:$BN$1000)&\" \"&\"مكرر\")))","v":""}]
[null,null,"طالب 366",null,null,null,null,null,null,null,null,null,null,null,null,null,null,null,null,null,null,null,null,null,null,null,null,null,null,null,null,null,null,null,null,null,null,null,null,null,null,null,null,null,null,null,null,null,null,null,null,null,null,null,null,null,null,null,null,null,null,null,null,null,null,null,null,null,null,null,null,null,null,null,null,null,"","له دور ثان في  :  ",null,null,null,null,null,null,null,{"$f":"IF(BN375=\"\",\"\",IF(RANK(BN375,$BN$10:$BN$1000)>$CH$1,\"\",IF(COUNTIF($BN$10:BN375,BN375)=1,Kh_RANK(BN375,$BN$10:$BN$1000),Kh_RANK(BN375,$BN$10:$BN$1000)&\" \"&\"مكرر\")))","v":""}]
[null,null,"طالب 367",null,null,null,null,null,null,null,null,null,null,null,null,null,null,null,null,null,null,null,null,null,null,null,null,null,null,null,null,null,null,null,null,null,null,null,null,null,null,null,null,null,null,null,null,null,null,null,null,null,null,null,null,null,null,null,null,null,null,null,null,null,null,null,null,null,null,null,null,null,null,null,null,null,"","له دور ثان في  :  ",null,null,null,null,null,null,null,{"$f":"IF(BN376=\"\",\"\",IF(RANK(BN376,$BN$10:$BN$1000)>$CH$1,\"\",IF(COUNTIF($BN$10:BN376,BN376)=1,Kh_RANK(BN376,$BN$10:$BN$1000),Kh_RANK(BN376,$BN$10:$BN$1000)&\" \"&\"مكرر\")))","v":""}]
[null,null,"طالب 368",null,null,null,null,null,null,null,null,null,null,null,null,null,null,null,null,null,null,null,null,null,null,null,null,null,null,null,null,null,null,null,null,null,null,null,null,null,null,null,null,null,null,null,null,null,null,null,null,null,null,null,null,null,null,null,null,null,null,null,null,null,null,null,null,null,null,null,null,null,null,null,null,null,"","له دور ثان في  :  ",null,null,null,null,null,null,null,{"$f":"IF(BN377=\"\",\"\",IF(RANK(BN377,$BN$10:$BN$1000)>$CH$1,\"\",IF(COUNTIF($BN$10:BN377,BN377)=1,Kh_RANK(BN377,$BN$10:$BN$1000),Kh_RANK(BN377,$BN$10:$BN$1000)&\" \"&\"مكرر\")))","v":""}]
[null,null,"طالب 369",null,null,null,null,null,null,null,null,null,null,null,null,null,null,null,null,null,null,null,null,null,null,null,null,null,null,null,null,null,null,null,null,null,null,null,null,null,null,null,null,null,null,null,null,null,null,null,null,null,null,null,null,null,null,null,null,null,null,null,null,null,null,null,null,null,null,null,null,null,null,null,null,null,"","له دور ثان في  :  ",null,null,null,null,null,null,null,{"$f":"IF(BN378=\"\",\"\",IF(RANK(BN378,$BN$10:$BN$1000)>$CH$1,\"\",IF(COUNTIF($BN$10:BN378,BN378)=1,Kh_RANK(BN378,$BN$10:$BN$1000),Kh_RANK(BN378,$BN$10:$BN$1000)&\" \"&\"مكرر\")))","v":""}]
[null,null,"طالب 370",null,null,null,null,null,null,null,null,null,null,null,null,null,null,null,null,null,null,null,null,null,null,null,null,null,null,null,null,null,null,null,null,null,null,null,null,null,null,null,null,null,null,null,null,null,null,null,null,null,null,null,null,null,null,null,null,null,null,null,null,null,null,null,null,null,null,null,null,null,null,null,null,null,"","له دور ثان في  :  ",null,null,null,null,null,null,null,{"$f":"IF(BN379=\"\",\"\",IF(RANK(BN379,$BN$10:$BN$1000)>$CH$1,\"\",IF(COUNTIF($BN$10:BN379,BN379)=1,Kh_RANK(BN379,$BN$10:$BN$1000),Kh_RANK(BN379,$BN$10:$BN$1000)&\" \"&\"مكرر\")))","v":""}]
[null,null,"طالب 371",null,null,null,null,null,null,null,null,null,null,null,null,null,null,null,null,null,null,null,null,null,null,null,null,null,null,null,null,null,null,null,null,null,null,null,null,null,null,null,null,null,null,null,null,null,null,null,null,null,null,null,null,null,null,null,null,null,null,null,null,null,null,null,null,null,null,null,null,null,null,null,null,null,"","له دور ثان في  :  ",null,null,null,null,null,null,null,{"$f":"IF(BN380=\"\",\"\",IF(RANK(BN380,$BN$10:$BN$1000)>$CH$1,\"\",IF(COUNTIF($BN$10:BN380,BN380)=1,Kh_RANK(BN380,$BN$10:$BN$1000),Kh_RANK(BN380,$BN$10:$BN$1000)&\" \"&\"مكرر\")))","v":""}]
[null,null,"طالب 372",null,null,null,null,null,null,null,null,null,null,null,null,null,null,null,null,null,null,null,null,null,null,null,null,null,null,null,null,null,null,null,null,null,null,null,null,null,null,null,null,null,null,null,null,null,null,null,null,null,null,null,null,null,null,null,null,null,null,null,null,null,null,null,null,null,null,null,null,null,null,null,null,null,"","له دور ثان في  :  ",null,null,null,null,null,null,null,{"$f":"IF(BN381=\"\",\"\",IF(RANK(BN381,$BN$10:$BN$1000)>$CH$1,\"\",IF(COUNTIF($BN$10:BN381,BN381)=1,Kh_RANK(BN381,$BN$10:$BN$1000),Kh_RANK(BN381,$BN$10:$BN$1000)&\" \"&\"مكرر\")))","v":""}]
[null,null,"طالب 373",null,null,null,null,null,null,null,null,null,null,null,null,null,null,null,null,null,null,null,null,null,null,null,null,null,null,null,null,null,null,null,null,null,null,null,null,null,null,null,null,null,null,null,null,null,null,null,null,null,null,null,null,null,null,null,null,null,null,null,null,null,null,null,null,null,null,null,null,null,null,null,null,null,"","له دور ثان في  :  ",null,null,null,null,null,null,null,{"$f":"IF(BN382=\"\",\"\",IF(RANK(BN382,$BN$10:$BN$1000)>$CH$1,\"\",IF(COUNTIF($BN$10:BN382,BN382)=1,Kh_RANK(BN382,$BN$10:$BN$1000),Kh_RANK(BN382,$BN$10:$BN$1000)&\" \"&\"مكرر\")))","v":""}]
[null,null,"طالب 374",null,null,null,null,null,null,null,null,null,null,null,null,null,null,null,null,null,null,null,null,null,null,null,null,null,null,null,null,null,null,null,null,null,null,null,null,null,null,null,null,null,null,null,null,null,null,null,null,null,null,null,null,null,null,null,null,null,null,null,null,null,null,null,null,null,null,null,null,null,null,null,null,null,"","له دور ثان في  :  ",null,null,null,null,null,null,null,{"$f":"IF(BN383=\"\",\"\",IF(RANK(BN383,$BN$10:$BN$1000)>$CH$1,\"\",IF(COUNTIF($BN$10:BN383,BN383)=1,Kh_RANK(BN383,$BN$10:$BN$1000),Kh_RANK(BN383,$BN$10:$BN$1000)&\" \"&\"مكرر\")))","v":""}]
[null,null,"طالب 375",null,null,null,null,null,null,null,null,null,null,null,null,null,null,null,null,null,null,null,null,null,null,null,null,null,null,null,null,null,null,null,null,null,null,null,null,null,null,null,null,null,null,null,null,null,null,null,null,null,null,null,null,null,null,null,null,null,null,null,null,null,null,null,null,null,null,null,null,null,null,null,null,null,"","له دور ثان في  :  ",null,null,null,null,null,null,null,{"$f":"IF(BN384=\"\",\"\",IF(RANK(BN384,$BN$10:$BN$1000)>$CH$1,\"\",IF(COUNTIF($BN$10:BN384,BN384)=1,Kh_RANK(BN384,$BN$10:$BN$1000),Kh_RANK(BN384,$BN$10:$BN$1000)&\" \"&\"مكرر\")))","v":""}]
[null,null,"طالب 376",null,null,null,null,null,null,null,null,null,null,null,null,null,null,null,null,null,null,null,null,null,null,null,null,null,null,null,null,null,null,null,null,null,null,null,null,null,null,null,null,null,null,null,null,null,null,null,null,null,null,null,null,null,null,null,null,null,null,null,null,null,null,null,null,null,null,null,null,null,null,null,null,null,"","له دور ثان في  :  ",null,null,null,null,null,null,null,{"$f":"IF(BN385=\"\",\"\",IF(RANK(BN385,$BN$10:$BN$1000)>$CH$1,\"\",IF(COUNTIF($BN$10:BN385,BN385)=1,Kh_RANK(BN385,$BN$10:$BN$1000),Kh_RANK(BN385,$BN$10:$BN$1000)&\" \"&\"مكرر\")))","v":""}]
[null,null,"طالب 377",null,null,null,null,null,null,null,null,null,null,null,null,null,null,null,null,null,null,null,null,null,null,null,null,null,null,null,null,null,null,null,null,null,null,null,null,null,null,null,null,null,null,null,null,null,null,null,null,null,null,null,null,null,null,null,null,null,null,null,null,null,null,null,null,null,null,null,null,null,null,null,null,null,"","له دور ثان في  :  ",null,null,null,null,null,null,null,{"$f":"IF(BN386=\"\",\"\",IF(RANK(BN386,$BN$10:$BN$1000)>$CH$1,\"\",IF(COUNTIF($BN$10:BN386,BN386)=1,Kh_RANK(BN386,$BN$10:$BN$1000),Kh_RANK(BN386,$BN$10:$BN$1000)&\" \"&\"مكرر\")))","v":""}]
[null,null,"طالب 378",null,null,null,null,null,null,null,null,null,null,null,null,null,null,null,null,null,null,null,null,null,null,null,null,null,null,null,null,null,null,null,null,null,null,null,null,null,null,null,null,null,null,null,null,null,null,null,null,null,null,null,null,null,null,null,null,null,null,null,null,null,null,null,null,null,null,null,null,null,null,null,null,null,"","له دور ثان في  :  ",null,null,null,null,null,null,null,{"$f":"IF(BN387=\"\",\"\",IF(RANK(BN387,$BN$10:$BN$1000)>$CH$1,\"\",IF(COUNTIF($BN$10:BN387,BN387)=1,Kh_RANK(BN387,$BN$10:$BN$1000),Kh_RANK(BN387,$BN$10:$BN$1000)&\" \"&\"مكرر\")))","v":""}]
[null,null,"طالب 379",null,null,null,null,null,null,null,null,null,null,null,null,null,null,null,null,null,null,null,null,null,null,null,null,null,null,null,null,null,null,null,null,null,null,null,null,null,null,null,null,null,null,null,null,null,null,null,null,null,null,null,null,null,null,null,null,null,null,null,null,null,null,null,null,null,null,null,null,null,null,null,null,null,"","له دور ثان في  :  ",null,null,null,null,null,null,null,{"$f":"IF(BN388=\"\",\"\",IF(RANK(BN388,$BN$10:$BN$1000)>$CH$1,\"\",IF(COUNTIF($BN$10:BN388,BN388)=1,Kh_RANK(BN388,$BN$10:$BN$1000),Kh_RANK(BN388,$BN$10:$BN$1000)&\" \"&\"مكرر\")))","v":""}]
[null,null,"طالب 380",null,null,null,null,null,null,null,null,null,null,null,null,null,null,null,null,null,null,null,null,null,null,null,null,null,null,null,null,null,null,null,null,null,null,null,null,null,null,null,null,null,null,null,null,null,null,null,null,null,null,null,null,null,null,null,null,null,null,null,null,null,null,null,null,null,null,null,null,null,null,null,null,null,"","له دور ثان في  :  ",null,null,null,null,null,null,null,{"$f":"IF(BN389=\"\",\"\",IF(RANK(BN389,$BN$10:$BN$1000)>$CH$1,\"\",IF(COUNTIF($BN$10:BN389,BN389)=1,Kh_RANK(BN389,$BN$10:$BN$1000),Kh_RANK(BN389,$BN$10:$BN$1000)&\" \"&\"مكرر\")))","v":""}]
[null,null,"طالب 381",null,null,null,null,null,null,null,null,null,null,null,null,null,null,null,null,null,null,null,null,null,null,null,null,null,null,null,null,null,null,null,null,null,null,null,null,null,null,null,null,null,null,null,null,null,null,null,null,null,null,null,null,null,null,null,null,null,null,null,null,null,null,null,null,null,null,null,null,null,null,null,null,null,"","له دور ثان في  :  ",null,null,null,null,null,null,null,{"$f":"IF(BN390=\"\",\"\",IF(RANK(BN390,$BN$10:$BN$1000)>$CH$1,\"\",IF(COUNTIF($BN$10:BN390,BN390)=1,Kh_RANK(BN390,$BN$10:$BN$1000),Kh_RANK(BN390,$BN$10:$BN$1000)&\" \"&\"مكرر\")))","v":""}]
[null,null,"طالب 382",null,null,null,null,null,null,null,null,null,null,null,null,null,null,null,null,null,null,null,null,null,null,null,null,null,null,null,null,null,null,null,null,null,null,null,null,null,null,null,null,null,null,null,null,null,null,null,null,null,null,null,null,null,null,null,null,null,null,null,null,null,null,null,null,null,null,null,null,null,null,null,null,null,"","له دور ثان في  :  ",null,null,null,null,null,null,null,{"$f":"IF(BN391=\"\",\"\",IF(RANK(BN391,$BN$10:$BN$1000)>$CH$1,\"\",IF(COUNTIF($BN$10:BN391,BN391)=1,Kh_RANK(BN391,$BN$10:$BN$1000),Kh_RANK(BN391,$BN$10:$BN$1000)&\" \"&\"مكرر\")))","v":""}]
[null,null,"طالب 383",null,null,null,null,null,null,null,null,null,null,null,null,null,null,null,null,null,null,null,null,null,null,null,null,null,null,null,null,null,null,null,null,null,null,null,null,null,null,null,null,null,null,null,null,null,null,null,null,null,null,null,null,null,null,null,null,null,null,null,null,null,null,null,null,null,null,null,null,null,null,null,null,null,"","له دور ثان في  :  ",null,null,null,null,null,null,null,{"$f":"IF(BN392=\"\",\"\",IF(RANK(BN392,$BN$10:$BN$1000)>$CH$1,\"\",IF(COUNTIF($BN$10:BN392,BN392)=1,Kh_RANK(BN392,$BN$10:$BN$1000),Kh_RANK(BN392,$BN$10:$BN$1000)&\" \"&\"مكرر\")))","v":""}]
[null,null,"طالب 384",null,null,null,null,null,null,null,null,null,null,null,null,null,null,null,null,null,null,null,null,null,null,null,null,null,null,null,null,null,null,null,null,null,null,null,null,null,null,null,null,null,null,null,null,null,null,null,null,null,null,null,null,null,null,null,null,null,null,null,null,null,null,null,null,null,null,null,null,null,null,null,null,null,"","له دور ثان في  :  ",null,null,null,null,null,null,null,{"$f":"IF(BN393=\"\",\"\",IF(RANK(BN393,$BN$10:$BN$1000)>$CH$1,\"\",IF(COUNTIF($BN$10:BN393,BN393)=1,Kh_RANK(BN393,$BN$10:$BN$1000),Kh_RANK(BN393,$BN$10:$BN$1000)&\" \"&\"مكرر\")))","v":""}]
[null,null,"طالب 385",null,null,null,null,null,null,null,null,null,null,null,null,null,null,null,null,null,null,null,null,null,null,null,null,null,null,null,null,null,null,null,null,null,null,null,null,null,null,null,null,null,null,null,null,null,null,null,null,null,null,null,null,null,null,null,null,null,null,null,null,null,null,null,null,null,null,null,null,null,null,null,null,null,"",{"$f":"IF($BX$4=\"الأول\",IF(BY394<>\"\", \"ناجح بتقدير\"&\" \"&BY394&\" \"&CH394,IF(COUNTBLANK($CA394:$CG394)=11,a,\"يحتاج إلى عناية في  :  \"&textjoin(\" و \",$CA394:$CG394))),IF($BX$4=\"الثاني\",IF(BY394<>\"\", \"ناجح بتقدير\"&\" \"&BY394&\" \"&CH394,IF(COUNTBLANK($CA394:$CG394)=11,a,\"له دور ثان في  :  \"&textjoin(\" و \",$CA394:$CG394)))))","v":"له دور ثان في  :  "},null,null,null,null,null,null,null,{"$f":"IF(BN394=\"\",\"\",IF(RANK(BN394,$BN$10:$BN$1000)>$CH$1,\"\",IF(COUNTIF($BN$10:BN394,BN394)=1,Kh_RANK(BN394,$BN$10:$BN$1000),Kh_RANK(BN394,$BN$10:$BN$1000)&\" \"&\"مكرر\")))","v":""}]
[null,null,"طالب 386",null,null,null,null,null,null,null,null,null,null,null,null,null,null,null,null,null,null,null,null,null,null,null,null,null,null,null,null,null,null,null,null,null,null,null,null,null,null,null,null,null,null,null,null,null,null,null,null,null,null,null,null,null,null,null,null,null,null,null,null,null,null,null,null,null,null,null,null,null,null,null,null,null,"","له دور ثان في  :  ",null,null,null,null,null,null,null,{"$f":"IF(BN395=\"\",\"\",IF(RANK(BN395,$BN$10:$BN$1000)>$CH$1,\"\",IF(COUNTIF($BN$10:BN395,BN395)=1,Kh_RANK(BN395,$BN$10:$BN$1000),Kh_RANK(BN395,$BN$10:$BN$1000)&\" \"&\"مكرر\")))","v":""}]
[null,null,"طالب 387",null,null,null,null,null,null,null,null,null,null,null,null,null,null,null,null,null,null,null,null,null,null,null,null,null,null,null,null,null,null,null,null,null,null,null,null,null,null,null,null,null,null,null,null,null,null,null,null,null,null,null,null,null,null,null,null,null,null,null,null,null,null,null,null,null,null,null,null,null,null,null,null,null,"","له دور ثان في  :  ",null,null,null,null,null,null,null,{"$f":"IF(BN396=\"\",\"\",IF(RANK(BN396,$BN$10:$BN$1000)>$CH$1,\"\",IF(COUNTIF($BN$10:BN396,BN396)=1,Kh_RANK(BN396,$BN$10:$BN$1000),Kh_RANK(BN396,$BN$10:$BN$1000)&\" \"&\"مكرر\")))","v":""}]
[null,null,"طالب 388",null,null,null,null,null,null,null,null,null,null,null,null,null,null,null,null,null,null,null,null,null,null,null,null,null,null,null,null,null,null,null,null,null,null,null,null,null,null,null,null,null,null,null,null,null,null,null,null,null,null,null,null,null,null,null,null,null,null,null,null,null,null,null,null,null,null,null,null,null,null,null,null,null,"","له دور ثان في  :  ",null,null,null,null,null,null,null,{"$f":"IF(BN397=\"\",\"\",IF(RANK(BN397,$BN$10:$BN$1000)>$CH$1,\"\",IF(COUNTIF($BN$10:BN397,BN397)=1,Kh_RANK(BN397,$BN$10:$BN$1000),Kh_RANK(BN397,$BN$10:$BN$1000)&\" \"&\"مكرر\")))","v":""}]
[null,null,"طالب 389",null,null,null,null,null,null,null,null,null,null,null,null,null,null,null,null,null,null,null,null,null,null,null,null,null,null,null,null,null,null,null,null,null,null,null,null,null,null,null,null,null,null,null,null,null,null,null,null,null,null,null,null,null,null,null,null,null,null,null,null,null,null,null,null,null,null,null,null,null,null,null,null,null,"","له دور ثان في  :  ",null,null,null,null,null,null,null,{"$f":"IF(BN398=\"\",\"\",IF(RANK(BN398,$BN$10:$BN$1000)>$CH$1,\"\",IF(COUNTIF($BN$10:BN398,BN398)=1,Kh_RANK(BN398,$BN$10:$BN$1000),Kh_RANK(BN398,$BN$10:$BN$1000)&\" \"&\"مكرر\")))","v":""}]
[null,null,"طالب 390",null,null,null,null,null,null,null,null,null,null,null,null,null,null,null,null,null,null,null,null,null,null,null,null,null,null,null,null,null,null,null,null,null,null,null,null,null,null,null,null,null,null,null,null,null,null,null,null,null,null,null,null,null,null,null,null,null,null,null,null,null,null,null,null,null,null,null,null,null,null,null,null,null,"","له دور ثان في  :  ",null,null,null,null,null,null,null,{"$f":"IF(BN399=\"\",\"\",IF(RANK(BN399,$BN$10:$BN$1000)>$CH$1,\"\",IF(COUNTIF($BN$10:BN399,BN399)=1,Kh_RANK(BN399,$BN$10:$BN$1000),Kh_RANK(BN399,$BN$10:$BN$1000)&\" \"&\"مكرر\")))","v":""}]
[null,null,"طالب 391",null,null,null,null,null,null,null,null,null,null,null,null,null,null,null,null,null,null,null,null,null,null,null,null,null,null,null,null,null,null,null,null,null,null,null,null,null,null,null,null,null,null,null,null,null,null,null,null,null,null,null,null,null,null,null,null,null,null,null,null,null,null,null,null,null,null,null,null,null,null,null,null,null,"","له دور ثان في  :  ",null,null,null,null,null,null,null,{"$f":"IF(BN400=\"\",\"\",IF(RANK(BN400,$BN$10:$BN$1000)>$CH$1,\"\",IF(COUNTIF($BN$10:BN400,BN400)=1,Kh_RANK(BN400,$BN$10:$BN$1000),Kh_RANK(BN400,$BN$10:$BN$1000)&\" \"&\"مكرر\")))","v":""}]
[null,null,"طالب 392",null,null,null,null,null,null,null,null,null,null,null,null,null,null,null,null,null,null,null,null,null,null,null,null,null,null,null,null,null,null,null,null,null,null,null,null,null,null,null,null,null,null,null,null,null,null,null,null,null,null,null,null,null,null,null,null,null,null,null,null,null,null,null,null,null,null,null,null,null,null,null,null,null,"","له دور ثان في  :  ",null,null,null,null,null,null,null,{"$f":"IF(BN401=\"\",\"\",IF(RANK(BN401,$BN$10:$BN$1000)>$CH$1,\"\",IF(COUNTIF($BN$10:BN401,BN401)=1,Kh_RANK(BN401,$BN$10:$BN$1000),Kh_RANK(BN401,$BN$10:$BN$1000)&\" \"&\"مكرر\")))","v":""}]
[null,null,"طالب 393",null,null,null,null,null,null,null,null,null,null,null,null,null,null,null,null,null,null,null,null,null,null,null,null,null,null,null,null,null,null,null,null,null,null,null,null,null,null,null,null,null,null,null,null,null,null,null,null,null,null,null,null,null,null,null,null,null,null,null,null,null,null,null,null,null,null,null,null,null,null,null,null,null,"","له دور ثان في  :  ",null,null,null,null,null,null,null,{"$f":"IF(BN402=\"\",\"\",IF(RANK(BN402,$BN$10:$BN$1000)>$CH$1,\"\",IF(COUNTIF($BN$10:BN402,BN402)=1,Kh_RANK(BN402,$BN$10:$BN$1000),Kh_RANK(BN402,$BN$10:$BN$1000)&\" \"&\"مكرر\")))","v":""}]
[null,null,"طالب 394",null,null,null,null,null,null,null,null,null,null,null,null,null,null,null,null,null,null,null,null,null,null,null,null,null,null,null,null,null,null,null,null,null,null,null,null,null,null,null,null,null,null,null,null,null,null,null,null,null,null,null,null,null,null,null,null,null,null,null,null,null,null,null,null,null,null,null,null,null,null,null,null,null,"","له دور ثان في  :  ",null,null,null,null,null,null,null,{"$f":"IF(BN403=\"\",\"\",IF(RANK(BN403,$BN$10:$BN$1000)>$CH$1,\"\",IF(COUNTIF($BN$10:BN403,BN403)=1,Kh_RANK(BN403,$BN$10:$BN$1000),Kh_RANK(BN403,$BN$10:$BN$1000)&\" \"&\"مكرر\")))","v":""}]
[null,null,"طالب 395",null,null,null,null,null,null,null,null,null,null,null,null,null,null,null,null,null,null,null,null,null,null,null,null,null,null,null,null,null,null,null,null,null,null,null,null,null,null,null,null,null,null,null,null,null,null,null,null,null,null,null,null,null,null,null,null,null,null,null,null,null,null,null,null,null,null,null,null,null,null,null,null,null,"","له دور ثان في  :  ",null,null,null,null,null,null,null,{"$f":"IF(BN404=\"\",\"\",IF(RANK(BN404,$BN$10:$BN$1000)>$CH$1,\"\",IF(COUNTIF($BN$10:BN404,BN404)=1,Kh_RANK(BN404,$BN$10:$BN$1000),Kh_RANK(BN404,$BN$10:$BN$1000)&\" \"&\"مكرر\")))","v":""}]
[null,null,"طالب 396",null,null,null,null,null,null,null,null,null,null,null,null,null,null,null,null,null,null,null,null,null,null,null,null,null,null,null,null,null,null,null,null,null,null,null,null,null,null,null,null,null,null,null,null,null,null,null,null,null,null,null,null,null,null,null,null,null,null,null,null,null,null,null,null,null,null,null,null,null,null,null,null,null,"","له دور ثان في  :  ",null,null,null,null,null,null,null,{"$f":"IF(BN405=\"\",\"\",IF(RANK(BN405,$BN$10:$BN$1000)>$CH$1,\"\",IF(COUNTIF($BN$10:BN405,BN405)=1,Kh_RANK(BN405,$BN$10:$BN$1000),Kh_RANK(BN405,$BN$10:$BN$1000)&\" \"&\"مكرر\")))","v":""}]
[null,null,"طالب 397",null,null,null,null,null,null,null,null,null,null,null,null,null,null,null,null,null,null,null,null,null,null,null,null,null,null,null,null,null,null,null,null,null,null,null,null,null,null,null,null,null,null,null,null,null,null,null,null,null,null,null,null,null,null,null,null,null,null,null,null,null,null,null,null,null,null,null,null,null,null,null,null,null,"","له دور ثان في  :  ",null,null,null,null,null,null,null,{"$f":"IF(BN406=\"\",\"\",IF(RANK(BN406,$BN$10:$BN$1000)>$CH$1,\"\",IF(COUNTIF($BN$10:BN406,BN406)=1,Kh_RANK(BN406,$BN$10:$BN$1000),Kh_RANK(BN406,$BN$10:$BN$1000)&\" \"&\"مكرر\")))","v":""}]
[null,null,"طالب 398",null,null,null,null,null,null,null,null,null,null,null,null,null,null,null,null,null,null,null,null,null,null,null,null,null,null,null,null,null,null,null,null,null,null,null,null,null,null,null,null,null,null,null,null,null,null,null,null,null,null,null,null,null,null,null,null,null,null,null,null,null,null,null,null,null,null,null,null,null,null,null,null,null,"","له دور ثان في  :  ",null,null,null,null,null,null,null,{"$f":"IF(BN407=\"\",\"\",IF(RANK(BN407,$BN$10:$BN$1000)>$CH$1,\"\",IF(COUNTIF($BN$10:BN407,BN407)=1,Kh_RANK(BN407,$BN$10:$BN$1000),Kh_RANK(BN407,$BN$10:$BN$1000)&\" \"&\"مكرر\")))","v":""}]
[null,null,"طالب 399",null,null,null,null,null,null,null,null,null,null,null,null,null,null,null,null,null,null,null,null,null,null,null,null,null,null,null,null,null,null,null,null,null,null,null,null,null,null,null,null,null,null,null,null,null,null,null,null,null,null,null,null,null,null,null,null,null,null,null,null,null,null,null,null,null,null,null,null,null,null,null,null,null,"","له دور ثان في  :  ",null,null,null,null,null,null,null,{"$f":"IF(BN408=\"\",\"\",IF(RANK(BN408,$BN$10:$BN$1000)>$CH$1,\"\",IF(COUNTIF($BN$10:BN408,BN408)=1,Kh_RANK(BN408,$BN$10:$BN$1000),Kh_RANK(BN408,$BN$10:$BN$1000)&\" \"&\"مكرر\")))","v":""}]
[null,null,"طالب 400",null,null,null,null,null,null,null,null,null,null,null,null,null,null,null,null,null,null,null,null,null,null,null,null,null,null,null,null,null,null,null,null,null,null,null,null,null,null,null,null,null,null,null,null,null,null,null,null,null,null,null,null,null,null,null,null,null,null,null,null,null,null,null,null,null,null,null,null,null,null,null,null,null,"","له دور ثان في  :  ",null,null,null,null,null,null,null,{"$f":"IF(BN409=\"\",\"\",IF(RANK(BN409,$BN$10:$BN$1000)>$CH$1,\"\",IF(COUNTIF($BN$10:BN409,BN409)=1,Kh_RANK(BN409,$BN$10:$BN$1000),Kh_RANK(BN409,$BN$10:$BN$1000)&\" \"&\"مكرر\")))","v":""}]
[null,null,"طالب 401",null,null,null,null,null,null,null,null,null,null,null,null,null,null,null,null,null,null,null,null,null,null,null,null,null,null,null,null,null,null,null,null,null,null,null,null,null,null,null,null,null,null,null,null,null,null,null,null,null,null,null,null,null,null,null,null,null,null,null,null,null,null,null,null,null,null,null,null,null,null,null,null,null,"","له دور ثان في  :  ",null,null,null,null,null,null,null,{"$f":"IF(BN410=\"\",\"\",IF(RANK(BN410,$BN$10:$BN$1000)>$CH$1,\"\",IF(COUNTIF($BN$10:BN410,BN410)=1,Kh_RANK(BN410,$BN$10:$BN$1000),Kh_RANK(BN410,$BN$10:$BN$1000)&\" \"&\"مكرر\")))","v":""}]
[null,null,"طالب 402",null,null,null,null,null,null,null,null,null,null,null,null,null,null,null,null,null,null,null,null,null,null,null,null,null,null,null,null,null,null,null,null,null,null,null,null,null,null,null,null,null,null,null,null,null,null,null,null,null,null,null,null,null,null,null,null,null,null,null,null,null,null,null,null,null,null,null,null,null,null,null,null,null,"","له دور ثان في  :  ",null,null,null,null,null,null,null,{"$f":"IF(BN411=\"\",\"\",IF(RANK(BN411,$BN$10:$BN$1000)>$CH$1,\"\",IF(COUNTIF($BN$10:BN411,BN411)=1,Kh_RANK(BN411,$BN$10:$BN$1000),Kh_RANK(BN411,$BN$10:$BN$1000)&\" \"&\"مكرر\")))","v":""}]
[null,null,"طالب 403",null,null,null,null,null,null,null,null,null,null,null,null,null,null,null,null,null,null,null,null,null,null,null,null,null,null,null,null,null,null,null,null,null,null,null,null,null,null,null,null,null,null,null,null,null,null,null,null,null,null,null,null,null,null,null,null,null,null,null,null,null,null,null,null,null,null,null,null,null,null,null,null,null,"","له دور ثان في  :  ",null,null,null,null,null,null,null,{"$f":"IF(BN412=\"\",\"\",IF(RANK(BN412,$BN$10:$BN$1000)>$CH$1,\"\",IF(COUNTIF($BN$10:BN412,BN412)=1,Kh_RANK(BN412,$BN$10:$BN$1000),Kh_RANK(BN412,$BN$10:$BN$1000)&\" \"&\"مكرر\")))","v":""}]
[null,null,"طالب 404",null,null,null,null,null,null,null,null,null,null,null,null,null,null,null,null,null,null,null,null,null,null,null,null,null,null,null,null,null,null,null,null,null,null,null,null,null,null,null,null,null,null,null,null,null,null,null,null,null,null,null,null,null,null,null,null,null,null,null,null,null,null,null,null,null,null,null,null,null,null,null,null,null,"","له دور ثان في  :  ",null,null,null,null,null,null,null,{"$f":"IF(BN413=\"\",\"\",IF(RANK(BN413,$BN$10:$BN$1000)>$CH$1,\"\",IF(COUNTIF($BN$10:BN413,BN413)=1,Kh_RANK(BN413,$BN$10:$BN$1000),Kh_RANK(BN413,$BN$10:$BN$1000)&\" \"&\"مكرر\")))","v":""}]
[null,null,"طالب 405",null,null,null,null,null,null,null,null,null,null,null,null,null,null,null,null,null,null,null,null,null,null,null,null,null,null,null,null,null,null,null,null,null,null,null,null,null,null,null,null,null,null,null,null,null,null,null,null,null,null,null,null,null,null,null,null,null,null,null,null,null,null,null,null,null,null,null,null,null,null,null,null,null,"","له دور ثان في  :  ",null,null,null,null,null,null,null,{"$f":"IF(BN414=\"\",\"\",IF(RANK(BN414,$BN$10:$BN$1000)>$CH$1,\"\",IF(COUNTIF($BN$10:BN414,BN414)=1,Kh_RANK(BN414,$BN$10:$BN$1000),Kh_RANK(BN414,$BN$10:$BN$1000)&\" \"&\"مكرر\")))","v":""}]
[null,null,"طالب 406",null,null,null,null,null,null,null,null,null,null,null,null,null,null,null,null,null,null,null,null,null,null,null,null,null,null,null,null,null,null,null,null,null,null,null,null,null,null,null,null,null,null,null,null,null,null,null,null,null,null,null,null,null,null,null,null,null,null,null,null,null,null,null,null,null,null,null,null,null,null,null,null,null,"","له دور ثان في  :  ",null,null,null,null,null,null,null,{"$f":"IF(BN415=\"\",\"\",IF(RANK(BN415,$BN$10:$BN$1000)>$CH$1,\"\",IF(COUNTIF($BN$10:BN415,BN415)=1,Kh_RANK(BN415,$BN$10:$BN$1000),Kh_RANK(BN415,$BN$10:$BN$1000)&\" \"&\"مكرر\")))","v":""}]
[null,null,"طالب 407",null,null,null,null,null,null,null,null,null,null,null,null,null,null,null,null,null,null,null,null,null,null,null,null,null,null,null,null,null,null,null,null,null,null,null,null,null,null,null,null,null,null,null,null,null,null,null,null,null,null,null,null,null,null,null,null,null,null,null,null,null,null,null,null,null,null,null,null,null,null,null,null,null,{"$f":"IF(BX416=\"\",\"\",evaltion(BX416))","v":""},"له دور ثان في  :  ",null,null,null,null,null,null,null,{"$f":"IF(BN416=\"\",\"\",IF(RANK(BN416,$BN$10:$BN$1000)>$CH$1,\"\",IF(COUNTIF($BN$10:BN416,BN416)=1,Kh_RANK(BN416,$BN$10:$BN$1000),Kh_RANK(BN416,$BN$10:$BN$1000)&\" \"&\"مكرر\")))","v":""}]
[null,null,"طالب 408",null,null,null,null,null,null,null,null,null,null,null,null,null,null,null,null,null,null,null,null,null,null,null,null,null,null,null,null,null,null,null,null,null,null,null,null,null,null,null,null,null,null,null,null,null,null,null,null,null,null,null,null,null,null,null,null,null,null,null,null,null,null,null,null,null,null,null,null,null,null,null,null,null,"","له دور ثان في  :  ",null,null,null,null,null,null,null,{"$f":"IF(BN417=\"\",\"\",IF(RANK(BN417,$BN$10:$BN$1000)>$CH$1,\"\",IF(COUNTIF($BN$10:BN417,BN417)=1,Kh_RANK(BN417,$BN$10:$BN$1000),Kh_RANK(BN417,$BN$10:$BN$1000)&\" \"&\"مكرر\")))","v":""}]
[null,null,"طالب 409",null,null,null,null,null,null,null,null,null,null,null,null,null,null,null,null,null,null,null,null,null,null,null,null,null,null,null,null,null,null,null,null,null,null,null,null,null,null,null,null,null,null,null,null,null,null,null,null,null,null,null,null,null,null,null,null,null,null,null,null,null,null,null,null,null,null,null,null,null,null,null,null,null,"","له دور ثان في  :  ",null,null,null,null,null,null,null,{"$f":"IF(BN418=\"\",\"\",IF(RANK(BN418,$BN$10:$BN$1000)>$CH$1,\"\",IF(COUNTIF($BN$10:BN418,BN418)=1,Kh_RANK(BN418,$BN$10:$BN$1000),Kh_RANK(BN418,$BN$10:$BN$1000)&\" \"&\"مكرر\")))","v":""}]
[null,null,"طالب 410",null,null,null,null,null,null,null,null,null,null,null,null,null,null,null,null,null,null,null,null,null,null,null,null,null,null,null,null,null,null,null,null,null,null,null,null,null,null,null,null,null,null,null,null,null,null,null,null,null,null,null,null,null,null,null,null,null,null,null,null,null,null,null,null,null,null,null,null,null,null,null,null,null,"","له دور ثان في  :  ",null,null,null,null,null,null,null,{"$f":"IF(BN419=\"\",\"\",IF(RANK(BN419,$BN$10:$BN$1000)>$CH$1,\"\",IF(COUNTIF($BN$10:BN419,BN419)=1,Kh_RANK(BN419,$BN$10:$BN$1000),Kh_RANK(BN419,$BN$10:$BN$1000)&\" \"&\"مكرر\")))","v":""}]
[null,null,"طالب 411",null,null,null,null,null,null,null,null,null,null,null,null,null,null,null,null,null,null,null,null,null,null,null,null,null,null,null,null,null,null,null,null,null,null,null,null,null,null,null,null,null,null,null,null,null,null,null,null,null,null,null,null,null,null,null,null,null,null,null,null,null,null,null,null,null,null,null,null,null,null,null,null,null,"","له دور ثان في  :  ",null,null,null,null,null,null,null,{"$f":"IF(BN420=\"\",\"\",IF(RANK(BN420,$BN$10:$BN$1000)>$CH$1,\"\",IF(COUNTIF($BN$10:BN420,BN420)=1,Kh_RANK(BN420,$BN$10:$BN$1000),Kh_RANK(BN420,$BN$10:$BN$1000)&\" \"&\"مكرر\")))","v":""}]
[null,null,"طالب 412",null,null,null,null,null,null,null,null,null,null,null,null,null,null,null,null,null,null,null,null,null,null,null,null,null,null,null,null,null,null,null,null,null,null,null,null,null,null,null,null,null,null,null,null,null,null,null,null,null,null,null,null,null,null,null,null,null,null,null,null,null,null,null,null,null,null,null,null,null,null,null,null,null,"","له دور ثان في  :  ",null,null,null,null,null,null,null,{"$f":"IF(BN421=\"\",\"\",IF(RANK(BN421,$BN$10:$BN$1000)>$CH$1,\"\",IF(COUNTIF($BN$10:BN421,BN421)=1,Kh_RANK(BN421,$BN$10:$BN$1000),Kh_RANK(BN421,$BN$10:$BN$1000)&\" \"&\"مكرر\")))","v":""}]
[null,null,"طالب 413",null,null,null,null,null,null,null,null,null,null,null,null,null,null,null,null,null,null,null,null,null,null,null,null,null,null,null,null,null,null,null,null,null,null,null,null,null,null,null,null,null,null,null,null,null,null,null,null,null,null,null,null,null,null,null,null,null,null,null,null,null,null,null,null,null,null,null,null,null,null,null,null,null,"","له دور ثان في  :  ",null,null,null,null,null,null,null,{"$f":"IF(BN422=\"\",\"\",IF(RANK(BN422,$BN$10:$BN$1000)>$CH$1,\"\",IF(COUNTIF($BN$10:BN422,BN422)=1,Kh_RANK(BN422,$BN$10:$BN$1000),Kh_RANK(BN422,$BN$10:$BN$1000)&\" \"&\"مكرر\")))","v":""}]
[null,null,"طالب 414",null,null,null,null,null,null,null,null,null,null,null,null,null,null,null,null,null,null,null,null,null,null,null,null,null,null,null,null,null,null,null,null,null,null,null,null,null,null,null,null,null,null,null,null,null,null,null,null,null,null,null,null,null,null,null,null,null,null,null,null,null,null,null,null,null,null,null,null,null,null,null,null,null,"","له دور ثان في  :  ",null,null,null,null,null,null,null,{"$f":"IF(BN423=\"\",\"\",IF(RANK(BN423,$BN$10:$BN$1000)>$CH$1,\"\",IF(COUNTIF($BN$10:BN423,BN423)=1,Kh_RANK(BN423,$BN$10:$BN$1000),Kh_RANK(BN423,$BN$10:$BN$1000)&\" \"&\"مكرر\")))","v":""}]
[null,null,"طالب 415",null,null,null,null,null,null,null,null,null,null,null,null,null,null,null,null,null,null,null,null,null,null,null,null,null,null,null,null,null,null,null,null,null,null,null,null,null,null,null,null,null,null,null,null,null,null,null,null,null,null,null,null,null,null,null,null,null,null,null,null,null,null,null,null,null,null,null,null,null,null,null,null,null,"","له دور ثان في  :  ",null,null,null,null,null,null,null,{"$f":"IF(BN424=\"\",\"\",IF(RANK(BN424,$BN$10:$BN$1000)>$CH$1,\"\",IF(COUNTIF($BN$10:BN424,BN424)=1,Kh_RANK(BN424,$BN$10:$BN$1000),Kh_RANK(BN424,$BN$10:$BN$1000)&\" \"&\"مكرر\")))","v":""}]
[null,null,"طالب 416",null,null,null,null,null,null,null,null,null,null,null,null,null,null,null,null,null,null,null,null,null,null,null,null,null,null,null,null,null,null,null,null,null,null,null,null,null,null,null,null,null,null,null,null,null,null,null,null,null,null,null,null,null,null,null,null,null,null,null,null,null,null,null,null,null,null,null,null,null,null,null,null,null,"","له دور ثان في  :  ",null,null,null,null,null,null,null,{"$f":"IF(BN425=\"\",\"\",IF(RANK(BN425,$BN$10:$BN$1000)>$CH$1,\"\",IF(COUNTIF($BN$10:BN425,BN425)=1,Kh_RANK(BN425,$BN$10:$BN$1000),Kh_RANK(BN425,$BN$10:$BN$1000)&\" \"&\"مكرر\")))","v":""}]
[null,null,"طالب 417",null,null,null,null,null,null,null,null,null,null,null,null,null,null,null,null,null,null,null,null,null,null,null,null,null,null,null,null,null,null,null,null,null,null,null,null,null,null,null,null,null,null,null,null,null,null,null,null,null,null,null,null,null,null,null,null,null,null,null,null,null,null,null,null,null,null,null,null,null,null,null,null,null,"","له دور ثان في  :  ",null,null,null,null,null,null,null,{"$f":"IF(BN426=\"\",\"\",IF(RANK(BN426,$BN$10:$BN$1000)>$CH$1,\"\",IF(COUNTIF($BN$10:BN426,BN426)=1,Kh_RANK(BN426,$BN$10:$BN$1000),Kh_RANK(BN426,$BN$10:$BN$1000)&\" \"&\"مكرر\")))","v":""}]
[null,null,"طالب 418",null,null,null,null,null,null,null,null,null,null,null,null,null,null,null,null,null,null,null,null,null,null,null,null,null,null,null,null,null,null,null,null,null,null,null,null,null,null,null,null,null,null,null,null,null,null,null,null,null,null,null,null,null,null,null,null,null,null,null,null,null,null,null,null,null,null,null,null,null,null,null,null,null,"","له دور ثان في  :  ",null,null,null,null,null,null,null,{"$f":"IF(BN427=\"\",\"\",IF(RANK(BN427,$BN$10:$BN$1000)>$CH$1,\"\",IF(COUNTIF($BN$10:BN427,BN427)=1,Kh_RANK(BN427,$BN$10:$BN$1000),Kh_RANK(BN427,$BN$10:$BN$1000)&\" \"&\"مكرر\")))","v":""}]
[null,null,"طالب 419",null,null,null,null,null,null,null,null,null,null,null,null,null,null,null,null,null,null,null,null,null,null,null,null,null,null,null,null,null,null,null,null,null,null,null,null,null,null,null,null,null,null,null,null,null,null,null,null,null,null,null,null,null,null,null,null,null,null,null,null,null,null,null,null,null,null,null,null,null,null,null,null,null,"","له دور ثان في  :  ",null,null,null,null,null,null,null,{"$f":"IF(BN428=\"\",\"\",IF(RANK(BN428,$BN$10:$BN$1000)>$CH$1,\"\",IF(COUNTIF($BN$10:BN428,BN428)=1,Kh_RANK(BN428,$BN$10:$BN$1000),Kh_RANK(BN428,$BN$10:$BN$1000)&\" \"&\"مكرر\")))","v":""}]
[null,null,"طالب 420",null,null,null,null,null,null,null,null,null,null,null,null,null,null,null,null,null,null,null,null,null,null,null,null,null,null,null,null,null,null,null,null,null,null,null,null,null,null,null,null,null,null,null,null,null,null,null,null,null,null,null,null,null,null,null,null,null,null,null,null,null,null,null,null,null,null,null,null,null,null,null,null,null,"","له دور ثان في  :  ",null,null,null,null,null,null,null,{"$f":"IF(BN429=\"\",\"\",IF(RANK(BN429,$BN$10:$BN$1000)>$CH$1,\"\",IF(COUNTIF($BN$10:BN429,BN429)=1,Kh_RANK(BN429,$BN$10:$BN$1000),Kh_RANK(BN429,$BN$10:$BN$1000)&\" \"&\"مكرر\")))","v":""}]
[null,null,"طالب 421",null,null,null,null,null,null,null,null,null,null,null,null,null,null,null,null,null,null,null,null,null,null,null,null,null,null,null,null,null,null,null,null,null,null,null,null,null,null,null,null,null,null,null,null,null,null,null,null,null,null,null,null,null,null,null,null,null,null,null,null,null,null,null,null,null,null,null,null,null,null,null,null,null,"","له دور ثان في  :  ",null,null,null,null,null,null,null,{"$f":"IF(BN430=\"\",\"\",IF(RANK(BN430,$BN$10:$BN$1000)>$CH$1,\"\",IF(COUNTIF($BN$10:BN430,BN430)=1,Kh_RANK(BN430,$BN$10:$BN$1000),Kh_RANK(BN430,$BN$10:$BN$1000)&\" \"&\"مكرر\")))","v":""}]
[null,null,"طالب 422",null,null,null,null,null,null,null,null,null,null,null,null,null,null,null,null,null,null,null,null,null,null,null,null,null,null,null,null,null,null,null,null,null,null,null,null,null,null,null,null,null,null,null,null,null,null,null,null,null,null,null,null,null,null,null,null,null,null,null,null,null,null,null,null,null,null,null,null,null,null,null,null,null,"","له دور ثان في  :  ",null,null,null,null,null,null,null,{"$f":"IF(BN431=\"\",\"\",IF(RANK(BN431,$BN$10:$BN$1000)>$CH$1,\"\",IF(COUNTIF($BN$10:BN431,BN431)=1,Kh_RANK(BN431,$BN$10:$BN$1000),Kh_RANK(BN431,$BN$10:$BN$1000)&\" \"&\"مكرر\")))","v":""}]
[null,null,"طالب 423",null,null,null,null,null,null,null,null,null,null,null,null,null,null,null,null,null,null,null,null,null,null,null,null,null,null,null,null,null,null,null,null,null,null,null,null,null,null,null,null,null,null,null,null,null,null,null,null,null,null,null,null,null,null,null,null,null,null,null,null,null,null,null,null,null,null,null,null,null,null,null,null,null,"","له دور ثان في  :  ",null,null,null,null,null,null,null,{"$f":"IF(BN432=\"\",\"\",IF(RANK(BN432,$BN$10:$BN$1000)>$CH$1,\"\",IF(COUNTIF($BN$10:BN432,BN432)=1,Kh_RANK(BN432,$BN$10:$BN$1000),Kh_RANK(BN432,$BN$10:$BN$1000)&\" \"&\"مكرر\")))","v":""}]
[null,null,"طالب 424",null,null,null,null,null,null,null,null,null,null,null,null,null,null,null,null,null,null,null,null,null,null,null,null,null,null,null,null,null,null,null,null,null,null,null,null,null,null,null,null,null,null,null,null,null,null,null,null,null,null,null,null,null,null,null,null,null,null,null,null,null,null,null,null,null,null,null,null,null,null,null,null,null,"","له دور ثان في  :  ",null,null,null,null,null,null,null,{"$f":"IF(BN433=\"\",\"\",IF(RANK(BN433,$BN$10:$BN$1000)>$CH$1,\"\",IF(COUNTIF($BN$10:BN433,BN433)=1,Kh_RANK(BN433,$BN$10:$BN$1000),Kh_RANK(BN433,$BN$10:$BN$1000)&\" \"&\"مكرر\")))","v":""}]
[null,null,"طالب 425",null,null,null,null,null,null,null,null,null,null,null,null,null,null,null,null,null,null,null,null,null,null,null,null,null,null,null,null,null,null,null,null,null,null,null,null,null,null,null,null,null,null,null,null,null,null,null,null,null,null,null,null,null,null,null,null,null,null,null,null,null,null,null,null,null,null,null,null,null,null,null,null,null,"","له دور ثان في  :  ",null,null,null,null,null,null,null,{"$f":"IF(BN434=\"\",\"\",IF(RANK(BN434,$BN$10:$BN$1000)>$CH$1,\"\",IF(COUNTIF($BN$10:BN434,BN434)=1,Kh_RANK(BN434,$BN$10:$BN$1000),Kh_RANK(BN434,$BN$10:$BN$1000)&\" \"&\"مكرر\")))","v":""}]
[null,null,"طالب 426",null,null,null,null,null,null,null,null,null,null,null,null,null,null,null,null,null,null,null,null,null,null,null,null,null,null,null,null,null,null,null,null,null,null,null,null,null,null,null,null,null,null,null,null,null,null,null,null,null,null,null,null,null,null,null,null,null,null,null,null,null,null,null,null,null,null,null,null,null,null,null,null,null,"","له دور ثان في  :  ",null,null,null,null,null,null,null,{"$f":"IF(BN435=\"\",\"\",IF(RANK(BN435,$BN$10:$BN$1000)>$CH$1,\"\",IF(COUNTIF($BN$10:BN435,BN435)=1,Kh_RANK(BN435,$BN$10:$BN$1000),Kh_RANK(BN435,$BN$10:$BN$1000)&\" \"&\"مكرر\")))","v":""}]
[null,null,"طالب 427",null,null,null,null,null,null,null,null,null,null,null,null,null,null,null,null,null,null,null,null,null,null,null,null,null,null,null,null,null,null,null,null,null,null,null,null,null,null,null,null,null,null,null,null,null,null,null,null,null,null,null,null,null,null,null,null,null,null,null,null,null,null,null,null,null,null,null,null,null,null,null,null,null,"","له دور ثان في  :  ",null,null,null,null,null,null,null,{"$f":"IF(BN436=\"\",\"\",IF(RANK(BN436,$BN$10:$BN$1000)>$CH$1,\"\",IF(COUNTIF($BN$10:BN436,BN436)=1,Kh_RANK(BN436,$BN$10:$BN$1000),Kh_RANK(BN436,$BN$10:$BN$1000)&\" \"&\"مكرر\")))","v":""}]
[null,null,"طالب 428",null,null,null,null,null,null,null,null,null,null,null,null,null,null,null,null,null,null,null,null,null,null,null,null,null,null,null,null,null,null,null,null,null,null,null,null,null,null,null,null,null,null,null,null,null,null,null,null,null,null,null,null,null,null,null,null,null,null,null,null,null,null,null,null,null,null,null,null,null,null,null,null,null,"","له دور ثان في  :  ",null,null,null,null,null,null,null,{"$f":"IF(BN437=\"\",\"\",IF(RANK(BN437,$BN$10:$BN$1000)>$CH$1,\"\",IF(COUNTIF($BN$10:BN437,BN437)=1,Kh_RANK(BN437,$BN$10:$BN$1000),Kh_RANK(BN437,$BN$10:$BN$1000)&\" \"&\"مكرر\")))","v":""}]
[null,null,"طالب 429",null,null,null,null,null,null,null,null,null,null,null,null,null,null,null,null,null,null,null,null,null,null,null,null,null,null,null,null,null,null,null,null,null,null,null,null,null,null,null,null,null,null,null,null,null,null,null,null,null,null,null,null,null,null,null,null,null,null,null,null,null,null,null,null,null,null,null,null,null,null,null,null,null,"","له دور ثان في  :  ",null,null,null,null,null,null,null,{"$f":"IF(BN438=\"\",\"\",IF(RANK(BN438,$BN$10:$BN$1000)>$CH$1,\"\",IF(COUNTIF($BN$10:BN438,BN438)=1,Kh_RANK(BN438,$BN$10:$BN$1000),Kh_RANK(BN438,$BN$10:$BN$1000)&\" \"&\"مكرر\")))","v":""}]
[null,null,"طالب 430",null,null,null,null,null,null,null,null,null,null,null,null,null,null,null,null,null,null,null,null,null,null,null,null,null,null,null,null,null,null,null,null,null,null,null,null,null,null,null,null,null,null,null,null,null,null,null,null,null,null,null,null,null,null,null,null,null,null,null,null,null,null,null,null,null,null,null,null,null,null,null,null,null,"","له دور ثان في  :  ",null,null,null,null,null,null,null,{"$f":"IF(BN439=\"\",\"\",IF(RANK(BN439,$BN$10:$BN$1000)>$CH$1,\"\",IF(COUNTIF($BN$10:BN439,BN439)=1,Kh_RANK(BN439,$BN$10:$BN$1000),Kh_RANK(BN439,$BN$10:$BN$1000)&\" \"&\"مكرر\")))","v":""}]
[null,null,"طالب 431",null,null,null,null,null,null,null,null,null,null,null,null,null,null,null,null,null,null,null,null,null,null,null,null,null,null,null,null,null,null,null,null,null,null,null,null,null,null,null,null,null,null,null,null,null,null,null,null,null,null,null,null,null,null,null,null,null,null,null,null,null,null,null,null,null,null,null,null,null,null,null,null,null,"","له دور ثان في  :  ",null,null,null,null,null,null,null,{"$f":"IF(BN440=\"\",\"\",IF(RANK(BN440,$BN$10:$BN$1000)>$CH$1,\"\",IF(COUNTIF($BN$10:BN440,BN440)=1,Kh_RANK(BN440,$BN$10:$BN$1000),Kh_RANK(BN440,$BN$10:$BN$1000)&\" \"&\"مكرر\")))","v":""}]
[null,null,"طالب 432",null,null,null,null,null,null,null,null,null,null,null,null,null,null,null,null,null,null,null,null,null,null,null,null,null,null,null,null,null,null,null,null,null,null,null,null,null,null,null,null,null,null,null,null,null,null,null,null,null,null,null,null,null,null,null,null,null,null,null,null,null,null,null,null,null,null,null,null,null,null,null,null,null,"","له دور ثان في  :  ",null,null,null,null,null,null,null,{"$f":"IF(BN441=\"\",\"\",IF(RANK(BN441,$BN$10:$BN$1000)>$CH$1,\"\",IF(COUNTIF($BN$10:BN441,BN441)=1,Kh_RANK(BN441,$BN$10:$BN$1000),Kh_RANK(BN441,$BN$10:$BN$1000)&\" \"&\"مكرر\")))","v":""}]
[null,null,"طالب 433",null,null,null,null,null,null,null,null,null,null,null,null,null,null,null,null,null,null,null,null,null,null,null,null,null,null,null,null,null,null,null,null,null,null,null,null,null,null,null,null,null,null,null,null,null,null,null,null,null,null,null,null,null,null,null,null,null,null,null,null,null,null,null,null,null,null,null,null,null,null,null,null,null,"","له دور ثان في  :  ",null,null,null,null,null,null,null,{"$f":"IF(BN442=\"\",\"\",IF(RANK(BN442,$BN$10:$BN$1000)>$CH$1,\"\",IF(COUNTIF($BN$10:BN442,BN442)=1,Kh_RANK(BN442,$BN$10:$BN$1000),Kh_RANK(BN442,$BN$10:$BN$1000)&\" \"&\"مكرر\")))","v":""}]
[null,null,"طالب 434",null,null,null,null,null,null,null,null,null,null,null,null,null,null,null,null,null,null,null,null,null,null,null,null,null,null,null,null,null,null,null,null,null,null,null,null,null,null,null,null,null,null,null,null,null,null,null,null,null,null,null,null,null,null,null,null,null,null,null,null,null,null,null,null,null,null,null,null,null,null,null,null,null,"","له دور ثان في  :  ",null,null,null,null,null,null,null,{"$f":"IF(BN443=\"\",\"\",IF(RANK(BN443,$BN$10:$BN$1000)>$CH$1,\"\",IF(COUNTIF($BN$10:BN443,BN443)=1,Kh_RANK(BN443,$BN$10:$BN$1000),Kh_RANK(BN443,$BN$10:$BN$1000)&\" \"&\"مكرر\")))","v":""}]
[null,null,"طالب 435",null,null,null,null,null,null,null,null,null,null,null,null,null,null,null,null,null,null,null,null,null,null,null,null,null,null,null,null,null,null,null,null,null,null,null,null,null,null,null,null,null,null,null,null,null,null,null,null,null,null,null,null,null,null,null,null,null,null,null,null,null,null,null,null,null,null,null,null,null,null,null,null,null,"","له دور ثان في  :  ",null,null,null,null,null,null,null,{"$f":"IF(BN444=\"\",\"\",IF(RANK(BN444,$BN$10:$BN$1000)>$CH$1,\"\",IF(COUNTIF($BN$10:BN444,BN444)=1,Kh_RANK(BN444,$BN$10:$BN$1000),Kh_RANK(BN444,$BN$10:$BN$1000)&\" \"&\"مكرر\")))","v":""}]
[null,null,"طالب 436",null,null,null,null,null,null,null,null,null,null,null,null,null,null,null,null,null,null,null,null,null,null,null,null,null,null,null,null,null,null,null,null,null,null,null,null,null,null,null,null,null,null,null,null,null,null,null,null,null,null,null,null,null,null,null,null,null,null,null,null,null,null,null,null,null,null,null,null,null,null,null,null,null,"","له دور ثان في  :  ",null,null,null,null,null,null,null,{"$f":"IF(BN445=\"\",\"\",IF(RANK(BN445,$BN$10:$BN$1000)>$CH$1,\"\",IF(COUNTIF($BN$10:BN445,BN445)=1,Kh_RANK(BN445,$BN$10:$BN$1000),Kh_RANK(BN445,$BN$10:$BN$1000)&\" \"&\"مكرر\")))","v":""}]
[null,null,"طالب 437",null,null,null,null,null,null,null,null,null,null,null,null,null,null,null,null,null,null,null,null,null,null,null,null,null,null,null,null,null,null,null,null,null,null,null,null,null,null,null,null,null,null,null,null,null,null,null,null,null,null,null,null,null,null,null,null,null,null,null,null,null,null,null,null,null,null,null,null,null,null,null,null,null,"","له دور ثان في  :  ",null,null,null,null,null,null,null,{"$f":"IF(BN446=\"\",\"\",IF(RANK(BN446,$BN$10:$BN$1000)>$CH$1,\"\",IF(COUNTIF($BN$10:BN446,BN446)=1,Kh_RANK(BN446,$BN$10:$BN$1000),Kh_RANK(BN446,$BN$10:$BN$1000)&\" \"&\"مكرر\")))","v":""}]
[null,null,"طالب 438",null,null,null,null,null,null,null,null,null,null,null,null,null,null,null,null,null,null,null,null,null,null,null,null,null,null,null,null,null,null,null,null,null,null,null,null,null,null,null,null,null,null,null,null,null,null,null,null,null,null,null,null,null,null,null,null,null,null,null,null,null,null,null,null,null,null,null,null,null,null,null,null,null,"","له دور ثان في  :  ",null,null,null,null,null,null,null,{"$f":"IF(BN447=\"\",\"\",IF(RANK(BN447,$BN$10:$BN$1000)>$CH$1,\"\",IF(COUNTIF($BN$10:BN447,BN447)=1,Kh_RANK(BN447,$BN$10:$BN$1000),Kh_RANK(BN447,$BN$10:$BN$1000)&\" \"&\"مكرر\")))","v":""}]
[null,null,"طالب 439",null,null,null,null,null,null,null,null,null,null,null,null,null,null,null,null,null,null,null,null,null,null,null,null,null,null,null,null,null,null,null,null,null,null,null,null,null,null,null,null,null,null,null,null,null,null,null,null,null,null,null,null,null,null,null,null,null,null,null,null,null,null,null,null,null,null,null,null,null,null,null,null,null,"","له دور ثان في  :  ",null,null,null,null,null,null,null,{"$f":"IF(BN448=\"\",\"\",IF(RANK(BN448,$BN$10:$BN$1000)>$CH$1,\"\",IF(COUNTIF($BN$10:BN448,BN448)=1,Kh_RANK(BN448,$BN$10:$BN$1000),Kh_RANK(BN448,$BN$10:$BN$1000)&\" \"&\"مكرر\")))","v":""}]
[null,null,"طالب 440",null,null,null,null,null,null,null,null,null,null,null,null,null,null,null,null,null,null,null,null,null,null,null,null,null,null,null,null,null,null,null,null,null,null,null,null,null,null,null,null,null,null,null,null,null,null,null,null,null,null,null,null,null,null,null,null,null,null,null,null,null,null,null,null,null,null,null,null,null,null,null,null,null,"","له دور ثان في  :  ",null,null,null,null,null,null,null,{"$f":"IF(BN449=\"\",\"\",IF(RANK(BN449,$BN$10:$BN$1000)>$CH$1,\"\",IF(COUNTIF($BN$10:BN449,BN449)=1,Kh_RANK(BN449,$BN$10:$BN$1000),Kh_RANK(BN449,$BN$10:$BN$1000)&\" \"&\"مكرر\")))","v":""}]
[null,null,"طالب 441",null,null,null,null,null,null,null,null,null,null,null,null,null,null,null,null,null,null,null,null,null,null,null,null,null,null,null,null,null,null,null,null,null,null,null,null,null,null,null,null,null,null,null,null,null,null,null,null,null,null,null,null,null,null,null,null,null,null,null,null,null,null,null,null,null,null,null,null,null,null,null,null,null,"","له دور ثان في  :  ",null,null,null,null,null,null,null,{"$f":"IF(BN450=\"\",\"\",IF(RANK(BN450,$BN$10:$BN$1000)>$CH$1,\"\",IF(COUNTIF($BN$10:BN450,BN450)=1,Kh_RANK(BN450,$BN$10:$BN$1000),Kh_RANK(BN450,$BN$10:$BN$1000)&\" \"&\"مكرر\")))","v":""}]
[null,null,"طالب 442",null,null,null,null,null,null,null,null,null,null,null,null,null,null,null,null,null,null,null,null,null,null,null,null,null,null,null,null,null,null,null,null,null,null,null,null,null,null,null,null,null,null,null,null,null,null,null,null,null,null,null,null,null,null,null,null,null,null,null,null,null,null,null,null,null,null,null,null,null,null,null,null,null,"","له دور ثان في  :  ",null,null,null,null,null,null,null,{"$f":"IF(BN451=\"\",\"\",IF(RANK(BN451,$BN$10:$BN$1000)>$CH$1,\"\",IF(COUNTIF($BN$10:BN451,BN451)=1,Kh_RANK(BN451,$BN$10:$BN$1000),Kh_RANK(BN451,$BN$10:$BN$1000)&\" \"&\"مكرر\")))","v":""}]
[null,null,"طالب 443",null,null,null,null,null,null,null,null,null,null,null,null,null,null,null,null,null,null,null,null,null,null,null,null,null,null,null,null,null,null,null,null,null,null,null,null,null,null,null,null,null,null,null,null,null,null,null,null,null,null,null,null,null,null,null,null,null,null,null,null,null,null,null,null,null,null,null,null,null,null,null,null,null,"","له دور ثان في  :  ",null,null,null,null,null,null,null,{"$f":"IF(BN452=\"\",\"\",IF(RANK(BN452,$BN$10:$BN$1000)>$CH$1,\"\",IF(COUNTIF($BN$10:BN452,BN452)=1,Kh_RANK(BN452,$BN$10:$BN$1000),Kh_RANK(BN452,$BN$10:$BN$1000)&\" \"&\"مكرر\")))","v":""}]
[null,null,"طالب 444",null,null,null,null,null,null,null,null,null,null,null,null,null,null,null,null,null,null,null,null,null,null,null,null,null,null,null,null,null,null,null,null,null,null,null,null,null,null,null,null,null,null,null,null,null,null,null,null,null,null,null,null,null,null,null,null,null,null,null,null,null,null,null,null,null,null,null,null,null,null,null,null,null,"","له دور ثان في  :  ",null,null,null,null,null,null,null,{"$f":"IF(BN453=\"\",\"\",IF(RANK(BN453,$BN$10:$BN$1000)>$CH$1,\"\",IF(COUNTIF($BN$10:BN453,BN453)=1,Kh_RANK(BN453,$BN$10:$BN$1000),Kh_RANK(BN453,$BN$10:$BN$1000)&\" \"&\"مكرر\")))","v":""}]
[null,null,"طالب 445",null,null,null,null,null,null,null,null,null,null,null,null,null,null,null,null,null,null,null,null,null,null,null,null,null,null,null,null,null,null,null,null,null,null,null,null,null,null,null,null,null,null,null,null,null,null,null,null,null,null,null,null,null,null,null,null,null,null,null,null,null,null,null,null,null,null,null,null,null,null,null,null,null,"","له دور ثان في  :  ",null,null,null,null,null,null,null,{"$f":"IF(BN454=\"\",\"\",IF(RANK(BN454,$BN$10:$BN$1000)>$CH$1,\"\",IF(COUNTIF($BN$10:BN454,BN454)=1,Kh_RANK(BN454,$BN$10:$BN$1000),Kh_RANK(BN454,$BN$10:$BN$1000)&\" \"&\"مكرر\")))","v":""}]
[null,null,"طالب 446",null,null,null,null,null,null,null,null,null,null,null,null,null,null,null,null,null,null,null,null,null,null,null,null,null,null,null,null,null,null,null,null,null,null,null,null,null,null,null,null,null,null,null,null,null,null,null,null,null,null,null,null,null,null,null,null,null,null,null,null,null,null,null,null,null,null,null,null,null,null,null,null,null,"","له دور ثان في  :  ",null,null,null,null,null,null,null,{"$f":"IF(BN455=\"\",\"\",IF(RANK(BN455,$BN$10:$BN$1000)>$CH$1,\"\",IF(COUNTIF($BN$10:BN455,BN455)=1,Kh_RANK(BN455,$BN$10:$BN$1000),Kh_RANK(BN455,$BN$10:$BN$1000)&\" \"&\"مكرر\")))","v":""}]
[null,null,"طالب 447",null,null,null,null,null,null,null,null,null,null,null,null,null,null,null,null,null,null,null,null,null,null,null,null,null,null,null,null,null,null,null,null,null,null,null,null,null,null,null,null,null,null,null,null,null,null,null,null,null,null,null,null,null,null,null,null,null,null,null,null,null,null,null,null,null,null,null,null,null,null,null,null,null,"","له دور ثان في  :  ",null,null,null,null,null,null,null,{"$f":"IF(BN456=\"\",\"\",IF(RANK(BN456,$BN$10:$BN$1000)>$CH$1,\"\",IF(COUNTIF($BN$10:BN456,BN456)=1,Kh_RANK(BN456,$BN$10:$BN$1000),Kh_RANK(BN456,$BN$10:$BN$1000)&\" \"&\"مكرر\")))","v":""}]
[null,null,"طالب 448",null,null,null,null,null,null,null,null,null,null,null,null,null,null,null,null,null,null,null,null,null,null,null,null,null,null,null,null,null,null,null,null,null,null,null,null,null,null,null,null,null,null,null,null,null,null,null,null,null,null,null,null,null,null,null,null,null,null,null,null,null,null,null,null,null,null,null,null,null,null,null,null,null,"","له دور ثان في  :  ",null,null,null,null,null,null,null,{"$f":"IF(BN457=\"\",\"\",IF(RANK(BN457,$BN$10:$BN$1000)>$CH$1,\"\",IF(COUNTIF($BN$10:BN457,BN457)=1,Kh_RANK(BN457,$BN$10:$BN$1000),Kh_RANK(BN457,$BN$10:$BN$1000)&\" \"&\"مكرر\")))","v":""}]
[null,null,"طالب 449",null,null,null,null,null,null,null,null,null,null,null,null,null,null,null,null,null,null,null,null,null,null,null,null,null,null,null,null,null,null,null,null,null,null,null,null,null,null,null,null,null,null,null,null,null,null,null,null,null,null,null,null,null,null,null,null,null,null,null,null,null,null,null,null,null,null,null,null,null,null,null,null,null,"",{"$f":"IF($BX$4=\"الأول\",IF(BY458<>\"\", \"ناجح بتقدير\"&\" \"&BY458&\" \"&CH458,IF(COUNTBLANK($CA458:$CG458)=11,a,\"يحتاج إلى عناية في  :  \"&textjoin(\" و \",$CA458:$CG458))),IF($BX$4=\"الثاني\",IF(BY458<>\"\", \"ناجح بتقدير\"&\" \"&BY458&\" \"&CH458,IF(COUNTBLANK($CA458:$CG458)=11,a,\"له دور ثان في  :  \"&textjoin(\" و \",$CA458:$CG458)))))","v":"له دور ثان في  :  "},null,null,null,null,null,null,null,{"$f":"IF(BN458=\"\",\"\",IF(RANK(BN458,$BN$10:$BN$1000)>$CH$1,\"\",IF(COUNTIF($BN$10:BN458,BN458)=1,Kh_RANK(BN458,$BN$10:$BN$1000),Kh_RANK(BN458,$BN$10:$BN$1000)&\" \"&\"مكرر\")))","v":""}]
[null,null,"طالب 450",null,null,null,null,null,null,null,null,null,null,null,null,null,null,null,null,null,null,null,null,null,null,null,null,null,null,null,null,null,null,null,null,null,null,null,null,null,null,null,null,null,null,null,null,null,null,null,null,null,null,null,null,null,null,null,null,null,null,null,null,null,null,null,null,null,null,null,null,null,null,null,null,null,"","له دور ثان في  :  ",null,null,null,null,null,null,null,{"$f":"IF(BN459=\"\",\"\",IF(RANK(BN459,$BN$10:$BN$1000)>$CH$1,\"\",IF(COUNTIF($BN$10:BN459,BN459)=1,Kh_RANK(BN459,$BN$10:$BN$1000),Kh_RANK(BN459,$BN$10:$BN$1000)&\" \"&\"مكرر\")))","v":""}]
[null,null,"طالب 451",null,null,null,null,null,null,null,null,null,null,null,null,null,null,null,null,null,null,null,null,null,null,null,null,null,null,null,null,null,null,null,null,null,null,null,null,null,null,null,null,null,null,null,null,null,null,null,null,null,null,null,null,null,null,null,null,null,null,null,null,null,null,null,null,null,null,null,null,null,null,null,null,null,"","له دور ثان في  :  ",null,null,null,null,null,null,null,{"$f":"IF(BN460=\"\",\"\",IF(RANK(BN460,$BN$10:$BN$1000)>$CH$1,\"\",IF(COUNTIF($BN$10:BN460,BN460)=1,Kh_RANK(BN460,$BN$10:$BN$1000),Kh_RANK(BN460,$BN$10:$BN$1000)&\" \"&\"مكرر\")))","v":""}]
[null,null,"طالب 452",null,null,null,null,null,null,null,null,null,null,null,null,null,null,null,null,null,null,null,null,null,null,null,null,null,null,null,null,null,null,null,null,null,null,null,null,null,null,null,null,null,null,null,null,null,null,null,null,null,null,null,null,null,null,null,null,null,null,null,null,null,null,null,null,null,null,null,null,null,null,null,null,null,"","له دور ثان في  :  ",null,null,null,null,null,null,null,{"$f":"IF(BN461=\"\",\"\",IF(RANK(BN461,$BN$10:$BN$1000)>$CH$1,\"\",IF(COUNTIF($BN$10:BN461,BN461)=1,Kh_RANK(BN461,$BN$10:$BN$1000),Kh_RANK(BN461,$BN$10:$BN$1000)&\" \"&\"مكرر\")))","v":""}]
[null,null,"طالب 453",null,null,null,null,null,null,null,null,null,null,null,null,null,null,null,null,null,null,null,null,null,null,null,null,null,null,null,null,null,null,null,null,null,null,null,null,null,null,null,null,null,null,null,null,null,null,null,null,null,null,null,null,null,null,null,null,null,null,null,null,null,null,null,null,null,null,null,null,null,null,null,null,null,"","له دور ثان في  :  ",null,null,null,null,null,null,null,{"$f":"IF(BN462=\"\",\"\",IF(RANK(BN462,$BN$10:$BN$1000)>$CH$1,\"\",IF(COUNTIF($BN$10:BN462,BN462)=1,Kh_RANK(BN462,$BN$10:$BN$1000),Kh_RANK(BN462,$BN$10:$BN$1000)&\" \"&\"مكرر\")))","v":""}]
[null,null,"طالب 454",null,null,null,null,null,null,null,null,null,null,null,null,null,null,null,null,null,null,null,null,null,null,null,null,null,null,null,null,null,null,null,null,null,null,null,null,null,null,null,null,null,null,null,null,null,null,null,null,null,null,null,null,null,null,null,null,null,null,null,null,null,null,null,null,null,null,null,null,null,null,null,null,null,"","له دور ثان في  :  ",null,null,null,null,null,null,null,{"$f":"IF(BN463=\"\",\"\",IF(RANK(BN463,$BN$10:$BN$1000)>$CH$1,\"\",IF(COUNTIF($BN$10:BN463,BN463)=1,Kh_RANK(BN463,$BN$10:$BN$1000),Kh_RANK(BN463,$BN$10:$BN$1000)&\" \"&\"مكرر\")))","v":""}]
[null,null,"طالب 455",null,null,null,null,null,null,null,null,null,null,null,null,null,null,null,null,null,null,null,null,null,null,null,null,null,null,null,null,null,null,null,null,null,null,null,null,null,null,null,null,null,null,null,null,null,null,null,null,null,null,null,null,null,null,null,null,null,null,null,null,null,null,null,null,null,null,null,null,null,null,null,null,null,"","له دور ثان في  :  ",null,null,null,null,null,null,null,{"$f":"IF(BN464=\"\",\"\",IF(RANK(BN464,$BN$10:$BN$1000)>$CH$1,\"\",IF(COUNTIF($BN$10:BN464,BN464)=1,Kh_RANK(BN464,$BN$10:$BN$1000),Kh_RANK(BN464,$BN$10:$BN$1000)&\" \"&\"مكرر\")))","v":""}]
[null,null,"طالب 456",null,null,null,null,null,null,null,null,null,null,null,null,null,null,null,null,null,null,null,null,null,null,null,null,null,null,null,null,null,null,null,null,null,null,null,null,null,null,null,null,null,null,null,null,null,null,null,null,null,null,null,null,null,null,null,null,null,null,null,null,null,null,null,null,null,null,null,null,null,null,null,null,null,"","له دور ثان في  :  ",null,null,null,null,null,null,null,{"$f":"IF(BN465=\"\",\"\",IF(RANK(BN465,$BN$10:$BN$1000)>$CH$1,\"\",IF(COUNTIF($BN$10:BN465,BN465)=1,Kh_RANK(BN465,$BN$10:$BN$1000),Kh_RANK(BN465,$BN$10:$BN$1000)&\" \"&\"مكرر\")))","v":""}]
[null,null,"طالب 457",null,null,null,null,null,null,null,null,null,null,null,null,null,null,null,null,null,null,null,null,null,null,null,null,null,null,null,null,null,null,null,null,null,null,null,null,null,null,null,null,null,null,null,null,null,null,null,null,null,null,null,null,null,null,null,null,null,null,null,null,null,null,null,null,null,null,null,null,null,null,null,null,null,"","له دور ثان في  :  ",null,null,null,null,null,null,null,{"$f":"IF(BN466=\"\",\"\",IF(RANK(BN466,$BN$10:$BN$1000)>$CH$1,\"\",IF(COUNTIF($BN$10:BN466,BN466)=1,Kh_RANK(BN466,$BN$10:$BN$1000),Kh_RANK(BN466,$BN$10:$BN$1000)&\" \"&\"مكرر\")))","v":""}]
[null,null,"طالب 458",null,null,null,null,null,null,null,null,null,null,null,null,null,null,null,null,null,null,null,null,null,null,null,null,null,null,null,null,null,null,null,null,null,null,null,null,null,null,null,null,null,null,null,null,null,null,null,null,null,null,null,null,null,null,null,null,null,null,null,null,null,null,null,null,null,null,null,null,null,null,null,null,null,"","له دور ثان في  :  ",null,null,null,null,null,null,null,{"$f":"IF(BN467=\"\",\"\",IF(RANK(BN467,$BN$10:$BN$1000)>$CH$1,\"\",IF(COUNTIF($BN$10:BN467,BN467)=1,Kh_RANK(BN467,$BN$10:$BN$1000),Kh_RANK(BN467,$BN$10:$BN$1000)&\" \"&\"مكرر\")))","v":""}]
[null,null,"طالب 459",null,null,null,null,null,null,null,null,null,null,null,null,null,null,null,null,null,null,null,null,null,null,null,null,null,null,null,null,null,null,null,null,null,null,null,null,null,null,null,null,null,null,null,null,null,null,null,null,null,null,null,null,null,null,null,null,null,null,null,null,null,null,null,null,null,null,null,null,null,null,null,null,null,"","له دور ثان في  :  ",null,null,null,null,null,null,null,{"$f":"IF(BN468=\"\",\"\",IF(RANK(BN468,$BN$10:$BN$1000)>$CH$1,\"\",IF(COUNTIF($BN$10:BN468,BN468)=1,Kh_RANK(BN468,$BN$10:$BN$1000),Kh_RANK(BN468,$BN$10:$BN$1000)&\" \"&\"مكرر\")))","v":""}]
[null,null,"طالب 460",null,null,null,null,null,null,null,null,null,null,null,null,null,null,null,null,null,null,null,null,null,null,null,null,null,null,null,null,null,null,null,null,null,null,null,null,null,null,null,null,null,null,null,null,null,null,null,null,null,null,null,null,null,null,null,null,null,null,null,null,null,null,null,null,null,null,null,null,null,null,null,null,null,"","له دور ثان في  :  ",null,null,null,null,null,null,null,{"$f":"IF(BN469=\"\",\"\",IF(RANK(BN469,$BN$10:$BN$1000)>$CH$1,\"\",IF(COUNTIF($BN$10:BN469,BN469)=1,Kh_RANK(BN469,$BN$10:$BN$1000),Kh_RANK(BN469,$BN$10:$BN$1000)&\" \"&\"مكرر\")))","v":""}]
[null,null,"طالب 461",null,null,null,null,null,null,null,null,null,null,null,null,null,null,null,null,null,null,null,null,null,null,null,null,null,null,null,null,null,null,null,null,null,null,null,null,null,null,null,null,null,null,null,null,null,null,null,null,null,null,null,null,null,null,null,null,null,null,null,null,null,null,null,null,null,null,null,null,null,null,null,null,null,"","له دور ثان في  :  ",null,null,null,null,null,null,null,{"$f":"IF(BN470=\"\",\"\",IF(RANK(BN470,$BN$10:$BN$1000)>$CH$1,\"\",IF(COUNTIF($BN$10:BN470,BN470)=1,Kh_RANK(BN470,$BN$10:$BN$1000),Kh_RANK(BN470,$BN$10:$BN$1000)&\" \"&\"مكرر\")))","v":""}]
[null,null,"طالب 462",null,null,null,null,null,null,null,null,null,null,null,null,null,null,null,null,null,null,null,null,null,null,null,null,null,null,null,null,null,null,null,null,null,null,null,null,null,null,null,null,null,null,null,null,null,null,null,null,null,null,null,null,null,null,null,null,null,null,null,null,null,null,null,null,null,null,null,null,null,null,null,null,null,"","له دور ثان في  :  ",null,null,null,null,null,null,null,{"$f":"IF(BN471=\"\",\"\",IF(RANK(BN471,$BN$10:$BN$1000)>$CH$1,\"\",IF(COUNTIF($BN$10:BN471,BN471)=1,Kh_RANK(BN471,$BN$10:$BN$1000),Kh_RANK(BN471,$BN$10:$BN$1000)&\" \"&\"مكرر\")))","v":""}]
[null,null,"طالب 463",null,null,null,null,null,null,null,null,null,null,null,null,null,null,null,null,null,null,null,null,null,null,null,null,null,null,null,null,null,null,null,null,null,null,null,null,null,null,null,null,null,null,null,null,null,null,null,null,null,null,null,null,null,null,null,null,null,null,null,null,null,null,null,null,null,null,null,null,null,null,null,null,null,"","له دور ثان في  :  ",null,null,null,null,null,null,null,{"$f":"IF(BN472=\"\",\"\",IF(RANK(BN472,$BN$10:$BN$1000)>$CH$1,\"\",IF(COUNTIF($BN$10:BN472,BN472)=1,Kh_RANK(BN472,$BN$10:$BN$1000),Kh_RANK(BN472,$BN$10:$BN$1000)&\" \"&\"مكرر\")))","v":""}]
[null,null,"طالب 464",null,null,null,null,null,null,null,null,null,null,null,null,null,null,null,null,null,null,null,null,null,null,null,null,null,null,null,null,null,null,null,null,null,null,null,null,null,null,null,null,null,null,null,null,null,null,null,null,null,null,null,null,null,null,null,null,null,null,null,null,null,null,null,null,null,null,null,null,null,null,null,null,null,"","له دور ثان في  :  ",null,null,null,null,null,null,null,{"$f":"IF(BN473=\"\",\"\",IF(RANK(BN473,$BN$10:$BN$1000)>$CH$1,\"\",IF(COUNTIF($BN$10:BN473,BN473)=1,Kh_RANK(BN473,$BN$10:$BN$1000),Kh_RANK(BN473,$BN$10:$BN$1000)&\" \"&\"مكرر\")))","v":""}]
[null,null,"طالب 465",null,null,null,null,null,null,null,null,null,null,null,null,null,null,null,null,null,null,null,null,null,null,null,null,null,null,null,null,null,null,null,null,null,null,null,null,null,null,null,null,null,null,null,null,null,null,null,null,null,null,null,null,null,null,null,null,null,null,null,null,null,null,null,null,null,null,null,null,null,null,null,null,null,"","له دور ثان في  :  ",null,null,null,null,null,null,null,{"$f":"IF(BN474=\"\",\"\",IF(RANK(BN474,$BN$10:$BN$1000)>$CH$1,\"\",IF(COUNTIF($BN$10:BN474,BN474)=1,Kh_RANK(BN474,$BN$10:$BN$1000),Kh_RANK(BN474,$BN$10:$BN$1000)&\" \"&\"مكرر\")))","v":""}]
[null,null,"طالب 466",null,null,null,null,null,null,null,null,null,null,null,null,null,null,null,null,null,null,null,null,null,null,null,null,null,null,null,null,null,null,null,null,null,null,null,null,null,null,null,null,null,null,null,null,null,null,null,null,null,null,null,null,null,null,null,null,null,null,null,null,null,null,null,null,null,null,null,null,null,null,null,null,null,"","له دور ثان في  :  ",null,null,null,null,null,null,null,{"$f":"IF(BN475=\"\",\"\",IF(RANK(BN475,$BN$10:$BN$1000)>$CH$1,\"\",IF(COUNTIF($BN$10:BN475,BN475)=1,Kh_RANK(BN475,$BN$10:$BN$1000),Kh_RANK(BN475,$BN$10:$BN$1000)&\" \"&\"مكرر\")))","v":""}]
[null,null,"طالب 467",null,null,null,null,null,null,null,null,null,null,null,null,null,null,null,null,null,null,null,null,null,null,null,null,null,null,null,null,null,null,null,null,null,null,null,null,null,null,null,null,null,null,null,null,null,null,null,null,null,null,null,null,null,null,null,null,null,null,null,null,null,null,null,null,null,null,null,null,null,null,null,null,null,"","له دور ثان في  :  ",null,null,null,null,null,null,null,{"$f":"IF(BN476=\"\",\"\",IF(RANK(BN476,$BN$10:$BN$1000)>$CH$1,\"\",IF(COUNTIF($BN$10:BN476,BN476)=1,Kh_RANK(BN476,$BN$10:$BN$1000),Kh_RANK(BN476,$BN$10:$BN$1000)&\" \"&\"مكرر\")))","v":""}]
[null,null,"طالب 468",null,null,null,null,null,null,null,null,null,null,null,null,null,null,null,null,null,null,null,null,null,null,null,null,null,null,null,null,null,null,null,null,null,null,null,null,null,null,null,null,null,null,null,null,null,null,null,null,null,null,null,null,null,null,null,null,null,null,null,null,null,null,null,null,null,null,null,null,null,null,null,null,null,"","له دور ثان في  :  ",null,null,null,null,null,null,null,{"$f":"IF(BN477=\"\",\"\",IF(RANK(BN477,$BN$10:$BN$1000)>$CH$1,\"\",IF(COUNTIF($BN$10:BN477,BN477)=1,Kh_RANK(BN477,$BN$10:$BN$1000),Kh_RANK(BN477,$BN$10:$BN$1000)&\" \"&\"مكرر\")))","v":""}]
[null,null,"طالب 469",null,null,null,null,null,null,null,null,null,null,null,null,null,null,null,null,null,null,null,null,null,null,null,null,null,null,null,null,null,null,null,null,null,null,null,null,null,null,null,null,null,null,null,null,null,null,null,null,null,null,null,null,null,null,null,null,null,null,null,null,null,null,null,null,null,null,null,null,null,null,null,null,null,"","له دور ثان في  :  ",null,null,null,null,null,null,null,{"$f":"IF(BN478=\"\",\"\",IF(RANK(BN478,$BN$10:$BN$1000)>$CH$1,\"\",IF(COUNTIF($BN$10:BN478,BN478)=1,Kh_RANK(BN478,$BN$10:$BN$1000),Kh_RANK(BN478,$BN$10:$BN$1000)&\" \"&\"مكرر\")))","v":""}]
[null,null,"طالب 470",null,null,null,null,null,null,null,null,null,null,null,null,null,null,null,null,null,null,null,null,null,null,null,null,null,null,null,null,null,null,null,null,null,null,null,null,null,null,null,null,null,null,null,null,null,null,null,null,null,null,null,null,null,null,null,null,null,null,null,null,null,null,null,null,null,null,null,null,null,null,null,null,null,"","له دور ثان في  :  ",null,null,null,null,null,null,null,{"$f":"IF(BN479=\"\",\"\",IF(RANK(BN479,$BN$10:$BN$1000)>$CH$1,\"\",IF(COUNTIF($BN$10:BN479,BN479)=1,Kh_RANK(BN479,$BN$10:$BN$1000),Kh_RANK(BN479,$BN$10:$BN$1000)&\" \"&\"مكرر\")))","v":""}]
[null,null,"طالب 471",null,null,null,null,null,null,null,null,null,null,null,null,null,null,null,null,null,null,null,null,null,null,null,null,null,null,null,null,null,null,null,null,null,null,null,null,null,null,null,null,null,null,null,null,null,null,null,null,null,null,null,null,null,null,null,null,null,null,null,null,null,null,null,null,null,null,null,null,null,null,null,null,null,{"$f":"IF(BX480=\"\",\"\",evaltion(BX480))","v":""},"له دور ثان في  :  ",null,null,null,null,null,null,null,{"$f":"IF(BN480=\"\",\"\",IF(RANK(BN480,$BN$10:$BN$1000)>$CH$1,\"\",IF(COUNTIF($BN$10:BN480,BN480)=1,Kh_RANK(BN480,$BN$10:$BN$1000),Kh_RANK(BN480,$BN$10:$BN$1000)&\" \"&\"مكرر\")))","v":""}]
[null,null,"طالب 472",null,null,null,null,null,null,null,null,null,null,null,null,null,null,null,null,null,null,null,null,null,null,null,null,null,null,null,null,null,null,null,null,null,null,null,null,null,null,null,null,null,null,null,null,null,null,null,null,null,null,null,null,null,null,null,null,null,null,null,null,null,null,null,null,null,null,null,null,null,null,null,null,null,"","له دور ثان في  :  ",null,null,null,null,null,null,null,{"$f":"IF(BN481=\"\",\"\",IF(RANK(BN481,$BN$10:$BN$1000)>$CH$1,\"\",IF(COUNTIF($BN$10:BN481,BN481)=1,Kh_RANK(BN481,$BN$10:$BN$1000),Kh_RANK(BN481,$BN$10:$BN$1000)&\" \"&\"مكرر\")))","v":""}]
[null,null,"طالب 473",null,null,null,null,null,null,null,null,null,null,null,null,null,null,null,null,null,null,null,null,null,null,null,null,null,null,null,null,null,null,null,null,null,null,null,null,null,null,null,null,null,null,null,null,null,null,null,null,null,null,null,null,null,null,null,null,null,null,null,null,null,null,null,null,null,null,null,null,null,null,null,null,null,"","له دور ثان في  :  ",null,null,null,null,null,null,null,{"$f":"IF(BN482=\"\",\"\",IF(RANK(BN482,$BN$10:$BN$1000)>$CH$1,\"\",IF(COUNTIF($BN$10:BN482,BN482)=1,Kh_RANK(BN482,$BN$10:$BN$1000),Kh_RANK(BN482,$BN$10:$BN$1000)&\" \"&\"مكرر\")))","v":""}]
[null,null,"طالب 474",null,null,null,null,null,null,null,null,null,null,null,null,null,null,null,null,null,null,null,null,null,null,null,null,null,null,null,null,null,null,null,null,null,null,null,null,null,null,null,null,null,null,null,null,null,null,null,null,null,null,null,null,null,null,null,null,null,null,null,null,null,null,null,null,null,null,null,null,null,null,null,null,null,"","له دور ثان في  :  ",null,null,null,null,null,null,null,{"$f":"IF(BN483=\"\",\"\",IF(RANK(BN483,$BN$10:$BN$1000)>$CH$1,\"\",IF(COUNTIF($BN$10:BN483,BN483)=1,Kh_RANK(BN483,$BN$10:$BN$1000),Kh_RANK(BN483,$BN$10:$BN$1000)&\" \"&\"مكرر\")))","v":""}]
[null,null,"طالب 475",null,null,null,null,null,null,null,null,null,null,null,null,null,null,null,null,null,null,null,null,null,null,null,null,null,null,null,null,null,null,null,null,null,null,null,null,null,null,null,null,null,null,null,null,null,null,null,null,null,null,null,null,null,null,null,null,null,null,null,null,null,null,null,null,null,null,null,null,null,null,null,null,null,"","له دور ثان في  :  ",null,null,null,null,null,null,null,{"$f":"IF(BN484=\"\",\"\",IF(RANK(BN484,$BN$10:$BN$1000)>$CH$1,\"\",IF(COUNTIF($BN$10:BN484,BN484)=1,Kh_RANK(BN484,$BN$10:$BN$1000),Kh_RANK(BN484,$BN$10:$BN$1000)&\" \"&\"مكرر\")))","v":""}]
[null,null,"طالب 476",null,null,null,null,null,null,null,null,null,null,null,null,null,null,null,null,null,null,null,null,null,null,null,null,null,null,null,null,null,null,null,null,null,null,null,null,null,null,null,null,null,null,null,null,null,null,null,null,null,null,null,null,null,null,null,null,null,null,null,null,null,null,null,null,null,null,null,null,null,null,null,null,null,"","له دور ثان في  :  ",null,null,null,null,null,null,null,{"$f":"IF(BN485=\"\",\"\",IF(RANK(BN485,$BN$10:$BN$1000)>$CH$1,\"\",IF(COUNTIF($BN$10:BN485,BN485)=1,Kh_RANK(BN485,$BN$10:$BN$1000),Kh_RANK(BN485,$BN$10:$BN$1000)&\" \"&\"مكرر\")))","v":""}]
[null,null,"طالب 477",null,null,null,null,null,null,null,null,null,null,null,null,null,null,null,null,null,null,null,null,null,null,null,null,null,null,null,null,null,null,null,null,null,null,null,null,null,null,null,null,null,null,null,null,null,null,null,null,null,null,null,null,null,null,null,null,null,null,null,null,null,null,null,null,null,null,null,null,null,null,null,null,null,"","له دور ثان في  :  ",null,null,null,null,null,null,null,{"$f":"IF(BN486=\"\",\"\",IF(RANK(BN486,$BN$10:$BN$1000)>$CH$1,\"\",IF(COUNTIF($BN$10:BN486,BN486)=1,Kh_RANK(BN486,$BN$10:$BN$1000),Kh_RANK(BN486,$BN$10:$BN$1000)&\" \"&\"مكرر\")))","v":""}]
[null,null,"طالب 478",null,null,null,null,null,null,null,null,null,null,null,null,null,null,null,null,null,null,null,null,null,null,null,null,null,null,null,null,null,null,null,null,null,null,null,null,null,null,null,null,null,null,null,null,null,null,null,null,null,null,null,null,null,null,null,null,null,null,null,null,null,null,null,null,null,null,null,null,null,null,null,null,null,"","له دور ثان في  :  ",null,null,null,null,null,null,null,{"$f":"IF(BN487=\"\",\"\",IF(RANK(BN487,$BN$10:$BN$1000)>$CH$1,\"\",IF(COUNTIF($BN$10:BN487,BN487)=1,Kh_RANK(BN487,$BN$10:$BN$1000),Kh_RANK(BN487,$BN$10:$BN$1000)&\" \"&\"مكرر\")))","v":""}]
[null,null,"طالب 479",null,null,null,null,null,null,null,null,null,null,null,null,null,null,null,null,null,null,null,null,null,null,null,null,null,null,null,null,null,null,null,null,null,null,null,null,null,null,null,null,null,null,null,null,null,null,null,null,null,null,null,null,null,null,null,null,null,null,null,null,null,null,null,null,null,null,null,null,null,null,null,null,null,"","له دور ثان في  :  ",null,null,null,null,null,null,null,{"$f":"IF(BN488=\"\",\"\",IF(RANK(BN488,$BN$10:$BN$1000)>$CH$1,\"\",IF(COUNTIF($BN$10:BN488,BN488)=1,Kh_RANK(BN488,$BN$10:$BN$1000),Kh_RANK(BN488,$BN$10:$BN$1000)&\" \"&\"مكرر\")))","v":""}]
[null,null,"طالب 480",null,null,null,null,null,null,null,null,null,null,null,null,null,null,null,null,null,null,null,null,null,null,null,null,null,null,null,null,null,null,null,null,null,null,null,null,null,null,null,null,null,null,null,null,null,null,null,null,null,null,null,null,null,null,null,null,null,null,null,null,null,null,null,null,null,null,null,null,null,null,null,null,null,"","له دور ثان في  :  ",null,null,null,null,null,null,null,{"$f":"IF(BN489=\"\",\"\",IF(RANK(BN489,$BN$10:$BN$1000)>$CH$1,\"\",IF(COUNTIF($BN$10:BN489,BN489)=1,Kh_RANK(BN489,$BN$10:$BN$1000),Kh_RANK(BN489,$BN$10:$BN$1000)&\" \"&\"مكرر\")))","v":""}]
[null,null,"طالب 481",null,null,null,null,null,null,null,null,null,null,null,null,null,null,null,null,null,null,null,null,null,null,null,null,null,null,null,null,null,null,null,null,null,null,null,null,null,null,null,null,null,null,null,null,null,null,null,null,null,null,null,null,null,null,null,null,null,null,null,null,null,null,null,null,null,null,null,null,null,null,null,null,null,"","له دور ثان في  :  ",null,null,null,null,null,null,null,{"$f":"IF(BN490=\"\",\"\",IF(RANK(BN490,$BN$10:$BN$1000)>$CH$1,\"\",IF(COUNTIF($BN$10:BN490,BN490)=1,Kh_RANK(BN490,$BN$10:$BN$1000),Kh_RANK(BN490,$BN$10:$BN$1000)&\" \"&\"مكرر\")))","v":""}]
[null,null,"طالب 482",null,null,null,null,null,null,null,null,null,null,null,null,null,null,null,null,null,null,null,null,null,null,null,null,null,null,null,null,null,null,null,null,null,null,null,null,null,null,null,null,null,null,null,null,null,null,null,null,null,null,null,null,null,null,null,null,null,null,null,null,null,null,null,null,null,null,null,null,null,null,null,null,null,"","له دور ثان في  :  ",null,null,null,null,null,null,null,{"$f":"IF(BN491=\"\",\"\",IF(RANK(BN491,$BN$10:$BN$1000)>$CH$1,\"\",IF(COUNTIF($BN$10:BN491,BN491)=1,Kh_RANK(BN491,$BN$10:$BN$1000),Kh_RANK(BN491,$BN$10:$BN$1000)&\" \"&\"مكرر\")))","v":""}]
[null,null,"طالب 483",null,null,null,null,null,null,null,null,null,null,null,null,null,null,null,null,null,null,null,null,null,null,null,null,null,null,null,null,null,null,null,null,null,null,null,null,null,null,null,null,null,null,null,null,null,null,null,null,null,null,null,null,null,null,null,null,null,null,null,null,null,null,null,null,null,null,null,null,null,null,null,null,null,"","له دور ثان في  :  ",null,null,null,null,null,null,null,{"$f":"IF(BN492=\"\",\"\",IF(RANK(BN492,$BN$10:$BN$1000)>$CH$1,\"\",IF(COUNTIF($BN$10:BN492,BN492)=1,Kh_RANK(BN492,$BN$10:$BN$1000),Kh_RANK(BN492,$BN$10:$BN$1000)&\" \"&\"مكرر\")))","v":""}]
[null,null,"طالب 484",null,null,null,null,null,null,null,null,null,null,null,null,null,null,null,null,null,null,null,null,null,null,null,null,null,null,null,null,null,null,null,null,null,null,null,null,null,null,null,null,null,null,null,null,null,null,null,null,null,null,null,null,null,null,null,null,null,null,null,null,null,null,null,null,null,null,null,null,null,null,null,null,null,"","له دور ثان في  :  ",null,null,null,null,null,null,null,{"$f":"IF(BN493=\"\",\"\",IF(RANK(BN493,$BN$10:$BN$1000)>$CH$1,\"\",IF(COUNTIF($BN$10:BN493,BN493)=1,Kh_RANK(BN493,$BN$10:$BN$1000),Kh_RANK(BN493,$BN$10:$BN$1000)&\" \"&\"مكرر\")))","v":""}]
[null,null,"طالب 485",null,null,null,null,null,null,null,null,null,null,null,null,null,null,null,null,null,null,null,null,null,null,null,null,null,null,null,null,null,null,null,null,null,null,null,null,null,null,null,null,null,null,null,null,null,null,null,null,null,null,null,null,null,null,null,null,null,null,null,null,null,null,null,null,null,null,null,null,null,null,null,null,null,"","له دور ثان في  :  ",null,null,null,null,null,null,null,{"$f":"IF(BN494=\"\",\"\",IF(RANK(BN494,$BN$10:$BN$1000)>$CH$1,\"\",IF(COUNTIF($BN$10:BN494,BN494)=1,Kh_RANK(BN494,$BN$10:$BN$1000),Kh_RANK(BN494,$BN$10:$BN$1000)&\" \"&\"مكرر\")))","v":""}]
[null,null,"طالب 486",null,null,null,null,null,null,null,null,null,null,null,null,null,null,null,null,null,null,null,null,null,null,null,null,null,null,null,null,null,null,null,null,null,null,null,null,null,null,null,null,null,null,null,null,null,null,null,null,null,null,null,null,null,null,null,null,null,null,null,null,null,null,null,null,null,null,null,null,null,null,null,null,null,"","له دور ثان في  :  ",null,null,null,null,null,null,null,{"$f":"IF(BN495=\"\",\"\",IF(RANK(BN495,$BN$10:$BN$1000)>$CH$1,\"\",IF(COUNTIF($BN$10:BN495,BN495)=1,Kh_RANK(BN495,$BN$10:$BN$1000),Kh_RANK(BN495,$BN$10:$BN$1000)&\" \"&\"مكرر\")))","v":""}]
[null,null,"طالب 487",null,null,null,null,null,null,null,null,null,null,null,null,null,null,null,null,null,null,null,null,null,null,null,null,null,null,null,null,null,null,null,null,null,null,null,null,null,null,null,null,null,null,null,null,null,null,null,null,null,null,null,null,null,null,null,null,null,null,null,null,null,null,null,null,null,null,null,null,null,null,null,null,null,"","له دور ثان في  :  ",null,null,null,null,null,null,null,{"$f":"IF(BN496=\"\",\"\",IF(RANK(BN496,$BN$10:$BN$1000)>$CH$1,\"\",IF(COUNTIF($BN$10:BN496,BN496)=1,Kh_RANK(BN496,$BN$10:$BN$1000),Kh_RANK(BN496,$BN$10:$BN$1000)&\" \"&\"مكرر\")))","v":""}]
[null,null,"طالب 488",null,null,null,null,null,null,null,null,null,null,null,null,null,null,null,null,null,null,null,null,null,null,null,null,null,null,null,null,null,null,null,null,null,null,null,null,null,null,null,null,null,null,null,null,null,null,null,null,null,null,null,null,null,null,null,null,null,null,null,null,null,null,null,null,null,null,null,null,null,null,null,null,null,"","له دور ثان في  :  ",null,null,null,null,null,null,null,{"$f":"IF(BN497=\"\",\"\",IF(RANK(BN497,$BN$10:$BN$1000)>$CH$1,\"\",IF(COUNTIF($BN$10:BN497,BN497)=1,Kh_RANK(BN497,$BN$10:$BN$1000),Kh_RANK(BN497,$BN$10:$BN$1000)&\" \"&\"مكرر\")))","v":""}]
[null,null,"طالب 489",null,null,null,null,null,null,null,null,null,null,null,null,null,null,null,null,null,null,null,null,null,null,null,null,null,null,null,null,null,null,null,null,null,null,null,null,null,null,null,null,null,null,null,null,null,null,null,null,null,null,null,null,null,null,null,null,null,null,null,null,null,null,null,null,null,null,null,null,null,null,null,null,null,"","له دور ثان في  :  ",null,null,null,null,null,null,null,{"$f":"IF(BN498=\"\",\"\",IF(RANK(BN498,$BN$10:$BN$1000)>$CH$1,\"\",IF(COUNTIF($BN$10:BN498,BN498)=1,Kh_RANK(BN498,$BN$10:$BN$1000),Kh_RANK(BN498,$BN$10:$BN$1000)&\" \"&\"مكرر\")))","v":""}]
[null,null,"طالب 490",null,null,null,null,null,null,null,null,null,null,null,null,null,null,null,null,null,null,null,null,null,null,null,null,null,null,null,null,null,null,null,null,null,null,null,null,null,null,null,null,null,null,null,null,null,null,null,null,null,null,null,null,null,null,null,null,null,null,null,null,null,null,null,null,null,null,null,null,null,null,null,null,null,"","له دور ثان في  :  ",null,null,null,null,null,null,null,{"$f":"IF(BN499=\"\",\"\",IF(RANK(BN499,$BN$10:$BN$1000)>$CH$1,\"\",IF(COUNTIF($BN$10:BN499,BN499)=1,Kh_RANK(BN499,$BN$10:$BN$1000),Kh_RANK(BN499,$BN$10:$BN$1000)&\" \"&\"مكرر\")))","v":""}]
[null,null,"طالب 491",null,null,null,null,null,null,null,null,null,null,null,null,null,null,null,null,null,null,null,null,null,null,null,null,null,null,null,null,null,null,null,null,null,null,null,null,null,null,null,null,null,null,null,null,null,null,null,null,null,null,null,null,null,null,null,null,null,null,null,null,null,null,null,null,null,null,null,null,null,null,null,null,null,"","له دور ثان في  :  ",null,null,null,null,null,null,null,{"$f":"IF(BN500=\"\",\"\",IF(RANK(BN500,$BN$10:$BN$1000)>$CH$1,\"\",IF(COUNTIF($BN$10:BN500,BN500)=1,Kh_RANK(BN500,$BN$10:$BN$1000),Kh_RANK(BN500,$BN$10:$BN$1000)&\" \"&\"مكرر\")))","v":""}]

{"sheet":"khairi","index":1,"n_rows":21,"n_cols":42,"rows_kept":21,"cut":false,"hidden":false,"merged":[[2,34,5,34],[2,35,5,35],[2,28,5,28],[2,29,5,29],[2,30,5,30],[2,31,5,31],[2,32,5,32],[2,33,5,33],[2,27,5,27],[2,16,5,16],[2,17,5,17],[2,18,5,18],[2,19,5,19],[2,20,5,20],[2,21,5,21],[2,22,5,22],[2,23,5,23],[2,24,5,24],[2,25,5,25],[2,26,5,26],[1,30,1,35],[2,5,5,5],[2,6,5,6],[2,7,5,7],[2,8,5,8],[2,9,5,9],[2,15,5,15],[1,6,1,11],[1,12,1,17],[1,18,1,23],[1,24,1,29],[2,10,5,10],[2,11,5,11],[2,12,5,12],[2,13,5,13],[2,14,5,14]]}
[1,2,3,4,5,6,7,8,9,10,11,12,13,14,15,16,17,18,19,20,21,22,23,24,25,26,27,28,29,30,31,32,33,34,35,36,37,38,39,40,41,42]
["اسم المستخدم","كلمة المرور","الجنسية","الفصل",null,"الصف","الأول",null,null,null,null,null,"ثانية علمي",null,null,null,null,null,"ثانية أدبي",null,null,null,null,null,"ثالثة علمي",null,null,null,null,null,"ثالثة ادبي",null,null,null,null,null,null,"الأول","ثانية علمي","ثانية ادبي","ثالثة علمي","ثالثة ادبي"]
[123,123,"ليبية","1/1",null,"المواد الدراسية","الأنشطـــة اليومية","التطبيقات الشــهرية","الامتحان النصـــــفي","مجموع اعمال السنة","درجة الامتحــــــان","المجمــــــــــــــــوع","الأنشطـــة اليومية","التطبيقات الشــهرية","الامتحان النصـــــفي","مجموع اعمال السنة","درجة الامتحــــــان","المجمــــــــــــــــوع","الأنشطـــة اليومية","التطبيقات الشــهرية","الامتحان النصـــــفي","مجموع اعمال السنة","درجة الامتحــــــان","المجمــــــــــــــــوع","الأنشطـــة اليومية","التطبيقات الشــهرية","الامتحان النصـــــفي","مجموع اعمال السنة","درجة الامتحــــــان","المجمــــــــــــــــوع","الأنشطـــة اليومية","التطبيقات الشــهرية","الامتحان النصـــــفي","مجموع اعمال السنة","درجة الامتحــــــان","المجمــــــــــــــــوع",null,"1/1","1/2","1/2","1/3","1/3"]
[null,null,"فلسطينية","2/1",null,null,null,null,null,null,null,null,null,null,null,null,null,null,null,null,null,null,null,null,null,null,null,null,null,null,null,null,null,null,null,null,null,"2/1","2/2",null,"2/3"]
[null,null,"تونسية","3/1",null,null,null,null,null,null,null,null,null,null,null,null,null,null,null,null,null,null,null,null,null,null,null,null,null,null,null,null,null,null,null,null,null,"3/1","3/2",null,"3/3"]
[null,null,"جزائرية","4/1",null,null,null,null,null,null,null,null,null,null,null,null,null,null,null,null,null,null,null,null,null,null,null,null,null,null,null,null,null,null,null,null,null,"4/1","4/2",null,"4/3"]
[null,null,"سودانية","5/1",null,"التربية الإسلامية",5,5,10,{"$f":"SUM(G7:I7)","v":20},20,{"$f":"SUM(J7:K7)","v":40},null,null,null,{"$f":"SUM(M7:O7)","v":0},null,{"$f":"SUM(P7:Q7)","v":0},5,5,10,{"$f":"SUM(S7:U7)","v":20},20,{"$f":"SUM(V7:W7)","v":40},5,5,10,{"$f":"SUM(Y7:AA7)","v":20},20,{"$f":"SUM(AB7:AC7)","v":40},null,null,null,{"$f":"SUM(AE7:AG7)","v":0},null,{"$f":"SUM(AH7:AI7)","v":0},null,"5/1",null,null,"5/3"]
[null,null,"سورية","6/1",null,"اللغة العربية",12.5,12.5,25,50,50,100,null,null,null,0,null,0,22.5,22.5,45,90,90,180,12.5,12.5,25,50,50,100,null,null,null,0,null,0,null,"6/1",null,null,"6/3"]
[null,null,"عراقية","1/2",null,"اللغة الإنجليزية",12.5,12.5,25,50,50,100,null,null,null,0,null,0,null,null,null,0,null,0,12.5,12.5,25,50,50,100,null,null,null,0,null,0]
[null,null,"لبنانية","2/2",null,"الحاسوب",10,5,5,20,20,40,null,null,null,0,null,0,10,5,5,20,20,40,10,5,5,20,20,40,null,null,null,0,null,0]
[null,null,"مصرية","3/2",null,"الرياضيات",12.5,12.5,25,50,50,100,null,null,null,0,null,0,null,null,null,0,null,0,12.5,12.5,25,50,50,100,null,null,null,0,null,0]
[null,null,"مغربية","4/2",null,"الفيزياء",15,7.5,7.5,30,30,60,null,null,null,0,null,0,null,null,null,0,null,0,null,null,null,0,null,0,null,null,null,0,null,0]
[null,null,null,"1/2",null,"الكيمياء",15,7.5,7.5,30,30,60,null,null,null,0,null,0,null,null,null,0,null,0,20,10,10,40,40,80,null,null,null,0,null,0]
[null,null,null,"1/3",null,"الاحياء",15,7.5,7.5,30,30,60,null,null,null,0,null,0,null,null,null,0,null,0,20,10,10,40,40,80,null,null,null,0,null,0]
[null,null,null,"2/3",null,"الاحصاء",null,null,null,0,null,0,null,null,null,0,null,0,5,5,10,20,20,40,5,5,10,20,20,40,null,null,null,0,null,0]
[null,null,null,"3/3",null,"التاريخ",5,5,10,20,20,40,null,null,null,0,null,0,7.5,7.5,15,30,30,60,null,null,null,0,null,0,null,null,null,0,null,0]
[null,null,null,"4/3",null,"الجغرافيا",5,5,10,20,20,40,null,null,null,0,null,0,7.5,7.5,15,30,30,60,null,null,null,0,null,0,null,null,null,0,null,0]
[null,null,null,"5/3",null,"علم الاجتماع",2.5,2.5,5,10,10,20,null,null,null,0,null,0,5,5,10,20,20,40,null,null,null,0,null,0,null,null,null,0,null,0]
[null,null,null,"6/3",null,"الغلسفة",null,null,null,0,null,0,null,null,null,0,null,0,5,5,10,20,20,40,null,null,null,0,null,0,null,null,null,0,null,0]
[null,null,null,null,null,"علم النفس",null,null,null,0,null,0,null,null,null,0,null,0,5,5,10,20,20,40,null,null,null,0,null,0,null,null,null,0,null,0]
[null,null,null,null,null,"المجموع الكلي",null,null,null,null,null,{"$f":"SUM(L7:L20)","v":660}]